Workbook

Sheet Zmeny
B1: Změna
A2: Datum | B2: Rev | C2: Popis
A3: 2022-12-31 | B3: 00 | C3: Základní verze
A4: 2023-01-08 | B4: 01 | C4: Aktualizovány koeficienty soutěží dle rozhodnutí PK AeČR

Sheet Soutez
A1: No. | B1: Soutěž | C1: Stát | D1: Rok | E1: Místo | F1: Termín | G1: Poč. disc. | H1: Poč. pilotů | I1: Ki | J1: Kn1 | K1: Kn2 | L1: Kp | M1: Kinp | N1: dKinp | O1: Poznámka | P1: Results
B2: Zařazené soutěže 2020:
B3: AZ Cup 2020 - Klub | C3: CZ | D3: 2020 | E3: Zbraslavice | F3: 3.5.-7.6.20 | G3: 3 | H3: 27 | I3: 0.9 | J3: 0.015 | K3: 0.01 | L3: =VLOOKUP(G3,Kp!$A$4:$B$24,2,FALSE) -> -0.02 | M3: =IF(I3=0,0,IF(OR(G3=0,G3=1,G3=2),0,IF(H3<10,0,SUM(I3:L3)))) -> 0.905 | N3: =M3-I3 -> 0.005 | P3: https://www.soaringspot.com/cs/az-cup-2020-zbraslavice-2020/results/klubova-trida
B4: AZ Cup 2020 - Kombi A | C4: CZ | D4: 2020 | E4: Zbraslavice | F4: 3.5.-7.6.20 | G4: 3 | H4: 20 | I4: 0.9 | J4: 0.02 | K4: 0 | L4: =VLOOKUP(G4,Kp!$A$4:$B$24,2,FALSE) -> -0.02 | M4: 0.9 | N4: =M4-I4 -> 0 | P4: https://www.soaringspot.com/cs/az-cup-2020-zbraslavice-2020/results/15m-trida
B5: AZ Cup 2020 - Kombi B | C5: CZ | D5: 2020 | E5: Zbraslavice | F5: 3.5.-7.6.20 | G5: 3 | H5: 21 | I5: 0.9 | J5: 0.04 | K5: 0.01 | L5: =VLOOKUP(G5,Kp!$A$4:$B$24,2,FALSE) -> -0.02 | M5: 0.93 | N5: =M5-I5 -> 0.03 | P5: https://www.soaringspot.com/cs/az-cup-2020-zbraslavice-2020/results/kombinovana-trida
B6: Závody Šohajů 2020 - Klub | C6: CZ | D6: 2020 | E6: Raná | F6: 20.6.-27.6.20 | G6: 2 | H6: 15 | I6: 0 | J6: 0 | K6: 0 | L6: =VLOOKUP(G6,Kp!$A$4:$B$24,2,FALSE) -> 0 | M6: 0 | N6: 0 | O6: Méně jak 3 platné disciplíny | P6: https://www.soaringspot.com/cs/zavody-sohaju-a-historickych-kluzaku-2020-rana-loumy-2020/results/oldtimer
B7: Safari 2020 - Kombi | C7: CZ | D7: 2020 | E7: Dvůr Králové | F7: 28.6.-11.7.20 | G7: 5 | H7: 12 | I7: 0.75 | J7: 0.01 | K7: 0 | L7: =VLOOKUP(G7,Kp!$A$4:$B$24,2,FALSE) -> 0.005 | M7: 0.765 | N7: 0.015 | P7: https://www.soaringspot.com/cs/safari-cup-2020-dvur-kralove-nad-labem-2020/results/volna
B8: Safari 2020 - Klub | C8: CZ | D8: 2020 | E8: Dvůr Králové | F8: 28.6.-11.7.20 | G8: 4 | H8: 26 | I8: 0.75 | J8: 0 | K8: 0 | L8: =VLOOKUP(G8,Kp!$A$4:$B$24,2,FALSE) -> 0 | M8: 0.75 | N8: =M8-I8 -> 0 | P8: https://www.soaringspot.com/cs/safari-cup-2020-dvur-kralove-nad-labem-2020/results/klub
B9: Safari 2020 - Duo Kombi | C9: CZ | D9: 2020 | E9: Dvůr Králové | F9: 28.6.-11.7.20 | G9: 1 | H9: 14 | I9: 0 | J9: 0 | K9: 0 | L9: =VLOOKUP(G9,Kp!$A$4:$B$24,2,FALSE) -> 0 | M9: =IF(I9=0,0,IF(OR(G9=0,G9=1,G9=2),0,IF(H9<10,0,SUM(I9:L9)))) -> 0 | N9: 0 | O9: Méně jak 3 platné disciplíny | P9: https://www.soaringspot.com/cs/safari-cup-2020-dvur-kralove-nad-labem-2020/results/duo-blanik
B10: Toužim Cup 2020 - Klub | C10: CZ | D10: 2020 | E10: Toužim | F10: 11.7.-19.7.20 | G10: 5 | H10: 30 | I10: 0.9 | J10: 0.01 | K10: 0 | L10: =VLOOKUP(G10,Kp!$A$4:$B$24,2,FALSE) -> 0.005 | M10: 0.915 | N10: 0.015 | P10: https://www.soaringspot.com/cs/tcup2020/results/klub
B11: Toužim Cup 2020 - Kombi | C11: CZ | D11: 2020 | E11: Toužim | F11: 11.7.-19.7.20 | G11: 5 | H11: 23 | I11: 0.9 | J11: 0.005 | K11: 0 | L11: =VLOOKUP(G11,Kp!$A$4:$B$24,2,FALSE) -> 0.005 | M11: 0.91 | N11: 0.01 | P11: https://www.soaringspot.com/cs/tcup2020/results/kombi
B12: PMRg 2020 - Klub | C12: CZ | D12: 2020 | E12: Hosín | F12: 12.7.-25.7.20 | G12: 5 | H12: 24 | I12: 0.9 | J12: 0.01 | K12: 0 | L12: =VLOOKUP(G12,Kp!$A$4:$B$24,2,FALSE) -> 0.005 | M12: 0.915 | N12: 0.015 | P12: https://www.soaringspot.com/cs/plachtarske-mistrovstvi-regionu-cr-hosin-2020/results/klubova-trida
B13: PMRg 2020 - Kombi | C13: CZ | D13: 2020 | E13: Hosín | F13: 12.7.-25.7.20 | G13: 5 | H13: 12 | I13: 0.9 | J13: 0.015 | K13: 0 | L13: =VLOOKUP(G13,Kp!$A$4:$B$24,2,FALSE) -> 0.005 | M13: 0.92 | N13: 0.02 | P13: https://www.soaringspot.com/cs/plachtarske-mistrovstvi-regionu-cr-hosin-2020/results/kombinovana-trida
B14: Ranský Pohár 2020 - Kombi | C14: CZ | D14: 2020 | E14: Raná | F14: 18.7.-26.7.20 | G14: 6 | H14: 24 | I14: 0.75 | J14: 0 | K14: 0 | L14: =VLOOKUP(G14,Kp!$A$4:$B$24,2,FALSE) -> 0.01 | M14: 0.76 | N14: 0.01 | P14: https://www.soaringspot.com/cs/ransky-pohar-2020-rana-loumy-2020/results/combi
A15: 16. | B15: JPJ 2020 - Klub | C15: CZ | D15: 2020 | E15: Šumperk | F15: 25.7.-1.8.20 | G15: 6 | H15: 33 | I15: 0.9 | J15: 0 | K15: 0 | L15: =VLOOKUP(G15,Kp!$A$4:$B$24,2,FALSE) -> 0.01 | M15: 0.91 | N15: 0.01 | P15: https://www.soaringspot.com/cs/jpj2020/results/klubova-trida
A16: 16. | B16: JPJ 2020 - Kombi | C16: CZ | D16: 2020 | E16: Šumperk | F16: 25.7.-1.8.20 | G16: 6 | H16: 21 | I16: 0.9 | J16: 0 | K16: 0 | L16: =VLOOKUP(G16,Kp!$A$4:$B$24,2,FALSE) -> 0.01 | M16: 0.91 | N16: 0.01 | P16: https://www.soaringspot.com/cs/jpj2020/results/kombi-trida
B17: PMČR 2020 - Klub | C17: CZ | D17: 2020 | E17: Tábor | F17: 26.7.-8.8.20 | G17: 9 | H17: 25 | I17: 1 | J17: 0.04 | K17: 0.02 | L17: =VLOOKUP(G17,Kp!$A$4:$B$24,2,FALSE) -> 0.025 | M17: 1.085 | N17: =M17-I17 -> 0.085 | P17: https://www.soaringspot.com/cs/plachtarske-mistrovstvi-cr-2020-tabor-2020/results/club
B18: PMČR 2020 - Kombi 15m | C18: CZ | D18: 2020 | E18: Tábor | F18: 26.7.-8.8.20 | G18: 9 | H18: 22 | I18: 1 | J18: 0.045 | K18: 0.02 | L18: =VLOOKUP(G18,Kp!$A$4:$B$24,2,FALSE) -> 0.025 | M18: 1.09 | N18: =M18-I18 -> 0.09 | P18: https://www.soaringspot.com/cs/plachtarske-mistrovstvi-cr-2020-tabor-2020/results/15-mixed
B19: PMČR 2020 - Kombi Open | C19: CZ | D19: 2020 | E19: Tábor | F19: 26.7.-8.8.20 | G19: 9 | H19: 21 | I19: 1 | J19: 0.035 | K19: 0.01 | L19: =VLOOKUP(G19,Kp!$A$4:$B$24,2,FALSE) -> 0.025 | M19: 1.07 | N19: =M19-I19 -> 0.07 | P19: https://www.soaringspot.com/cs/plachtarske-mistrovstvi-cr-2020-tabor-2020/results/open-mixed
B20: Pohár Českého Ráje 2020 - Kombi | C20: CZ | D20: 2020 | E20: Jičín | F20: 1.8.-8.8.20 | G20: 4 | H20: 9 | I20: 0 | J20: 0 | K20: 0 | L20: =VLOOKUP(G20,Kp!$A$4:$B$24,2,FALSE) -> 0 | M20: 0 | N20: 0 | O20: Méně jak 10 soutěžících ve třídě | P20: https://www.soaringspot.com/cs/pohar-ceskeho-raje-2020-jicin-2020/results/club
B21: PMČRj 2020 - Klub | C21: CZ | D21: 2020 | E21: Zbraslavice | F21: 8.8.-22.8.20 | G21: 8 | H21: 37 | I21: 0.9 | J21: 0.01 | K21: 0 | L21: =VLOOKUP(G21,Kp!$A$4:$B$24,2,FALSE) -> 0.02 | M21: 0.93 | N21: =M21-I21 -> 0.03 | P21: https://www.soaringspot.com/cs/plachtarske-mcr-junioru-a-akademiku-2020-zbraslavice-2020/results/klubova-trida
A22: 19. | B22: HOP 2020 - Klub | C22: CZ | D22: 2020 | E22: Hronov | F22: 8.8.-15.8.20 | G22: 5 | H22: 26 | I22: 0.75 | J22: 0 | K22: 0 | L22: =VLOOKUP(G22,Kp!$A$4:$B$24,2,FALSE) -> 0.005 | M22: 0.755 | N22: 0.005 | P22: https://www.soaringspot.com/cs/19-hop-2020-velke-porici-2020/results/klub-hop
A23: 19. | B23: HOP 2020 - Kombi | C23: CZ | D23: 2020 | E23: Hronov | F23: 8.8.-15.8.20 | G23: 5 | H23: 19 | I23: 0.75 | J23: 0.005 | K23: 0 | L23: =VLOOKUP(G23,Kp!$A$4:$B$24,2,FALSE) -> 0.005 | M23: 0.76 | N23: 0.01 | P23: https://www.soaringspot.com/cs/19-hop-2020-velke-porici-2020/results/kombi-ppf
B24: Adrenalin GP 2020 - Klub GP | C24: CZ | D24: 2020 | E24: Frýdlant n/Ostr. | F24: 15.8.-22.8.20 | G24: 3 | H24: 9 | I24: 0 | J24: 0 | K24: 0 | L24: =VLOOKUP(G24,Kp!$A$4:$B$24,2,FALSE) -> -0.02 | M24: 0 | N24: =M24-I24 -> 0 | O24: Méně jak 10 soutěžících ve třídě | P24: https://www.soaringspot.com/cs/fl-2020-adrenalin-grand-prix-frydlant-2020/results/agp
B25: FL 2020 - Kombi | C25: CZ | D25: 2020 | E25: Frýdlant n/Ostr. | F25: 15.8.-22.8.20 | G25: 2 | H25: 11 | I25: 0 | J25: 0 | K25: 0 | L25: =VLOOKUP(G25,Kp!$A$4:$B$24,2,FALSE) -> 0 | M25: 0 | N25: 0 | O25: Méně jak 3 platné disciplíny | P25: https://www.soaringspot.com/cs/fl-2020-adrenalin-grand-prix-frydlant-2020/results/fl
B26: Pozdní sběr 2020 - Kombi | C26: CZ | D26: 2020 | E26: Zbraslavice | F26: 12.9.-28.9.20 | G26: 2 | H26: 7 | I26: 0 | J26: 0 | K26: 0 | L26: =VLOOKUP(G26,Kp!$A$4:$B$24,2,FALSE) -> 0 | M26: 0 | N26: 0 | O26: Méně jak 10 soutěžících ve třídě, méně jak 3 platné disciplíny | P26: https://www.soaringspot.com/cs/pozdni-sber-zbraslavice-2020/results/klub
A27: 63. | B27: PMSR 2020 - Klub | C27: SK | D27: 2020 | E27: Partizánske | F27: 5.7.-18.7.20 | G27: 9 | H27: 25 | I27: 0.9 | J27: 0.01 | K27: 0 | L27: =VLOOKUP(G27,Kp!$A$4:$B$24,2,FALSE) -> 0.025 | M27: 0.935 | N27: 0.035 | P27: https://www.soaringspot.com/cs/63-majstrovstva-slovenska-v-bezmotorovom-lietani-2020/results/klubova-tireda
A28: 63. | B28: PMSR 2020 - Kombi 15m | C28: SK | D28: 2020 | E28: Partizánske | F28: 5.7.-18.7.20 | G28: 9 | H28: 11 | I28: 0.9 | J28: 0.01 | K28: 0 | L28: =VLOOKUP(G28,Kp!$A$4:$B$24,2,FALSE) -> 0.025 | M28: 0.935 | N28: 0.035 | P28: https://www.soaringspot.com/cs/63-majstrovstva-slovenska-v-bezmotorovom-lietani-2020/results/15m-trieda
A29: 63. | B29: PMSR 2020 - Kombi Open | C29: SK | D29: 2020 | E29: Partizánske | F29: 5.7.-18.7.20 | G29: 9 | H29: 20 | I29: 0.9 | J29: 0.01 | K29: 0 | L29: =VLOOKUP(G29,Kp!$A$4:$B$24,2,FALSE) -> 0.025 | M29: 0.935 | N29: 0.035 | P29: https://www.soaringspot.com/cs/63-majstrovstva-slovenska-v-bezmotorovom-lietani-2020/results/kombinovana-treida
B30: Šariš Cup 2020 - Klub | C30: SK | D30: 2020 | E30: Ražňany | F30: 1.8.-9.8.20 | G30: 7 | H30: 11 | I30: 0.75 | J30: 0 | K30: 0 | L30: =VLOOKUP(G30,Kp!$A$4:$B$24,2,FALSE) -> 0.015 | M30: 0.765 | N30: 0.015 | P30: https://www.soaringspot.com/cs/sariscup2020/results/club
B31: FCC 2020 - Klub | C31: SK | D31: 2020 | E31: Prievidza | F31: 2.8.-13.8.20 | G31: 9 | H31: 11 | I31: 0.9 | J31: 0 | K31: 0 | L31: =VLOOKUP(G31,Kp!$A$4:$B$24,2,FALSE) -> 0.025 | M31: 0.925 | N31: 0.025 | P31: https://www.soaringspot.com/cs/fcc-gliding-2020-prievidza-2020/results/club
B32: FCC 2020 - Kombi | C32: SK | D32: 2020 | E32: Prievidza | F32: 2.8.-13.8.20 | G32: 10 | H32: 17 | I32: 0.9 | J32: 0.005 | K32: 0.01 | L32: =VLOOKUP(G32,Kp!$A$4:$B$24,2,FALSE) -> 0.03 | M32: 0.945 | N32: 0.045 | P32: https://www.soaringspot.com/cs/fcc-gliding-2020-prievidza-2020/results/combi
B33: Oldtimer Pribina Star 2020 - Klub | C33: SK | D33: 2020 | E33: Nitra | F33: 7.8.-15.8.20 | G33: 4 | H33: 16 | I33: 0.75 | J33: 0 | K33: 0 | L33: =VLOOKUP(G33,Kp!$A$4:$B$24,2,FALSE) -> 0 | M33: 0.75 | N33: 0 | P33: https://www.soaringspot.com/cs/oldtimer-pribina-star-2020-nitra-2020/results/klub
A34: 19. | B34: Fatraglide 2020 - Klub | C34: SK | D34: 2020 | E34: Martin | F34: 15.8.-22.8.20 | G34: 4 | H34: 10 | I34: 0.75 | J34: 0 | K34: 0 | L34: =VLOOKUP(G34,Kp!$A$4:$B$24,2,FALSE) -> 0 | M34: 0.75 | N34: 0 | P34: https://www.soaringspot.com/cs/fatraglide-2020-martin-2020/results/klubova-trieda
A35: 19. | B35: Fatraglide 2020 - Kombi | C35: SK | D35: 2020 | E35: Martin | F35: 15.8.-22.8.20 | G35: 5 | H35: 18 | I35: 0.75 | J35: 0.005 | K35: 0 | L35: =VLOOKUP(G35,Kp!$A$4:$B$24,2,FALSE) -> 0.005 | M35: 0.76 | N35: =M35-I35 -> 0.01 | P35: https://www.soaringspot.com/cs/fatraglide-2020-martin-2020/results/kombinovana-trieda
B36: Septembrova cena 2020 - Kombi | C36: SK | D36: 2020 | E36: Trnava | F36: 29.8.-1.9.20 | G36: 1 | H36: 12 | I36: 0 | J36: 0 | K36: 0 | L36: =VLOOKUP(G36,Kp!$A$4:$B$24,2,FALSE) -> 0 | M36: 0 | N36: 0 | O36: Méně jak 3 platné disciplíny | P36: https://www.soaringspot.com/cs/septembrova-cena-2020-trnava-2020/results/klub
A37: 28. | B37: Alpe Adria Cup 2020 - Kombi 106 | C37: AT | D37: 2020 | E37: Feldkirchen | F37: 4.7.-11.7.20 | G37: 7 | H37: 21 | I37: 0.75 | J37: 0 | K37: 0 | L37: =VLOOKUP(G37,Kp!$A$4:$B$24,2,FALSE) -> 0.015 | M37: 0.765 | N37: =M37-I37 -> 0.015 | P37: https://www.soaringspot.com/cs/aac2020/results/106er
A38: 28. | B38: Alpe Adria Cup 2020 - Kombi Open | C38: AT | D38: 2020 | E38: Feldkirchen | F38: 4.7.-11.7.20 | G38: 7 | H38: 24 | I38: 0.75 | J38: 0 | K38: 0.01 | L38: =VLOOKUP(G38,Kp!$A$4:$B$24,2,FALSE) -> 0.015 | M38: 0.775 | N38: =M38-I38 -> 0.025 | P38: https://www.soaringspot.com/cs/aac2020/results/offene-klasse
B39: GGP MB 2020 - Gradient GP | C39: CZ | D39: 2020 | E39: Mladá Boleslav | F39: 22.8.-29.8.20 | G39: 4 | H39: 10 | I39: 0.9 | J39: 0 | K39: 0 | L39: =VLOOKUP(G39,Kp!$A$4:$B$24,2,FALSE) -> 0 | M39: 0.9 | N39: =M39-I39 -> 0 | P39: https://www.soaringspot.com/cs/ggp2020/results/gradient-gp
B40: GGP MB 2020 - Klub GP | C40: CZ | D40: 2020 | E40: Mladá Boleslav | F40: 22.8.-29.8.20 | G40: 5 | H40: 13 | I40: 0.9 | J40: 0.005 | K40: 0.01 | L40: =VLOOKUP(G40,Kp!$A$4:$B$24,2,FALSE) -> 0.005 | M40: 0.92 | N40: 0.02 | P40: https://www.soaringspot.com/cs/ggp2020/results/club-gp
B41: GGP MB 2020 - Pohár MV - Kombi | C41: CZ | D41: 2020 | E41: Mladá Boleslav | F41: 22.8.-29.8.20 | G41: 5 | H41: 19 | I41: 0.9 | J41: 0.025 | K41: 0 | L41: =VLOOKUP(G41,Kp!$A$4:$B$24,2,FALSE) -> 0.005 | M41: 0.93 | N41: =M41-I41 -> 0.03 | P41: https://www.soaringspot.com/cs/ggp2020/results/open
A42: 10. | B42: WWGC 2020 - Klub | C42: AU | D42: 2020 | E42: Lake Keepit | F42: 3.1.-17.1.20 | G42: 9 | H42: 17 | I42: 1 | J42: 0.02 | K42: 0.01 | L42: =VLOOKUP(G42,Kp!$A$4:$B$24,2,FALSE) -> 0.025 | M42: 1.055 | N42: =M42-I42 -> 0.055 | P42: https://www.soaringspot.com/cs/10th-fai-womens-world-gliding-championship-lake-keepit-2020/results/club
A43: 10. | B43: WWGC 2020 - Std | C43: AU | D43: 2020 | E43: Lake Keepit | F43: 3.1.-17.1.20 | G43: 9 | H43: 16 | I43: 1 | J43: 0.005 | K43: 0.04 | L43: =VLOOKUP(G43,Kp!$A$4:$B$24,2,FALSE) -> 0.025 | M43: 1.07 | N43: 0.07 | P43: https://www.soaringspot.com/cs/10th-fai-womens-world-gliding-championship-lake-keepit-2020/results/standard
A44: 10. | B44: WWGC 2020 - 18m | C44: AU | D44: 2020 | E44: Lake Keepit | F44: 3.1.-17.1.20 | G44: 9 | H44: 14 | I44: 1 | J44: 0.005 | K44: 0.03 | L44: =VLOOKUP(G44,Kp!$A$4:$B$24,2,FALSE) -> 0.025 | M44: 1.06 | N44: 0.06 | P44: https://www.soaringspot.com/cs/10th-fai-womens-world-gliding-championship-lake-keepit-2020/results/18-meter
B45: Zařazené soutěže 2021:
A46: 17. | B46: JPJ 2021 - Klub | C46: CZ | D46: 2021 | E46: Šumperk | F46: 24.7.-31.7.21 | G46: 5 | H46: 38 | I46: 0.9 | J46: 0 | K46: 0 | L46: =VLOOKUP(G46,Kp!$A$4:$B$24,2,FALSE) -> 0.005 | M46: 0.905 | N46: =M46-I46 -> 0.005 | P46: https://www.soaringspot.com/cs/jpj2021/results/klubova-trida
A47: 17. | B47: JPJ 2021 - Kombi | C47: CZ | D47: 2021 | E47: Šumperk | F47: 24.7.-31.7.21 | G47: 5 | H47: 25 | I47: 0.9 | J47: 0 | K47: 0 | L47: =VLOOKUP(G47,Kp!$A$4:$B$24,2,FALSE) -> 0.005 | M47: 0.905 | N47: 0.005 | P47: https://www.soaringspot.com/cs/jpj2021/results/kombi-trida
B48: PMČR 2021 - Klub | C48: CZ | D48: 2021 | E48: Tábor | F48: 22.5.-5.6.21 | G48: 8 | H48: 16 | I48: 1 | J48: 0.02 | K48: 0.01 | L48: =VLOOKUP(G48,Kp!$A$4:$B$24,2,FALSE) -> 0.02 | M48: 1.05 | N48: =M48-I48 -> 0.05 | P48: https://www.soaringspot.com/cs/pmcr-pre-jwgc2022-tabor-2021/results/club
B49: PMČR 2021 - Kombi 15m | C49: CZ | D49: 2021 | E49: Tábor | F49: 22.5.-5.6.21 | G49: 7 | H49: 16 | I49: 1 | J49: 0.025 | K49: 0.02 | L49: =VLOOKUP(G49,Kp!$A$4:$B$24,2,FALSE) -> 0.015 | M49: 1.06 | N49: =M49-I49 -> 0.06 | P49: https://www.soaringspot.com/cs/pmcr-pre-jwgc2022-tabor-2021/results/15m-mixed
B50: PMČR 2021 - Kombi Open | C50: CZ | D50: 2021 | E50: Tábor | F50: 22.5.-5.6.21 | G50: 7 | H50: 19 | I50: 1 | J50: 0.04 | K50: 0 | L50: =VLOOKUP(G50,Kp!$A$4:$B$24,2,FALSE) -> 0.015 | M50: 1.055 | N50: =M50-I50 -> 0.055 | P50: https://www.soaringspot.com/cs/pmcr-pre-jwgc2022-tabor-2021/results/open-mixed
B51: PMRg 2021 - Klub | C51: CZ | D51: 2021 | E51: Moravská Třebová | F51: 1.8.-15.8.21 | G51: 8 | H51: 26 | I51: 0.9 | J51: 0.02 | K51: 0 | L51: =VLOOKUP(G51,Kp!$A$4:$B$24,2,FALSE) -> 0.02 | M51: 0.94 | N51: =M51-I51 -> 0.04 | P51: https://www.soaringspot.com/cs/plachtarske-mistrovstvi-regionu-2021-moravska-trebova-2021/results/club
B52: PMRg 2021 - Kombi | C52: CZ | D52: 2021 | E52: Moravská Třebová | F52: 1.8.-15.8.21 | G52: 8 | H52: 13 | I52: 0.9 | J52: 0.01 | K52: 0 | L52: =VLOOKUP(G52,Kp!$A$4:$B$24,2,FALSE) -> 0.02 | M52: 0.93 | N52: 0.03 | P52: https://www.soaringspot.com/cs/plachtarske-mistrovstvi-regionu-2021-moravska-trebova-2021/results/kombi
B53: PMČRj 2021 - Klub | C53: CZ | D53: 2021 | E53: Moravská Třebová | F53: 1.8.-15.8.21 | G53: 7 | H53: 29 | I53: 0.9 | J53: 0 | K53: 0 | L53: =VLOOKUP(G53,Kp!$A$4:$B$24,2,FALSE) -> 0.015 | M53: 0.915 | N53: =M53-I53 -> 0.015 | P53: https://www.soaringspot.com/cs/plachtarske-mistrovstvi-cr-junioru-moravska-trebova-2021/results/club
B54: GGP MB 2021 - Gradient GP | C54: CZ | D54: 2021 | E54: Mladá Boleslav | F54: 21.8.-28.8.21 | G54: 3 | H54: 9 | I54: 0.75 | J54: 0 | K54: 0 | L54: =VLOOKUP(G54,Kp!$A$4:$B$24,2,FALSE) -> -0.02 | M54: 0 | N54: =M54-I54 -> -0.75 | O54: Méně jak 10 soutěžících ve třídě | P54: https://www.soaringspot.com/cs/ggp2021/results/standard
B55: GGP MB 2021 - Klub GP | C55: CZ | D55: 2021 | E55: Mladá Boleslav | F55: 21.8.-28.8.221 | G55: 3 | H55: 17 | I55: 0.9 | J55: 0 | K55: 0 | L55: =VLOOKUP(G55,Kp!$A$4:$B$24,2,FALSE) -> -0.02 | M55: 0.88 | N55: -0.02 | P55: https://www.soaringspot.com/cs/ggp2021/results/club-gp
B56: GGP MB 2021 - Pohár MV - Kombi | C56: CZ | D56: 2021 | E56: Mladá Boleslav | F56: 21.8.-28.8.221 | G56: 3 | H56: 11 | I56: 0.9 | J56: 0.01 | K56: 0 | L56: =VLOOKUP(G56,Kp!$A$4:$B$24,2,FALSE) -> -0.02 | M56: 0.89 | N56: =M56-I56 -> -0.01 | P56: https://www.soaringspot.com/cs/ggp2021/results/pohar-metodeje-vlach
B57: Rakovnická Dlaždice 2021 - Kombi | C57: CZ | D57: 2021 | E57: Rakovník | F57: 14.8.-22.8.21 | G57: 2 | H57: 12 | I57: 0.75 | J57: 0 | K57: 0 | L57: =VLOOKUP(G57,Kp!$A$4:$B$24,2,FALSE) -> 0 | M57: 0 | N57: =M57-I57 -> -0.75 | O57: Méně jak 3 platné disciplíny | P57: https://www.soaringspot.com/cs/rakovnicka-dlazdice-rd2021-rakovnik-2021/results/kombi
A58: 20. | B58: HOP 2021 - Klub | C58: CZ | D58: 2021 | E58: Hronov | F58: 7.8.-14.8.21 | G58: 6 | H58: 26 | I58: 0.75 | J58: 0.005 | K58: 0 | L58: =VLOOKUP(G58,Kp!$A$4:$B$24,2,FALSE) -> 0.01 | M58: 0.765 | N58: =M58-I58 -> 0.015 | P58: https://www.soaringspot.com/cs/20-hop-2021-velke-porici-2021/results/klub-hop
A59: 20. | B59: HOP 2021 - Kombi | C59: CZ | D59: 2021 | E59: Hronov | F59: 7.8.-14.8.21 | G59: 6 | H59: 17 | I59: 0.75 | J59: 0 | K59: 0 | L59: =VLOOKUP(G59,Kp!$A$4:$B$24,2,FALSE) -> 0.01 | M59: 0.76 | N59: 0.01 | P59: https://www.soaringspot.com/cs/20-hop-2021-velke-porici-2021/results/kombi-ppf
B60: Pohár Českého Ráje 2021 - Kombi | C60: CZ | D60: 2021 | E60: Jičín | F60: 31.7.-7.8.21 | G60: 3 | H60: 12 | I60: 0.75 | J60: 0 | K60: 0 | L60: =VLOOKUP(G60,Kp!$A$4:$B$24,2,FALSE) -> -0.02 | M60: 0.73 | N60: =M60-I60 -> -0.02 | P60: https://www.soaringspot.com/cs/http-wwwletistejicininfo-news-pagephpid-315/results/kombi
B61: Ranský pohár 2021 - Kombi | C61: CZ | D61: 2021 | E61: Raná | F61: 24.7.-1.8.21 | G61: 4 | H61: 19 | I61: 0.75 | J61: 0 | K61: 0 | L61: =VLOOKUP(G61,Kp!$A$4:$B$24,2,FALSE) -> 0 | M61: 0.75 | N61: 0 | P61: https://www.soaringspot.com/cs/ransky-pohar-2021-rana-loumy-2021/results/combi
B62: Cirrus GP 2021 - Std. Cirrus | C62: CZ | D62: 2021 | E62: Křižanov | F62: 24.7.-30.7.21 | G62: 5 | H62: 14 | I62: 0.75 | J62: 0.005 | K62: 0 | L62: =VLOOKUP(G62,Kp!$A$4:$B$24,2,FALSE) -> 0.005 | M62: 0.76 | N62: 0.01 | P62: https://www.soaringspot.com/cs/cgp2021/results/club
A63: 36. | B63: WGC 2021 - Klub | C63: FR | D63: 2021 | E63: Montlucon | F63: 8.8.-20.8.21 | G63: 9 | H63: 36 | I63: 1 | J63: 0.05 | K63: 0.03 | L63: =VLOOKUP(G63,Kp!$A$4:$B$24,2,FALSE) -> 0.025 | M63: 1.105 | N63: 0.105 | P63: https://www.soaringspot.com/cs/wgc2021-club-std-15m-montlucon-gueret-2021/results/club
A64: 36. | B64: WGC 2021 - Std | C64: FR | D64: 2021 | E64: Montlucon | F64: 8.8.-20.8.21 | G64: 8 | H64: 30 | I64: 1 | J64: 0.035 | K64: 0.03 | L64: =VLOOKUP(G64,Kp!$A$4:$B$24,2,FALSE) -> 0.02 | M64: 1.085 | N64: 0.085 | P64: https://www.soaringspot.com/cs/wgc2021-club-std-15m-montlucon-gueret-2021/results/standard
A65: 36. | B65: WGC 2021 - 15m | C65: FR | D65: 2021 | E65: Montlucon | F65: 8.8.-20.8.21 | G65: 8 | H65: 29 | I65: 1 | J65: 0.035 | K65: 0.02 | L65: =VLOOKUP(G65,Kp!$A$4:$B$24,2,FALSE) -> 0.02 | M65: 1.075 | N65: 0.075 | P65: https://www.soaringspot.com/cs/wgc2021-club-std-15m-montlucon-gueret-2021/results/15-meter
B66: FCC 2021 - Klub | C66: SK | D66: 2021 | E66: Prievidza | F66: 1.8.-13.8.21 | G66: 10 | H66: 10 | I66: 0.9 | J66: 0.005 | K66: 0 | L66: =VLOOKUP(G66,Kp!$A$4:$B$24,2,FALSE) -> 0.03 | M66: 0.935 | N66: 0.035 | P66: https://www.soaringspot.com/cs/fcc-gliding-2021-prievidza-2021/results/club
B67: FCC 2021 - Kombi 15m | C67: SK | D67: 2021 | E67: Prievidza | F67: 1.8.-13.8.21 | G67: 10 | H67: 10 | I67: 0.9 | J67: 0.015 | K67: 0 | L67: =VLOOKUP(G67,Kp!$A$4:$B$24,2,FALSE) -> 0.03 | M67: 0.945 | N67: 0.045 | P67: https://www.soaringspot.com/cs/fcc-gliding-2021-prievidza-2021/results/15-m
B68: FCC 2021 - Kombi Open | C68: SK | D68: 2021 | E68: Prievidza | F68: 1.8.-13.8.21 | G68: 10 | H68: 18 | I68: 0.9 | J68: 0.015 | K68: 0 | L68: =VLOOKUP(G68,Kp!$A$4:$B$24,2,FALSE) -> 0.03 | M68: 0.945 | N68: 0.045 | P68: https://www.soaringspot.com/cs/fcc-gliding-2021-prievidza-2021/results/combi
B69: Oldtimer Pribina Star 2021 - Klub | C69: SK | D69: 2021 | E69: Nitra | F69: 7.8.-13.8.21 | G69: 4 | H69: 22 | I69: 0.75 | J69: 0 | K69: 0 | L69: =VLOOKUP(G69,Kp!$A$4:$B$24,2,FALSE) -> 0 | M69: 0.75 | N69: 0 | P69: https://www.soaringspot.com/cs/oldtimer-pribina-star-2021-nitra-2021/results/unknown
A70: 64. | B70: PMSR 2021 - Klub | C70: SK | D70: 2021 | E70: Nitra | F70: 20.6.-2.7.21 | G70: 12 | H70: 22 | I70: 0.9 | J70: 0.015 | K70: 0 | L70: =VLOOKUP(G70,Kp!$A$4:$B$24,2,FALSE) -> 0.03 | M70: 0.945 | N70: 0.045 | P70: https://www.soaringspot.com/cs/slovak-gliding-championship-2021-nitra-2021/results/club
A71: 64. | B71: PMSR 2021 - Kombi 15m | C71: SK | D71: 2021 | E71: Nitra | F71: 20.6.-2.7.21 | G71: 12 | H71: 22 | I71: 0.9 | J71: 0.015 | K71: 0.02 | L71: =VLOOKUP(G71,Kp!$A$4:$B$24,2,FALSE) -> 0.03 | M71: 0.965 | N71: 0.065 | P71: https://www.soaringspot.com/cs/slovak-gliding-championship-2021-nitra-2021/results/15-meter
A72: 64. | B72: PMSR 2021 - Kombi Open | C72: SK | D72: 2021 | E72: Nitra | F72: 20.6.-2.7.21 | G72: 12 | H72: 22 | I72: 0.9 | J72: 0.02 | K72: 0 | L72: =VLOOKUP(G72,Kp!$A$4:$B$24,2,FALSE) -> 0.03 | M72: 0.95 | N72: 0.05 | P72: https://www.soaringspot.com/cs/slovak-gliding-championship-2021-nitra-2021/results/combi
B73: JWGC 2021 - Klub | C73: LT | D73: 2021 | E73: Pociunai | F73: 11.7.-23.7.21 | G73: 7 | H73: 27 | I73: 1 | J73: 0.015 | K73: 0.01 | L73: =VLOOKUP(G73,Kp!$A$4:$B$24,2,FALSE) -> 0.015 | M73: =IF(I73=0,0,IF(OR(G73=0,G73=1,G73=2),0,IF(H73<10,0,SUM(I73:L73)))) -> 1.04 | N73: 0.04 | P73: https://www.soaringspot.com/cs/jegc2021/results/club
B74: JWGC 2021 - Std | C74: LT | D74: 2021 | E74: Pociunai | F74: 11.7.-23.7.21 | G74: 6 | H74: 17 | I74: 1 | J74: 0.01 | K74: 0.01 | L74: =VLOOKUP(G74,Kp!$A$4:$B$24,2,FALSE) -> 0.01 | M74: 1.03 | N74: 0.03 | P74: https://www.soaringspot.com/cs/jegc2021/results/standard
A75: 10. | B75: WSGP Final 2021 - 18m GP | C75: FR | D75: 2021 | E75: Saint Auban | F75: 5.9.-11.9.21 | G75: 6 | H75: 20 | I75: 1 | J75: 0.03 | K75: 0.03 | L75: =VLOOKUP(G75,Kp!$A$4:$B$24,2,FALSE) -> 0.01 | M75: 1.07 | N75: 0.07 | P75: https://www.soaringspot.com/cs/wsgp2021/results/grand-prix-world-fin
B76: Safari 2021 - Klub | C76: CZ | D76: 2021 | E76: Dvůr Králové | F76: 3.7.-17.7.21 | G76: 4 | H76: 33 | I76: 0.75 | J76: 0 | K76: 0 | L76: =VLOOKUP(G76,Kp!$A$4:$B$24,2,FALSE) -> 0 | M76: 0.75 | N76: =M76-I76 -> 0 | P76: https://www.soaringspot.com/cs/safari-cup-2021-dvur-kralove-nad-labem-2021/results/klubova
B77: Safari 2021 - Kombi | C77: CZ | D77: 2021 | E77: Dvůr Králové | F77: 3.7.-17.7.21 | G77: 5 | H77: 13 | I77: 0.75 | J77: 0 | K77: 0 | L77: =VLOOKUP(G77,Kp!$A$4:$B$24,2,FALSE) -> 0.005 | M77: 0.755 | N77: 0.005 | P77: https://www.soaringspot.com/cs/safari-cup-2021-dvur-kralove-nad-labem-2021/results/volna
B78: Safari 2021 - Duo Klub | C78: CZ | D78: 2021 | E78: Dvůr Králové | F78: 3.7.-17.7.21 | G78: 3 | H78: 11 | I78: 0.75 | J78: 0 | K78: 0 | L78: =VLOOKUP(G78,Kp!$A$4:$B$24,2,FALSE) -> -0.02 | M78: 0.73 | N78: -0.02 | P78: https://www.soaringspot.com/cs/safari-cup-2021-dvur-kralove-nad-labem-2021/results/dvousedadlovky
B79: Zařazené soutěže 2022:
B80: PMČR 2022 - Klub | C80: CZ | D80: 2022 | E80: Zbraslavice | F80: 22.5.-4.6.22 | G80: 9 | H80: 16 | I80: 1 | J80: 0.025 | K80: 0 | L80: =VLOOKUP(G80,Kp!$A$4:$B$24,2,FALSE) -> 0.025 | M80: =IF(I80=0,0,IF(OR(G80=0,G80=1,G80=2),0,IF(H80<10,0,SUM(I80:L80)))) -> 1.05 | N80: =M80-I80 -> 0.05 | P80: https://www.soaringspot.com/en_gb/plachtarske-mistrovstvi-ceske-republiky-2022-zbraslavice-2022/results/klub#
B81: PMČR 2022 - Kombi 15m | C81: CZ | D81: 2022 | E81: Zbraslavice | F81: 22.5.-4.6.22 | G81: 8 | H81: 13 | I81: 1 | J81: 0.02 | K81: 0.02 | L81: =VLOOKUP(G81,Kp!$A$4:$B$24,2,FALSE) -> 0.02 | M81: =IF(I81=0,0,IF(OR(G81=0,G81=1,G81=2),0,IF(H81<10,0,SUM(I81:L81)))) -> 1.06 | N81: 0.06 | P81: https://www.soaringspot.com/en_gb/plachtarske-mistrovstvi-ceske-republiky-2022-zbraslavice-2022/results/kombi-15#
B82: PMČR 2022 - Kombi Open | C82: CZ | D82: 2022 | E82: Zbraslavice | F82: 22.5.-4.6.22 | G82: 7 | H82: 19 | I82: 1 | J82: 0.05 | K82: 0.01 | L82: =VLOOKUP(G82,Kp!$A$4:$B$24,2,FALSE) -> 0.015 | M82: 1.075 | N82: 0.075 | P82: https://www.soaringspot.com/en_gb/plachtarske-mistrovstvi-ceske-republiky-2022-zbraslavice-2022/results/kombi-open#
A83: 18. | B83: JPJ 2022 - Klub | C83: CZ | D83: 2022 | E83: Šumperk | F83: 7.5.-14.5.22 | G83: 5 | H83: 39 | I83: 0.9 | J83: 0 | K83: 0 | L83: =VLOOKUP(G83,Kp!$A$4:$B$24,2,FALSE) -> 0.005 | M83: 0.905 | N83: 0.005 | P83: https://www.soaringspot.com/en_gb/jpj2022/results/klubova-trida#
A84: 18. | B84: JPJ 2022 - Kombi | C84: CZ | D84: 2022 | E84: Šumperk | F84: 7.5.-14.5.22 | G84: 5 | H84: 20 | I84: 0.9 | J84: 0.005 | K84: 0 | L84: =VLOOKUP(G84,Kp!$A$4:$B$24,2,FALSE) -> 0.005 | M84: 0.91 | N84: 0.01 | P84: https://www.soaringspot.com/en_gb/jpj2022/results/kombi-trida#
B85: PMRg 2022 - Klub | C85: CZ | D85: 2022 | E85: Hodkovice | F85: 14.8.-26.8.22 | G85: 6 | H85: 13 | I85: 0.9 | J85: 0.005 | K85: 0 | L85: =VLOOKUP(G85,Kp!$A$4:$B$24,2,FALSE) -> 0.01 | M85: 0.915 | N85: 0.015 | P85: https://www.soaringspot.com/en_gb/mistrovstvi-ceske-republiky-regionu-2022-hodkovice-2022/results/klubova-trida#
B86: PMRg 2022 - Kombi | C86: CZ | D86: 2022 | E86: Hodkovice | F86: 14.8.-26.8.22 | G86: 6 | H86: 11 | I86: 0.9 | J86: 0 | K86: 0 | L86: =VLOOKUP(G86,Kp!$A$4:$B$24,2,FALSE) -> 0.01 | M86: 0.91 | N86: 0.01 | P86: https://www.soaringspot.com/en_gb/mistrovstvi-ceske-republiky-regionu-2022-hodkovice-2022/results/kombi-open#
B87: PMČRj 2022 - Klub | C87: CZ | D87: 2022 | E87: Hodkovice | F87: 3.7.-16.7.22 | G87: 6 | H87: 29 | I87: 0.9 | J87: 0.005 | K87: 0 | L87: =VLOOKUP(G87,Kp!$A$4:$B$24,2,FALSE) -> 0.01 | M87: 0.915 | N87: 0.015 | P87: https://www.soaringspot.com/en_gb/plachtarske-mistrovstvi-cr-junioru-hodkovice-nad-mohelkou-2022/results/klubova-trida#
B88: GGP MB 2022 - Klub GP | C88: CZ | D88: 2022 | E88: Mladá Boleslav | F88: 27.8.-3.9.22 | G88: 5 | H88: 15 | I88: 0.9 | J88: 0.005 | K88: 0 | L88: =VLOOKUP(G88,Kp!$A$4:$B$24,2,FALSE) -> 0.005 | M88: 0.905 | N88: 0.005 | P88: https://www.soaringspot.com/en_gb/ggp2022/results/club-gp
B89: GGP MB 2022 - Pohár MV - Kombi | C89: CZ | D89: 2022 | E89: Mladá Boleslav | F89: 27.8.-3.9.22 | G89: 5 | H89: 11 | I89: 0.9 | J89: 0.01 | K89: 0 | L89: =VLOOKUP(G89,Kp!$A$4:$B$24,2,FALSE) -> 0.005 | M89: 0.915 | N89: 0.015 | P89: https://www.soaringspot.com/en_gb/ggp2022/results/pohar-metodeje-vlach#
B90: Rakovnická Dlaždice 2022 - Klub | C90: CZ | D90: 2022 | E90: Rakovník | F90: 6.8-14.8.22 | G90: 6 | H90: 14 | I90: 0 | J90: 0 | K90: 0 | L90: =VLOOKUP(G90,Kp!$A$4:$B$24,2,FALSE) -> 0.01 | M90: 0 | N90: =M90-I90 -> 0 | O90: Rozhodnutím PK AeČR | P90: https://www.soaringspot.com/en_gb/rakovnicka-dlazdice-2022-rakovnik1-2022/results/open#
A91: 21. | B91: HOP 2022 - Klub | C91: CZ | D91: 2022 | E91: Velké Poříčí | F91: 13.8.-20.8.22 | G91: 4 | H91: 23 | I91: 0.75 | J91: 0.005 | K91: 0 | L91: =VLOOKUP(G91,Kp!$A$4:$B$24,2,FALSE) -> 0 | M91: 0.755 | N91: 0.005 | P91: https://www.soaringspot.com/en_gb/21-hop-2022-velke-porici-2022/results/klub-hop#
A92: 21. | B92: HOP 2022 - Kombi | C92: CZ | D92: 2022 | E92: Velké Poříčí | F92: 13.8.-20.8.22 | G92: 4 | H92: 19 | I92: 0.75 | J92: 0.005 | K92: 0 | L92: =VLOOKUP(G92,Kp!$A$4:$B$24,2,FALSE) -> 0 | M92: 0.75 | N92: 0 | P92: https://www.soaringspot.com/en_gb/21-hop-2022-velke-porici-2022/results/kombi-ppf
B93: Pohár Českého Ráje 2022 - Klub | C93: CZ | D93: 2022 | E93: Jičín | F93: 23.7.-30.7.22 | G93: 3 | H93: 17 | I93: 0 | J93: 0 | K93: 0 | L93: =VLOOKUP(G93,Kp!$A$4:$B$24,2,FALSE) -> -0.02 | M93: 0 | N93: 0 | O93: Rozhodnutím PK AeČR | P93: https://www.soaringspot.com/en_gb/pohar-ceskeho-raje-2022-jicin-2022/results/klub#
B94: Ranský pohár 2022 - Klub | C94: CZ | D94: 2022 | E94: Jičín | F94: 30.7.-6.8.22 | G94: 6 | H94: 21 | I94: 0 | J94: 0 | K94: 0 | L94: =VLOOKUP(G94,Kp!$A$4:$B$24,2,FALSE) -> 0.01 | M94: 0 | N94: 0 | O94: Rozhodnutím PK AeČR | P94: https://www.soaringspot.com/en_gb/ransky-pohar-2022-rana-loumy-2022/results/combi#
B95: Ranský pohár 2022 - Kombi | C95: CZ | D95: 2022 | E95: Raná | F95: 30.7.-6.8.22 | G95: 6 | H95: 7 | I95: 0 | J95: 0 | K95: 0 | L95: =VLOOKUP(G95,Kp!$A$4:$B$24,2,FALSE) -> 0.01 | M95: 0 | N95: 0 | O95: Rozhodnutím PK AeČR, méně jak 10 soutěžících ve třídě | P95: https://www.soaringspot.com/en_gb/ransky-pohar-2022-rana-loumy-2022/results/super-combi
B96: Safari 2022 - Duo | C96: CZ | D96: 2022 | E96: Dvůr Králové | F96: 2.7.-16.7.22 | G96: 4 | H96: 9 | I96: 0 | J96: 0 | K96: 0 | L96: =VLOOKUP(G96,Kp!$A$4:$B$24,2,FALSE) -> 0 | M96: 0 | N96: =M96-I96 -> 0 | O96: Rozhodnutím PK AeČR, méně jak 10 soutěžících ve třídě | P96: https://www.soaringspot.com/en_gb/safari-cup-2022-dvur-kralove-nad-labem-2022/results/duo#
B97: Safari 2022 - Klub | C97: CZ | D97: 2022 | E97: Dvůr Králové | F97: 2.7.-16.7.22 | G97: 5 | H97: 26 | I97: 0.75 | J97: 0 | K97: 0 | L97: =VLOOKUP(G97,Kp!$A$4:$B$24,2,FALSE) -> 0.005 | M97: 0.755 | N97: 0.005 | P97: https://www.soaringspot.com/en_gb/safari-cup-2022-dvur-kralove-nad-labem-2022/results/klub
B98: Safari 2022 - Kombi | C98: CZ | D98: 2022 | E98: Dvůr Králové | F98: 2.7.-16.7.22 | G98: 5 | H98: 10 | I98: 0.75 | J98: 0 | K98: 0 | L98: =VLOOKUP(G98,Kp!$A$4:$B$24,2,FALSE) -> 0.005 | M98: 0.755 | N98: 0.005 | P98: https://www.soaringspot.com/en_gb/safari-cup-2022-dvur-kralove-nad-labem-2022/results/volna
B99: Toužim Cup 2022 - Klub | C99: CZ | D99: 2022 | E99: Toužim | F99: 9.7.-17.7.22 | G99: 5 | H99: 26 | I99: 0.9 | J99: 0.01 | K99: 0 | L99: =VLOOKUP(G99,Kp!$A$4:$B$24,2,FALSE) -> 0.005 | M99: 0.915 | N99: 0.015 | P99: https://www.soaringspot.com/en_gb/t-cup-2022-touzim-2022/results/club#
B100: Toužim Cup 2022 - Kombi | C100: CZ | D100: 2022 | E100: Toužim | F100: 9.7.-17.7.22 | G100: 5 | H100: 26 | I100: 0.9 | J100: 0.005 | K100: 0 | L100: =VLOOKUP(G100,Kp!$A$4:$B$24,2,FALSE) -> 0.005 | M100: 0.91 | N100: 0.01 | P100: https://www.soaringspot.com/en_gb/t-cup-2022-touzim-2022/results/kombi
B101: FL 2022 - Kombi | C101: CZ | D101: 2022 | E101: Frýdlant n/Ostr. | F101: 1.7.-9.7.22 | G101: 3 | H101: 15 | I101: 0.75 | J101: 0.005 | K101: 0 | L101: =VLOOKUP(G101,Kp!$A$4:$B$24,2,FALSE) -> -0.02 | M101: 0.735 | N101: -0.015 | P101: https://www.soaringspot.com/en_gb/fl-2022-adrenalin-grand-prix-frydlant-2022/results/fl#
B102: Adrenalin GP 2022 - Klub GP | C102: CZ | D102: 2022 | E102: Frýdlant n/Ostr. | F102: 1.7.-9.7.22 | G102: 4 | H102: 12 | I102: 0.9 | J102: 0 | K102: 0 | L102: =VLOOKUP(G102,Kp!$A$4:$B$24,2,FALSE) -> 0 | M102: 0.9 | N102: 0 | P102: https://www.soaringspot.com/en_gb/fl-2022-adrenalin-grand-prix-frydlant-2022/results/adrenalin-grand-prix
B103: Ulfův memoriál | C103: CZ | D103: 2022 | E103: Raná | F103: 21.5.-28.5.22 | G103: 3 | H103: 10 | I103: 0 | J103: 0 | K103: 0 | L103: =VLOOKUP(G103,Kp!$A$4:$B$24,2,FALSE) -> -0.02 | M103: =IF(I103=0,0,IF(OR(G103=0,G103=1,G103=2),0,IF(H103<10,0,SUM(I103:L103)))) -> 0 | N103: 0 | O103: Rozhodnutím PK AeČR | P103: https://www.soaringspot.com/en_gb/ulfuv-memorial-zavody-historickych-kluzaku-rana-loumy-2022/results/oldtimer
B104: Podbrdský pohár | C104: CZ | D104: 2022 | E104: Letkov | F104: 30.4.-7.5.22 | G104: 4 | H104: 20 | I104: 0 | J104: 0 | K104: 0 | L104: =VLOOKUP(G104,Kp!$A$4:$B$24,2,FALSE) -> 0 | M104: 0 | N104: 0 | O104: Rozhodnutím PK AeČR | P104: https://www.soaringspot.com/en_gb/pp2022/results/kombi#
B105: AZ Cup 2022 - Klub | C105: CZ | D105: 2022 | E105: Zbraslavice | F105: 22.4.-30.4.22 | G105: 6 | H105: 22 | I105: 0.9 | J105: 0.005 | K105: 0 | L105: =VLOOKUP(G105,Kp!$A$4:$B$24,2,FALSE) -> 0.01 | M105: 0.915 | N105: 0.015 | P105: https://www.soaringspot.com/en_gb/az-cup-2022-zbraslavice-2022/results/klub#
B106: AZ Cup 2022 - Kombi | C106: CZ | D106: 2022 | E106: Zbraslavice | F106: 22.4.-30.4.22 | G106: 6 | H106: 24 | I106: 0.9 | J106: 0.035 | K106: 0.01 | L106: =VLOOKUP(G106,Kp!$A$4:$B$24,2,FALSE) -> 0.01 | M106: 0.955 | N106: 0.055 | P106: https://www.soaringspot.com/en_gb/az-cup-2022-zbraslavice-2022/results/kombi-a
B107: PPV 2022 - Klub | C107: CZ | D107: 2022 | E107: Havlíčkův Brod | F107: 23.7-30.7.22 | G107: 3 | H107: 37 | I107: 0.9 | J107: 0.005 | K107: 0 | L107: =VLOOKUP(G107,Kp!$A$4:$B$24,2,FALSE) -> -0.02 | M107: 0.885 | N107: -0.015 | P107: https://www.soaringspot.com/en_gb/ppv-2022-lkhb/results/klub#
B108: PPV 2022 - Kombi | C108: CZ | D108: 2022 | E108: Havlíčkův Brod | F108: 23.7-30.7.22 | G108: 4 | H108: 25 | I108: 0.9 | J108: 0.02 | K108: 0 | L108: =VLOOKUP(G108,Kp!$A$4:$B$24,2,FALSE) -> 0 | M108: 0.92 | N108: 0.02 | P108: https://www.soaringspot.com/en_gb/ppv-2022-lkhb/results/kombi
B109: WGC 2022 - 18m | C109: HU | D109: 2022 | E109: Szeged | F109: 24.7.-5.8.22 | G109: 10 | H109: 42 | I109: 1 | J109: 0.05 | K109: 0.01 | L109: =VLOOKUP(G109,Kp!$A$4:$B$24,2,FALSE) -> 0.03 | M109: 1.09 | N109: =M109-I109 -> 0.09 | P109: https://www.soaringspot.com/en_gb/37th-fai-world-gliding-championships-2022-szeged-2022/results/18m#
B110: WGC 2022 - Open | C110: HU | D110: 2022 | E110: Szeged | F110: 24.7.-5.8.22 | G110: 10 | H110: 22 | I110: 1 | J110: 0.05 | K110: 0.02 | L110: =VLOOKUP(G110,Kp!$A$4:$B$24,2,FALSE) -> 0.03 | M110: 1.1 | N110: 0.1 | P110: https://www.soaringspot.com/en_gb/37th-fai-world-gliding-championships-2022-szeged-2022/results/open#
B111: WGC 2022 - Duo 20m | C111: HU | D111: 2022 | E111: Szeged | F111: 24.7.-5.8.22 | G111: 10 | H111: 19 | I111: 1 | J111: 0.05 | K111: 0.01 | L111: =VLOOKUP(G111,Kp!$A$4:$B$24,2,FALSE) -> 0.03 | M111: 1.09 | N111: 0.09 | P111: https://www.soaringspot.com/en_gb/37th-fai-world-gliding-championships-2022-szeged-2022/results/20m-multi-seat
B112: EGC 2022 - Klub | C112: LT | D112: 2022 | E112: Pociunai | F112: 3.7.-15.7.22 | G112: 8 | H112: 28 | I112: 1 | J112: 0.035 | K112: 0.02 | L112: =VLOOKUP(G112,Kp!$A$4:$B$24,2,FALSE) -> 0.02 | M112: 1.075 | N112: 0.075 | P112: https://www.soaringspot.com/en_gb/21st-fai-european-gliding-championships-pociunai-2022/results/club#
B113: EGC 2022 - Std | C113: LT | D113: 2022 | E113: Pociunai | F113: 3.7.-15.7.22 | G113: 7 | H113: 28 | I113: 1 | J113: 0.045 | K113: 0.03 | L113: =VLOOKUP(G113,Kp!$A$4:$B$24,2,FALSE) -> 0.015 | M113: 1.09 | N113: 0.09 | P113: https://www.soaringspot.com/en_gb/21st-fai-european-gliding-championships-pociunai-2022/results/standard#
B114: EGC 2022 - 15m | C114: LT | D114: 2022 | E114: Pociunai | F114: 3.7.-15.7.22 | G114: 8 | H114: 26 | I114: 1 | J114: 0.02 | K114: 0.02 | L114: =VLOOKUP(G114,Kp!$A$4:$B$24,2,FALSE) -> 0.02 | M114: 1.06 | N114: 0.06 | P114: https://www.soaringspot.com/en_gb/21st-fai-european-gliding-championships-pociunai-2022/results/15-meter#
B115: JWGC 2022 - Klub | C115: CZ | D115: 2022 | E115: Tabor | F115: 30.7.-12.8.22 | G115: 10 | H115: 45 | I115: 1 | J115: 0.015 | K115: 0.03 | L115: =VLOOKUP(G115,Kp!$A$4:$B$24,2,FALSE) -> 0.03 | M115: 1.075 | N115: 0.075 | P115: https://www.soaringspot.com/en_gb/junior-world-gliding-championships-2022-tabor-2022/results/class-club#
B116: JWGC 2022 - Std | C116: CZ | D116: 2022 | E116: Tabor | F116: 30.7.-12.8.22 | G116: 10 | H116: 29 | I116: 1 | J116: 0.015 | K116: 0.03 | L116: =VLOOKUP(G116,Kp!$A$4:$B$24,2,FALSE) -> 0.03 | M116: 1.075 | N116: 0.075 | P116: https://www.soaringspot.com/en_gb/junior-world-gliding-championships-2022-tabor-2022/results/class-standard#
A117: 11. | B117: WWGC 2022 - Klub | C117: UK | D117: 2022 | E117: Husbands Bosworth | F117: 14.8.-26.8.22 | G117: 6 | H117: 18 | I117: 1 | J117: 0.01 | K117: 0.02 | L117: =VLOOKUP(G117,Kp!$A$4:$B$24,2,FALSE) -> 0.01 | M117: 1.04 | N117: 0.04 | P117: https://www.soaringspot.com/en_gb/11th-fai-womens-world-gliding-championship-2022/results/club#
A118: 11. | B118: WWGC 2022 - Std | C118: UK | D118: 2022 | E118: Husbands Bosworth | F118: 14.8.-26.8.22 | G118: 8 | H118: 13 | I118: 1 | J118: 0.005 | K118: 0.01 | L118: =VLOOKUP(G118,Kp!$A$4:$B$24,2,FALSE) -> 0.02 | M118: 1.035 | N118: 0.035 | P118: https://www.soaringspot.com/en_gb/11th-fai-womens-world-gliding-championship-2022/results/standard#
A119: 11. | B119: WWGC 2022 - 18m | C119: UK | D119: 2022 | E119: Husbands Bosworth | F119: 14.8.-26.8.22 | G119: 8 | H119: 12 | I119: 1 | J119: 0.005 | K119: 0.03 | L119: =VLOOKUP(G119,Kp!$A$4:$B$24,2,FALSE) -> 0.02 | M119: 1.055 | N119: 0.055 | P119: https://www.soaringspot.com/en_gb/11th-fai-womens-world-gliding-championship-2022/results/18-meter
A120: 65. | B120: PMSR 2022 - Klub | C120: SK | D120: 2022 | E120: Martin | F120: 12.6.-26.6.22 | G120: 11 | H120: 16 | I120: 0.9 | J120: 0.005 | K120: 0 | L120: =VLOOKUP(G120,Kp!$A$4:$B$24,2,FALSE) -> 0.03 | M120: 0.935 | N120: 0.035 | P120: https://www.soaringspot.com/en_gb/65majstrovstva-sr-v-bezmotorovom-lietani-2022-martin-2022/results/klubova-trieda#
A121: 65. | B121: PMSR 2022 - Kombi A+B | C121: SK | D121: 2022 | E121: Martin | F121: 12.6.-26.6.22 | G121: 10 | H121: 24 | I121: 0.9 | J121: 0.005 | K121: 0 | L121: =VLOOKUP(G121,Kp!$A$4:$B$24,2,FALSE) -> 0.03 | M121: 0.935 | N121: 0.035 | P121: https://www.soaringspot.com/en_gb/65majstrovstva-sr-v-bezmotorovom-lietani-2022-martin-2022/results/kombinovana-b-trieda#
B122: Oldtimer Pribina Star 2022 - Klub | C122: SK | D122: 2022 | E122: Nitra | F122: 6.8.-13.8.22 | G122: 4 | H122: 16 | I122: 0.75 | J122: 0 | K122: 0 | L122: =VLOOKUP(G122,Kp!$A$4:$B$24,2,FALSE) -> 0 | M122: 0.75 | N122: 0 | P122: https://www.soaringspot.com/en_gb/oldtimer-pribina-star-2022-nitra-2022/results/club#
B123: Top Gun 2022 - Kombi | C123: SK | D123: 2022 | E123: Prievidza | F123: 6.8.-13.8.22 | G123: 5 | H123: 8 | I123: 0.75 | J123: 0 | K123: 0 | L123: =VLOOKUP(G123,Kp!$A$4:$B$24,2,FALSE) -> 0.005 | M123: 0 | N123: -0.75 | O123: Méně jak 10 soutěžících ve třídě | P123: https://www.soaringspot.com/en_gb/top-gun-gliding-cup-2022-prievidza-2022/results/mixed#
A124: 20. | B124: Fatraglide 2022 - Klub | C124: SK | D124: 2022 | E124: Martin | F124: 21.5.-28.5.22 | G124: 6 | H124: 16 | I124: 0.75 | J124: 0 | K124: 0 | L124: =VLOOKUP(G124,Kp!$A$4:$B$24,2,FALSE) -> 0.01 | M124: 0.76 | N124: 0.01 | P124: https://www.soaringspot.com/en_gb/20-fatraglide-2022-martin-2022/results/club#
A125: 20. | B125: Fatraglide 2022 - Kombi | C125: SK | D125: 2022 | E125: Martin | F125: 21.5.-28.5.22 | G125: 6 | H125: 10 | I125: 0.75 | J125: 0.005 | K125: 0 | L125: =VLOOKUP(G125,Kp!$A$4:$B$24,2,FALSE) -> 0.01 | M125: 0.765 | N125: 0.015 | P125: https://www.soaringspot.com/en_gb/20-fatraglide-2022-martin-2022/results/kombinovana-trieda#
B126: FCC 2022 - Klub | C126: SK | D126: 2022 | E126: Prievidza | F126: 24.4.-5.5.22 | G126: 7 | H126: 43 | I126: 0.9 | J126: 0.015 | K126: 0.01 | L126: =VLOOKUP(G126,Kp!$A$4:$B$24,2,FALSE) -> 0.015 | M126: 0.94 | N126: 0.04 | P126: https://www.soaringspot.com/en_gb/fcc-gliding-2022-prievidza-2022/results/club
B127: FCC 2022 - Kombi 15m | C127: SK | D127: 2022 | E127: Prievidza | F127: 24.4.-5.5.22 | G127: 7 | H127: 28 | I127: 0.9 | J127: 0.015 | K127: 0.03 | L127: =VLOOKUP(G127,Kp!$A$4:$B$24,2,FALSE) -> 0.015 | M127: 0.96 | N127: 0.06 | P127: https://www.soaringspot.com/en_gb/fcc-gliding-2022-prievidza-2022/results/15m#
B128: FCC 2022 - Kombi Open | C128: SK | D128: 2022 | E128: Prievidza | F128: 24.4.-5.5.22 | G128: 7 | H128: 45 | I128: 0.9 | J128: 0.03 | K128: 0.02 | L128: =VLOOKUP(G128,Kp!$A$4:$B$24,2,FALSE) -> 0.015 | M128: 0.965 | N128: 0.065 | P128: https://www.soaringspot.com/en_gb/fcc-gliding-2022-prievidza-2022/results/combi#
B129: Pribina Cup 2022 - Klub | C129: SK | D129: 2022 | E129: Nitra | F129: 15.4.-23.4.22 | G129: 5 | H129: 28 | I129: 0.9 | J129: 0.025 | K129: 0.01 | L129: =VLOOKUP(G129,Kp!$A$4:$B$24,2,FALSE) -> 0.005 | M129: 0.94 | N129: 0.04 | P129: https://www.soaringspot.com/en_gb/pribina-cup-2022-nitra-2022/results/club#
B130: Pribina Cup 2022 - Kombi 15m | C130: SK | D130: 2022 | E130: Nitra | F130: 15.4.-23.4.22 | G130: 5 | H130: 26 | I130: 0.9 | J130: 0.015 | K130: 0.01 | L130: =VLOOKUP(G130,Kp!$A$4:$B$24,2,FALSE) -> 0.005 | M130: 0.93 | N130: 0.03 | P130: https://www.soaringspot.com/en_gb/pribina-cup-2022-nitra-2022/results/15-meter#
B131: Pribina Cup 2022 - Kombi Open | C131: SK | D131: 2022 | E131: Nitra | F131: 15.4.-23.4.22 | G131: 5 | H131: 46 | I131: 0.9 | J131: 0.045 | K131: 0 | L131: =VLOOKUP(G131,Kp!$A$4:$B$24,2,FALSE) -> 0.005 | M131: 0.95 | N131: 0.05 | P131: https://www.soaringspot.com/en_gb/pribina-cup-2022-nitra-2022/results/open#
A132: 12. | B132: Flatland Cup 2022 - Klub | C132: SK | D132: 2022 | E132: Szeged | F132: 1.7.-9.7.22 | G132: 6 | H132: 33 | I132: 0.9 | J132: 0.03 | K132: 0 | L132: =VLOOKUP(G132,Kp!$A$4:$B$24,2,FALSE) -> 0.01 | M132: 0.94 | N132: =M132-I132 -> 0.04 | P132: https://www.soaringspot.com/en_gb/xii-flatland-cup-szeged-2022/results/fai-club#
A133: 12. | B133: Flatland Cup 2022 - Kombi Open | C133: SK | D133: 2022 | E133: Szeged | F133: 1.7.-9.7.22 | G133: 7 | H133: 22 | I133: 0.9 | J133: 0.03 | K133: 0 | L133: =VLOOKUP(G133,Kp!$A$4:$B$24,2,FALSE) -> 0.015 | M133: 0.945 | N133: 0.045 | P133: https://www.soaringspot.com/en_gb/xii-flatland-cup-szeged-2022/results/mixed-15m#
B134: SGP Sweden 2022 - 18m GP | C134: SE | D134: 2022 | E134: Boras | F134: 8.5.-14.5.22 | G134: 3 | H134: 15 | I134: 0.9 | J134: 0.005 | K134: 0 | L134: =VLOOKUP(G134,Kp!$A$4:$B$24,2,FALSE) -> -0.02 | M134: 0.885 | N134: -0.015 | P134: https://sweden22.sgp.aero/race-results

Sheet Kp (hidden)
A1: Korekce na počet platných disciplín
A3: Počet platných disciplín | B3: Korekce Kp
A4: 0 | B4: 0
A5: 1 | B5: 0
A6: 2 | B6: 0
A7: 3 | B7: -0.02
A8: 4 | B8: 0
A9: 5 | B9: 0.005
A10: 6 | B10: 0.01
A11: 7 | B11: 0.015
A12: 8 | B12: 0.02
A13: 9 | B13: 0.025
A14: 10 | B14: 0.03
A15: 11 | B15: 0.03
A16: 12 | B16: 0.03
A17: 13 | B17: 0.03
A18: 14 | B18: 0.03
A19: 15 | B19: 0.03
A20: 16 | B20: 0.03
A21: 17 | B21: 0.03
A22: 18 | B22: 0.03
A23: 19 | B23: 0.03
A24: 20 | B24: 0.03

Sheet Pilot
A1: Jmeno | B1: Rok nar. | C1: Aeroklub | D1: Region | E1: M/F | F1: Junior v roce | G1: 2023 | H1: Hranice pro juniory: / Poznámka: | I1: =G1-25 -> 1998 | J1: Počet Jun: | K1: =COUNTIF(F2:F2177,"Junior v roce "&G1) -> 71 | L1: Počet F: | M1: =COUNTIF(E2:E2177,"F") -> 73 | N1: Počet M: | O1: =COUNTIF(E2:E2177,"M") -> 936 | P1: Počet celk: | Q1: =COUNTIF(A2:A2177,"<>") -> 1010
A2: - | D2: Region
A3: Adam Hepal | B3: 2004 | C3: Kolín | D3: =VLOOKUP(C3,Region,2,0) -> CZ/C1 | E3: M | F3: =IF(A3="(prázdné)","",IF(($G$1-B3)>25,"","Junior v roce "&$G$1)) -> Junior v roce 2023
A4: Adam Jandora | B4: 1992 | C4: Medlánky | D4: =VLOOKUP(C4,Region,2,0) -> CZ/M | E4: M | F4: =IF(A4="(prázdné)","",IF(($G$1-B4)>25,"","Junior v roce "&$G$1)) -> 
A5: Adam Olejar | B5: 1991 | C5: Medlánky | D5: CZ/M | E5: M | F5: =IF(A5="(prázdné)","",IF(($G$1-B5)>25,"","Junior v roce "&$G$1)) -> 
A6: Adam Pergner | B6: 2002 | C6: Rakovník | D6: =VLOOKUP(C6,Region,2,0) -> CZ/C1 | E6: M | F6: =IF(A6="(prázdné)","",IF(($G$1-B6)>25,"","Junior v roce "&$G$1)) -> Junior v roce 2023
A7: Adam Sostaric | B7: 1991 | C7: Chrudim | D7: CZ/C2 | E7: M
A8: Adam Sugl | B8: 1987 | C8: Vyškov | D8: CZ/M | E8: M
A9: Albert Schneider | B9: 1967 | C9: Hranice | D9: =VLOOKUP(C9,Region,2,0) -> CZ/M | E9: M
A10: Albrecht Beat | B10: 1953 | C10: Šumperk | D10: CZ/M | E10: M
A11: Alena Netusilova | B11: 1970 | C11: Zbraslavice | D11: CZ/C1 | E11: F
A12: Ales Cervenka | B12: 1981 | C12: Soběslav | D12: CZ/C1 | E12: M
A13: Ales Hajek | B13: 1958 | C13: Mladá Boleslav | D13: CZ/C1 | E13: M
A14: Ales Hala | B14: 1994 | C14: Tábor | D14: CZ/C1 | E14: M
A15: Ales Holoubek | B15: 1966 | C15: Jičín | D15: CZ/C2 | E15: M
A16: Ales Tresl | B16: 1958 | C16: Raná | D16: CZ/C2 | E16: M
A17: Ales Vorac | B17: 1985 | C17: Křižanov | D17: CZ/M | E17: M
A18: Ales Vyhnal | B18: 1989 | C18: Kralupy | D18: CZ/C1 | E18: M
A19: Alexander Nerandzic | B19: 1966 | C19: Raná | D19: CZ/C2 | E19: M
A20: Alois Cmajdalka | B20: 1963 | C20: Kunovice | D20: CZ/M | E20: M
A21: Alois Sohr | B21: 1939 | C21: Hranice | D21: CZ/M | E21: M
A22: Andrea Bensova | B22: 1978 | C22: Zbraslavice | D22: CZ/C1 | E22: F
A23: Aneta Prachtova | B23: 1991 | C23: Kralupy | D23: CZ/C1 | E23: F
A24: Anna Bordovska | B24: 1989 | C24: Mladá Boleslav | D24: CZ/C1 | E24: F
A25: Antonin Bordovsky | B25: 1951 | C25: Krnov | D25: CZ/M | E25: M
A26: Antonin Bruna | B26: 1945 | C26: GAC Benešov | D26: CZ/C1 | E26: M
A27: Antonin Burger | B27: 1943 | C27: Panenský Týnec | D27: CZ/C1 | E27: M
A28: Antonin Konicek | B28: 1973 | C28: Kunovice | D28: CZ/M | E28: M
A29: Antonin Kutalek | B29: 1943 | C29: Zábřeh | D29: CZ/M | E29: M
A30: Antonin Novotny | B30: 1972 | C30: Luhačovice | D30: CZ/M | E30: M
A31: Antonin Otrusina | B31: 1948 | C31: Křižanov | D31: CZ/M | E31: M
A32: Antonin Pilat | B32: 1971 | C32: Vyškov | D32: CZ/M | E32: M
A33: Antonin Teichmann | B33: 1965 | C33: Hronov | D33: CZ/C2 | E33: M
A34: Barbora Kubickova | B34: 1993 | C34: Medlánky | D34: CZ/M | E34: F
A35: Barbora Moravcova | B35: 1994 | C35: Zbraslavice | D35: CZ/C1 | E35: F
A36: Barbora Nahodilova | B36: 1989 | C36: Hosín | D36: CZ/C1 | E36: F
A37: Bedrich Honzicek | B37: 1972 | C37: Letňany | D37: =VLOOKUP(C37,Region,2,0) -> CZ/C1 | E37: M
A38: Bedrich Prochazka | B38: 1957 | C38: Rakovník | D38: CZ/C1 | E38: M
A39: Bohdan Sebestik | B39: 1957 | C39: Kroměříž | D39: CZ/M | E39: M
A40: Bohumil Kunc | B40: 1983 | C40: Kunovice | D40: CZ/M | E40: M
A41: Bohumil Rikal | B41: 1946 | C41: Hronov | D41: CZ/C2 | E41: M
A42: Bohumil Svec | B42: 1985 | C42: Roudnice | D42: CZ/C2 | E42: M
A43: Bohumir Zajdl | B43: 1950 | C43: Dvůr Králové | D43: CZ/C2 | E43: M
A44: Bohus Marcinik | B44: 1947 | C44: Příbram | D44: CZ/C1 | E44: M
A45: Boris Bachraty | B45: 1974 | C45: Kyjov | D45: CZ/M | E45: M | H45: Dříve Břeclav
A46: Bronislav Smatana | B46: 1970 | C46: Zbraslavice | D46: CZ/C1 | E46: M
A47: Carsten Tietz | B47: 1966 | C47: Hronov | D47: =VLOOKUP(C47,Region,2,0) -> CZ/C2 | E47: M
A48: Christof Madoery | B48: 1958 | C48: Šumperk | D48: =VLOOKUP(C48,Region,2,0) -> CZ/M | E48: M
A49: Dalibor Daricek | B49: 1993 | C49: Kunovice | D49: CZ/M | E49: M
A50: Dalibor Fencl | B50: 1966 | C50: Zbraslavice | D50: CZ/C1 | E50: M
A51: Dalibor Pek | B51: 1968 | C51: Raná | D51: CZ/C2 | E51: M
A52: Dana Novakova | B52: 1965 | C52: Mladá Boleslav | D52: CZ/C1 | E52: F
A53: Danes Grula | B53: 1961 | C53: Medlánky | D53: CZ/M | E53: M
A54: Daniel Adamec | B54: 1977 | C54: Hranice | D54: CZ/M | E54: M
A55: Daniel Brichta | B55: 1962 | C55: GAC Benešov | D55: =VLOOKUP(C55,Region,2,0) -> CZ/C1 | E55: M
A56: Daniel Devecka | B56: 1981 | C56: Vlašim | D56: =VLOOKUP(C56,Region,2,0) -> CZ/C1 | E56: M | F56: =IF(A56="(prázdné)","",IF(($G$1-B56)>25,"","Junior v roce "&$G$1)) -> 
A57: Daniel Dvorak | B57: 1980 | C57: Letkov | D57: CZ/C1 | E57: M
A58: Daniel Krasnicky | B58: 1984 | C58: Příbram | D58: CZ/C1 | E58: M
A59: Daniel Moravek | B59: 1973 | C59: Hodkovice | D59: CZ/C2 | E59: M
A60: Daniel Novak | B60: 1971 | C60: Letkov | D60: CZ/C1 | E60: M
A61: Daniel Ryba | B61: 1994 | C61: Dvůr Králové | D61: CZ/C2 | E61: M
A62: Daniel Suchy | B62: 1995 | C62: Hranice | D62: CZ/M | E62: M
A63: Daniela Frankova | B63: 1997 | C63: Jaroměř | D63: CZ/C2 | E63: M
A64: Daniela Stepankova | B64: 1988 | C64: Hosín | D64: CZ/C1 | E64: F
A65: David Cisar | B65: 1987 | C65: Křižanov | D65: CZ/M | E65: M
A66: David Darnady | B66: 1987 | C66: Zbraslavice | D66: =VLOOKUP(C66,Region,2,0) -> CZ/C1 | E66: M | F66: =IF(A66="(prázdné)","",IF(($G$1-B66)>25,"","Junior v roce "&$G$1)) -> 
A67: David Kaspar | B67: 1993 | C67: Jaroměř | D67: =VLOOKUP(C67,Region,2,0) -> CZ/C2 | E67: M
A68: David Krcil | B68: 1976 | C68: Raná | D68: =VLOOKUP(C68,Region,2,0) -> CZ/C2 | E68: M
A69: David Londa | B69: 1973 | C69: Mladá Boleslav | D69: CZ/C1 | E69: M
A70: David Mach | B70: 1994 | C70: Hronov | D70: CZ/C2 | E70: M
A71: David Marek | B71: 1991 | C71: Křižanov | D71: CZ/M | E71: M
A72: David Nenicka | B72: 2005 | C72: Hranice | D72: =VLOOKUP(C72,Region,2,0) -> CZ/M | E72: M | F72: =IF(A72="(prázdné)","",IF(($G$1-B72)>25,"","Junior v roce "&$G$1)) -> Junior v roce 2023
A73: David Novotny | B73: 1984 | C73: Polička | D73: CZ/C2 | E73: M
A74: David Popovsky | B74: 1976 | C74: Rakovník | D74: CZ/C1 | E74: M | F74: =IF(A74="(prázdné)","",IF(($G$1-B74)>25,"","Junior v roce "&$G$1)) -> 
A75: David Prihoda | B75: 1994 | C75: Hranice | D75: CZ/M | E75: M
A76: David Rozporka | B76: 1994 | C76: Hronov | D76: CZ/C2 | E76: M
A77: David Rytina | B77: 1983 | C77: Zbraslavice | D77: CZ/C1 | E77: M
A78: David Riha | B78: 1983 | C78: Vlašim | D78: CZ/C1 | E78: M
A79: David Sachl | B79: 1978 | C79: Kralupy | D79: CZ/C1 | E79: M
A80: David Tejnora | B80: 1982 | C80: Jaroměř | D80: CZ/C2 | E80: M
A81: David Trnecka | B81: 1979 | C81: Medlánky | D81: CZ/M | E81: M
A82: David Vrchota | B82: 1976 | C82: Jaroměř | D82: =VLOOKUP(C82,Region,2,0) -> CZ/C2 | E82: M
A83: David Zapletal | B83: 1970 | C83: Mladá Boleslav | D83: CZ/C1 | E83: M
A84: David Zatecka | B84: 1993 | C84: GAC Benešov | D84: =VLOOKUP(C84,Region,2,0) -> CZ/C1 | E84: M
A85: Dusan Gadas | B85: 1960 | C85: Hranice | D85: CZ/M | E85: M
A86: Dusan Kmet | B86: 1972 | C86: Křižanov | D86: CZ/M | E86: M
A87: Dusan Patocka | B87: 1972 | C87: Vrchlabí | D87: =VLOOKUP(C87,Region,2,0) -> CZ/C2 | E87: M | F87: =IF(A87="(prázdné)","",IF(($G$1-B87)>25,"","Junior v roce "&$G$1)) -> 
A88: Dusan Sys | B88: 1977 | C88: Šumperk | D88: CZ/M | E88: M
A89: Dusan Zerzan | B89: 1970 | C89: Šumperk | D89: CZ/M | E89: M
A90: Eduard Niko | B90: 1988 | C90: Zbraslavice | D90: =VLOOKUP(C90,Region,2,0) -> CZ/C1 | E90: M | F90: =IF(A90="(prázdné)","",IF(($G$1-B90)>25,"","Junior v roce "&$G$1)) -> 
A91: Eduard Svoboda | B91: 1957 | C91: Raná | D91: CZ/C2 | E91: M
A92: Eliska Bohunovska | B92: 2001 | C92: Hranice | D92: =VLOOKUP(C92,Region,2,0) -> CZ/M | E92: F | F92: Junior v roce 2023
A93: Eva Cerna | B93: 1964 | C93: Příbram | D93: CZ/C1 | E93: F
A94: Eva Klapkova | B94: 1993 | C94: Raná | D94: =VLOOKUP(C94,Region,2,0) -> CZ/C2 | E94: F | F94: =IF(A94="(prázdné)","",IF(($G$1-B94)>25,"","Junior v roce "&$G$1)) -> 
A95: Evzen Skala | B95: 1954 | C95: Vrchlabí | D95: CZ/C2 | E95: M
A96: Fabian Curda | B96: 2004 | C96: Zábřeh | D96: =VLOOKUP(C96,Region,2,0) -> CZ/M | E96: M | F96: Junior v roce 2023
A97: Filip Borůvka | B97: 2004 | C97: Nové Město nad Metují | D97: =VLOOKUP(C97,Region,2,0) -> CZ/C2 | E97: M | F97: =IF(A97="(prázdné)","",IF(($G$1-B97)>25,"","Junior v roce "&$G$1)) -> Junior v roce 2023
A98: Filip Graf | B98: 1981 | C98: Křižanov | D98: CZ/M | E98: M
A99: Filip Malik | B99: 2001 | C99: Letňany | D99: =VLOOKUP(C99,Region,2,0) -> CZ/C1 | E99: M | F99: Junior v roce 2023
A100: Filip Neumann | B100: 1977 | C100: GAC Benešov | D100: CZ/C1 | E100: M
A101: Filip Sklenar | B101: 1990 | C101: Žamberk | D101: CZ/C2 | E101: M
A102: Filip sirc | B102: 1993 | C102: Letňany | D102: CZ/C1 | E102: M
A103: Filip Vita | B103: 2001 | C103: Kroměříž | D103: CZ/M | E103: M | F103: Junior v roce 2023
A104: Frantisek Brozman | B104: 1960 | C104: Tachov | D104: CZ/C1 | E104: M
A105: Frantisek Filandr | B105: 1956 | C105: Most | D105: CZ/C2 | E105: M
A106: Frantisek Hubacek | B106: 1978 | C106: Točná | D106: CZ/C1 | E106: M
A107: Frantisek Komarek | B107: 1985 | C107: Zbraslavice | D107: CZ/C1 | E107: M
A108: Frantisek Kriz | B108: 1961 | C108: Toužim | D108: CZ/C1 | E108: M
A109: Frantisek Marek | B109: 1960 | C109: Křižanov | D109: CZ/M | E109: M
A110: Frantisek Matousek | B110: 1937 | C110: Nové Město nad Metují | D110: CZ/C2 | E110: M
A111: Frantisek Myska | B111: 1968 | C111: Most | D111: CZ/C2 | E111: M
A112: Frantisek Pycha | B112: 1972 | C112: Chrudim | D112: CZ/C2 | E112: M
A113: Frantisek Soucek | B113: 1945 | C113: Dvůr Králové | D113: CZ/C2 | E113: M
A114: Frantisek Sindelar | B114: 1954 | C114: Kralupy | D114: CZ/C1 | E114: M
A115: Frantisek Suna | B115: 1983 | C115: Hosín | D115: =VLOOKUP(C115,Region,2,0) -> CZ/C1 | E115: M
A116: Frantisek Vancura | B116: 1966 | C116: Hranice | D116: CZ/M | E116: M
A117: Gabriela Cervena | B117: 1966 | C117: Jaroměř | D117: CZ/C2 | E117: F
A118: Gustav Vrbacky | B118: 1933 | C118: Medlánky | D118: CZ/M | E118: M
A119: Hana Treslova | B119: 1991 | C119: Raná | D119: CZ/C2 | E119: F
A120: Hana Vokrinkova | B120: 1958 | C120: Hodkovice | D120: CZ/C2 | E120: F
A121: Hynek Pokorny | B121: 1991 | C121: Letňany | D121: CZ/C1 | E121: M
A122: Christof Madory | B122: 1958 | C122: Šumperk | D122: CZ/M | E122: M
A123: Ilja Kopacek | B123: 1943 | C123: Jičín | D123: =VLOOKUP(C123,Region,2,0) -> CZ/C2 | E123: M
A124: Ivan Filakovsky | B124: 1965 | C124: Medlánky | D124: CZ/M | E124: M
A125: Ivan Harasta 65 | B125: 1965 | C125: Toužim | D125: CZ/C1 | E125: M
A126: Ivan Harasta 98 | B126: 1998 | C126: Toužim | D126: CZ/C1 | E126: M | F126: Junior v roce 2023
A127: Ivan Kuzelka | B127: 1945 | C127: Havlíčkův Brod | D127: CZ/C2 | E127: M
A128: Ivan Ladr | B128: 1940 | C128: Dvůr Králové | D128: CZ/C2 | E128: M
A129: Ivan Novak | B129: 1962 | C129: Mladá Boleslav | D129: CZ/C1 | E129: M
A130: Ivan Tvrdik | B130: 1997 | C130: Letňany | D130: CZ/C1 | E130: M
A131: Ivo Burda | B131: 1962 | C131: Zbraslavice | D131: CZ/C1 | E131: M
A132: Ivo Nezval | B132: 1964 | C132: Šumperk | D132: CZ/M | E132: M
A133: Ivo Vudarcik | B133: 1994 | C133: Rakovník | D133: CZ/C1 | E133: M
A134: Jacek Kerum | B134: 1943 | C134: Příbram | D134: CZ/C1 | E134: M
A135: Jakub Brotanek | B135: 1985 | C135: Roudnice | D135: CZ/C2 | E135: M
A136: Jakub Hlavacek | B136: 1991 | C136: Letkov | D136: CZ/C1 | E136: M
A137: Jakub Kmosek | B137: 1978 | C137: Zbraslavice | D137: CZ/C1 | E137: M
A138: Jakub Kohn | B138: 1992 | C138: Prostějov | D138: CZ/M | E138: M
A139: Jakub Koudelka | B139: 2000 | C139: Křižanov | D139: =VLOOKUP(C139,Region,2,0) -> CZ/M | E139: M | F139: Junior v roce 2023
A140: Jakub Malik | B140: 1999 | C140: Letňany | D140: CZ/C1 | E140: M | F140: Junior v roce 2023
A141: Jakub Michalicka | B141: 1993 | C141: Rakovník | D141: CZ/C1 | E141: M
A142: Jakub Spanger | B142: 2002 | C142: Jeseník | D142: =VLOOKUP(C142,Region,2,0) -> CZ/M | E142: M | F142: Junior v roce 2023
A143: Jakub Tiller | B143: 1987 | C143: Broumov | D143: CZ/C2 | E143: M
A144: Jakub Vimr | B144: 1975 | C144: GAC Benešov | D144: CZ/C1 | E144: M | F144: =IF(A144="(prázdné)","",IF(($G$1-B144)>25,"","Junior v roce "&$G$1)) -> 
A145: Jan Adam | B145: 2002 | C145: Podhořany | D145: =VLOOKUP(C145,Region,2,0) -> CZ/C2 | E145: M | F145: Junior v roce 2023
A146: Jan Bejdl | B146: 1978 | C146: Zbraslavice | D146: =VLOOKUP(C146,Region,2,0) -> CZ/C1 | E146: M
A147: Jan Belina | B147: 1979 | C147: Hořice | D147: CZ/C2 | E147: M
A148: Jan Beran | B148: 1999 | C148: Kladno | D148: =VLOOKUP(C148,Region,2,0) -> CZ/C1 | E148: M | F148: Junior v roce 2023
A149: Jan Beranek | B149: 1976 | C149: Jihlava | D149: CZ/M | E149: M
A150: Jan Blaha | B150: 1983 | C150: Kyjov | D150: =VLOOKUP(C150,Region,2,0) -> CZ/M | E150: M | F150: =IF(A150="(prázdné)","",IF(($G$1-B150)>25,"","Junior v roce "&$G$1)) -> 
A151: Jan Boruvka | B151: 1984 | C151: Jičín | D151: CZ/C2 | E151: M
A152: Jan Camr | B152: 2002 | C152: Jaroměř | D152: =VLOOKUP(C152,Region,2,0) -> CZ/C2 | E152: M | F152: Junior v roce 2023
A153: Jan Cerveny | B153: 1984 | C153: Jaroměř | D153: CZ/C2 | E153: M
A154: Jan Cibulka | B154: 2002 | C154: Letňany | D154: =VLOOKUP(C154,Region,2,0) -> CZ/C1 | E154: M | F154: Junior v roce 2023
A155: Jan Dersak 69 | B155: 1969 | C155: Kralupy | D155: CZ/C1 | E155: M
A156: Jan Dersak 92 | B156: 1992 | C156: Kralupy | D156: CZ/C1 | E156: M
A157: Jan Drahota | B157: 1988 | C157: Rakovník | D157: CZ/C1 | E157: M
A158: Jan Drbohlav | B158: 1999 | C158: Hodkovice | D158: =VLOOKUP(C158,Region,2,0) -> CZ/C2 | E158: M | F158: Junior v roce 2023
A159: Jan Florian | B159: 1992 | C159: Zbraslavice | D159: CZ/C1 | E159: M
A160: Jan Habermann | B160: 1975 | C160: Vlašim | D160: =VLOOKUP(C160,Region,2,0) -> CZ/C1 | E160: M
A161: Jan Hejret | B161: 1976 | C161: Jaroměř | D161: CZ/C2 | E161: M
A162: Jan Heroudek | B162: 1970 | C162: Rakovník | D162: =VLOOKUP(C162,Region,2,0) -> CZ/C1 | E162: M
A163: Jan Hlavacek | B163: 1965 | C163: Rakovník | D163: CZ/C1 | E163: M
A164: Jan Horak | B164: 1971 | C164: Zbraslavice | D164: CZ/C1 | E164: M
A165: Jan Horky | B165: 1968 | C165: Medlánky | D165: CZ/M | E165: M
A166: Jan Hrbatsch | B166: 1989 | C166: Hodkovice | D166: CZ/C2 | E166: M
A167: Jan Hruska | B167: 1988 | C167: Tábor | D167: CZ/C1 | E167: M
A168: Jan Hybner | B168: 1977 | C168: Liberec | D168: =VLOOKUP(C168,Region,2,0) -> CZ/C2 | E168: M
A169: Jan Jicha | B169: 1984 | C169: Podhořany | D169: CZ/C2 | E169: M
A170: Jan Jindra | B170: 1981 | C170: Roudnice | D170: CZ/C2 | E170: M
A171: Jan Kantor | B171: 1983 | C171: Letňany | D171: CZ/C1 | E171: M
A172: Jan Kapralek | B172: 1991 | C172: Kladno | D172: CZ/C1 | E172: M
A173: Jan Karabec | B173: 2000 | C173: Podhořany | D173: =VLOOKUP(C173,Region,2,0) -> CZ/C2 | E173: M | F173: Junior v roce 2023
A174: Jan Karnik | B174: 1976 | C174: Letkov | D174: =VLOOKUP(C174,Region,2,0) -> CZ/C1 | E174: M
A175: Jan Kaspar | B175: 1994 | C175: Letňany | D175: =VLOOKUP(C175,Region,2,0) -> CZ/C1 | E175: M
A176: Jan Kohout | B176: 1970 | C176: Žamberk | D176: CZ/C2 | E176: M
A177: Jan Konecny | B177: 1972 | C177: Rakovník | D177: CZ/C1 | E177: M
A178: Jan Kostka | B178: 1996 | C178: Kladno | D178: CZ/C1 | E178: M
A179: Jan Kotan | B179: 1982 | C179: Letňany | D179: CZ/C1 | E179: M
A180: Jan Kralik | B180: 1991 | C180: Letkov | D180: CZ/C1 | E180: M
A181: Jan Kristof | B181: 1962 | C181: Frýdlant | D181: CZ/M | E181: M
A182: Jan Kulistak | B182: 1990 | C182: Kunovice | D182: CZ/M | E182: M
A183: Jan Lancdorf | B183: 1988 | C183: Panenský Týnec | D183: CZ/C1 | E183: M
A184: Jan Louda | B184: 1986 | C184: Mladá Boleslav | D184: CZ/C1 | E184: M
A185: Jan Mareth | B185: 1979 | C185: Frýdlant | D185: CZ/M | E185: M
A186: Jan Masek | B186: 1977 | C186: Kladno | D186: CZ/C1 | E186: M
A187: Jan Matejovsky | B187: 1972 | C187: Hranice | D187: CZ/M | E187: M
A188: Jan Merta | B188: 1952 | C188: Šumperk | D188: CZ/M | E188: M
A189: Jan Mittner | B189: 1986 | C189: Zbraslavice | D189: =VLOOKUP(C189,Region,2,0) -> CZ/C1 | E189: M
A190: Jan Moravec | B190: 1979 | C190: Zábřeh | D190: CZ/M | E190: M
A191: Jan Muknsnabl | B191: 1992 | C191: Letkov | D191: =VLOOKUP(C191,Region,2,0) -> CZ/C1 | E191: M | F191: =IF(A191="(prázdné)","",IF(($G$1-B191)>25,"","Junior v roce "&$G$1)) -> 
A192: Jan Nyc | B192: 1943 | C192: Dvůr Králové | D192: =VLOOKUP(C192,Region,2,0) -> CZ/C2 | E192: M
A193: Jan Obrucnik | B193: 1991 | C193: Kralupy | D193: CZ/C1 | E193: M
A194: Jan Oscatka | B194: 1990 | C194: Jaroměř | D194: =VLOOKUP(C194,Region,2,0) -> CZ/C2 | E194: M
A195: Jan Otrusina | B195: 1976 | C195: Křižanov | D195: CZ/M | E195: M
A196: Jan Ourada | B196: 1978 | C196: Točná | D196: CZ/C1 | E196: M
A197: Jan Pavlik | B197: 1987 | C197: Křižanov | D197: CZ/M | E197: M
A198: Jan Pazour | B198: 1979 | C198: Dvůr Králové | D198: =VLOOKUP(C198,Region,2,0) -> CZ/C2 | E198: M
A199: Jan Platenik | B199: 1981 | C199: Krnov | D199: CZ/M | E199: M
A200: Jan Plechac | B200: 1966 | C200: Slaný | D200: =VLOOKUP(C200,Region,2,0) -> CZ/C1 | E200: M | F200: =IF(A200="(prázdné)","",IF(($G$1-B200)>25,"","Junior v roce "&$G$1)) -> 
... 811 more rows

Sheet Region (hidden)
A1: Aeroklub | B1: Region | C1: Počet | D1: =C70+C37+C2 -> 89
A2: Benešov | B2: CZ/C1 | C2: =COUNTIF(B2:B35,B2) -> 34
A3: Beroun | B3: CZ/C1
A4: Bystřice u Benešova | B4: CZ/C1
A5: Erpužice | B5: CZ/C1
A6: GAC Benešov | B6: CZ/C1
A7: Hořovice | B7: CZ/C1
A8: Hosín | B8: CZ/C1
A9: Jindřichův Hradec | B9: CZ/C1
A10: Karlovy Vary | B10: CZ/C1
A11: Karlštejn | B11: CZ/C1
A12: Kladno | B12: CZ/C1
A13: Klatovy | B13: CZ/C1
A14: Kolín | B14: CZ/C1
A15: Kralupy | B15: CZ/C1
A16: Letkov | B16: CZ/C1
A17: Letňany | B17: CZ/C1
A18: Mladá Boleslav | B18: CZ/C1
A19: Nesvačily | B19: CZ/C1
A20: Panenský Týnec | B20: CZ/C1
A21: Plasy | B21: CZ/C1
A22: Plzeň Bory | B22: CZ/C1
A23: Prachatice | B23: CZ/C1
A24: Příbram | B24: CZ/C1
A25: Rakovník | B25: CZ/C1
A26: Slaný | B26: CZ/C1
A27: Soběslav | B27: CZ/C1
A28: Staňkov | B28: CZ/C1
A29: Strakonice | B29: CZ/C1
A30: Tábor | B30: CZ/C1
A31: Tachov | B31: CZ/C1
A32: Točná | B32: CZ/C1
A33: Toužim | B33: CZ/C1
A34: Vlašim | B34: CZ/C1
A35: Zbraslavice | B35: CZ/C1
A36: - | B36: -
A37: Broumov | B37: CZ/C2 | C37: =COUNTIF(B37:B68,B37) -> 32
A38: Česká Lípa | B38: CZ/C2
A39: Dvůr Králové | B39: CZ/C2
A40: Havlíčkův Brod | B40: CZ/C2
A41: Hodkovice | B41: CZ/C2
A42: Hořice | B42: CZ/C2
A43: Hradčany | B43: CZ/C2
A44: Hronov | B44: CZ/C2
A45: Chomutov | B45: CZ/C2
A46: Chotěboř | B46: CZ/C2
A47: Chrudim | B47: CZ/C2
A48: Jaroměř | B48: CZ/C2
A49: Jičín | B49: CZ/C2
A50: Letecká společnost na Vysočině | B50: CZ/C2
A51: Liberec | B51: CZ/C2
A52: Mnichovo Hradiště | B52: CZ/C2
A53: Most | B53: CZ/C2
A54: Náchod | B54: CZ/C2
A55: Nové Město nad Metují | B55: CZ/C2
A56: Pardubice | B56: CZ/C2
A57: Podhořany | B57: CZ/C2
A58: Polička | B58: CZ/C2
A59: Přibyslav | B59: CZ/C2
A60: Raná | B60: CZ/C2
A61: Roudnice | B61: CZ/C2
A62: Skuteč | B62: CZ/C2
A63: Turnov | B63: CZ/C2
A64: Ústí nad Labem | B64: CZ/C2
A65: Ústí nad Orlicí | B65: CZ/C2
A66: Vrchlabí | B66: CZ/C2
A67: Vysoké Mýto | B67: CZ/C2
A68: Žamberk | B68: CZ/C2
A69: - | B69: -
A70: Bohuňovice | B70: CZ/M | C70: =COUNTIF(B70:B92,B70) -> 23
A71: Břeclav | B71: CZ/M
A72: LK Břeclav | B72: CZ/M
A73: Frýdlant | B73: CZ/M
A74: Hranice | B74: CZ/M
A75: Jeseník | B75: CZ/M
A76: Jihlava | B76: CZ/M
A77: Krnov | B77: CZ/M
A78: Kroměříž | B78: CZ/M
A79: Křižanov | B79: CZ/M
A80: Kunovice | B80: CZ/M
A81: Kyjov | B81: CZ/M
A82: Luhačovice | B82: CZ/M
A83: Medlánky | B83: CZ/M
A84: Moravská Třebová | B84: CZ/M
A85: Olomouc | B85: CZ/M
A86: Prostějov | B86: CZ/M
A87: Slatina | B87: CZ/M
A88: Slavičín | B88: CZ/M
A89: Stichovice | B89: CZ/M
A90: Šumperk | B90: CZ/M
A91: Vyškov | B91: CZ/M
A92: Zábřeh | B92: CZ/M
A94: Aalborg | B94: DK
A95: Air Sympatia | B95: SK
A96: Akaflieg Dresden | B96: DE
A97: Bad Nauheim | B97: DE
A98: Bratislava | B98: SK
A99: Dánsko | B99: DK
A100: Greiz | B100: DE
A101: Japonsko | B101: JP
A102: Jelenia Góra | B102: PL
A103: Martin | B103: SK
A104: Německo | B104: DE
A105: Nitra | B105: SK
A106: Novo Mesto | B106: SI
A107: Poprad | B107: SK
A108: Prešov | B108: SK
A109: Prievidza | B109: SK
A110: Rakousko | B110: AT
A111: Ružomberok | B111: SK
A112: SGC Martin | B112: SK
A113: Slovinsko | B113: SI
A114: Trenčín | B114: SK
A115: Trnava | B115: SK
A116: Žilina | B116: SK

Sheet Temp (hidden)
A1: Jmeno | B1: Rok narození | C1: M/F | D1: Aeroklub | E1: Region | F1: Soutěž | G1: Stát | H1: Rok | I1: Pořadí ve třídě | J1: Body ve třídě | K1: Kinp | L1: Bi | M1: Bi×Kinp | N1: G | O1: W | P1: Typ | Q1: CN | R1: Junior | S1: Poznámka
A3: PMCR 2022 Club class
A4: Zbraslavice, Czech Republic, 22 May 2022 – 5 June 2022
A5: https://www.soaringspot.com/en_gb/plachtarske-mistrovstvi-ceske-republiky-2022-zbraslavice-2022/results/klub#
A7: Michal Lešinger | D7: Moravská Třebová | I7: 1 | J7: 6305 | P7: ASW20 | Q7: LL | T7: 2 (994) | U7: 4 (480) | V7: 3 (304) | W7: 1 (607) | X7: 1 (866) | Y7: 6 (902) | Z7: 3 (643) | AA7: 2 (989) | AB7: 4 (520)
A8: Tomáš Suchánek | D8: GAC Benešov | I8: 2 | J8: 6051 | P8: ASW20 | Q8: CX | T8: 1 (1,000) | U8: 3 (488) | V8: 1 (383) | W8: 4 (559) | X8: 15 (479) | Y8: 9 (889) | Z8: 2 (652) | AA8: 1 (1,000) | AB8: 1 (601)
A9: Pavel Trybenekr | D9: Hořice | I9: 3 | J9: 5758 | P9: LS4 | Q9: PF | T9: 4 (850) | U9: 13 (106) | V9: 2 (369) | W9: 7 (542) | X9: 2 (862) | Y9: 2 (976) | Z9: 8 (597) | AA9: 6 (909) | AB9: 2 (547)
A10: Jiri Kusbach | D10: Luhačovice | I10: 4 | J10: 5754 | P10: KKB15FES | Q10: B | T10: 6 (811) | U10: 8 (437) | V10: 4 (185) | W10: 2 (588) | X10: 5 (792) | Y10: 11 (860) | Z10: 6 (622) | AA10: 4 (927) | AB10: 3 (532)
A11: David Darnady | D11: SGC Martin | I11: 5 | J11: 5734 | P11: ASW20 | Q11: EW | T11: 3 (851) | U11: 1 (542) | V11: 7 (157) | W11: 10 (519) | X11: 3 (849) | Y11: 7 (896) | Z11: 12 (425) | AA11: 3 (985) | AB11: 7 (510)
A12: Ivan Novák | D12: Mladá Boleslav | I12: 6 | J12: 5394 | P12: Std.Cirrus | Q12: DI | T12: 12 (712) | U12: 5 (466) | V12: 6 (162) | W12: 12 (444) | X12: 4 (825) | Y12: 1 (1,000) | Z12: 7 (618) | AA12: 7 (852) | AB12: 13 (315)
A13: Jan Louda | D13: Mladá Boleslav | I13: 7 | J13: 5158 | P13: ASW19b | Q13: XS | T13: 11 (741) | U13: 9 (413) | V13: 5 (184) | W13: 3 (568) | X13: 12 (693) | Y13: 3 (971) | Z13: 1 (655) | AA13: 13 (443) | AB13: 8 (490)
A14: Jan Vavřín | D14: Vysoké Mýto | I14: 8 | J14: 5072 | P14: ASW19b | Q14: 56 | T14: 8 (799) | U14: 10 (396) | V14: 13 (97) | W14: 11 (509) | X14: 8 (738) | Y14: 12 (749) | Z14: 10 (537) | AA14: 11 (734) | AB14: 5 (513)
A15: Jan Štastný | D15: Medlánky | I15: 9 | J15: 5049 | P15: LS4 | Q15: IX | T15: 9 (783) | U15: 2 (510) | V15: 7 (157) | W15: 15 (124) | X15: 7 (739) | Y15: 10 (886) | Z15: 9 (552) | AA15: 8 (836) | AB15: 9 (462)
A16: Ivan Tvrdík | D16: Letňany | I16: 10 | J16: 4729 | P16: ASW19b | Q16: KZ | T16: 5 (812) | U16: 7 (461) | V16: 16 (0) | W16: 8 (528) | X16: 9 (729) | Y16: 4 (952) | Z16: 14 (276) | AA16: 12 (460) | AB16: 6 (511)
A17: Zdeněk Balcárek | D17: Kroměříž | I17: 11 | J17: 4685 | P17: Discus b | Q17: OS | T17: 10 (761) | U17: 11 (382) | V17: 12 (106) | W17: 13 (200) | X17: 11 (699) | Y17: 7 (896) | Z17: 4 (634) | AA17: 9 (806) | AB17: 14 (201)
A18: Slavomir ml Pískatý | D18: Kunovice | I18: 12 | J18: 4047 | P18: Discus cs | Q18: KAL | T18: 14 (672) | U18: 15 (63) | V18: 14 (78) | W18: 5 (546) | X18: 10 (705) | Y18: 16 (390) | Z18: 4 (634) | AA18: 10 (795) | AB18: 15 (164)
A19: Zdeněk Borůvka ml. | D19: Jičín | I19: 13 | J19: 3810 | P19: Std.Cirrus | Q19: BJ | T19: 7 (800) | U19: 6 (465) | V19: 10 (138) | W19: 6 (543) | X19: 16 (78) | Y19: 14 (419) | Z19: 16 (0) | AA19: 5 (918) | AB19: 10 (449)
A20: Martin Kriz | D20: Přibyslav | I20: 14 | J20: 3583 | P20: ASW20 | Q20: 67 | T20: 16 (382) | U20: 16 (39) | V20: 9 (139) | W20: 9 (522) | X20: 14 (650) | Y20: 13 (692) | Z20: 11 (429) | AA20: 15 (363) | AB20: 11 (367)
A21: Pavlina Horáčková | D21: Sumperk | I21: 15 | J21: 3271 | P21: SZD48 Jantar Std2 | Q21: SU | T21: 15 (402) | U21: 12 (294) | V21: 11 (128) | W21: 14 (190) | X21: 13 (670) | Y21: 15 (414) | Z21: 13 (382) | AA21: 14 (425) | AB21: 12 (366)
A22: Daniel Ryba | D22: Dvůr Králové nad Labem | I22: 16 | J22: 2661 | P22: ASW19b | Q22: L7 | T22: 13 (710) | U22: 14 (101) | V22: 15 (35) | W22: 16 (89) | X22: 6 (749) | Y22: 5 (905) | Z22: 15 (72) | AA22: 16 (0) | AB22: 16 (0)
A24: PMCR 2022 Kombi 15
A25: Zbraslavice, Czech Republic, 22 May 2022 – 5 June 2022
A26: https://www.soaringspot.com/en_gb/plachtarske-mistrovstvi-ceske-republiky-2022-zbraslavice-2022/results/kombi-15#
A28: Miloslav Cink | D28: Plzeň-Letkov | I28: 1 | J28: 5461 | P28: LS8 | Q28: JB | T28: 1 (692) | U28: 4 (342) | V28: 8 (486) | W28: 3 (802) | X28: 2 (929) | Y28: 7 (648) | Z28: 2 (998) | AA28: 2 (564)
A29: Pavel Loužecký | D29: Přibyslav | I29: 2 | J29: 5261 | P29: LS8 | Q29: FX | T29: 2 (655) | U29: 3 (344) | V29: 7 (523) | W29: 12 (545) | X29: 1 (1,000) | Y29: 8 (646) | Z29: 3 (997) | AA29: 3 (551)
A30: Jan Pavlík | D30: Křižanov | I30: 3 | J30: 5096 | P30: LS8 | Q30: JW | T30: 3 (652) | U30: 5 (334) | V30: 9 (457) | W30: 2 (810) | X30: 3 (784) | Y30: 13 (474) | Z30: 1 (1,000) | AA30: 1 (585)
A31: Barbora Moravcová | D31: Zbraslavice | I31: 4 | J31: 5028 | P31: LS8 | Q31: EU | T31: 4 (650) | U31: 9 (287) | V31: 1 (696) | W31: 9 (650) | X31: 6 (730) | Y31: 3 (707) | Z31: 7 (954) | AA31: 9 (354)
A32: Jana Vepřeková | D32: Dvůr Králové nad Labem | I32: 5 | J32: 4754 | P32: LS8 | Q32: W8 | T32: 11 (356) | U32: 10 (285) | V32: 2 (652) | W32: 4 (797) | X32: 7 (729) | Y32: 9 (629) | Z32: 8 (953) | AA32: 10 (353)
A33: Lukáš Kříž | D33: Křižanov | I33: 6 | J33: 4634 | P33: LS8 | Q33: SK | T33: 8 (444) | U33: 2 (345) | V33: 6 (530) | W33: 7 (706) | X33: 9 (506) | Y33: 1 (714) | Z33: 4 (975) | AA33: 7 (414)
A34: Dana Nováková | D34: Mladá Boleslav | I34: 7 | J34: 4525 | P34: LS8 | Q34: AU | T34: 12 (238) | U34: 8 (290) | V34: 5 (574) | W34: 8 (651) | X34: 4 (758) | Y34: 2 (711) | Z34: 6 (955) | AA34: 11 (348)
A35: Eduard Niko | D35: Prievidza | I35: 8 | J35: 4496 | P35: DuoDiscus XLT | Q35: DUO | T35: 9 (433) | U35: 13 (89) | V35: 3 (604) | W35: 10 (644) | X35: 5 (733) | Y35: 6 (662) | Z35: 5 (965) | AA35: 8 (366)
A36: Jan Koťan | I36: 9 | J36: 4230 | P36: Ventus 2bx | Q36: YA | T36: 7 (475) | U36: 6 (319) | V36: 13 (268) | W36: 11 (607) | X36: 11 (476) | Y36: 5 (694) | Z36: 9 (915) | AA36: 4 (476)
A37: Hana Trešlová | D37: Raná | I37: 10 | J37: 4015 | P37: Ventus 2ax | Q37: AX | T37: 5 (541) | U37: 7 (292) | V37: 12 (395) | W37: 5 (724) | X37: 10 (484) | Y37: 12 (487) | Z37: 11 (674) | AA37: 6 (418)
A38: Jan Zapletal | D38: Břeclav | I38: 11 | J38: 3833 | P38: LS8 | Q38: JS | T38: 10 (417) | U38: 1 (348) | V38: 11 (413) | W38: 6 (708) | X38: 13 (95) | Y38: 10 (587) | Z38: 10 (828) | AA38: 5 (437)
A39: Karel Novak | D39: Mladá Boleslav | I39: 12 | J39: 3768 | P39: JS3 | Q39: ZE | T39: 6 (480) | U39: 12 (246) | V39: 4 (592) | W39: 1 (826) | X39: 12 (468) | Y39: 11 (576) | Z39: 13 (360) | AA39: 13 (220)
A40: Jana Trešlová | D40: Raná | I40: 13 | J40: 3421 | P40: Discus 2a | Q40: GX | T40: 13 (202) | U40: 11 (284) | V40: 10 (418) | W40: 13 (454) | X40: 8 (721) | Y40: 4 (698) | Z40: 12 (380) | AA40: 12 (264)
A42: PMCR 2022 Kombi Open
A43: Zbraslavice, Czech Republic, 22 May 2022 – 5 June 2022
A44: https://www.soaringspot.com/en_gb/plachtarske-mistrovstvi-ceske-republiky-2022-zbraslavice-2022/results/kombi-open#
A46: Radek Kučírek | D46: Havlíčkův Brod | I46: 1 | J46: 5360 | P46: EB28 Edition | Q46: NA | T46: 2 (988) | U46: 13 (626) | V46: 10 (696) | W46: 3 (973) | X46: 9 (661) | Y46: 1 (1,000) | Z46: 8 (416)
A47: Tomáš Rendla | D47: Zbraslavice | I47: 2 | J47: 5341 | P47: EB29R | Q47: EX | T47: 6 (927) | U47: 4 (787) | V47: 11 (688) | W47: 1 (1,000) | X47: 13 (631) | Y47: 5 (908) | Z47: 11 (400)
A48: Petr Hotový | D48: Česká Lípa | I48: 3 | J48: 5163 | P48: JS1B | Q48: IGC | T48: 5 (954) | U48: 14 (601) | V48: 14 (650) | W48: 4 (948) | X48: 7 (687) | Y48: 11 (793) | Z48: 1 (530)
A49: Alena Netušilová | D49: Zbraslavice | I49: 4 | J49: 5123 | P49: JS1C 21m | Q49: JX | T49: 7 (922) | U49: 10 (675) | V49: 4 (751) | W49: 2 (997) | X49: 11 (656) | Y49: 14 (711) | Z49: 9 (411)
A50: Radek Krejčiřík | D50: Hranice | I50: 5 | J50: 5093 | P50: JS1C EVO | Q50: ZF | T50: 8 (721) | U50: 1 (851) | V50: 1 (890) | W50: 13 (593) | X50: 2 (740) | Y50: 4 (939) | Z50: 12 (359)
A51: Petr Tichý | D51: Zbraslavice | I51: 6 | J51: 5083 | P51: ASG29E | Q51: AJ | T51: 11 (709) | U51: 5 (750) | V51: 7 (717) | W51: 7 (900) | X51: 8 (664) | Y51: 8 (888) | Z51: 3 (455)
A52: Pavel Jiránek | D52: Toužim | I52: 7 | J52: 4963 | P52: Ventus c | Q52: CS | T52: 3 (976) | U52: 8 (685) | V52: 9 (707) | W52: 10 (627) | X52: 10 (660) | Y52: 9 (835) | Z52: 2 (473)
A53: Vladimir Foltin | D53: Nitra | I53: 8 | J53: 4841 | P53: JS3 | Q53: 3 | T53: 1 (994) | U53: 2 (795) | V53: 6 (726) | W53: 12 (617) | X53: 3 (737) | Y53: 13 (724) | Z53: 16 (248)
A54: Ondřej Bordovský | D54: Krnov | I54: 9 | J54: 4650 | P54: Ventus c | Q54: AD | T54: 9 (718) | U54: 9 (684) | V54: 8 (708) | W54: 9 (646) | X54: 15 (600) | Y54: 7 (893) | Z54: 10 (401)
A55: Marek Pechanec | D55: Luhačovice | I55: 10 | J55: 4619 | P55: JS3 | Q55: Q1 | T55: 4 (959) | U55: 6 (713) | V55: 12 (652) | W55: 14 (586) | X55: 14 (618) | Y55: 10 (831) | Z55: 14 (260)
A56: Jan Borůvka | D56: Jičín | I56: 11 | J56: 4567 | P56: Ventus c | Q56: EG | T56: 16 (534) | U56: 17 (361) | V56: 3 (794) | W56: 6 (922) | X56: 16 (544) | Y56: 2 (970) | Z56: 5 (442)
A57: Radek Zima | D57: Hodkovice | I57: 12 | J57: 4556 | P57: ASG29E | Q57: XZ | T57: 17 (511) | U57: 12 (659) | V57: 15 (594) | W57: 8 (854) | X57: 4 (727) | Y57: 12 (780) | Z57: 7 (431)
A58: David Mach | D58: Hronov | I58: 13 | J58: 4188 | P58: ASG29E | Q58: QZ | T58: 9 (718) | U58: 18 (127) | V58: 2 (873) | W58: 17 (571) | X58: 1 (743) | Y58: 6 (896) | Z58: 14 (260)
A59: Ondřej Dupal | D59: GAC Benešov | I59: 14 | J59: 4080 | P59: ASG29E | Q59: GO | T59: 19 (480) | U59: 16 (514) | V59: 12 (652) | W59: 5 (938) | X59: 18 (210) | Y59: 3 (962) | Z59: 13 (324)
A60: Michaela Rendlová | D60: Toužim | I60: 15 | J60: 4050 | P60: AS33ES | Q60: EA | T60: 15 (557) | U60: 15 (546) | V60: 16 (584) | W60: 16 (574) | X60: 5 (708) | Y60: 15 (643) | Z60: 6 (438)
A61: Petr Koutný | D61: Křižanov | I61: 16 | J61: 3940 | P61: JS3 | Q61: XM | T61: 14 (595) | U61: 3 (788) | V61: 5 (746) | W61: 15 (581) | X61: 17 (534) | Y61: 17 (245) | Z61: 4 (451)
A62: Martin Hřivna | D62: Zbraslavice | I62: 17 | J62: 3276 | P62: ASG29E | Q62: NX | T62: 12 (703) | U62: 11 (674) | V62: 18 (447) | W62: 11 (625) | X62: 12 (642) | Y62: 18 (185) | Z62: 18 (0)
A63: Petr Krejčiřík | D63: Hranice | I63: 18 | J63: 3100 | P63: AS33ES | Q63: 12 | T63: 18 (507) | U63: 19 (55) | V63: 17 (582) | W63: 18 (544) | X63: 6 (706) | Y63: 16 (516) | Z63: 17 (190)
A64: Takeshi Maruyama | D64: Japan Soaring Club | I64: 19 | J64: 1373 | P64: JS3 | Q64: AXI | T64: 13 (677) | U64: 7 (696) | V64: 19 (0) | W64: 19 (0) | X64: 19 (0) | Y64: 19 (0) | Z64: 18 (0)
A66: 18. JPJ 2022 - Klub
A67: Šumperk, Czech Republic, 7 May 2022 – 14 May 2022
A68: https://www.soaringspot.com/en_gb/jpj2022/results/klubova-trida#
A70: Josef Novotny | D70: Pribyslav | I70: 1 | J70: 3897 | P70: Std. Cirrus | Q70: AW | T70: 19 (789) | U70: 3 (978) | V70: 1 (1,000) | W70: 1 (506) | X70: 1 (624)
A71: Martin Ficnar | D71: Sumperk | I71: 2 | J71: 3838 | P71: LS-3a | Q71: S20 | T71: 3 (993) | U71: 7 (954) | V71: 12 (898) | W71: 3 (458) | X71: 4 (535)
A72: Josef Novak | D72: Kunovice | I72: 3 | J72: 3745 | P72: LS-1f | Q72: JT | T72: 10 (862) | U72: 4 (977) | V72: 5 (948) | W72: 9 (432) | X72: 6 (526)
A73: Jan Podhrazsky | D73: Sumperk | I73: 4 | J73: 3657 | P73: Discus b | Q73: SJ | T73: 4 (926) | U73: 6 (958) | V73: 7 (930) | W73: 5 (453) | X73: 20 (390)
A74: Rene Hudak | D74: Kunovice | I74: 5 | J74: 3627 | P74: Std. Cirrus WL | Q74: NK | T74: 22 (761) | U74: 7 (954) | V74: 4 (949) | W74: 10 (431) | X74: 5 (532)
A75: Radim Sobek | D75: Hranice | I75: 6 | J75: 3620 | P75: TST-10M Atlas | Q75: 7 | T75: 2 (999) | U75: 18 (658) | V75: 6 (940) | W75: 2 (479) | X75: 3 (544)
A76: Jaroslav Buryan | D76: Zabreh | I76: 7 | J76: 3579 | P76: ASW-20 (A) WL | Q76: NS | T76: 1 (1,000) | U76: 2 (993) | V76: 10 (914) | W76: 22 (155) | X76: 7 (517)
A77: Martin Urner | D77: Letnany | I77: 8 | J77: 3575 | P77: ASW-15B | Q77: JJ | T77: 5 (885) | U77: 5 (959) | V77: 20 (828) | W77: 7 (449) | X77: 12 (454)
A78: Rostislav Stryk | D78: Frydlant | I78: 9 | J78: 3412 | P78: Std. Cirrus | Q78: 22 | T78: 14 (834) | U78: 19 (656) | V78: 2 (968) | W78: 4 (454) | X78: 9 (500)
A79: Martin Kriz | D79: Pribyslav | I79: 10 | J79: 3342 | P79: ASW-20 (A) WL | Q79: 67 | T79: 24 (746) | U79: 12 (922) | V79: 8 (916) | W79: 13 (399) | X79: 22 (359)
A80: Stepan Obrovsky | D80: Frydlant | I80: 11 | J80: 3306 | P80: LS-1f | Q80: EM | T80: 8 (875) | U80: 9 (941) | V80: 14 (891) | W80: 25 (128) | X80: 11 (471)
A81: Martin Svarc | D81: Olomouc | I81: 12 | J81: 3089 | P81: DG-101 G | Q81: IL | T81: 6 (881) | U81: 33 (424) | V81: 19 (832) | W81: 8 (444) | X81: 8 (508)
A82: Petr Kolomaznik | D82: Sumperk | I82: 13 | J82: 3014 | P82: Discus b | Q82: VE | T82: 11 (861) | U82: 20 (645) | V82: 9 (915) | W82: 17 (209) | X82: 21 (384)
A83: Vojtech Novotny | D83: Kralupy n.V. | I83: 14 | J83: 2991 | P83: LS-1f | Q83: EF | T83: 20 (781) | U83: 14 (694) | V83: 13 (895) | W83: 27 (72) | X83: 2 (549)
A84: Petr Havrlant | D84: Sumperk | I84: 15 | J84: 2942 | P84: ASW-15B | Q84: Q1 | T84: 12 (860) | U84: 16 (679) | V84: 17 (862) | W84: 31 (57) | X84: 10 (484)
A85: David Vrchota | D85: Jaromer | I85: 16 | J85: 2904 | P85: Janus b | Q85: BV | T85: 13 (845) | U85: 35 (376) | V85: 18 (861) | W85: 14 (384) | X85: 15 (438)
A86: Jiri Koudela | D86: Vyskov | I86: 17 | J86: 2799 | P86: ASW-19B | Q86: JK | T86: 7 (879) | U86: 31 (430) | V86: 16 (884) | W86: 20 (182) | X86: 19 (424)
A87: Petr Lonsky | D87: Touzim | I87: 18 | J87: 2778 | P87: Cirrus | Q87: JP | T87: 9 (865) | U87: 1 (1,000) | V87: 11 (913) | W87: 36 (0) | X87: 29 (0)
A88: Karel Horalek | D88: Olomouc | I88: 19 | J88: 2758 | P88: LS-3 | Q88: Y1 | T88: 14 (834) | U88: 9 (941) | V88: 23 (791) | W88: 21 (156) | X88: 26 (36)
A89: Jiri Prochazka | D89: Touzim | I89: 20 | J89: 2727 | P89: Janus CM | Q89: J59 | T89: 17 (829) | U89: 29 (434) | V89: 3 (958) | W89: 29 (59) | X89: 14 (447)
A90: Jan Vozeh | D90: Rakovnik | I90: 21 | J90: 2714 | P90: Std. Cirrus | Q90: OG | T90: 21 (780) | U90: 17 (676) | V90: 24 (745) | W90: 29 (59) | X90: 12 (454)
A91: Roman Schotli | D91: Hranice | I91: 22 | J91: 2573 | P91: ASW-19B | Q91: 19 | T91: 18 (808) | U91: 30 (431) | V91: 15 (889) | W91: 11 (418) | X91: 27 (27)
A92: Jakub Kohn | D92: Prostejov | I92: 23 | J92: 2410 | P92: ASW-15B | Q92: FK | T92: 38 (227) | U92: 11 (929) | V92: 22 (804) | W92: 6 (450) | X92: 29 (0)
A93: Jan Zezula | D93: Letnany | I93: 24 | J93: 2384 | P93: ASW-19B | Q93: HD | T93: 14 (834) | U93: 15 (683) | V93: 28 (483) | W93: 14 (384) | X93: 29 (0)
A94: Boris Bachraty | D94: Kyjov | I94: 25 | J94: 2256 | P94: Std. Cirrus | Q94: 90 | T94: 32 (458) | U94: 13 (870) | V94: 34 (163) | W94: 12 (406) | X94: 22 (359)
A95: Radim Tomala | D95: Prostejov | I95: 26 | J95: 2106 | P95: Std. Cirrus | Q95: RT | T95: 28 (597) | U95: 26 (437) | V95: 27 (486) | W95: 23 (152) | X95: 17 (434)
A96: Peter Kaspar | D96: Vyskov | I96: 27 | J96: 2003 | P96: G-102 Astir 77 | Q96: AP | T96: 26 (661) | U96: 23 (452) | V96: 21 (814) | W96: 26 (76) | X96: 29 (0)
A97: Lukas Petrzela | D97: Olomouc | I97: 28 | J97: 1740 | P97: G-102 Astir CS | Q97: AL | T97: 34 (421) | U97: 21 (498) | V97: 25 (684) | W97: 32 (55) | X97: 25 (82)
A98: Adam Sugl | D98: Vyskov | I98: 29 | J98: 1649 | P98: Std. Cirrus | Q98: GT | T98: 25 (701) | U98: 26 (437) | V98: 36 (1) | W98: 24 (151) | X98: 22 (359)
A99: Yvona Vyhnankova | D99: Olomouc | I99: 30 | J99: 1480 | P99: ASW-15 | Q99: YZ | T99: 23 (750) | U99: 28 (435) | V99: 35 (107) | W99: 19 (188) | X99: 29 (0)
A100: Michal Linhart | D100: Vyskov | I100: 31 | J100: 1429 | P100: DG-1000S 18m | Q100: 66 | T100: 34 (421) | U100: 34 (393) | V100: 30 (415) | W100: 18 (200) | X100: 29 (0)
A101: Jan Blaha | D101: Kyjov | I101: 32 | J101: 1384 | P101: ASW-15B | Q101: E | T101: 34 (421) | U101: 24 (450) | V101: 26 (513) | W101: 36 (0) | X101: 29 (0)
A102: Jiri Vavrina | D102: Kyjov | I102: 33 | J102: 1322 | P102: LS-1f | Q102: BS | T102: 34 (421) | U102: 22 (464) | V102: 37 (0) | W102: 36 (0) | X102: 16 (437)
A103: Ludek Mikl | D103: Sumperk | I103: 34 | J103: 1292 | P103: Std. Cirrus | Q103: 16 | T103: 33 (442) | U103: 32 (425) | V103: 29 (425) | W103: 36 (0) | X103: 29 (0)
A104: Karel Ertl | D104: Sumperk | I104: 35 | J104: 1228 | P104: TST-10M Atlas | Q104: KE | T104: 29 (559) | U104: 25 (443) | V104: 32 (199) | W104: 33 (27) | X104: 29 (0)
A105: Miroslav Mancik | D105: Kyjov | I105: 36 | J105: 1014 | P105: G-103 Twin Astir | Q105: KW | T105: 30 (518) | U105: 36 (298) | V105: 33 (168) | W105: 35 (15) | X105: 28 (15)
A106: Lukas Zach | D106: Vyskov | I106: 37 | J106: 937 | P106: G-102 Astir 77 | Q106: AS | T106: 31 (497) | U106: 38 (0) | V106: 31 (379) | W106: 28 (61) | X106: 29 (0)
A107: Josef Hlusek | D107: Kunovice | I107: 38 | J107: 806 | P107: Std. Cirrus | Q107: WO | T107: 27 (618) | U107: 37 (166) | V107: 37 (0) | W107: 34 (22) | X107: 29 (0)
A108: Jan Florian | D108: Zbraslavice | I108: 39 | J108: 667 | P108: Std. Cirrus | Q108: C1 | T108: 39 (0) | U108: 38 (0) | V108: 37 (0) | W108: 16 (241) | X108: 18 (426)
A110: 18. JPJ 2022 - Kombi
A111: Šumperk, Czech Republic, 7 May 2022 – 14 May 2022
A112: https://www.soaringspot.com/en_gb/jpj2022/results/kombi-trida#
A114: Radek Hybl | D114: Sumperk | I114: 1 | J114: 4147 | P114: Ventus cm 17,6m | Q114: IHH | T114: 6 (879) | U114: 1 (1,000) | V114: 2 (996) | W114: 4 (575) | X114: 1 (697)
A115: Frantisek Vancura | D115: Hranice | I115: 2 | J115: 4071 | P115: Nimbus 3T 24,5m WL 750kg | Q115: A1 | T115: 1 (1,000) | U115: 9 (868) | V115: 7 (924) | W115: 2 (616) | X115: 4 (663)
A116: Michal Cechmanek | D116: Luhacovice | I116: 3 | J116: 4020 | P116: ASW-20 L+F 16,6m | Q116: MK | T116: 4 (969) | U116: 2 (986) | V116: 5 (950) | W116: 3 (577) | X116: 8 (538)
A117: Jan Dersak | D117: Kralupy n.V. | I117: 4 | J117: 3962 | P117: HpH 304JS 18m 573kg | Q117: DJ | T117: 3 (978) | U117: 4 (975) | V117: 6 (949) | W117: 12 (389) | X117: 3 (671)
A118: Marek Blatak | D118: Sumperk | I118: 5 | J118: 3911 | P118: DG-808 S 18m WL | Q118: W | T118: 7 (856) | U118: 3 (985) | V118: 9 (901) | W118: 9 (495) | X118: 2 (674)
A119: Jiri Steiger | D119: Olomouc | I119: 6 | J119: 3887 | P119: Ventus 3M 18m | Q119: JS | T119: 8 (852) | U119: 8 (884) | V119: 4 (968) | W119: 5 (531) | X119: 5 (652)
A120: Jan Simon | D120: Kralupy n.V. | I120: 7 | J120: 3440 | P120: Duo Discus T 700kg | Q120: ZS | T120: 2 (992) | U120: 12 (399) | V120: 1 (1,000) | W120: 10 (426) | X120: 6 (623)
A121: Ladislav Jozsa | D121: Medlanky | I121: 8 | J121: 3359 | P121: Ventus c 17,6m | Q121: WW | T121: 5 (906) | U121: 5 (969) | V121: 3 (987) | W121: 17 (93) | X121: 12 (404)
A122: Zdenek Schenk | D122: Hranice | I122: 9 | J122: 3304 | P122: Ventus cm 17,6m | Q122: ŠNeK | T122: 11 (752) | U122: 6 (962) | V122: 8 (918) | W122: 15 (276) | X122: 13 (396)
A123: Miroslav Koci | D123: Zamberk | I123: 10 | J123: 3089 | P123: Ventus 2cxm 18m 565kg | Q123: E8 | T123: 10 (790) | U123: 18 (289) | V123: 12 (804) | W123: 1 (618) | X123: 7 (588)
A124: Tomas Prikryl | D124: Vyskov | I124: 11 | J124: 2976 | P124: Ventus 2cm 18m 525kg | Q124: FN | T124: 9 (824) | U124: 16 (356) | V124: 14 (786) | W124: 7 (515) | X124: 9 (495)
A125: Petr Babak | D125: Horice | I125: 12 | J125: 2747 | P125: Ventus c 17,6m | Q125: LS | T125: 14 (643) | U125: 14 (364) | V125: 13 (799) | W125: 8 (496) | X125: 11 (445)
A126: Antonin Kutalek | D126: Zabreh | I126: 13 | J126: 2675 | P126: LAK-17AT 18m | Q126: GLK | T126: 13 (679) | U126: 11 (570) | V126: 15 (718) | W126: 13 (371) | X126: 15 (337)
A127: Beat Albrecht | D127: Sumperk | I127: 14 | J127: 2550 | P127: LS-8-18 18m | Q127: GL | T127: 20 (0) | U127: 7 (888) | V127: 11 (806) | W127: 11 (390) | X127: 10 (466)
A128: Miroslav Sklenar | D128: Zamberk | I128: 15 | J128: 2475 | P128: Duo Discus 700kg | Q128: VP | T128: 12 (698) | U128: 13 (395) | V128: 16 (708) | W128: 6 (518) | X128: 17 (156)
A129: Pavel Haluza | D129: Prostejov | I129: 16 | J129: 2223 | P129: Nimbus 2b | Q129: HT | T129: 17 (550) | U129: 10 (589) | V129: 17 (663) | W129: 19 (59) | X129: 14 (362)
A130: Vít Grossmann | D130: Hranice | I130: 17 | J130: 2096 | P130: Duo Discus 700kg | Q130: OK | T130: 15 (641) | U130: 19 (203) | V130: 19 (551) | W130: 13 (371) | X130: 16 (330)
A131: Michal Hemrle | D131: Ceska Lipa | I131: 18 | J131: 1826 | P131: ASG-29E 18m | Q131: ET | T131: 16 (574) | U131: 17 (355) | V131: 10 (807) | W131: 18 (90) | X131: 18 (0)
A132: Olga Mokosova | D132: Jihlava | I132: 19 | J132: 1736 | P132: LS-6c 18m WL | Q132: MM | T132: 18 (519) | U132: 15 (361) | V132: 18 (596) | W132: 16 (260) | X132: 18 (0)
A133: Pavel Handl | D133: Kromeriz | I133: 20 | J133: 641 | P133: Ventus 2cm 18m 525kg | Q133: VJ | T133: 19 (400) | U133: 20 (84) | V133: 20 (115) | W133: 20 (42) | X133: 18 (0)
A135: PMRg 2022 Club
A136: Hodkovice Nad Mohelkou, Czech Republic, 14 August 2022 – 26 August 2022
A137: https://www.soaringspot.com/en_gb/mistrovstvi-ceske-republiky-regionu-2022-hodkovice-2022/results/klubova-trida#
A139: Michal Lešinger | D139: Moravská Třebová | I139: 1 | J139: 3948 | P139: ASW 20 | Q139: LL | T139: 2 (896) | U139: 1 (883) | V139: 1 (600) | W139: 1 (354) | X139: 1 (600) | Y139: 1 (615)
A140: Jiří Kusbach | D140: Luhačovice | I140: 2 | J140: 3831 | P140: KKB-15E FES | Q140: B | T140: 3 (862) | U140: 2 (872) | V140: 2 (585) | W140: 2 (349) | X140: 2 (590) | Y140: 2 (573)
A141: Jan Šmaha | D141: Česká Lípa | I141: 3 | J141: 3458 | P141: ASW 15 B | Q141: CW | T141: 6 (783) | U141: 6 (720) | V141: 4 (548) | W141: 7 (283) | X141: 4 (557) | Y141: 3 (567)
A142: Lukáš Malý | D142: Vysoké Mýto | I142: 4 | J142: 3447 | P142: Discus b | Q142: 65 | T142: 1 (1,000) | U142: 7 (719) | V142: 5 (525) | W142: 6 (284) | X142: 10 (411) | Y142: 4 (508)
A143: Jiří Štěpánek | D143: Moravská Třebová | I143: 5 | J143: 3387 | P143: ASW 15 B | Q143: LE | T143: 11 (635) | U143: 3 (829) | V143: 3 (566) | W143: 3 (345) | X143: 5 (548) | Y143: 10 (464)
A144: Martin Štěpánek | D144: Moravská Třebová | I144: 6 | J144: 3361 | P144: ASW 19 B | Q144: AE | T144: 4 (819) | U144: 10 (701) | V144: 8 (486) | W144: 4 (310) | X144: 3 (565) | Y144: 7 (480)
A145: Tomáš Hynek | D145: Dvůr Králové | I145: 7 | J145: 3190 | P145: DG 200 | Q145: HL | T145: 5 (785) | U145: 4 (787) | V145: 10 (473) | W145: 8 (230) | X145: 9 (413) | Y145: 5 (502)
A146: Pavel Koudelka | D146: Křižanov | I146: 8 | J146: 3156 | P146: Std. Cirrus | Q146: ZL | T146: 8 (746) | U146: 8 (709) | V146: 9 (477) | W146: 5 (288) | X146: 6 (530) | Y146: 11 (406)
A147: Michaela Křížová | D147: Přibyslav | I147: 9 | J147: 2951 | P147: ASW 15 B | Q147: BE | T147: 7 (782) | U147: 5 (727) | V147: 7 (488) | W147: 10 (15) | X147: 7 (444) | Y147: 6 (495)
A148: Pavlína Horáčková | D148: Šumperk | I148: 10 | J148: 2618 | P148: SZD-48 Jantar Std. 2 | Q148: SU | T148: 12 (542) | U148: 8 (709) | V148: 12 (451) | W148: 12 (3) | X148: 8 (441) | Y148: 9 (472)
A149: Kateřina Vančurová | D149: Hranice | I149: 11 | J149: 2331 | P149: Discus b | Q149: HD | T149: 10 (673) | U149: 12 (625) | V149: 13 (437) | W149: 11 (6) | X149: 12 (262) | Y149: 12 (328)
A150: Jan Florián | D150: Zbraslavice | I150: 12 | J150: 2188 | P150: Std. Cirrus | Q150: C1 | T150: 9 (701) | U150: 11 (649) | V150: 11 (455) | W150: 13 (0) | X150: 11 (273) | Y150: 13 (110)
A151: Jiří Krofta | D151: Hosín | I151: 13 | J151: 1904 | P151: Std. Cirrus | Q151: YU | T151: 13 (16) | U151: 13 (619) | V151: 6 (501) | W151: 9 (27) | X151: 12 (262) | Y151: 8 (479)
A153: PMRg 2022 Kombi
A154: Hodkovice Nad Mohelkou, Czech Republic, 14 August 2022 – 26 August 2022
A155: https://www.soaringspot.com/en_gb/mistrovstvi-ceske-republiky-regionu-2022-hodkovice-2022/results/kombi-open#
A157: Lukáš Čapek | D157: Letňany | I157: 1 | J157: 3354 | P157: Mosquito | Q157: LC | T157: 4 (179) | U157: 2 (780) | V157: 1 (1,000) | W157: 2 (604) | X157: 1 (334) | Y157: 3 (457)
A158: Jaroslav Potměšil | D158: Zbraslavice | I158: 2 | J158: 2942 | P158: HpH 304 TS Twin Shark | Q158: TS | T158: 5 (163) | U158: 1 (900) | V158: 2 (933) | W158: 5 (447) | X158: 4 (91) | Y158: 5 (408)
A159: Petr Hora | D159: Hodkovice | I159: 3 | J159: 2515 | P159: HpH 304 MS Shark | Q159: B1 | T159: 6 (160) | U159: 4 (562) | V159: 5 (741) | W159: 3 (556) | X159: 5 (56) | Y159: 4 (440)
A160: Tomáš Kulhavý | D160: Liberec | I160: 4 | J160: 2500 | P160: HpH 304 CZ 17.4m | Q160: IH | T160: 7 (117) | U160: 5 (183) | V160: 3 (919) | W160: 4 (493) | X160: 2 (317) | Y160: 2 (471)
A161: Antonín Kutálek | D161: Zábřeh | I161: 5 | J161: 2340 | P161: LAK-17A T 18m | Q161: GL | T161: 8 (109) | U161: 3 (568) | V161: 4 (743) | W161: 6 (319) | X161: 3 (305) | Y161: 6 (296)
A162: Radek Zima | D162: Hodkovice | I162: 6 | J162: 1372 | P162: ASG 29 E 18m | Q162: XZ | T162: 2 (224) | U162: 6 (0) | V162: 6 (0) | W162: 1 (624) | X162: 6 (0) | Y162: 1 (524)
A163: Jaromír Macoun | D163: Jičín | I163: 7 | J163: 225 | P163: LS 8 | Q163: EU | T163: 1 (225) | U163: 6 (0) | V163: 6 (0) | W163: 7 (0) | X163: 6 (0) | Y163: 7 (0)
A164: Ivan Tvrdík | D164: Letňany | I164: 8 | J164: 221 | P164: ASW 20 16.6m | Q164: NW | T164: 3 (221) | U164: 6 (0) | V164: 6 (0) | W164: 7 (0) | X164: 6 (0) | Y164: 7 (0)
A165: Jan Drbohlav | D165: Hodkovice | I165: 9 | J165: 1 | P165: G 103 Twin Astir | Q165: BL | T165: 9 (1) | U165: 6 (0) | V165: 6 (0) | W165: 7 (0) | X165: 6 (0) | Y165: 7 (0)
A166: Vojtěch Hájek | D166: Mladá Boleslav | I166: 10 | J166: 0 | P166: Duo Discus | Q166: 777 | T166: 10 (0) | U166: 6 (0) | V166: 6 (0) | W166: 7 (0) | X166: 6 (0) | Y166: 7 (0)
A167: Karel Novák | D167: Mladá Boleslav | I167: 10 | J167: 0 | P167: LS 8 | Q167: ID | T167: 10 (0) | U167: 6 (0) | V167: 6 (0) | W167: 7 (0) | X167: 6 (0) | Y167: 7 (0)
A169: PMČRj 2022
A170: Hodkovice Nad Mohelkou, Czech Republic, 3 July 2022 – 16 July 2022
A171: https://www.soaringspot.com/en_gb/plachtarske-mistrovstvi-cr-junioru-hodkovice-nad-mohelkou-2022/results/klubova-trida#
A173: Lukáš Kříž | D173: Křižanov | I173: 1 | J173: 4452 | P173: LS 8a 15m | Q173: AU | T173: 3 (619) | U173: 1 (703) | V173: 1 (838) | W173: 5 (468) | X173: 11 (856) | Y173: 5 (968)
A174: Vladimír Hammer | D174: Plzeň Letkov | I174: 2 | J174: 4170 | P174: Std. Cirrus | Q174: SB | T174: 6 (591) | U174: 6 (579) | V174: 8 (714) | W174: 3 (471) | X174: 13 (828) | Y174: 3 (987)
A175: Jan Štastný | D175: Medlánky | I175: 3 | J175: 4073 | P175: Std. Cirrus | Q175: CX | T175: 7 (583) | U175: 25 (295) | V175: 5 (737) | W175: 4 (469) | X175: 1 (991) | Y175: 2 (998)
A176: Vít Mořkovský | D176: Polička | I176: 4 | J176: 4051 | P176: ASW 24 A WL | Q176: SM | T176: 13 (530) | U176: 4 (644) | V176: 14 (619) | W176: 1 (509) | X176: 3 (911) | Y176: 11 (838)
A177: Lukáš Volek | D177: Hodkovice | I177: 5 | J177: 3982 | P177: Std. Cirrus | Q177: UB | T177: 10 (559) | U177: 12 (504) | V177: 4 (748) | W177: 19 (370) | X177: 7 (897) | Y177: 6 (904)
A178: Tomáš Hynek | D178: Dvůr Králové | I178: 6 | J178: 3980 | P178: Std. Cirrus | Q178: HT | T178: 9 (560) | U178: 9 (547) | V178: 3 (752) | W178: 14 (414) | X178: 8 (896) | Y178: 14 (811)
A179: Ivan Tvrdík | D179: Praha Letňany | I179: 7 | J179: 3976 | P179: ASW 19B | Q179: KZ | T179: 5 (610) | U179: 3 (695) | V179: 9 (702) | W179: 20 (275) | X179: 12 (831) | Y179: 10 (863)
A180: Michaela Křížová | D180: Přibyslav | I180: 8 | J180: 3975 | P180: ASW 15B | Q180: BE | T180: 8 (577) | U180: 10 (545) | V180: 11 (686) | W180: 9 (433) | X180: 5 (900) | Y180: 12 (834)
A181: Jan Beran | D181: Kladno | I181: 9 | J181: 3935 | P181: ASW 19B | Q181: HB | T181: 12 (549) | U181: 8 (554) | V181: 6 (720) | W181: 10 (425) | X181: 14 (820) | Y181: 9 (867)
A182: Petr Havelka | D182: Zbraslavice | I182: 10 | J182: 3908 | P182: ASW 19B | Q182: PH | T182: 11 (554) | U182: 15 (421) | V182: 7 (719) | W182: 16 (399) | X182: 2 (922) | Y182: 7 (893)
A183: Jaromír Macoun | D183: Jičín | I183: 11 | J183: 3856 | P183: LS 8a 15m | Q183: EU | T183: 2 (621) | U183: 2 (699) | V183: 2 (828) | W183: 5 (468) | X183: 18 (263) | Y183: 4 (977)
A184: Tereza Koubkova | D184: Vysoké Mýto | I184: 12 | J184: 3814 | P184: ASW 19 B | Q184: XP | T184: 19 (403) | U184: 5 (596) | V184: 13 (624) | W184: 2 (508) | X184: 9 (876) | Y184: 16 (807)
A185: Tomas Kulhavy | D185: Liberec | I185: 13 | J185: 3053 | P185: LS 3 15m | Q185: R9 | T185: 4 (614) | U185: 7 (569) | V185: 22 (419) | W185: 7 (460) | X185: 10 (866) | Y185: 28 (125)
A186: Štěpán Fiľakovský | D186: Medlánky | I186: 14 | J186: 2964 | P186: LS 1 f | Q186: FD | T186: 22 (328) | U186: 11 (535) | V186: 18 (521) | W186: 12 (415) | X186: 5 (900) | Y186: 26 (265)
A187: Jakub Malík | D187: Praha Letňany | I187: 15 | J187: 2905 | P187: Discus b WL | Q187: DP | T187: 25 (214) | U187: 28 (107) | V187: 16 (561) | W187: 15 (404) | X187: 16 (619) | Y187: 1 (1,000)
A188: Jiří Maier | D188: Raná u Loun | I188: 16 | J188: 2746 | P188: Discus bt WL | Q188: TAL | T188: 18 (423) | U188: 19 (380) | V188: 12 (635) | W188: 28 (188) | X188: 4 (910) | Y188: 27 (210)
A189: Lukáš Malý | D189: Vysoké Mýto | I189: 17 | J189: 2601 | P189: Discus b | Q189: 65 | T189: 1 (660) | U189: 13 (502) | V189: 16 (561) | W189: 17 (394) | X189: 21 (213) | Y189: 25 (271)
A190: Adam Hepal | D190: Kolín | I190: 18 | J190: 2570 | P190: ASW 19B | Q190: AE | T190: 14 (519) | U190: 20 (366) | V190: 20 (466) | W190: 12 (415) | X190: 24 (191) | Y190: 18 (613)
A191: Fabián Čurda | D191: Zábřeh | I191: 19 | J191: 2461 | P191: DG 300 | Q191: U7 | T191: 20 (347) | U191: 22 (351) | V191: 21 (445) | W191: 20 (275) | X191: 22 (209) | Y191: 12 (834)
A192: Martin Šťastný | D192: Medlánky | I192: 20 | J192: 2330 | P192: ASW 15B | Q192: TW | T192: 15 (463) | U192: 27 (159) | V192: 23 (414) | W192: 27 (189) | X192: 15 (642) | Y192: 21 (463)
A193: Kateřina Vančurová | D193: Hranice | I193: 21 | J193: 2190 | P193: Discus cs | Q193: HD | T193: 29 (0) | U193: 16 (411) | V193: 15 (582) | W193: 11 (417) | X193: 17 (403) | Y193: 23 (377)
A194: Tibor Hezina | D194: Křižanov | I194: 22 | J194: 2174 | P194: Std. Cirrus | Q194: IJ | T194: 28 (13) | U194: 29 (0) | V194: 10 (692) | W194: 8 (451) | X194: 23 (207) | Y194: 14 (811)
A195: Vojtěch Vach | D195: Nové Město | I195: 23 | J195: 2077 | P195: Cirrus VTC | Q195: 1W | T195: 16 (458) | U195: 21 (365) | V195: 23 (414) | W195: 18 (377) | X195: 25 (189) | Y195: 24 (274)
A196: Petr Hošek | D196: Beroun | I196: 24 | J196: 2010 | P196: VSO-10 | Q196: B1 | T196: 24 (228) | U196: 14 (458) | V196: 19 (470) | W196: 20 (275) | X196: 26 (76) | Y196: 20 (503)
A197: Vít Pavelka | D197: Moravská Třebová | I197: 25 | J197: 1924 | P197: ASW 15B | Q197: LE | T197: 26 (182) | U197: 17 (387) | V197: 26 (257) | W197: 20 (275) | X197: 19 (217) | Y197: 19 (606)
A198: Jan Švestka | D198: Křižanov | I198: 26 | J198: 1811 | P198: Std. Cirrus | Q198: EJ | T198: 27 (126) | U198: 22 (351) | V198: 29 (28) | W198: 26 (220) | X198: 20 (216) | Y198: 8 (870)
A199: Petr Mašík | D199: Zábřeh | I199: 27 | J199: 1769 | P199: ASW 15 | Q199: ET | T199: 17 (429) | U199: 26 (186) | V199: 25 (283) | W199: 25 (224) | X199: 27 (26) | Y199: 17 (621)
A200: Vojtěch Pávek | D200: Medlánky | I200: 28 | J200: 1619 | P200: Std. Cirrus | Q200: MP | T200: 21 (346) | U200: 17 (387) | V200: 28 (147) | W200: 24 (264) | X200: 29 (19) | Y200: 22 (456)
A201: David Něnička | D201: Hranice | I201: 29 | J201: 919 | P201: Std. Cirrus | Q201: HC | T201: 23 (248) | U201: 22 (351) | V201: 27 (206) | W201: 29 (37) | X201: 28 (25) | Y201: 29 (52)
A203: Gradient & Club Grand Prix 2021 - Pohár Metoděje Vlacha
A204: Mladá Boleslav, Czech Republic, 27 August 2022 – 3 September 2022
A205: https://www.soaringspot.com/en_gb/ggp2022/results/pohar-metodeje-vlach#
A207: Jan Kotan | D207: Letňany | I207: 1 | J207: 2886 | P207: Ventus 2bx | Q207: YA | T207: 4 (444) | U207: 3 (610) | V207: 2 (582) | W207: 6 (891) | X207: 5 (359)
A208: Dana Novakova | D208: Mladá Boleslav | I208: 2 | J208: 2878 | P208: LS8 /18m | Q208: FX | T208: 2 (493) | U208: 3 (610) | V208: 3 (522) | W208: 5 (909) | X208: 6 (344)
A209: Michal Kratochvil | D209: Slaný | I209: 3 | J209: 2845 | P209: Ventus b/16,6m | Q209: MK | T209: 5 (413) | U209: 2 (634) | V209: 5 (495) | W209: 4 (967) | X209: 7 (336)
A210: Jan Dersak | D210: Kralupy nad Vltavou | I210: 4 | J210: 2656 | P210: HpH 304 Shark/18m | Q210: DJ | T210: 9 (319) | U210: 5 (566) | V210: 7 (408) | W210: 7 (806) | X210: 2 (557)
A211: Karel Novak | D211: Mladá Boleslav | I211: 5 | J211: 2651 | P211: LS8 /18m | Q211: ID | T211: 3 (491) | U211: 1 (667) | V211: 4 (517) | W211: 2 (976) | X211: 8 (0)
A212: Martin Soucek | D212: Mladá Boleslav | I212: 6 | J212: 2490 | P212: DG-200/17m | Q212: MS | T212: 7 (393) | U212: 9 (90) | V212: 1 (603) | W212: 3 (968) | X212: 4 (436)
A213: Radek Zima | D213: AK Hodkovice | I213: 7 | J213: 1897 | P213: ASG 29 E /18m | Q213: XZ | T213: 1 (568) | U213: 10 (52) | V213: 6 (481) | W213: 9 (177) | X213: 1 (619)
A214: Antonin Bordovsky | D214: Krnov | I214: 8 | J214: 1810 | P214: Ventus c /17,6m | Q214: AD | T214: 8 (325) | U214: 8 (105) | V214: 9 (311) | W214: 8 (550) | X214: 3 (519)
A215: Jan Horak | D215: Zbraslavice | I215: 9 | J215: 1463 | P215: ASW20a /15m | Q215: WX | T215: 10 (0) | U215: 7 (114) | V215: 8 (349) | W215: 1 (1,000) | X215: 8 (0)
A216: Jan Smekal | D216: Zbraslavice | I216: 10 | J216: 1217 | P216: Ventus 2a | Q216: AX | T216: 6 (405) | U216: 6 (534) | V216: 10 (278) | W216: 10 (0) | X216: 8 (0)
A217: Zdenek Boruvka ml. | D217: Jičín | I217: 11 | J217: 0 | P217: Ventus c /17,6m | Q217: VV | T217: 10 (0) | U217: 11 (0) | V217: 11 (0) | W217: 10 (0) | X217: 8 (0)
A219: Gradient & Club Grand Prix 2021 - Club GP
... 1177 more rows

Sheet Data
M1: Počet X filtr: | N1: =SUBTOTAL(103,N7:N2253) -> 922 | O1: =SUBTOTAL(103,O7:O2253) -> 62
A2: * | M2: Počet X: | N2: =COUNTIFS(N$7:N$2253,"x",$A$7:$A$2253,$A$2) -> 922 | O2: =COUNTIFS(O$7:O$2253,"x",$A$7:$A$2253,$A$2) -> 62
H3: 2017 | N3: =COUNTIFS(#REF!,$H3,#REF!,"x",#REF!,$A$2) ->  | O3: =COUNTIFS(#REF!,$H3,#REF!,"x",#REF!,$A$2) -> 
H4: 2016 | N4: =COUNTIFS(#REF!,$H4,#REF!,"x",#REF!,$A$2) ->  | O4: =COUNTIFS(#REF!,$H4,#REF!,"x",#REF!,$A$2) -> 
H5: 2015 | N5: =COUNTIFS(#REF!,$H5,#REF!,"x",#REF!,$A$2) ->  | O5: =COUNTIFS(#REF!,$H5,#REF!,"x",#REF!,$A$2) -> 
A6: Jméno | B6: Rok narození | C6: M/F | D6: Aeroklub | E6: Region | F6: Soutěž | G6: Stát | H6: Rok | I6: Pořadí ve třídě | J6: Body ve třídě | K6: Kinp | L6: Bi | M6: Bi×Kinp | N6: G | O6: W | P6: Typ | Q6: CN | R6: Junior | S6: Poznámka
A7: Vojtech Novotny | B7: =VLOOKUP(A7,Pilot,2,0) -> 1992 | C7: =VLOOKUP(A7,Pilot,5,0) -> M | D7: =VLOOKUP(A7,Pilot,3,0) -> Kralupy | E7: =VLOOKUP(A7,Pilot,4,0) -> CZ/C1 | F7: JPJ 2020 - Klub | G7: =VLOOKUP(F7,Soutez!B:C,2,FALSE) -> CZ | H7: =VLOOKUP(F7,Soutez!B:D,3,FALSE) -> 2020 | I7: 1 | J7: 5131 | K7: =VLOOKUP(F7,Soutez,12,0) -> 0.91 | L7: =ROUND(J7/MAX($J$7:$J$39)*10000*0.7+(MAX($I$7:$I$39)-I7)/(MAX($I$7:$I$39)-1)*10000*0.3,0) -> 10000 | M7: =ROUND(K7*L7,0) -> 9100 | N7: x | P7: LS-1f | Q7: EF | R7: =IF(ISERROR(VLOOKUP(A7,Pilot,6,0)),"Není v databázi",VLOOKUP(A7,Pilot,6,0)) -> 
A8: Josef Novotny | B8: 1983 | C8: M | D8: Přibyslav | E8: CZ/C2 | F8: JPJ 2020 - Klub | G8: =VLOOKUP(F8,Soutez!B:C,2,FALSE) -> CZ | H8: =VLOOKUP(F8,Soutez!B:D,3,FALSE) -> 2020 | I8: 2 | J8: 5093 | K8: 0.91 | L8: =ROUND(J8/MAX($J$7:$J$39)*10000*0.7+(MAX($I$7:$I$39)-I8)/(MAX($I$7:$I$39)-1)*10000*0.3,0) -> 9854 | M8: 8967 | N8: x | P8: Std. Cirrus | Q8: AW
A9: Jindrich Svorc | B9: 1978 | C9: M | D9: Letňany | E9: CZ/C1 | F9: JPJ 2020 - Klub | G9: =VLOOKUP(F9,Soutez!B:C,2,FALSE) -> CZ | H9: =VLOOKUP(F9,Soutez!B:D,3,FALSE) -> 2020 | I9: 3 | J9: 4998 | K9: 0.91 | L9: 9631 | M9: 8764 | N9: x | P9: Std. Cirrus | Q9: IMI
A10: Martin Ficnar | B10: 1971 | C10: M | D10: Šumperk | E10: CZ/M | F10: JPJ 2020 - Klub | G10: =VLOOKUP(F10,Soutez!B:C,2,FALSE) -> CZ | H10: =VLOOKUP(F10,Soutez!B:D,3,FALSE) -> 2020 | I10: 4 | J10: 4951 | K10: 0.91 | L10: 9473 | M10: 8620 | N10: x | P10: LS-3a 15m | Q10: S20
A11: Martin Urner | B11: 1974 | C11: M | D11: Letňany | E11: CZ/C1 | F11: JPJ 2020 - Klub | G11: =VLOOKUP(F11,Soutez!B:C,2,FALSE) -> CZ | H11: =VLOOKUP(F11,Soutez!B:D,3,FALSE) -> 2020 | I11: 5 | J11: 4917 | K11: 0.91 | L11: 9333 | M11: 8493 | N11: x | P11: ASW-15B | Q11: JJ
A12: Petr Kolomaznik | B12: 1981 | C12: M | D12: Šumperk | E12: CZ/M | F12: JPJ 2020 - Klub | G12: =VLOOKUP(F12,Soutez!B:C,2,FALSE) -> CZ | H12: =VLOOKUP(F12,Soutez!B:D,3,FALSE) -> 2020 | I12: 6 | J12: 4491 | K12: 0.91 | L12: 8658 | M12: 7879 | N12: x | P12: LS-1f | Q12: LS
A13: Antonin Novotny | B13: 1972 | C13: M | D13: Luhačovice | E13: CZ/M | F13: JPJ 2020 - Klub | G13: =VLOOKUP(F13,Soutez!B:C,2,FALSE) -> CZ | H13: =VLOOKUP(F13,Soutez!B:D,3,FALSE) -> 2020 | I13: 7 | J13: 4462 | K13: 0.91 | L13: 8525 | M13: 7758 | N13: x | P13: Std. Cirrus | Q13: SP
A14: Petr Valenta 94 | B14: 1994 | C14: M | D14: Kunovice | E14: CZ/M | F14: JPJ 2020 - Klub | G14: =VLOOKUP(F14,Soutez!B:C,2,FALSE) -> CZ | H14: =VLOOKUP(F14,Soutez!B:D,3,FALSE) -> 2020 | I14: 8 | J14: 4433 | K14: 0.91 | L14: 8391 | M14: 7636 | N14: x | P14: Astir CS | Q14: BU
A15: Josef Novak | B15: 1981 | C15: M | D15: Kunovice | E15: CZ/M | F15: JPJ 2020 - Klub | G15: =VLOOKUP(F15,Soutez!B:C,2,FALSE) -> CZ | H15: =VLOOKUP(F15,Soutez!B:D,3,FALSE) -> 2020 | I15: 9 | J15: 4284 | K15: 0.91 | L15: 8094 | M15: 7366 | N15: x | P15: LS-1f | Q15: JT
A16: Petr Havrlant | B16: 1965 | C16: M | D16: Šumperk | E16: CZ/M | F16: JPJ 2020 - Klub | G16: =VLOOKUP(F16,Soutez!B:C,2,FALSE) -> CZ | H16: =VLOOKUP(F16,Soutez!B:D,3,FALSE) -> 2020 | I16: 10 | J16: 4150 | K16: 0.91 | L16: 7818 | M16: 7114 | N16: x | P16: ASW-15B | Q16: Q1
A17: Libor Bednarik | B17: 1972 | C17: M | D17: Kunovice | E17: CZ/M | F17: JPJ 2020 - Klub | G17: =VLOOKUP(F17,Soutez!B:C,2,FALSE) -> CZ | H17: =VLOOKUP(F17,Soutez!B:D,3,FALSE) -> 2020 | I17: 11 | J17: 4109 | K17: 0.91 | L17: 7668 | M17: 6978 | N17: x | P17: Std. Cirrus | Q17: PIF
A18: Michaela Krizova | B18: 2001 | C18: F | D18: Přibyslav | E18: CZ/C2 | F18: JPJ 2020 - Klub | G18: =VLOOKUP(F18,Soutez!B:C,2,FALSE) -> CZ | H18: =VLOOKUP(F18,Soutez!B:D,3,FALSE) -> 2020 | I18: 12 | J18: 4088 | K18: 0.91 | L18: 7546 | M18: 6867 | P18: ASW-15B | Q18: BE | R18: Junior v roce 2023
A19: Rene Hudak | B19: 1972 | C19: M | D19: Kunovice | E19: CZ/M | F19: JPJ 2020 - Klub | G19: =VLOOKUP(F19,Soutez!B:C,2,FALSE) -> CZ | H19: =VLOOKUP(F19,Soutez!B:D,3,FALSE) -> 2020 | I19: 13 | J19: 4087 | K19: 0.91 | L19: 7451 | M19: 6780 | N19: x | P19: Std. Cirrus WL | Q19: NK
A20: Martin Svarc | B20: 1981 | C20: M | D20: Olomouc | E20: CZ/M | F20: JPJ 2020 - Klub | G20: =VLOOKUP(F20,Soutez!B:C,2,FALSE) -> CZ | H20: =VLOOKUP(F20,Soutez!B:D,3,FALSE) -> 2020 | I20: 14 | J20: 3935 | K20: 0.91 | L20: 7150 | M20: 6507 | N20: x | P20: DG-101 G | Q20: HE
A21: Jiri Koudela | B21: 1974 | C21: M | D21: Vyškov | E21: CZ/M | F21: JPJ 2020 - Klub | G21: =VLOOKUP(F21,Soutez!B:C,2,FALSE) -> CZ | H21: =VLOOKUP(F21,Soutez!B:D,3,FALSE) -> 2020 | I21: 15 | J21: 3905 | K21: 0.91 | L21: 7015 | M21: 6384 | N21: x | P21: ASW-19B | Q21: JK
A22: Petr Kolacek | B22: 1965 | C22: M | D22: Šumperk | E22: CZ/M | F22: JPJ 2020 - Klub | G22: =VLOOKUP(F22,Soutez!B:C,2,FALSE) -> CZ | H22: =VLOOKUP(F22,Soutez!B:D,3,FALSE) -> 2020 | I22: 16 | J22: 3354 | K22: 0.91 | L22: 6169 | M22: 5614 | N22: x | P22: SZD-48 Jantar std. 3 | Q22: IX
A23: Roman Schotli | B23: 1970 | C23: M | D23: Hranice | E23: CZ/M | F23: JPJ 2020 - Klub | G23: =VLOOKUP(F23,Soutez!B:C,2,FALSE) -> CZ | H23: =VLOOKUP(F23,Soutez!B:D,3,FALSE) -> 2020 | I23: 17 | J23: 3343 | K23: 0.91 | L23: 6061 | M23: 5516 | N23: x | P23: ASW-19B | Q23: 19
A24: Karel Horalek | B24: 1976 | C24: M | D24: Olomouc | E24: CZ/M | F24: JPJ 2020 - Klub | G24: =VLOOKUP(F24,Soutez!B:C,2,FALSE) -> CZ | H24: =VLOOKUP(F24,Soutez!B:D,3,FALSE) -> 2020 | I24: 18 | J24: 3229 | K24: 0.91 | L24: 5811 | M24: 5288 | N24: x | P24: LS-3 15m | Q24: Y1
A25: Stepan Obrovsky | B25: 1990 | C25: M | D25: Frýdlant | E25: CZ/M | F25: JPJ 2020 - Klub | G25: =VLOOKUP(F25,Soutez!B:C,2,FALSE) -> CZ | H25: =VLOOKUP(F25,Soutez!B:D,3,FALSE) -> 2020 | I25: 19 | J25: 3150 | K25: 0.91 | L25: 5610 | M25: 5105 | N25: x | P25: Std. Cirrus | Q25: 22
A26: Josef Hlusek | B26: 1993 | C26: M | D26: Kunovice | E26: CZ/M | F26: JPJ 2020 - Klub | G26: =VLOOKUP(F26,Soutez!B:C,2,FALSE) -> CZ | H26: =VLOOKUP(F26,Soutez!B:D,3,FALSE) -> 2020 | I26: 20 | J26: 3138 | K26: 0.91 | L26: 5500 | M26: 5005 | N26: x | P26: Std. Cirrus | Q26: WO
A27: Peter Kaspar | B27: 1980 | C27: M | D27: Vyškov | E27: CZ/M | F27: JPJ 2020 - Klub | G27: =VLOOKUP(F27,Soutez!B:C,2,FALSE) -> CZ | H27: =VLOOKUP(F27,Soutez!B:D,3,FALSE) -> 2020 | I27: 21 | J27: 3111 | K27: 0.91 | L27: 5369 | M27: 4886 | N27: x | P27: Astir CS 77 | Q27: AP
A28: Pavel Simek | B28: 1957 | C28: M | D28: Vyškov | E28: CZ/M | F28: JPJ 2020 - Klub | G28: =VLOOKUP(F28,Soutez!B:C,2,FALSE) -> CZ | H28: =VLOOKUP(F28,Soutez!B:D,3,FALSE) -> 2020 | I28: 22 | J28: 2989 | K28: 0.91 | L28: 5109 | M28: 4649 | N28: x | P28: DG-1000S 18m | Q28: 66
A29: Jan Pokluda | B29: 1973 | C29: M | D29: Šumperk | E29: CZ/M | F29: JPJ 2020 - Klub | G29: =VLOOKUP(F29,Soutez!B:C,2,FALSE) -> CZ | H29: =VLOOKUP(F29,Soutez!B:D,3,FALSE) -> 2020 | I29: 23 | J29: 2868 | K29: 0.91 | L29: 4850 | M29: 4414 | N29: x | P29: ASW-15B WL | Q29: JG
A30: Lukas Petrzela | B30: 1987 | C30: M | D30: Olomouc | E30: CZ/M | F30: JPJ 2020 - Klub | G30: =VLOOKUP(F30,Soutez!B:C,2,FALSE) -> CZ | H30: =VLOOKUP(F30,Soutez!B:D,3,FALSE) -> 2020 | I30: 24 | J30: 2349 | K30: 0.91 | L30: 4048 | M30: 3684 | N30: x | P30: Astir CS | Q30: AL
A31: Ludek Mikl | B31: 1963 | C31: M | D31: Šumperk | E31: CZ/M | F31: JPJ 2020 - Klub | G31: =VLOOKUP(F31,Soutez!B:C,2,FALSE) -> CZ | H31: =VLOOKUP(F31,Soutez!B:D,3,FALSE) -> 2020 | I31: 25 | J31: 1806 | K31: 0.91 | L31: 3214 | M31: 2925 | N31: x | P31: Astir CS Jeans | Q31: L1
A32: Yvona Vyhnankova | B32: 1963 | C32: F | D32: Olomouc | E32: CZ/M | F32: JPJ 2020 - Klub | G32: =VLOOKUP(F32,Soutez!B:C,2,FALSE) -> CZ | H32: =VLOOKUP(F32,Soutez!B:D,3,FALSE) -> 2020 | I32: 26 | J32: 1650 | K32: 0.91 | L32: 2907 | M32: 2645 | N32: x | O32: x | P32: ASW-15 | Q32: YZ
A33: Petr Lonsky | B33: 1965 | C33: M | D33: Toužim | E33: CZ/C1 | F33: JPJ 2020 - Klub | G33: =VLOOKUP(F33,Soutez!B:C,2,FALSE) -> CZ | H33: =VLOOKUP(F33,Soutez!B:D,3,FALSE) -> 2020 | I33: 27 | J33: 1585 | K33: 0.91 | L33: =ROUND(J33/MAX($J$7:$J$39)*10000*0.7+(MAX($I$7:$I$39)-I33)/(MAX($I$7:$I$39)-1)*10000*0.3,0) -> 2725 | M33: 2480 | P33: Cirrus VTC | Q33: JP
A34: Jan Zezula | B34: =VLOOKUP(A34,Pilot,2,0) -> 1979 | C34: =VLOOKUP(A34,Pilot,5,0) -> M | D34: =VLOOKUP(A34,Pilot,3,0) -> Letňany | E34: =VLOOKUP(A34,Pilot,4,0) -> CZ/C1 | F34: JPJ 2020 - Klub | G34: =VLOOKUP(F34,Soutez!B:C,2,FALSE) -> CZ | H34: =VLOOKUP(F34,Soutez!B:D,3,FALSE) -> 2020 | I34: 28 | J34: 1455 | K34: 0.91 | L34: 2454 | M34: 2233 | P34: ASW-19B | Q34: HD
A35: Viktor Zimcik | B35: 1976 | C35: M | D35: Kunovice | E35: CZ/M | F35: JPJ 2020 - Klub | G35: =VLOOKUP(F35,Soutez!B:C,2,FALSE) -> CZ | H35: =VLOOKUP(F35,Soutez!B:D,3,FALSE) -> 2020 | I35: 29 | J35: 738 | K35: 0.91 | L35: 1382 | M35: 1258 | N35: x | P35: Astir CS | Q35: O5
A36: Jan Podhrazsky | B36: 1976 | C36: M | D36: Šumperk | E36: CZ/M | F36: JPJ 2020 - Klub | G36: =VLOOKUP(F36,Soutez!B:C,2,FALSE) -> CZ | H36: =VLOOKUP(F36,Soutez!B:D,3,FALSE) -> 2020 | I36: 30 | J36: 696 | K36: 0.91 | L36: 1231 | M36: 1120 | N36: x | P36: Astir CS 77 | Q36: NZ
A37: Karel Ertl | B37: 1939 | C37: M | D37: LK Břeclav | E37: CZ/M | F37: JPJ 2020 - Klub | G37: =VLOOKUP(F37,Soutez!B:C,2,FALSE) -> CZ | H37: =VLOOKUP(F37,Soutez!B:D,3,FALSE) -> 2020 | I37: 31 | J37: 695 | K37: 0.91 | L37: 1136 | M37: 1034 | P37: TST-10M Atlas | Q37: KE
A38: Libor Danhel | B38: 1966 | C38: M | D38: Kunovice | E38: CZ/M | F38: JPJ 2020 - Klub | G38: =VLOOKUP(F38,Soutez!B:C,2,FALSE) -> CZ | H38: =VLOOKUP(F38,Soutez!B:D,3,FALSE) -> 2020 | I38: 32 | J38: 300 | K38: 0.91 | L38: 503 | M38: 458 | N38: x | P38: Std. Cirrus | Q38: OK
A39: Pavel Handl | B39: 1971 | C39: M | D39: Kroměříž | E39: CZ/M | F39: JPJ 2020 - Klub | G39: =VLOOKUP(F39,Soutez!B:C,2,FALSE) -> CZ | H39: =VLOOKUP(F39,Soutez!B:D,3,FALSE) -> 2020 | I39: 33 | J39: 279 | K39: 0.91 | L39: 381 | M39: 347 | N39: x | P39: Phoebus A1 | Q39: P1
A40: Frantisek Vancura | B40: 1966 | C40: M | D40: Hranice | E40: CZ/M | F40: JPJ 2020 - Kombi | G40: =VLOOKUP(F40,Soutez!B:C,2,FALSE) -> CZ | H40: =VLOOKUP(F40,Soutez!B:D,3,FALSE) -> 2020 | I40: 1 | J40: 4741 | K40: 0.91 | L40: =ROUND(J40/MAX($J$40:$J$60)*10000*0.7+(MAX($I$40:$I$60)-I40)/(MAX($I$40:$I$60)-1)*10000*0.3,0) -> 10000 | M40: 9100 | N40: x | P40: Nimbus 3T 24,5m WL 750kg | Q40: A1
A41: Marek Blatak | B41: 1969 | C41: M | D41: Šumperk | E41: CZ/M | F41: JPJ 2020 - Kombi | G41: =VLOOKUP(F41,Soutez!B:C,2,FALSE) -> CZ | H41: =VLOOKUP(F41,Soutez!B:D,3,FALSE) -> 2020 | I41: 2 | J41: 4740 | K41: 0.91 | L41: =ROUND(J41/MAX($J$40:$J$60)*10000*0.7+(MAX($I$40:$I$60)-I41)/(MAX($I$40:$I$60)-1)*10000*0.3,0) -> 9849 | M41: 8963 | N41: x | P41: Duo Discus T 700kg | Q41: ZS
A42: Kamil Sohr | B42: 1973 | C42: M | D42: Šumperk | E42: CZ/M | F42: JPJ 2020 - Kombi | G42: =VLOOKUP(F42,Soutez!B:C,2,FALSE) -> CZ | H42: =VLOOKUP(F42,Soutez!B:D,3,FALSE) -> 2020 | I42: 3 | J42: 4645 | K42: 0.91 | L42: 9558 | M42: 8698 | N42: x | P42: Ventus c 17,6m | Q42: W
A43: Jiri Steiger | B43: 1969 | C43: M | D43: Olomouc | E43: CZ/M | F43: JPJ 2020 - Kombi | G43: =VLOOKUP(F43,Soutez!B:C,2,FALSE) -> CZ | H43: =VLOOKUP(F43,Soutez!B:D,3,FALSE) -> 2020 | I43: 4 | J43: 4451 | K43: 0.91 | L43: 9122 | M43: 8301 | N43: x | P43: Duo Discus XLT | Q43: JIM
A44: Michal Cechmanek | B44: 1978 | C44: M | D44: Luhačovice | E44: CZ/M | F44: JPJ 2020 - Kombi | G44: =VLOOKUP(F44,Soutez!B:C,2,FALSE) -> CZ | H44: =VLOOKUP(F44,Soutez!B:D,3,FALSE) -> 2020 | I44: 5 | J44: 4371 | K44: 0.91 | L44: 8854 | M44: 8057 | N44: x | P44: ASW-20 L +FL 16,6m | Q44: MK
A45: Jan Dersak 69 | B45: 1969 | C45: M | D45: Kralupy | E45: CZ/C1 | F45: JPJ 2020 - Kombi | G45: =VLOOKUP(F45,Soutez!B:C,2,FALSE) -> CZ | H45: =VLOOKUP(F45,Soutez!B:D,3,FALSE) -> 2020 | I45: 6 | J45: 4344 | K45: 0.91 | L45: 8664 | M45: 7884 | P45: HpH 304JS SHARK 18m 573kg | Q45: DJ
A46: Miroslav Koci | B46: 1961 | C46: M | D46: Žamberk | E46: CZ/C2 | F46: JPJ 2020 - Kombi | G46: =VLOOKUP(F46,Soutez!B:C,2,FALSE) -> CZ | H46: =VLOOKUP(F46,Soutez!B:D,3,FALSE) -> 2020 | I46: 7 | J46: 4315 | K46: 0.91 | L46: 8471 | M46: 7709 | N46: x | P46: Ventus 2cxm 18m 565kg | Q46: E8
A47: Tomas Prikryl | B47: 1973 | C47: M | D47: Vyškov | E47: CZ/M | F47: JPJ 2020 - Kombi | G47: =VLOOKUP(F47,Soutez!B:C,2,FALSE) -> CZ | H47: =VLOOKUP(F47,Soutez!B:D,3,FALSE) -> 2020 | I47: 8 | J47: 4070 | K47: 0.91 | L47: 7959 | M47: 7243 | N47: x | P47: Ventus 2cm 18m 525kg | Q47: FN
A48: Zdenek Schenk | B48: 1972 | C48: M | D48: Hranice | E48: CZ/M | F48: JPJ 2020 - Kombi | G48: =VLOOKUP(F48,Soutez!B:C,2,FALSE) -> CZ | H48: =VLOOKUP(F48,Soutez!B:D,3,FALSE) -> 2020 | I48: 9 | J48: 3921 | K48: 0.91 | L48: =ROUND(J48/MAX($J$40:$J$60)*10000*0.7+(MAX($I$40:$I$60)-I48)/(MAX($I$40:$I$60)-1)*10000*0.3,0) -> 7589 | M48: 6906 | P48: Ventus cm 17,6m | Q48: ŠNeK
A49: Jaroslav Buryan | B49: 1953 | C49: M | D49: Zábřeh | E49: CZ/M | F49: JPJ 2020 - Kombi | G49: =VLOOKUP(F49,Soutez!B:C,2,FALSE) -> CZ | H49: =VLOOKUP(F49,Soutez!B:D,3,FALSE) -> 2020 | I49: 10 | J49: 3872 | K49: 0.91 | L49: 7367 | M49: 6704 | N49: x | P49: ASW-20 (A)+F 15m WL | Q49: NS
A50: Jan Simon | B50: 1970 | C50: M | D50: Kralupy | E50: CZ/C1 | F50: JPJ 2020 - Kombi | G50: =VLOOKUP(F50,Soutez!B:C,2,FALSE) -> CZ | H50: =VLOOKUP(F50,Soutez!B:D,3,FALSE) -> 2020 | I50: 11 | J50: 3730 | K50: 0.91 | L50: 7007 | M50: 6376 | N50: x | P50: Ventus ct 17,6m | Q50: KR
A51: Ladislav Jozsa | B51: 1981 | C51: M | D51: Medlánky | E51: CZ/M | F51: JPJ 2020 - Kombi | G51: =VLOOKUP(F51,Soutez!B:C,2,FALSE) -> CZ | H51: =VLOOKUP(F51,Soutez!B:D,3,FALSE) -> 2020 | I51: 12 | J51: 3666 | K51: 0.91 | L51: 6763 | M51: 6154 | N51: x | P51: Ventus c 17.6m | Q51: WW
A52: Miroslav Sklenar | B52: 1964 | C52: M | D52: Žamberk | E52: CZ/C2 | F52: JPJ 2020 - Kombi | G52: =VLOOKUP(F52,Soutez!B:C,2,FALSE) -> CZ | H52: =VLOOKUP(F52,Soutez!B:D,3,FALSE) -> 2020 | I52: 13 | J52: 3582 | K52: =VLOOKUP(F52,Soutez,12,0) -> 0.91 | L52: 6489 | M52: 5905 | N52: x | P52: Duo Discus 700kg | Q52: VP | R52: =IF(ISERROR(VLOOKUP(A52,Pilot,6,0)),"Není v databázi",VLOOKUP(A52,Pilot,6,0)) -> 
A53: Roman Cerny | B53: 1971 | C53: M | D53: Hranice | E53: CZ/M | F53: JPJ 2020 - Kombi | G53: =VLOOKUP(F53,Soutez!B:C,2,FALSE) -> CZ | H53: =VLOOKUP(F53,Soutez!B:D,3,FALSE) -> 2020 | I53: 14 | J53: 3089 | K53: 0.91 | L53: 5611 | M53: 5106 | N53: x | P53: LAK-17AT 18m | Q53: B2
A54: Pavel Haluza | B54: 1966 | C54: M | D54: Prostějov | E54: CZ/M | F54: JPJ 2020 - Kombi | G54: =VLOOKUP(F54,Soutez!B:C,2,FALSE) -> CZ | H54: =VLOOKUP(F54,Soutez!B:D,3,FALSE) -> 2020 | I54: 15 | J54: 2817 | K54: 0.91 | L54: 5059 | M54: 4604 | N54: x | P54: Nimbus 2b | Q54: HT
A55: Vit Grossmann | B55: 1977 | C55: M | D55: Hranice | E55: CZ/M | F55: JPJ 2020 - Kombi | G55: =VLOOKUP(F55,Soutez!B:C,2,FALSE) -> CZ | H55: =VLOOKUP(F55,Soutez!B:D,3,FALSE) -> 2020 | I55: 16 | J55: 2783 | K55: 0.91 | L55: 4859 | M55: =ROUND(K55*L55,0) -> 4422 | N55: x | P55: Duo Discus 700kg | Q55: OK
A56: Tomas Profeld | B56: 1964 | C56: M | D56: Jičín | E56: CZ/C2 | F56: JPJ 2020 - Kombi | G56: =VLOOKUP(F56,Soutez!B:C,2,FALSE) -> CZ | H56: =VLOOKUP(F56,Soutez!B:D,3,FALSE) -> 2020 | I56: 17 | J56: 2577 | K56: 0.91 | L56: 4405 | M56: 4009 | P56: Ventus 2cm 18m 525kg | Q56: OZ
A57: Martin Kriz | B57: 1968 | C57: M | D57: Přibyslav | E57: CZ/C2 | F57: JPJ 2020 - Kombi | G57: =VLOOKUP(F57,Soutez!B:C,2,FALSE) -> CZ | H57: =VLOOKUP(F57,Soutez!B:D,3,FALSE) -> 2020 | I57: 18 | J57: 2528 | K57: 0.91 | L57: 4183 | M57: 3807 | P57: ASW-20 (A)+F 15m WL | Q57: 67
A58: Albrecht Beat | B58: 1953 | C58: M | D58: Šumperk | E58: CZ/M | F58: JPJ 2020 - Kombi | G58: =VLOOKUP(F58,Soutez!B:C,2,FALSE) -> CZ | H58: =VLOOKUP(F58,Soutez!B:D,3,FALSE) -> 2020 | I58: 19 | J58: 2176 | K58: 0.91 | L58: 3513 | M58: 3197 | N58: x | P58: LS-8 15m | Q58: GL
A59: Vladimir Spilka | B59: 1940 | C59: M | D59: Hranice | E59: CZ/M | F59: JPJ 2020 - Kombi | G59: =VLOOKUP(F59,Soutez!B:C,2,FALSE) -> CZ | H59: =VLOOKUP(F59,Soutez!B:D,3,FALSE) -> 2020 | I59: 20 | J59: 1712 | K59: 0.91 | L59: 2678 | M59: 2437 | N59: x | P59: Nimbus 2b | Q59: AY
A60: Antonin Kutalek | B60: 1943 | C60: M | D60: Zábřeh | E60: CZ/M | F60: JPJ 2020 - Kombi | G60: =VLOOKUP(F60,Soutez!B:C,2,FALSE) -> CZ | H60: =VLOOKUP(F60,Soutez!B:D,3,FALSE) -> 2020 | I60: 21 | J60: 1439 | K60: 0.91 | L60: 2125 | M60: 1934 | P60: Mini-Nimbus c | Q60: GLk
A61: Klara Teichmannova | B61: 1993 | C61: F | D61: Hronov | E61: CZ/C2 | F61: HOP 2020 - Klub | G61: =VLOOKUP(F61,Soutez!B:C,2,FALSE) -> CZ | H61: =VLOOKUP(F61,Soutez!B:D,3,FALSE) -> 2020 | I61: 1 | J61: 3803 | K61: 0.755 | L61: =ROUND(J61/MAX($J$61:$J$86)*10000*0.7+(MAX($I$61:$I$86)-I61)/(MAX($I$61:$I$86)-1)*10000*0.3,0) -> 10000 | M61: 7550 | N61: x | P61: VT-116 Orlik 2 | Q61: 5509
A62: Michal Janda | B62: 1972 | C62: M | D62: Broumov | E62: CZ/C2 | F62: HOP 2020 - Klub | G62: =VLOOKUP(F62,Soutez!B:C,2,FALSE) -> CZ | H62: =VLOOKUP(F62,Soutez!B:D,3,FALSE) -> 2020 | I62: 2 | J62: 3743 | K62: 0.755 | L62: =ROUND(J62/MAX($J$61:$J$86)*10000*0.7+(MAX($I$61:$I$86)-I62)/(MAX($I$61:$I$86)-1)*10000*0.3,0) -> 9770 | M62: 7376 | N62: x | P62: VT-116 Orlik 2 | Q62: 7402
A63: Oldrich Slavicek | B63: 1959 | C63: M | D63: Hronov | E63: CZ/C2 | F63: HOP 2020 - Klub | G63: =VLOOKUP(F63,Soutez!B:C,2,FALSE) -> CZ | H63: =VLOOKUP(F63,Soutez!B:D,3,FALSE) -> 2020 | I63: 3 | J63: 3647 | K63: 0.755 | L63: 9473 | M63: 7152 | N63: x | P63: VT-116 Orlik 2 | Q63: 4310
A64: Milan Svoboda 80 | B64: 1980 | C64: M | D64: Havlíčkův Brod | E64: CZ/C2 | F64: HOP 2020 - Klub | G64: =VLOOKUP(F64,Soutez!B:C,2,FALSE) -> CZ | H64: =VLOOKUP(F64,Soutez!B:D,3,FALSE) -> 2020 | I64: 4 | J64: 3533 | K64: 0.755 | L64: 9143 | M64: 6903 | N64: x | P64: VT-116 Orlik 2 | Q64: 6446
A65: Miroslav Stepan | B65: 1955 | C65: M | D65: Žamberk | E65: CZ/C2 | F65: HOP 2020 - Klub | G65: =VLOOKUP(F65,Soutez!B:C,2,FALSE) -> CZ | H65: =VLOOKUP(F65,Soutez!B:D,3,FALSE) -> 2020 | I65: 5 | J65: 3450 | K65: 0.755 | L65: 8870 | M65: 6697 | N65: x | P65: VT-116 Orlik 2 | Q65: 8412
A66: Wolfgang Sluka | B66: =VLOOKUP(A66,Pilot,2,0) -> 1942 | C66: M | D66: Liberec | E66: CZ/C2 | F66: HOP 2020 - Klub | G66: =VLOOKUP(F66,Soutez!B:C,2,FALSE) -> CZ | H66: =VLOOKUP(F66,Soutez!B:D,3,FALSE) -> 2020 | I66: 6 | J66: 3386 | K66: 0.755 | L66: 8632 | M66: 6517 | P66: VT-116 Orlik 2 | Q66: 8425
A67: Tomas Mezera | B67: 1973 | C67: M | D67: Raná | E67: CZ/C2 | F67: HOP 2020 - Klub | G67: =VLOOKUP(F67,Soutez!B:C,2,FALSE) -> CZ | H67: =VLOOKUP(F67,Soutez!B:D,3,FALSE) -> 2020 | I67: 7 | J67: 3095 | K67: 0.755 | L67: 7977 | M67: 6023 | N67: x | P67: VT-116 Orlik 2 | Q67: 8401
A68: Josef Linhart, Milos Dedera | C68: M | D68: AK Medlánky | F68: HOP 2020 - Klub | G68: =VLOOKUP(F68,Soutez!B:C,2,FALSE) -> CZ | H68: =VLOOKUP(F68,Soutez!B:D,3,FALSE) -> 2020 | I68: 8 | J68: 2950 | K68: 0.755 | L68: 7590 | M68: 5730 | P68: Ka 6 E | Q68: 9781 | R68: Není v databázi
A69: Jaromir Vlk | B69: =VLOOKUP(A69,Pilot,2,0) -> 1959 | C69: =VLOOKUP(A69,Pilot,5,0) -> M | D69: =VLOOKUP(A69,Pilot,3,0) -> Šumperk | E69: =VLOOKUP(A69,Pilot,4,0) -> CZ/M | F69: HOP 2020 - Klub | G69: =VLOOKUP(F69,Soutez!B:C,2,FALSE) -> CZ | H69: =VLOOKUP(F69,Soutez!B:D,3,FALSE) -> 2020 | I69: 9 | J69: 2829 | K69: 0.755 | L69: 7247 | M69: 5471 | N69: x | P69: VT-116 Orlik 2 | Q69: 6907
A70: Ondrej Teichman | B70: 1984 | C70: M | D70: Dvůr Králové | E70: CZ/C2 | F70: HOP 2020 - Klub | G70: =VLOOKUP(F70,Soutez!B:C,2,FALSE) -> CZ | H70: =VLOOKUP(F70,Soutez!B:D,3,FALSE) -> 2020 | I70: 10 | J70: 2678 | K70: 0.755 | L70: 6849 | M70: 5171 | P70: VT-116 Orlik 2 | Q70: 6445
A71: Jaromir Hendrych | B71: 1954 | C71: M | D71: Raná | E71: CZ/C2 | F71: HOP 2020 - Klub | G71: =VLOOKUP(F71,Soutez!B:C,2,FALSE) -> CZ | H71: =VLOOKUP(F71,Soutez!B:D,3,FALSE) -> 2020 | I71: 11 | J71: 2603 | K71: 0.755 | L71: 6591 | M71: 4976 | N71: x | P71: M-35 | Q71: 2403
A72: Michal Nutil | B72: 1966 | C72: M | D72: Náchod | E72: CZ/C2 | F72: HOP 2020 - Klub | G72: =VLOOKUP(F72,Soutez!B:C,2,FALSE) -> CZ | H72: =VLOOKUP(F72,Soutez!B:D,3,FALSE) -> 2020 | I72: 12 | J72: 2510 | K72: 0.755 | L72: 6300 | M72: 4757 | N72: x | P72: VT-116 Orlik 2 | Q72: 7424
A73: Vaclav Kysilka | B73: 1979 | C73: M | D73: GAC Benešov | E73: CZ/C1 | F73: HOP 2020 - Klub | G73: =VLOOKUP(F73,Soutez!B:C,2,FALSE) -> CZ | H73: =VLOOKUP(F73,Soutez!B:D,3,FALSE) -> 2020 | I73: 13 | J73: 2509 | K73: 0.755 | L73: 6178 | M73: 4664 | N73: x | P73: VT-116 Orlik 2 | Q73: 8430
A74: Petr Vezda | B74: 1974 | C74: M | D74: Medlánky | E74: CZ/M | F74: HOP 2020 - Klub | G74: =VLOOKUP(F74,Soutez!B:C,2,FALSE) -> CZ | H74: =VLOOKUP(F74,Soutez!B:D,3,FALSE) -> 2020 | I74: 14 | J74: 2312 | K74: 0.755 | L74: =ROUND(J74/MAX($J$61:$J$86)*10000*0.7+(MAX($I$61:$I$86)-I74)/(MAX($I$61:$I$86)-1)*10000*0.3,0) -> 5696 | M74: 4300 | N74: x | P74: VT-116 Orlik 2 | Q74: 4321
A75: Oldrich Hlavacek | B75: 1973 | C75: M | D75: Medlánky | E75: CZ/M | F75: HOP 2020 - Klub | G75: =VLOOKUP(F75,Soutez!B:C,2,FALSE) -> CZ | H75: =VLOOKUP(F75,Soutez!B:D,3,FALSE) -> 2020 | I75: 15 | J75: 2261 | K75: 0.755 | L75: 5482 | M75: 4139 | N75: x | P75: VT-116 Orlik 2 | Q75: 4307
A76: Jana Mezerova | B76: 1975 | C76: F | D76: Raná | E76: CZ/C2 | F76: HOP 2020 - Klub | G76: =VLOOKUP(F76,Soutez!B:C,2,FALSE) -> CZ | H76: =VLOOKUP(F76,Soutez!B:D,3,FALSE) -> 2020 | I76: 16 | J76: 2245 | K76: 0.755 | L76: 5332 | M76: 4026 | N76: x | O76: x | P76: VT-116 Orlik 2 | Q76: 7425
A77: Matej Jelinek | B77: 1999 | C77: M | D77: Hronov | E77: CZ/C2 | F77: HOP 2020 - Klub | G77: =VLOOKUP(F77,Soutez!B:C,2,FALSE) -> CZ | H77: =VLOOKUP(F77,Soutez!B:D,3,FALSE) -> 2020 | I77: 17 | J77: 2172 | K77: 0.755 | L77: 5078 | M77: 3834 | N77: x | P77: VT-116 Orlik 2 | Q77: 6922 | R77: Junior v roce 2023
A78: Krystof Mimra | B78: 1992 | C78: M | D78: Most | E78: CZ/C2 | F78: HOP 2020 - Klub | G78: =VLOOKUP(F78,Soutez!B:C,2,FALSE) -> CZ | H78: =VLOOKUP(F78,Soutez!B:D,3,FALSE) -> 2020 | I78: 18 | J78: 2135 | K78: 0.755 | L78: =ROUND(J78/MAX($J$61:$J$86)*10000*0.7+(MAX($I$61:$I$86)-I78)/(MAX($I$61:$I$86)-1)*10000*0.3,0) -> 4890 | M78: 3692 | P78: VT-116 Orlik 2 | Q78: 7413
A79: Petr Seibrt | B79: 1974 | C79: M | D79: Náchod | E79: CZ/C2 | F79: HOP 2020 - Klub | G79: =VLOOKUP(F79,Soutez!B:C,2,FALSE) -> CZ | H79: =VLOOKUP(F79,Soutez!B:D,3,FALSE) -> 2020 | I79: 19 | J79: 2134 | K79: 0.755 | L79: 4768 | M79: 3600 | N79: x | P79: VT-16 Orlik | Q79: 2412
A80: Milos Hrabe | B80: 1979 | C80: M | D80: Letňany | E80: CZ/C1 | F80: HOP 2020 - Klub | G80: =VLOOKUP(F80,Soutez!B:C,2,FALSE) -> CZ | H80: =VLOOKUP(F80,Soutez!B:D,3,FALSE) -> 2020 | I80: 20 | J80: 2019 | K80: 0.755 | L80: 4436 | M80: 3349 | N80: x | P80: VT-116 Orlik 2 | Q80: 6444
A81: Miroslav Major | B81: 1968 | C81: M | D81: Kralupy | E81: CZ/C1 | F81: HOP 2020 - Klub | G81: =VLOOKUP(F81,Soutez!B:C,2,FALSE) -> CZ | H81: =VLOOKUP(F81,Soutez!B:D,3,FALSE) -> 2020 | I81: 21 | J81: 1923 | K81: 0.755 | L81: 4140 | M81: 3126 | N81: x | P81: VT-116 Orlik 2 | Q81: 7403
A82: Petr Vlasak | B82: 1974 | C82: M | D82: Medlánky | E82: CZ/M | F82: HOP 2020 - Klub | G82: =VLOOKUP(F82,Soutez!B:C,2,FALSE) -> CZ | H82: =VLOOKUP(F82,Soutez!B:D,3,FALSE) -> 2020 | I82: 22 | J82: 1563 | K82: 0.755 | L82: 3357 | M82: 2535 | N82: x | P82: VT-16 Orlik | Q82: 2909
A83: Sarka Lochova | B83: 1966 | C83: F | D83: Šumperk | E83: CZ/M | F83: HOP 2020 - Klub | G83: =VLOOKUP(F83,Soutez!B:C,2,FALSE) -> CZ | H83: =VLOOKUP(F83,Soutez!B:D,3,FALSE) -> 2020 | I83: 23 | J83: 1561 | K83: 0.755 | L83: 3233 | M83: 2441 | P83: VT-116 Orlik 2 | Q83: 7445
A84: Tomas Holenda | B84: 1956 | C84: M | D84: Havlíčkův Brod | E84: CZ/C2 | F84: HOP 2020 - Klub | G84: =VLOOKUP(F84,Soutez!B:C,2,FALSE) -> CZ | H84: =VLOOKUP(F84,Soutez!B:D,3,FALSE) -> 2020 | I84: 24 | J84: 1378 | K84: 0.755 | L84: 2776 | M84: 2096 | P84: VT-116 Orlik 2 | Q84: 4314
A85: Jiri Klicnar | B85: 1965 | C85: M | D85: Medlánky | E85: CZ/M | F85: HOP 2020 - Klub | G85: =VLOOKUP(F85,Soutez!B:C,2,FALSE) -> CZ | H85: =VLOOKUP(F85,Soutez!B:D,3,FALSE) -> 2020 | I85: 25 | J85: 1316 | K85: 0.755 | L85: 2542 | M85: 1919 | N85: x | P85: M-28 | Q85: 2903
A86: Martin Adamec | B86: 1971 | C86: M | D86: Medlánky | E86: CZ/M | F86: HOP 2020 - Klub | G86: =VLOOKUP(F86,Soutez!B:C,2,FALSE) -> CZ | H86: =VLOOKUP(F86,Soutez!B:D,3,FALSE) -> 2020 | I86: 26 | J86: 723 | K86: 0.755 | L86: 1331 | M86: 1005 | N86: x | P86: VT-116 Orlik 2 | Q86: 8406
A87: David Mach | B87: 1994 | C87: M | D87: Hronov | E87: CZ/C2 | F87: HOP 2020 - Kombi | G87: =VLOOKUP(F87,Soutez!B:C,2,FALSE) -> CZ | H87: =VLOOKUP(F87,Soutez!B:D,3,FALSE) -> 2020 | I87: 1 | J87: 4289 | K87: 0.76 | L87: =ROUND(J87/MAX($J$87:$J$105)*10000*0.7+(MAX($I$87:$I$105)-I87)/(MAX($I$87:$I$105)-1)*10000*0.3,0) -> 10000 | M87: 7600 | P87: ASG 29/18m (voda) | Q87: QZ
A88: Sebastian Bode | C88: M | D88: FSV Eisenhüttenstadt | E88: DE | F88: HOP 2020 - Kombi | G88: =VLOOKUP(F88,Soutez!B:C,2,FALSE) -> CZ | H88: =VLOOKUP(F88,Soutez!B:D,3,FALSE) -> 2020 | I88: 2 | J88: 3315 | K88: 0.76 | L88: =ROUND(J88/MAX($J$87:$J$105)*10000*0.7+(MAX($I$87:$I$105)-I88)/(MAX($I$87:$I$105)-1)*10000*0.3,0) -> 8244 | M88: 6265 | P88: HPH 304S Shark (voda) | Q88: AY | R88: Není v databázi
A89: Martin Koci | B89: =VLOOKUP(A89,Pilot,2,0) -> 1975 | C89: =VLOOKUP(A89,Pilot,5,0) -> M | D89: =VLOOKUP(A89,Pilot,3,0) -> Ústí nad Orlicí | E89: =VLOOKUP(A89,Pilot,4,0) -> CZ/C2 | F89: HOP 2020 - Kombi | G89: =VLOOKUP(F89,Soutez!B:C,2,FALSE) -> CZ | H89: =VLOOKUP(F89,Soutez!B:D,3,FALSE) -> 2020 | I89: 3 | J89: 3267 | K89: 0.76 | L89: 7999 | M89: 6079 | N89: x | P89: Discus b (bez vody) | Q89: XE
A90: Zdenek Schenk | B90: 1972 | C90: M | D90: Hranice | E90: CZ/M | F90: HOP 2020 - Kombi | G90: =VLOOKUP(F90,Soutez!B:C,2,FALSE) -> CZ | H90: =VLOOKUP(F90,Soutez!B:D,3,FALSE) -> 2020 | I90: 4 | J90: 3181 | K90: 0.76 | L90: 7692 | M90: 5846 | P90: Ventus cm 17,6m (bez vody) | Q90: SNeK
A91: Zdenek Boruvka 54 | B91: 1954 | C91: M | D91: Jičín | E91: CZ/C2 | F91: HOP 2020 - Kombi | G91: =VLOOKUP(F91,Soutez!B:C,2,FALSE) -> CZ | H91: =VLOOKUP(F91,Soutez!B:D,3,FALSE) -> 2020 | I91: 5 | J91: 3160 | K91: 0.76 | L91: 7491 | M91: 5693 | P91: LS 8 15 m (voda) | Q91: ZB
A92: Vratislav Sram | B92: 1966 | C92: M | D92: Broumov | E92: CZ/C2 | F92: HOP 2020 - Kombi | G92: =VLOOKUP(F92,Soutez!B:C,2,FALSE) -> CZ | H92: =VLOOKUP(F92,Soutez!B:D,3,FALSE) -> 2020 | I92: 6 | J92: 3150 | K92: 0.76 | L92: 7308 | M92: 5554 | P92: Janus b (bez vody) | Q92: KG
A93: Petr Fisar | B93: 1974 | C93: M | D93: Ústí nad Orlicí | E93: CZ/C2 | F93: HOP 2020 - Kombi | G93: =VLOOKUP(F93,Soutez!B:C,2,FALSE) -> CZ | H93: =VLOOKUP(F93,Soutez!B:D,3,FALSE) -> 2020 | I93: 7 | J93: 3142 | K93: 0.76 | L93: 7128 | M93: 5417 | N93: x | P93: Mosquito b (bez vody) | Q93: PF
A94: Jan Kohout | B94: 1970 | C94: M | D94: Žamberk | E94: CZ/C2 | F94: HOP 2020 - Kombi | G94: =VLOOKUP(F94,Soutez!B:C,2,FALSE) -> CZ | H94: =VLOOKUP(F94,Soutez!B:D,3,FALSE) -> 2020 | I94: 8 | J94: 3091 | K94: 0.76 | L94: 6878 | M94: 5227 | N94: x | P94: LS 8 15 m (voda) | Q94: SK
A95: Michal Maly | B95: 1982 | C95: M | D95: Broumov | E95: CZ/C2 | F95: HOP 2020 - Kombi | G95: =VLOOKUP(F95,Soutez!B:C,2,FALSE) -> CZ | H95: =VLOOKUP(F95,Soutez!B:D,3,FALSE) -> 2020 | I95: 9 | J95: 2954 | K95: 0.76 | L95: 6488 | M95: 4931 | N95: x | P95: Ventus c 17,6 (voda) | Q95: JN
A96: Petr Babak | B96: 1973 | C96: M | D96: Hořice | E96: CZ/C2 | F96: HOP 2020 - Kombi | G96: =VLOOKUP(F96,Soutez!B:C,2,FALSE) -> CZ | H96: =VLOOKUP(F96,Soutez!B:D,3,FALSE) -> 2020 | I96: 10 | J96: 2905 | K96: 0.76 | L96: 6241 | M96: 4743 | P96: Ventus c 17,6 (voda) | Q96: LS
A97: Vaclav Kult | B97: 1973 | C97: M | D97: Broumov | E97: CZ/C2 | F97: HOP 2020 - Kombi | G97: =VLOOKUP(F97,Soutez!B:C,2,FALSE) -> CZ | H97: =VLOOKUP(F97,Soutez!B:D,3,FALSE) -> 2020 | I97: 11 | J97: 2837 | K97: 0.76 | L97: 5964 | M97: 4533 | N97: x | P97: Nimbus 2 b WL (voda) | Q97: VK
A98: Christian Rakowski | C98: M | D98: FSV Eisenhüttenstadt | E98: DE | F98: HOP 2020 - Kombi | G98: =VLOOKUP(F98,Soutez!B:C,2,FALSE) -> CZ | H98: =VLOOKUP(F98,Soutez!B:D,3,FALSE) -> 2020 | I98: 12 | J98: 2820 | K98: 0.76 | L98: 5769 | M98: 4384 | P98: ASW 24 WL (bez vody) | Q98: TD | R98: Není v databázi
A99: Timo+George Jakl | C99: M | D99: AK Ústí nad Orlicí | E99: CZ/DE | F99: HOP 2020 - Kombi | G99: =VLOOKUP(F99,Soutez!B:C,2,FALSE) -> CZ | H99: =VLOOKUP(F99,Soutez!B:D,3,FALSE) -> 2020 | I99: 13 | J99: 2770 | K99: 0.76 | L99: 5521 | M99: 4196 | P99: Janus b (bez vody) | Q99: GJ | R99: Není v databázi
A100: Jan Rott | B100: =VLOOKUP(A100,Pilot,2,0) -> 1962 | C100: =VLOOKUP(A100,Pilot,5,0) -> M | D100: =VLOOKUP(A100,Pilot,3,0) -> Hronov | E100: =VLOOKUP(A100,Pilot,4,0) -> CZ/C2 | F100: HOP 2020 - Kombi | G100: =VLOOKUP(F100,Soutez!B:C,2,FALSE) -> CZ | H100: =VLOOKUP(F100,Soutez!B:D,3,FALSE) -> 2020 | I100: 14 | J100: 2767 | K100: 0.76 | L100: 5349 | M100: 4065 | N100: x | P100: HPH 304 cz 17,4 (bez vody) | Q100: Jou
A101: Jan Cerveny | B101: =VLOOKUP(A101,Pilot,2,0) -> 1984 | C101: =VLOOKUP(A101,Pilot,5,0) -> M | D101: =VLOOKUP(A101,Pilot,3,0) -> Jaroměř | E101: =VLOOKUP(A101,Pilot,4,0) -> CZ/C2 | F101: HOP 2020 - Kombi | G101: =VLOOKUP(F101,Soutez!B:C,2,FALSE) -> CZ | H101: =VLOOKUP(F101,Soutez!B:D,3,FALSE) -> 2020 | I101: 15 | J101: 2690 | K101: 0.76 | L101: 5057 | M101: 3843 | N101: x | P101: LS 3a (bez vody) | Q101: EI
A102: Miloslav Cindr | B102: =VLOOKUP(A102,Pilot,2,0) -> 1974 | C102: =VLOOKUP(A102,Pilot,5,0) -> M | D102: =VLOOKUP(A102,Pilot,3,0) -> Ústí nad Orlicí | E102: =VLOOKUP(A102,Pilot,4,0) -> CZ/C2 | F102: HOP 2020 - Kombi | G102: =VLOOKUP(F102,Soutez!B:C,2,FALSE) -> CZ | H102: =VLOOKUP(F102,Soutez!B:D,3,FALSE) -> 2020 | I102: 16 | J102: 2306 | K102: 0.76 | L102: 4264 | M102: 3241 | N102: x | P102: Ventus c 17,6 (bez vody) | Q102: MC
A103: Jiri Suchomel | B103: =VLOOKUP(A103,Pilot,2,0) -> 1950 | C103: =VLOOKUP(A103,Pilot,5,0) -> M | D103: =VLOOKUP(A103,Pilot,3,0) -> Broumov | E103: =VLOOKUP(A103,Pilot,4,0) -> CZ/C2 | F103: HOP 2020 - Kombi | G103: =VLOOKUP(F103,Soutez!B:C,2,FALSE) -> CZ | H103: =VLOOKUP(F103,Soutez!B:D,3,FALSE) -> 2020 | I103: 17 | J103: 2203 | K103: 0.76 | L103: 3929 | M103: 2986 | N103: x | P103: Janus b (bez vody) | Q103: V1
A104: Miroslav+Josef Plechac | C104: M | D104: AK Hronov | E104: CZ/C2 | F104: HOP 2020 - Kombi | G104: =VLOOKUP(F104,Soutez!B:C,2,FALSE) -> CZ | H104: =VLOOKUP(F104,Soutez!B:D,3,FALSE) -> 2020 | I104: 18 | J104: 2138 | K104: 0.76 | L104: =ROUND(J104/MAX($J$87:$J$105)*10000*0.7+(MAX($I$87:$I$105)-I104)/(MAX($I$87:$I$105)-1)*10000*0.3,0) -> 3656 | M104: 2779 | P104: Nimbus 2 WL (voda) | Q104: PM | R104: Není v databázi
A105: Milos Novotny | B105: =VLOOKUP(A105,Pilot,2,0) -> 1973 | C105: =VLOOKUP(A105,Pilot,5,0) -> M | D105: =VLOOKUP(A105,Pilot,3,0) -> Hronov | E105: =VLOOKUP(A105,Pilot,4,0) -> CZ/C2 | F105: HOP 2020 - Kombi | G105: =VLOOKUP(F105,Soutez!B:C,2,FALSE) -> CZ | H105: =VLOOKUP(F105,Soutez!B:D,3,FALSE) -> 2020 | I105: 19 | J105: 1757 | K105: 0.76 | L105: 2868 | M105: 2180 | N105: x | P105: Ventus b 16.6m (bez vody) | Q105: VeV
A106: Friedrich Hofinger | C106: M | D106: SMBC Kirchdorf Micheldorf | F106: Alpe Adria Cup 2020 - Kombi 106 | G106: =VLOOKUP(F106,Soutez!B:C,2,FALSE) -> AT | H106: =VLOOKUP(F106,Soutez!B:D,3,FALSE) -> 2020 | I106: 1 | J106: 4989 | K106: 0.765 | L106: =ROUND(J106/MAX($J$106:$J$126)*10000*0.7+(MAX($I$106:$I$126)-I106)/(MAX($I$106:$I$126)-1)*10000*0.3,0) -> 10000 | M106: 7650 | P106: Discus 2ct | Q106: KN | R106: Není v databázi
A107: Supersperger & Puhl | D107: SMBC Kirchdorf/Micheldorf | F107: Alpe Adria Cup 2020 - Kombi 106 | G107: =VLOOKUP(F107,Soutez!B:C,2,FALSE) -> AT | H107: =VLOOKUP(F107,Soutez!B:D,3,FALSE) -> 2020 | I107: 2 | J107: 4988 | K107: 0.765 | L107: =ROUND(J107/MAX($J$106:$J$126)*10000*0.7+(MAX($I$106:$I$126)-I107)/(MAX($I$106:$I$126)-1)*10000*0.3,0) -> 9849 | M107: 7534 | P107: DUO Discus | Q107: M1 | R107: Není v databázi
A108: Jan Jagiello | C108: M | D108: Österreich | F108: Alpe Adria Cup 2020 - Kombi 106 | G108: =VLOOKUP(F108,Soutez!B:C,2,FALSE) -> AT | H108: =VLOOKUP(F108,Soutez!B:D,3,FALSE) -> 2020 | I108: 3 | J108: 4625 | K108: 0.765 | L108: 9189 | M108: 7030 | P108: Ventus CM | Q108: SN | R108: Není v databázi
A109: Achleitner & Haslinger | D109: Österreich | F109: Alpe Adria Cup 2020 - Kombi 106 | G109: =VLOOKUP(F109,Soutez!B:C,2,FALSE) -> AT | H109: =VLOOKUP(F109,Soutez!B:D,3,FALSE) -> 2020 | I109: 4 | J109: 4560 | K109: 0.765 | L109: 8948 | M109: 6845 | P109: ASG32Mi | Q109: GA | R109: Není v databázi
A110: Petr Malcek | B110: =VLOOKUP(A110,Pilot,2,0) -> 1965 | C110: =VLOOKUP(A110,Pilot,5,0) -> M | D110: =VLOOKUP(A110,Pilot,3,0) -> Letňany | E110: =VLOOKUP(A110,Pilot,4,0) -> CZ/C1 | F110: Alpe Adria Cup 2020 - Kombi 106 | G110: =VLOOKUP(F110,Soutez!B:C,2,FALSE) -> AT | H110: =VLOOKUP(F110,Soutez!B:D,3,FALSE) -> 2020 | I110: 5 | J110: 4331 | K110: 0.765 | L110: =ROUND(J110/MAX($J$106:$J$126)*10000*0.7+(MAX($I$106:$I$126)-I110)/(MAX($I$106:$I$126)-1)*10000*0.3,0) -> 8477 | M110: 6485 | N110: x | P110: LS6c-18w | Q110: F5
A111: Herbert Pirker | C111: M | D111: FAS | F111: Alpe Adria Cup 2020 - Kombi 106 | G111: =VLOOKUP(F111,Soutez!B:C,2,FALSE) -> AT | H111: =VLOOKUP(F111,Soutez!B:D,3,FALSE) -> 2020 | I111: 6 | J111: 4269 | K111: 0.765 | L111: 8240 | M111: 6304 | P111: Ventus Cm | Q111: PM | R111: Není v databázi
A112: van Houweninge & Hallbrucker | D112: ISV | F112: Alpe Adria Cup 2020 - Kombi 106 | G112: =VLOOKUP(F112,Soutez!B:C,2,FALSE) -> AT | H112: =VLOOKUP(F112,Soutez!B:D,3,FALSE) -> 2020 | I112: 7 | J112: 4218 | K112: 0.765 | L112: 8018 | M112: 6134 | P112: Arcus M | Q112: 3 | R112: Není v databázi
A113: Klaus Porod | C113: M | D113: FSV Feldkirchen | F113: Alpe Adria Cup 2020 - Kombi 106 | G113: =VLOOKUP(F113,Soutez!B:C,2,FALSE) -> AT | H113: =VLOOKUP(F113,Soutez!B:D,3,FALSE) -> 2020 | I113: 8 | J113: 4073 | K113: 0.765 | L113: 7665 | M113: 5864 | P113: Discus 2cT | Q113: PSI | R113: Není v databázi
A114: Philipp Wittwer | C114: M | D114: Österreich | F114: Alpe Adria Cup 2020 - Kombi 106 | G114: =VLOOKUP(F114,Soutez!B:C,2,FALSE) -> AT | H114: =VLOOKUP(F114,Soutez!B:D,3,FALSE) -> 2020 | I114: 9 | J114: 4060 | K114: 0.765 | L114: 7497 | M114: 5735 | P114: LS 8 | Q114: ZL | R114: Není v databázi
A115: Sauter & Hecht | D115: FSG Wangen | F115: Alpe Adria Cup 2020 - Kombi 106 | G115: =VLOOKUP(F115,Soutez!B:C,2,FALSE) -> AT | H115: =VLOOKUP(F115,Soutez!B:D,3,FALSE) -> 2020 | I115: 10 | J115: 3684 | K115: 0.765 | L115: 6819 | M115: 5217 | P115: Arcus M | Q115: EW | R115: Není v databázi
A116: Herwig Wagner | C116: M | D116: St. Flugsportunion | F116: Alpe Adria Cup 2020 - Kombi 106 | G116: =VLOOKUP(F116,Soutez!B:C,2,FALSE) -> AT | H116: =VLOOKUP(F116,Soutez!B:D,3,FALSE) -> 2020 | I116: 11 | J116: 3325 | K116: =VLOOKUP(F116,Soutez,12,0) -> 0.765 | L116: 6165 | M116: 4716 | P116: SZD 55 | Q116: KE | R116: =IF(ISERROR(VLOOKUP(A116,Pilot,6,0)),"Není v databázi",VLOOKUP(A116,Pilot,6,0)) -> Není v databázi
A117: Florian Forcher | C117: M | D117: SFC Pinkafeld | F117: Alpe Adria Cup 2020 - Kombi 106 | G117: =VLOOKUP(F117,Soutez!B:C,2,FALSE) -> AT | H117: =VLOOKUP(F117,Soutez!B:D,3,FALSE) -> 2020 | I117: 11 | J117: 3325 | K117: 0.765 | L117: 6165 | M117: 4716 | P117: DG 300 WL | Q117: N1 | R117: Není v databázi
A118: Schneeweis & Mayrhofer | D118: ASKÖ Flugsportverein Linz | F118: Alpe Adria Cup 2020 - Kombi 106 | G118: =VLOOKUP(F118,Soutez!B:C,2,FALSE) -> AT | H118: =VLOOKUP(F118,Soutez!B:D,3,FALSE) -> 2020 | I118: 13 | J118: 2946 | K118: 0.765 | L118: 5333 | M118: 4080 | P118: Duo Discus | Q118: L | R118: Není v databázi
A119: Feichter & Treffner | D119: Österreich | F119: Alpe Adria Cup 2020 - Kombi 106 | G119: =VLOOKUP(F119,Soutez!B:C,2,FALSE) -> AT | H119: =VLOOKUP(F119,Soutez!B:D,3,FALSE) -> 2020 | I119: 14 | J119: 2944 | K119: 0.765 | L119: 5181 | M119: =ROUND(K119*L119,0) -> 3963 | P119: Arcus-T | Q119: UHM | R119: Není v databázi
A120: Ute Baranowski | C120: M | D120: Alpenflugzentrum Unterwössen e.V. | F120: Alpe Adria Cup 2020 - Kombi 106 | G120: =VLOOKUP(F120,Soutez!B:C,2,FALSE) -> AT | H120: =VLOOKUP(F120,Soutez!B:D,3,FALSE) -> 2020 | I120: 15 | J120: 2406 | K120: 0.765 | L120: 4276 | M120: 3271 | P120: Ventus 2ax | Q120: IB | R120: Není v databázi
A121: Tomasz Królik | C121: M | F121: Alpe Adria Cup 2020 - Kombi 106 | G121: =VLOOKUP(F121,Soutez!B:C,2,FALSE) -> AT | H121: =VLOOKUP(F121,Soutez!B:D,3,FALSE) -> 2020 | I121: 16 | J121: 2258 | K121: 0.765 | L121: 3918 | M121: 2997 | P121: Ventus a | Q121: TT | R121: Není v databázi
A122: Karl Ortner | C122: M | D122: SMBC | F122: Alpe Adria Cup 2020 - Kombi 106 | G122: =VLOOKUP(F122,Soutez!B:C,2,FALSE) -> AT | H122: =VLOOKUP(F122,Soutez!B:D,3,FALSE) -> 2020 | I122: 17 | J122: 1960 | K122: 0.765 | L122: 3350 | M122: 2563 | P122: Ventus2b | Q122: M3 | R122: Není v databázi
A123: Hauser & Wöckner | D123: Lägern | F123: Alpe Adria Cup 2020 - Kombi 106 | G123: =VLOOKUP(F123,Soutez!B:C,2,FALSE) -> AT | H123: =VLOOKUP(F123,Soutez!B:D,3,FALSE) -> 2020 | I123: 18 | J123: 1756 | K123: 0.765 | L123: 2914 | M123: 2229 | P123: ASG32 Mi | Q123: HM | R123: Není v databázi
A124: Flicker & Frech | F124: Alpe Adria Cup 2020 - Kombi 106 | G124: =VLOOKUP(F124,Soutez!B:C,2,FALSE) -> AT | H124: =VLOOKUP(F124,Soutez!B:D,3,FALSE) -> 2020 | I124: 19 | J124: 1528 | K124: 0.765 | L124: 2444 | M124: 1870 | P124: Duo Discus | Q124: MM | R124: Není v databázi
A125: Alexander Lukasik | C125: M | D125: Deutschland | F125: Alpe Adria Cup 2020 - Kombi 106 | G125: =VLOOKUP(F125,Soutez!B:C,2,FALSE) -> AT | H125: =VLOOKUP(F125,Soutez!B:D,3,FALSE) -> 2020 | I125: 20 | J125: 1476 | K125: 0.765 | L125: 2221 | M125: 1699 | P125: SZD-55 | Q125: FY | R125: Není v databázi
A126: Salomon & Dawkins | D126: Steirische Flugsportunion | F126: Alpe Adria Cup 2020 - Kombi 106 | G126: =VLOOKUP(F126,Soutez!B:C,2,FALSE) -> AT | H126: =VLOOKUP(F126,Soutez!B:D,3,FALSE) -> 2020 | I126: 21 | J126: 640 | K126: 0.765 | L126: 898 | M126: 687 | P126: Arcus M | Q126: FS | R126: Není v databázi
A127: Wolfgang Janowitsch | C127: M | D127: FRA-Wr.Neustadt | F127: Alpe Adria Cup 2020 - Kombi Open | G127: =VLOOKUP(F127,Soutez!B:C,2,FALSE) -> AT | H127: =VLOOKUP(F127,Soutez!B:D,3,FALSE) -> 2020 | I127: 1 | J127: 5992 | K127: 0.775 | L127: =ROUND(J127/MAX($J$127:$J$150)*10000*0.7+(MAX($I$127:$I$150)-I127)/(MAX($I$127:$I$150)-1)*10000*0.3,0) -> 10000 | M127: 7750 | P127: Ventus 3T | Q127: WO | R127: Není v databázi
A128: Heimo Demmerer | C128: M | D128: SFC-Mariazell | F128: Alpe Adria Cup 2020 - Kombi Open | G128: =VLOOKUP(F128,Soutez!B:C,2,FALSE) -> AT | H128: =VLOOKUP(F128,Soutez!B:D,3,FALSE) -> 2020 | I128: 2 | J128: 5820 | K128: 0.775 | L128: =ROUND(J128/MAX($J$127:$J$150)*10000*0.7+(MAX($I$127:$I$150)-I128)/(MAX($I$127:$I$150)-1)*10000*0.3,0) -> 9669 | M128: 7493 | P128: Ventus 2CM | Q128: OD | R128: Není v databázi
A129: Stefan Sidler | C129: M | D129: SG Knonaueramt | F129: Alpe Adria Cup 2020 - Kombi Open | G129: =VLOOKUP(F129,Soutez!B:C,2,FALSE) -> AT | H129: =VLOOKUP(F129,Soutez!B:D,3,FALSE) -> 2020 | I129: 3 | J129: 5597 | K129: 0.775 | L129: 9278 | M129: 7190 | P129: ASG 29 | Q129: KF | R129: Není v databázi
A130: Sven Kolb | C130: M | D130: HGSV | F130: Alpe Adria Cup 2020 - Kombi Open | G130: =VLOOKUP(F130,Soutez!B:C,2,FALSE) -> AT | H130: =VLOOKUP(F130,Soutez!B:D,3,FALSE) -> 2020 | I130: 4 | J130: 5294 | K130: 0.775 | L130: 8793 | M130: 6815 | P130: Antares LF20e | Q130: ZF | R130: Není v databázi
A131: Michael Rass | C131: M | D131: St.Johann | F131: Alpe Adria Cup 2020 - Kombi Open | G131: =VLOOKUP(F131,Soutez!B:C,2,FALSE) -> AT | H131: =VLOOKUP(F131,Soutez!B:D,3,FALSE) -> 2020 | I131: 5 | J131: 5267 | K131: 0.775 | L131: 8631 | M131: 6689 | P131: Ventus 2cT | Q131: HA | R131: Není v databázi
A132: Thomas Krüger | C132: M | D132: Deutschland | F132: Alpe Adria Cup 2020 - Kombi Open | G132: =VLOOKUP(F132,Soutez!B:C,2,FALSE) -> AT | H132: =VLOOKUP(F132,Soutez!B:D,3,FALSE) -> 2020 | I132: 6 | J132: 5148 | K132: 0.775 | L132: 8362 | M132: 6481 | P132: EB 29 | Q132: TK | R132: Není v databázi
A133: Andreas Lutz | C133: M | D133: SFC Ried/ FGWH | F133: Alpe Adria Cup 2020 - Kombi Open | G133: =VLOOKUP(F133,Soutez!B:C,2,FALSE) -> AT | H133: =VLOOKUP(F133,Soutez!B:D,3,FALSE) -> 2020 | I133: 7 | J133: 5140 | K133: 0.775 | L133: 8222 | M133: 6372 | P133: Ventus 3 | Q133: A | R133: Není v databázi
A134: Werner Danz | C134: M | D134: SG Glarnerland | F134: Alpe Adria Cup 2020 - Kombi Open | G134: =VLOOKUP(F134,Soutez!B:C,2,FALSE) -> AT | H134: =VLOOKUP(F134,Soutez!B:D,3,FALSE) -> 2020 | I134: 8 | J134: 5124 | K134: 0.775 | L134: 8073 | M134: 6257 | P134: Antares 18T | Q134: BT | R134: Není v databázi
A135: Dominik Mauchle | C135: M | D135: SG Bad Ragaz | F135: Alpe Adria Cup 2020 - Kombi Open | G135: =VLOOKUP(F135,Soutez!B:C,2,FALSE) -> AT | H135: =VLOOKUP(F135,Soutez!B:D,3,FALSE) -> 2020 | I135: 9 | J135: 4948 | K135: 0.775 | L135: 7737 | M135: 5996 | P135: DG-808C | Q135: D | R135: Není v databázi
A136: Klaus Kalmbach | C136: M | D136: FSV Tübingen e.V. | F136: Alpe Adria Cup 2020 - Kombi Open | G136: =VLOOKUP(F136,Soutez!B:C,2,FALSE) -> AT | H136: =VLOOKUP(F136,Soutez!B:D,3,FALSE) -> 2020 | I136: 10 | J136: 4834 | K136: 0.775 | L136: 7473 | M136: 5792 | P136: Nimbus4M | Q136: OL | R136: Není v databázi
A137: Christoph Limpert | C137: M | D137: Rhönflug Gersfeld | F137: Alpe Adria Cup 2020 - Kombi Open | G137: =VLOOKUP(F137,Soutez!B:C,2,FALSE) -> AT | H137: =VLOOKUP(F137,Soutez!B:D,3,FALSE) -> 2020 | I137: 11 | J137: 4617 | K137: 0.775 | L137: 7089 | M137: 5494 | P137: ASG29 | Q137: CC | R137: Není v databázi
A138: Christian Hynek | C138: M | D138: streckenflug.at | F138: Alpe Adria Cup 2020 - Kombi Open | G138: =VLOOKUP(F138,Soutez!B:C,2,FALSE) -> AT | H138: =VLOOKUP(F138,Soutez!B:D,3,FALSE) -> 2020 | I138: 12 | J138: 4553 | K138: 0.775 | L138: 6884 | M138: 5335 | P138: EB29DR | Q138: DD | R138: Není v databázi
A139: Andreas Klugsberger | C139: M | F139: Alpe Adria Cup 2020 - Kombi Open | G139: =VLOOKUP(F139,Soutez!B:C,2,FALSE) -> AT | H139: =VLOOKUP(F139,Soutez!B:D,3,FALSE) -> 2020 | I139: 13 | J139: 4435 | K139: 0.775 | L139: 6616 | M139: 5127 | P139: ASH26E | Q139: HF | R139: Není v databázi
A140: Georg Falkensammer | C140: M | D140: FSV Feldkirchen/Ossiachersee | F140: Alpe Adria Cup 2020 - Kombi Open | G140: =VLOOKUP(F140,Soutez!B:C,2,FALSE) -> AT | H140: =VLOOKUP(F140,Soutez!B:D,3,FALSE) -> 2020 | I140: 14 | J140: 4075 | K140: 0.775 | L140: 6065 | M140: 4700 | P140: Antares 18T | Q140: FW | R140: Není v databázi
A141: Rainer Cronjäger | C141: M | D141: SG Knonaueramt | F141: Alpe Adria Cup 2020 - Kombi Open | G141: =VLOOKUP(F141,Soutez!B:C,2,FALSE) -> AT | H141: =VLOOKUP(F141,Soutez!B:D,3,FALSE) -> 2020 | I141: 15 | J141: 4041 | K141: 0.775 | L141: 5895 | M141: 4569 | P141: ASH 31MI | Q141: I | R141: Není v databázi
A142: Matthias Hölzl | C142: M | D142: AFZ Unterwössen | F142: Alpe Adria Cup 2020 - Kombi Open | G142: =VLOOKUP(F142,Soutez!B:C,2,FALSE) -> AT | H142: =VLOOKUP(F142,Soutez!B:D,3,FALSE) -> 2020 | I142: 16 | J142: 3953 | K142: 0.775 | L142: 5661 | M142: 4387 | P142: ASG29e | Q142: HNO | R142: Není v databázi
A143: Thomas Hynek | C143: M | D143: Flugschule ASKÖ Wioen | F143: Alpe Adria Cup 2020 - Kombi Open | G143: =VLOOKUP(F143,Soutez!B:C,2,FALSE) -> AT | H143: =VLOOKUP(F143,Soutez!B:D,3,FALSE) -> 2020 | I143: 17 | J143: 3848 | K143: 0.775 | L143: 5408 | M143: 4191 | P143: Ventus 2cm | Q143: HU | R143: Není v databázi
A144: Wolfgang Zimmermann | C144: M | D144: Flugring Wr. Neustadt | F144: Alpe Adria Cup 2020 - Kombi Open | G144: =VLOOKUP(F144,Soutez!B:C,2,FALSE) -> AT | H144: =VLOOKUP(F144,Soutez!B:D,3,FALSE) -> 2020 | I144: 18 | J144: 3736 | K144: 0.775 | L144: 5147 | M144: 3989 | P144: Ventus3M | Q144: WZ | R144: Není v databázi
A145: Rene Schönmann | C145: M | D145: Segelfluggruppe Basel Fricktal | F145: Alpe Adria Cup 2020 - Kombi Open | G145: =VLOOKUP(F145,Soutez!B:C,2,FALSE) -> AT | H145: =VLOOKUP(F145,Soutez!B:D,3,FALSE) -> 2020 | I145: 19 | J145: 3489 | K145: 0.775 | L145: =ROUND(J145/MAX($J$127:$J$150)*10000*0.7+(MAX($I$127:$I$150)-I145)/(MAX($I$127:$I$150)-1)*10000*0.3,0) -> 4728 | M145: 3664 | P145: JS1-C 18m | Q145: LI | R145: Není v databázi
A146: Conrad Hartter | C146: M | D146: FSV Tuebingen | F146: Alpe Adria Cup 2020 - Kombi Open | G146: =VLOOKUP(F146,Soutez!B:C,2,FALSE) -> AT | H146: =VLOOKUP(F146,Soutez!B:D,3,FALSE) -> 2020 | I146: 20 | J146: 3000 | K146: 0.775 | L146: 4026 | M146: 3120 | P146: JS1c 18m | Q146: OT | R146: Není v databázi
A147: Gerold Auerbach | C147: M | D147: LSV Salzburg | F147: Alpe Adria Cup 2020 - Kombi Open | G147: =VLOOKUP(F147,Soutez!B:C,2,FALSE) -> AT | H147: =VLOOKUP(F147,Soutez!B:D,3,FALSE) -> 2020 | I147: 21 | J147: 2211 | K147: 0.775 | L147: 2974 | M147: 2305 | P147: ASH 31 | Q147: FT | R147: Není v databázi
A148: Karel Krobath | C148: M | D148: SFC Tulln | F148: Alpe Adria Cup 2020 - Kombi Open | G148: =VLOOKUP(F148,Soutez!B:C,2,FALSE) -> AT | H148: =VLOOKUP(F148,Soutez!B:D,3,FALSE) -> 2020 | I148: 22 | J148: 1993 | K148: 0.775 | L148: 2589 | M148: 2006 | P148: HPH 304MS | Q148: Q | R148: Není v databázi
A149: Erich Niedl | C149: M | D149: USFC Tulln | F149: Alpe Adria Cup 2020 - Kombi Open | G149: =VLOOKUP(F149,Soutez!B:C,2,FALSE) -> AT | H149: =VLOOKUP(F149,Soutez!B:D,3,FALSE) -> 2020 | I149: 23 | J149: 1019 | K149: 0.775 | L149: 1321 | M149: 1024 | P149: Ventus 2cxT | Q149: CX | R149: Není v databázi
A150: Alexander Schütz | C150: M | D150: AFZ Unterwössen | F150: Alpe Adria Cup 2020 - Kombi Open | G150: =VLOOKUP(F150,Soutez!B:C,2,FALSE) -> AT | H150: =VLOOKUP(F150,Soutez!B:D,3,FALSE) -> 2020 | I150: 24 | J150: 0 | K150: 0.775 | L150: 0 | M150: 0 | P150: Ventus 2cT | Q150: AI | R150: Není v databázi
A151: Michal Cupak | B151: =VLOOKUP(A151,Pilot,2,0) -> 1991 | C151: =VLOOKUP(A151,Pilot,5,0) -> M | D151: =VLOOKUP(A151,Pilot,3,0) -> Medlánky | E151: =VLOOKUP(A151,Pilot,4,0) -> CZ/M | F151: Adrenalin GP 2020 - Klub GP | G151: =VLOOKUP(F151,Soutez!B:C,2,FALSE) -> CZ | H151: =VLOOKUP(F151,Soutez!B:D,3,FALSE) -> 2020 | I151: 1 | J151: 7 | K151: 0 | L151: =ROUND((MAX($I$151:$I$159)-I151)/(MAX($I$151:$I$159)-1)*10000,0) -> 10000 | M151: 0 | P151: Std. Cirrus | Q151: A7
A152: Jan Mareth | B152: 1979 | C152: M | D152: Frýdlant | E152: CZ/M | F152: Adrenalin GP 2020 - Klub GP | G152: =VLOOKUP(F152,Soutez!B:C,2,FALSE) -> CZ | H152: =VLOOKUP(F152,Soutez!B:D,3,FALSE) -> 2020 | I152: 2 | J152: 5 | K152: 0 | L152: =ROUND((MAX($I$151:$I$159)-I152)/(MAX($I$151:$I$159)-1)*10000,0) -> 8000 | M152: 0 | P152: ASW 15b | Q152: PA
A153: Stepan Obrovsky | B153: 1990 | C153: M | D153: Frýdlant | E153: CZ/M | F153: Adrenalin GP 2020 - Klub GP | G153: =VLOOKUP(F153,Soutez!B:C,2,FALSE) -> CZ | H153: =VLOOKUP(F153,Soutez!B:D,3,FALSE) -> 2020 | I153: 2 | J153: 5 | K153: 0 | L153: 8000 | M153: 0 | P153: Std. Cirrus | Q153: 75
A154: Rostislav Stryk | B154: 1972 | C154: M | D154: Frýdlant | E154: CZ/M | F154: Adrenalin GP 2020 - Klub GP | G154: =VLOOKUP(F154,Soutez!B:C,2,FALSE) -> CZ | H154: =VLOOKUP(F154,Soutez!B:D,3,FALSE) -> 2020 | I154: 4 | J154: 1 | K154: 0 | L154: =ROUND((MAX($I$151:$I$159)-I154)/(MAX($I$151:$I$159)-1)*10000,0) -> 4000 | M154: 0 | P154: Std. Cirrus | Q154: 22
A155: Vit Prokop | B155: 1987 | C155: M | D155: Medlánky | E155: CZ/M | F155: Adrenalin GP 2020 - Klub GP | G155: =VLOOKUP(F155,Soutez!B:C,2,FALSE) -> CZ | H155: =VLOOKUP(F155,Soutez!B:D,3,FALSE) -> 2020 | I155: 4 | J155: 1 | K155: 0 | L155: 4000 | M155: 0 | P155: Std. Cirrus | Q155: MF
A156: Lukas Kotek | B156: 1994 | C156: M | D156: Frýdlant | E156: CZ/M | F156: Adrenalin GP 2020 - Klub GP | G156: =VLOOKUP(F156,Soutez!B:C,2,FALSE) -> CZ | H156: =VLOOKUP(F156,Soutez!B:D,3,FALSE) -> 2020 | I156: 6 | J156: 0 | K156: 0 | L156: 0 | M156: 0 | P156: Astir CS | Q156: BH
A157: Stanislav Doskocil | B157: 1978 | C157: M | D157: Medlánky | E157: CZ/M | F157: Adrenalin GP 2020 - Klub GP | G157: =VLOOKUP(F157,Soutez!B:C,2,FALSE) -> CZ | H157: =VLOOKUP(F157,Soutez!B:D,3,FALSE) -> 2020 | I157: 6 | J157: 0 | K157: 0 | L157: 0 | M157: 0 | P157: Std. Cirrus | Q157: SD
A158: Oldrich Houzvicka | B158: 1975 | C158: M | D158: Frýdlant | E158: CZ/M | F158: Adrenalin GP 2020 - Klub GP | G158: =VLOOKUP(F158,Soutez!B:C,2,FALSE) -> CZ | H158: =VLOOKUP(F158,Soutez!B:D,3,FALSE) -> 2020 | I158: 6 | J158: 0 | K158: 0 | L158: 0 | M158: 0 | P158: LS 1 f | Q158: EM
A159: Martin Svacina | B159: 1965 | C159: M | D159: Frýdlant | E159: CZ/M | F159: Adrenalin GP 2020 - Klub GP | G159: =VLOOKUP(F159,Soutez!B:C,2,FALSE) -> CZ | H159: =VLOOKUP(F159,Soutez!B:D,3,FALSE) -> 2020 | I159: 6 | J159: 0 | K159: 0 | L159: 0 | M159: 0 | P159: Std. Cirrus | Q159: E
A160: Ivan Novak | B160: 1962 | C160: M | D160: Mladá Boleslav | E160: CZ/C1 | F160: AZ Cup 2020 - Klub | G160: =VLOOKUP(F160,Soutez!B:C,2,FALSE) -> CZ | H160: =VLOOKUP(F160,Soutez!B:D,3,FALSE) -> 2020 | I160: 1 | J160: 2366 | K160: 0.905 | L160: =ROUND(J160/MAX($J$160:$J$186)*10000*0.7+(MAX($I$160:$I$186)-I160)/(MAX($I$160:$I$186)-1)*10000*0.3,0) -> 10000 | M160: 9050 | P160: LS-4 | Q160: IX
A161: Jaroslav Tomana | B161: 1975 | C161: M | D161: Zbraslavice | E161: CZ/C1 | F161: AZ Cup 2020 - Klub | G161: =VLOOKUP(F161,Soutez!B:C,2,FALSE) -> CZ | H161: =VLOOKUP(F161,Soutez!B:D,3,FALSE) -> 2020 | I161: 2 | J161: 2342 | K161: 0.905 | L161: =ROUND(J161/MAX($J$160:$J$186)*10000*0.7+(MAX($I$160:$I$186)-I161)/(MAX($I$160:$I$186)-1)*10000*0.3,0) -> 9814 | M161: 8882 | P161: Pegase 101 BC | Q161: RT
A162: Zdenek Boruvka 86 | B162: 1986 | C162: M | D162: Jičín | E162: CZ/C2 | F162: AZ Cup 2020 - Klub | G162: =VLOOKUP(F162,Soutez!B:C,2,FALSE) -> CZ | H162: =VLOOKUP(F162,Soutez!B:D,3,FALSE) -> 2020 | I162: 3 | J162: 2109 | K162: 0.905 | L162: 9009 | M162: 8153 | P162: Std. Cirrus | Q162: BJ
A163: Vojtech Novotny | B163: 1992 | C163: M | D163: Kralupy | E163: CZ/C1 | F163: AZ Cup 2020 - Klub | G163: =VLOOKUP(F163,Soutez!B:C,2,FALSE) -> CZ | H163: =VLOOKUP(F163,Soutez!B:D,3,FALSE) -> 2020 | I163: 4 | J163: 1844 | K163: 0.905 | L163: 8109 | M163: 7339 | P163: LS1-f | Q163: EF
A164: David Sachl | B164: 1978 | C164: M | D164: Kralupy | E164: CZ/C1 | F164: AZ Cup 2020 - Klub | G164: =VLOOKUP(F164,Soutez!B:C,2,FALSE) -> CZ | H164: =VLOOKUP(F164,Soutez!B:D,3,FALSE) -> 2020 | I164: 5 | J164: 1806 | K164: 0.905 | L164: 7882 | M164: 7133 | P164: DG-300 Elan | Q164: BK
A165: Jakub Kmosek | B165: 1978 | C165: M | D165: Zbraslavice | E165: CZ/C1 | F165: AZ Cup 2020 - Klub | G165: =VLOOKUP(F165,Soutez!B:C,2,FALSE) -> CZ | H165: =VLOOKUP(F165,Soutez!B:D,3,FALSE) -> 2020 | I165: 6 | J165: 1731 | K165: 0.905 | L165: 7544 | M165: 6827 | N165: x | P165: Std. Cirrus | Q165: ST
A166: Martin Urban | B166: 1971 | C166: M | D166: Frýdlant | E166: CZ/M | F166: AZ Cup 2020 - Klub | G166: =VLOOKUP(F166,Soutez!B:C,2,FALSE) -> CZ | H166: =VLOOKUP(F166,Soutez!B:D,3,FALSE) -> 2020 | I166: 7 | J166: 1726 | K166: 0.905 | L166: 7414 | M166: 6710 | N166: x | P166: LS3a | Q166: SJ
A167: David Popovsky | B167: 1976 | C167: M | D167: Rakovník | E167: CZ/C1 | F167: AZ Cup 2020 - Klub | G167: =VLOOKUP(F167,Soutez!B:C,2,FALSE) -> CZ | H167: =VLOOKUP(F167,Soutez!B:D,3,FALSE) -> 2020 | I167: 8 | J167: 1720 | K167: 0.905 | L167: 7281 | M167: 6589 | N167: x | P167: ASW 24(A) | Q167: 76
A168: Dalibor Pek | B168: 1968 | C168: M | D168: Raná | E168: CZ/C2 | F168: AZ Cup 2020 - Klub | G168: =VLOOKUP(F168,Soutez!B:C,2,FALSE) -> CZ | H168: =VLOOKUP(F168,Soutez!B:D,3,FALSE) -> 2020 | I168: 9 | J168: 1718 | K168: 0.905 | L168: 7160 | M168: 6480 | N168: x | P168: STD. CIRRUS | Q168: GP
A169: Jan Zahradka | B169: 1981 | C169: M | D169: Hodkovice | E169: CZ/C2 | F169: AZ Cup 2020 - Klub | G169: =VLOOKUP(F169,Soutez!B:C,2,FALSE) -> CZ | H169: =VLOOKUP(F169,Soutez!B:D,3,FALSE) -> 2020 | I169: 10 | J169: 1667 | K169: 0.905 | L169: 6893 | M169: 6238 | P169: Std.Cirrus | Q169: AR
A170: Zdenek Balcarek | B170: 1967 | C170: M | D170: Kroměříž | E170: CZ/M | F170: AZ Cup 2020 - Klub | G170: =VLOOKUP(F170,Soutez!B:C,2,FALSE) -> CZ | H170: =VLOOKUP(F170,Soutez!B:D,3,FALSE) -> 2020 | I170: 11 | J170: 1663 | K170: 0.905 | L170: 6766 | M170: 6123 | P170: Std. Cirrus | Q170: ZL
A171: David Vrchota | B171: 1976 | C171: M | D171: Jaroměř | E171: CZ/C2 | F171: AZ Cup 2020 - Klub | G171: =VLOOKUP(F171,Soutez!B:C,2,FALSE) -> CZ | H171: =VLOOKUP(F171,Soutez!B:D,3,FALSE) -> 2020 | I171: 12 | J171: 1593 | K171: 0.905 | L171: 6444 | M171: 5832 | P171: Janus B dvojí | Q171: BV
A172: Lumir Motyka | B172: 1955 | C172: M | D172: Frýdlant | E172: CZ/M | F172: AZ Cup 2020 - Klub | G172: =VLOOKUP(F172,Soutez!B:C,2,FALSE) -> CZ | H172: =VLOOKUP(F172,Soutez!B:D,3,FALSE) -> 2020 | I172: 13 | J172: 1526 | K172: 0.905 | L172: 6130 | M172: 5548 | P172: Std. Cirrus | Q172: 22
A173: Jan Florian | B173: 1992 | C173: M | D173: Zbraslavice | E173: CZ/C1 | F173: AZ Cup 2020 - Klub | G173: =VLOOKUP(F173,Soutez!B:C,2,FALSE) -> CZ | H173: =VLOOKUP(F173,Soutez!B:D,3,FALSE) -> 2020 | I173: 14 | J173: 1494 | K173: 0.905 | L173: 5920 | M173: 5358 | P173: Std. Cirrus | Q173: C1
A174: Jiri Hodan | B174: 1959 | C174: M | D174: Zbraslavice | E174: CZ/C1 | F174: AZ Cup 2020 - Klub | G174: =VLOOKUP(F174,Soutez!B:C,2,FALSE) -> CZ | H174: =VLOOKUP(F174,Soutez!B:D,3,FALSE) -> 2020 | I174: 15 | J174: 1487 | K174: 0.905 | L174: 5784 | M174: 5235 | N174: x | P174: Twin Astir G 103 | Q174: RB
A175: Matous Schmidt | B175: 1981 | C175: M | D175: Letňany | E175: CZ/C1 | F175: AZ Cup 2020 - Klub | G175: =VLOOKUP(F175,Soutez!B:C,2,FALSE) -> CZ | H175: =VLOOKUP(F175,Soutez!B:D,3,FALSE) -> 2020 | I175: 16 | J175: 1459 | K175: 0.905 | L175: 5586 | M175: 5055 | N175: x | P175: Std.Cirrus | Q175: IMI
A176: Tomas Moravec | B176: 2000 | C176: M | D176: Žamberk | E176: CZ/C2 | F176: AZ Cup 2020 - Klub | G176: =VLOOKUP(F176,Soutez!B:C,2,FALSE) -> CZ | H176: =VLOOKUP(F176,Soutez!B:D,3,FALSE) -> 2020 | I176: 17 | J176: 1458 | K176: 0.905 | L176: 5467 | M176: 4948 | P176: Std.Cirrus WL | Q176: OK6 | R176: Junior v roce 2023
A177: Jan Ratz | B177: 1987 | C177: M | D177: Zbraslavice | E177: CZ/C1 | F177: AZ Cup 2020 - Klub | G177: =VLOOKUP(F177,Soutez!B:C,2,FALSE) -> CZ | H177: =VLOOKUP(F177,Soutez!B:D,3,FALSE) -> 2020 | I177: 18 | J177: 1414 | K177: 0.905 | L177: 5222 | M177: 4726 | P177: Std. Cirrus | Q177: REX
A178: Jan Oscatka | B178: 1990 | C178: M | D178: Jaroměř | E178: CZ/C2 | F178: AZ Cup 2020 - Klub | G178: =VLOOKUP(F178,Soutez!B:C,2,FALSE) -> CZ | H178: =VLOOKUP(F178,Soutez!B:D,3,FALSE) -> 2020 | I178: 19 | J178: 1398 | K178: 0.905 | L178: 5059 | M178: 4578 | N178: x | P178: Discus b | Q178: JA
A179: Tomas Jung | B179: 1950 | C179: M | D179: Zbraslavice | E179: CZ/C1 | F179: AZ Cup 2020 - Klub | G179: =VLOOKUP(F179,Soutez!B:C,2,FALSE) -> CZ | H179: =VLOOKUP(F179,Soutez!B:D,3,FALSE) -> 2020 | I179: 20 | J179: 1313 | K179: 0.905 | L179: 4692 | M179: 4246 | P179: ASW 19 | Q179: O2
A180: Robin Förster | C180: M | D180: BAeC-Mitte | E180: DE | F180: AZ Cup 2020 - Klub | G180: =VLOOKUP(F180,Soutez!B:C,2,FALSE) -> CZ | H180: =VLOOKUP(F180,Soutez!B:D,3,FALSE) -> 2020 | I180: 21 | J180: 1235 | K180: =VLOOKUP(F180,Soutez,12,0) -> 0.905 | L180: =ROUND(J180/MAX($J$160:$J$186)*10000*0.7+(MAX($I$160:$I$186)-I180)/(MAX($I$160:$I$186)-1)*10000*0.3,0) -> 4346 | M180: 3933 | P180: ASW24 E WL | Q180: RF | R180: =IF(ISERROR(VLOOKUP(A180,Pilot,6,0)),"Není v databázi",VLOOKUP(A180,Pilot,6,0)) -> Není v databázi
A181: Juraj Dudas | B181: =VLOOKUP(A181,Pilot,2,0) -> 1990 | C181: =VLOOKUP(A181,Pilot,5,0) -> M | D181: =VLOOKUP(A181,Pilot,3,0) -> Křižanov | E181: =VLOOKUP(A181,Pilot,4,0) -> CZ/M | F181: AZ Cup 2020 - Klub | G181: =VLOOKUP(F181,Soutez!B:C,2,FALSE) -> CZ | H181: =VLOOKUP(F181,Soutez!B:D,3,FALSE) -> 2020 | I181: 22 | J181: 967 | K181: 0.905 | L181: 3438 | M181: 3111 | N181: x | P181: Pegase C101A | Q181: ZD
A182: Petr Velek | B182: 1975 | C182: M | D182: GAC Benešov | E182: CZ/C1 | F182: AZ Cup 2020 - Klub | G182: =VLOOKUP(F182,Soutez!B:C,2,FALSE) -> CZ | H182: =VLOOKUP(F182,Soutez!B:D,3,FALSE) -> 2020 | I182: 23 | J182: 880 | K182: 0.905 | L182: 3065 | M182: 2774 | P182: DG 400, 15m | Q182: HX
A183: Jan Sustr 76 | B183: 1976 | C183: M | D183: Raná | E183: CZ/C2 | F183: AZ Cup 2020 - Klub | G183: =VLOOKUP(F183,Soutez!B:C,2,FALSE) -> CZ | H183: =VLOOKUP(F183,Soutez!B:D,3,FALSE) -> 2020 | I183: 24 | J183: 690 | K183: 0.905 | L183: 2388 | M183: =ROUND(K183*L183,0) -> 2161 | P183: DG-300 ELAN | Q183: WL
A184: Martin Grmela | B184: 1989 | C184: M | D184: Zbraslavice | E184: CZ/C1 | F184: AZ Cup 2020 - Klub | G184: =VLOOKUP(F184,Soutez!B:C,2,FALSE) -> CZ | H184: =VLOOKUP(F184,Soutez!B:D,3,FALSE) -> 2020 | I184: 25 | J184: 625 | K184: 0.905 | L184: 2080 | M184: 1882 | N184: x | P184: ASW-19 | Q184: FY
A185: Petr Brezina | B185: 1963 | C185: M | D185: Frýdlant | E185: CZ/M | F185: AZ Cup 2020 - Klub | G185: =VLOOKUP(F185,Soutez!B:C,2,FALSE) -> CZ | H185: =VLOOKUP(F185,Soutez!B:D,3,FALSE) -> 2020 | I185: 26 | J185: 308 | K185: 0.905 | L185: 1027 | M185: 929 | N185: x | P185: DG 200 | Q185: AK
A186: Petr Lonsky | B186: 1965 | C186: M | D186: Toužim | E186: CZ/C1 | F186: AZ Cup 2020 - Klub | G186: =VLOOKUP(F186,Soutez!B:C,2,FALSE) -> CZ | H186: =VLOOKUP(F186,Soutez!B:D,3,FALSE) -> 2020 | I186: 27 | J186: 0 | K186: 0.905 | L186: 0 | M186: 0 | P186: std Cirrus | Q186: FD
A187: Jan Kotan | B187: 1982 | C187: M | D187: Letňany | E187: CZ/C1 | F187: AZ Cup 2020 - Kombi A | G187: =VLOOKUP(F187,Soutez!B:C,2,FALSE) -> CZ | H187: =VLOOKUP(F187,Soutez!B:D,3,FALSE) -> 2020 | I187: 1 | J187: 2474 | K187: 0.9 | L187: =ROUND(J187/MAX($J$187:$J$206)*10000*0.7+(MAX($I$187:$I$206)-I187)/(MAX($I$187:$I$206)-1)*10000*0.3,0) -> 10000 | M187: 9000 | P187: Ventus 2bx 15m | Q187: YA
A188: Ondrej Dvorak 87 | B188: 1987 | C188: M | D188: Raná | E188: CZ/C2 | F188: AZ Cup 2020 - Kombi A | G188: =VLOOKUP(F188,Soutez!B:C,2,FALSE) -> CZ | H188: =VLOOKUP(F188,Soutez!B:D,3,FALSE) -> 2020 | I188: 2 | J188: 2352 | K188: 0.9 | L188: =ROUND(J188/MAX($J$187:$J$206)*10000*0.7+(MAX($I$187:$I$206)-I188)/(MAX($I$187:$I$206)-1)*10000*0.3,0) -> 9497 | M188: 8547 | N188: x | P188: Ventus A WL 500kg | Q188: FW
A189: Michal Lesinger | B189: 1966 | C189: M | D189: Moravská Třebová | E189: CZ/M | F189: AZ Cup 2020 - Kombi A | G189: =VLOOKUP(F189,Soutez!B:C,2,FALSE) -> CZ | H189: =VLOOKUP(F189,Soutez!B:D,3,FALSE) -> 2020 | I189: 3 | J189: 2247 | K189: 0.9 | L189: 9042 | M189: 8138 | P189: ASG 32 Mi | Q189: DX
A190: Jana Veprekova | B190: 1961 | C190: F | D190: Dvůr Králové | E190: CZ/C2 | F190: AZ Cup 2020 - Kombi A | G190: =VLOOKUP(F190,Soutez!B:C,2,FALSE) -> CZ | H190: =VLOOKUP(F190,Soutez!B:D,3,FALSE) -> 2020 | I190: 4 | J190: 2240 | K190: 0.9 | L190: 8864 | M190: 7978 | N190: x | P190: LS8 | Q190: W8
A191: Jan Horak | B191: 1971 | C191: M | D191: Zbraslavice | E191: CZ/C1 | F191: AZ Cup 2020 - Kombi A | G191: =VLOOKUP(F191,Soutez!B:C,2,FALSE) -> CZ | H191: =VLOOKUP(F191,Soutez!B:D,3,FALSE) -> 2020 | I191: 5 | J191: 2178 | K191: 0.9 | L191: 8531 | M191: 7678 | N191: x | P191: ASW-20 | Q191: WX
A192: Jan Smekal | B192: 1976 | C192: M | D192: Zbraslavice | E192: CZ/C1 | F192: AZ Cup 2020 - Kombi A | G192: =VLOOKUP(F192,Soutez!B:C,2,FALSE) -> CZ | H192: =VLOOKUP(F192,Soutez!B:D,3,FALSE) -> 2020 | I192: 6 | J192: 2077 | K192: 0.9 | L192: 8087 | M192: 7278 | N192: x | P192: ASW-20 | Q192: NW
A193: Jan Zapletal | B193: 1997 | C193: M | D193: Břeclav | E193: CZ/M | F193: AZ Cup 2020 - Kombi A | G193: =VLOOKUP(F193,Soutez!B:C,2,FALSE) -> CZ | H193: =VLOOKUP(F193,Soutez!B:D,3,FALSE) -> 2020 | I193: 7 | J193: 2072 | K193: 0.9 | L193: 7915 | M193: 7124 | P193: LS8 | Q193: JS
A194: Jan Pavlik | B194: 1987 | C194: M | D194: Křižanov | E194: CZ/M | F194: AZ Cup 2020 - Kombi A | G194: =VLOOKUP(F194,Soutez!B:C,2,FALSE) -> CZ | H194: =VLOOKUP(F194,Soutez!B:D,3,FALSE) -> 2020 | I194: 8 | J194: 1955 | K194: 0.9 | L194: 7426 | M194: 6683 | P194: LS8a/15m | Q194: JW
A195: Hana Treslova | B195: 1991 | C195: F | D195: Raná | E195: CZ/C2 | F195: AZ Cup 2020 - Kombi A | G195: =VLOOKUP(F195,Soutez!B:C,2,FALSE) -> CZ | H195: =VLOOKUP(F195,Soutez!B:D,3,FALSE) -> 2020 | I195: 9 | J195: 1922 | K195: 0.9 | L195: 7175 | M195: 6458 | P195: Ventus 2ax | Q195: AX
A196: Barbora Moravcova | B196: 1994 | C196: F | D196: Zbraslavice | E196: CZ/C1 | F196: AZ Cup 2020 - Kombi A | G196: =VLOOKUP(F196,Soutez!B:C,2,FALSE) -> CZ | H196: =VLOOKUP(F196,Soutez!B:D,3,FALSE) -> 2020 | I196: 10 | J196: 1914 | K196: 0.9 | L196: 6994 | M196: 6295 | P196: LS8 15m | Q196: EU
A197: Dana Novakova | B197: 1965 | C197: F | D197: Mladá Boleslav | E197: CZ/C1 | F197: AZ Cup 2020 - Kombi A | G197: =VLOOKUP(F197,Soutez!B:C,2,FALSE) -> CZ | H197: =VLOOKUP(F197,Soutez!B:D,3,FALSE) -> 2020 | I197: 11 | J197: 1890 | K197: 0.9 | L197: 6769 | M197: 6092 | P197: LS-8 | Q197: AU
A198: Eduard Niko | B198: 1988 | C198: M | D198: Zbraslavice | E198: CZ/C1 | F198: AZ Cup 2020 - Kombi A | G198: =VLOOKUP(F198,Soutez!B:C,2,FALSE) -> CZ | H198: =VLOOKUP(F198,Soutez!B:D,3,FALSE) -> 2020 | I198: 12 | J198: 1865 | K198: 0.9 | L198: =ROUND(J198/MAX($J$187:$J$206)*10000*0.7+(MAX($I$187:$I$206)-I198)/(MAX($I$187:$I$206)-1)*10000*0.3,0) -> 6540 | M198: 5886 | P198: ASW-20 | Q198: EW
A199: Jana Treslova | B199: =VLOOKUP(A199,Pilot,2,0) -> 1963 | C199: =VLOOKUP(A199,Pilot,5,0) -> F | D199: =VLOOKUP(A199,Pilot,3,0) -> Raná | E199: =VLOOKUP(A199,Pilot,4,0) -> CZ/C2 | F199: AZ Cup 2020 - Kombi A | G199: =VLOOKUP(F199,Soutez!B:C,2,FALSE) -> CZ | H199: =VLOOKUP(F199,Soutez!B:D,3,FALSE) -> 2020 | I199: 13 | J199: 1819 | K199: 0.9 | L199: 6252 | M199: 5627 | P199: Discus 2a | Q199: GX
A200: Jiri Kusbach | B200: 1959 | C200: M | D200: Luhačovice | E200: CZ/M | F200: AZ Cup 2020 - Kombi A | G200: =VLOOKUP(F200,Soutez!B:C,2,FALSE) -> CZ | H200: =VLOOKUP(F200,Soutez!B:D,3,FALSE) -> 2020 | I200: 14 | J200: 1555 | K200: 0.9 | L200: 5347 | M200: 4812 | P200: KKB 15FES | Q200: B
... 2440 more rows

Sheet Zebrik G
B1: ="Všeobecný Žebřík pilotů plachtařů PK AeČR "&A6 -> Všeobecný Žebřík pilotů plachtařů PK AeČR 2022 | I1: =Zmeny!A4 -> 2023-01-08 | J1: Rev. | K1: =Zmeny!B4 -> 01 | L1: =Zmeny!C4 -> Aktualizovány koeficienty soutěží dle rozhodnutí PK AeČR
B3: G | C3: x | I3: Junior v roce: | J3: Junior v roce: | K3: ="Repre družstvo "&I4 -> Repre družstvo 2023 | L3: ="Repre výběr "&I4 -> Repre výběr 2023 | M3: ="W "&L3 -> W Repre výběr 2023 | N3: Poznámka
I4: =A6+1 -> 2023 | J4: =I4+1 -> 2024 | K4: (RD) | L4: (RV) | M4: (WRV)
A5: Pořadí | G5: Data | I5: =COUNTIF(I7:I949,"Junior v roce "&$I$4) -> 50 | J5: =COUNTIF(J7:J949,"Junior v roce "&$J$4) -> 46 | K5: =COUNTIF(K7:K949,"RD "&$I$4) -> 0 | L5: =COUNTIF(L7:L949,"RV "&$I$4) -> 31 | M5: =COUNTIF(M7:M949,"WRV "&$I$4) -> 9 | N5: =COUNTIF(N7:N949,"<>") -> 0
A6: 2022 | B6: Jméno | C6: Rok narození | D6: M/F | E6: Aeroklub | F6: Region | G6: Součet z Bi×Kinp | H6: Počet G
A7: =RANK(G7,G:G) -> 1 | B7: Tomas Suchanek | C7: 1964 | D7: M | E7: GAC Benešov | F7: CZ/C1 | G7: 31165 | H7: 3 | I7: =IF(C7="(prázdné)","",IF(($I$4-C7)>25,"","Junior v roce "&$I$4)) ->  | J7: =IF(C7="(prázdné)","",IF(($J$4-C7)>25,"","Junior v roce "&$J$4)) ->  | L7: RV 2023 | M7: =IF(ISERROR(VLOOKUP(B7,'Zebrik W'!$B$7:$L$992,11,0)),"",IF(VLOOKUP(B7,'Zebrik W'!$B$7:$L$992,11,0)=0,"--",VLOOKUP(B7,'Zebrik W'!$B$7:$L$992,11,0))) -> 
A8: 2 | B8: Radek Krejcirik | C8: 1991 | D8: M | E8: Hranice | F8: CZ/M | G8: 30540 | H8: 3 | I8: =IF(C8="(prázdné)","",IF(($I$4-C8)>25,"","Junior v roce "&$I$4)) ->  | J8: =IF(C8="(prázdné)","",IF(($J$4-C8)>25,"","Junior v roce "&$J$4)) ->  | L8: RV 2023 | M8: =IF(ISERROR(VLOOKUP(B8,'Zebrik W'!$B$7:$L$992,11,0)),"",IF(VLOOKUP(B8,'Zebrik W'!$B$7:$L$992,11,0)=0,"--",VLOOKUP(B8,'Zebrik W'!$B$7:$L$992,11,0))) -> 
A9: 3 | B9: Miloslav Cink | C9: 1987 | D9: M | E9: Letkov | F9: CZ/C1 | G9: 30458 | H9: 3 | I9: =IF(C9="(prázdné)","",IF(($I$4-C9)>25,"","Junior v roce "&$I$4)) ->  | L9: RV 2023 | M9: =IF(ISERROR(VLOOKUP(B9,'Zebrik W'!$B$7:$L$992,11,0)),"",IF(VLOOKUP(B9,'Zebrik W'!$B$7:$L$992,11,0)=0,"--",VLOOKUP(B9,'Zebrik W'!$B$7:$L$992,11,0))) -> 
A10: 4 | B10: Jan Pavlik | C10: 1987 | D10: M | E10: Křižanov | F10: CZ/M | G10: 30388 | H10: 3 | L10: RV 2023 | M10: =IF(ISERROR(VLOOKUP(B10,'Zebrik W'!$B$7:$L$992,11,0)),"",IF(VLOOKUP(B10,'Zebrik W'!$B$7:$L$992,11,0)=0,"--",VLOOKUP(B10,'Zebrik W'!$B$7:$L$992,11,0))) -> 
A11: 5 | B11: Roman Mracek | C11: 1980 | D11: M | E11: Letkov | F11: CZ/C1 | G11: 30059 | H11: 3 | L11: RV 2023 | M11: =IF(ISERROR(VLOOKUP(B11,'Zebrik W'!$B$7:$L$992,11,0)),"",IF(VLOOKUP(B11,'Zebrik W'!$B$7:$L$992,11,0)=0,"--",VLOOKUP(B11,'Zebrik W'!$B$7:$L$992,11,0))) -> 
A12: 6 | B12: Ivan Novak | C12: 1962 | D12: M | E12: Mladá Boleslav | F12: CZ/C1 | G12: 29600 | H12: 3 | L12: RV 2023 | M12: =IF(ISERROR(VLOOKUP(B12,'Zebrik W'!$B$7:$L$992,11,0)),"",IF(VLOOKUP(B12,'Zebrik W'!$B$7:$L$992,11,0)=0,"--",VLOOKUP(B12,'Zebrik W'!$B$7:$L$992,11,0))) -> 
A13: 7 | B13: Michal Lesinger | C13: 1966 | D13: M | E13: Moravská Třebová | F13: CZ/M | G13: 29597 | H13: 3 | L13: RV 2023 | M13: =IF(ISERROR(VLOOKUP(B13,'Zebrik W'!$B$7:$L$992,11,0)),"",IF(VLOOKUP(B13,'Zebrik W'!$B$7:$L$992,11,0)=0,"--",VLOOKUP(B13,'Zebrik W'!$B$7:$L$992,11,0))) -> 
A14: 8 | B14: Pavel Louzecky | C14: 1957 | D14: M | E14: Přibyslav | F14: CZ/C2 | G14: 29550 | H14: 3 | L14: RV 2023 | M14: =IF(ISERROR(VLOOKUP(B14,'Zebrik W'!$B$7:$L$992,11,0)),"",IF(VLOOKUP(B14,'Zebrik W'!$B$7:$L$992,11,0)=0,"--",VLOOKUP(B14,'Zebrik W'!$B$7:$L$992,11,0))) -> 
A15: 9 | B15: Radek Kucirek | C15: 1973 | D15: M | E15: Havlíčkův Brod | F15: CZ/C2 | G15: 29408 | H15: 3 | L15: RV 2023 | M15: =IF(ISERROR(VLOOKUP(B15,'Zebrik W'!$B$7:$L$992,11,0)),"",IF(VLOOKUP(B15,'Zebrik W'!$B$7:$L$992,11,0)=0,"--",VLOOKUP(B15,'Zebrik W'!$B$7:$L$992,11,0))) -> 
A16: 10 | B16: David Mach | C16: 1994 | D16: M | E16: Hronov | F16: CZ/C2 | G16: 28750 | H16: 3 | L16: RV 2023 | M16: =IF(ISERROR(VLOOKUP(B16,'Zebrik W'!$B$7:$L$992,11,0)),"",IF(VLOOKUP(B16,'Zebrik W'!$B$7:$L$992,11,0)=0,"--",VLOOKUP(B16,'Zebrik W'!$B$7:$L$992,11,0))) -> 
A17: 11 | B17: Tomas Rendla | C17: 1973 | D17: M | E17: Zbraslavice | F17: CZ/C1 | G17: 28719 | H17: 3 | L17: RV 2023 | M17: =IF(ISERROR(VLOOKUP(B17,'Zebrik W'!$B$7:$L$992,11,0)),"",IF(VLOOKUP(B17,'Zebrik W'!$B$7:$L$992,11,0)=0,"--",VLOOKUP(B17,'Zebrik W'!$B$7:$L$992,11,0))) -> 
A18: 12 | B18: Jan Ratz | C18: 1987 | D18: M | E18: Zbraslavice | F18: CZ/C1 | G18: 28485 | H18: 3 | L18: RV 2023 | M18: =IF(ISERROR(VLOOKUP(B18,'Zebrik W'!$B$7:$L$992,11,0)),"",IF(VLOOKUP(B18,'Zebrik W'!$B$7:$L$992,11,0)=0,"--",VLOOKUP(B18,'Zebrik W'!$B$7:$L$992,11,0))) -> 
A19: 13 | B19: Lukas Kriz | C19: 2003 | D19: M | E19: Křižanov | F19: CZ/M | G19: 28454 | H19: 3 | I19: Junior v roce 2023 | J19: Junior v roce 2024 | L19: RV 2023 | M19: =IF(ISERROR(VLOOKUP(B19,'Zebrik W'!$B$7:$L$992,11,0)),"",IF(VLOOKUP(B19,'Zebrik W'!$B$7:$L$992,11,0)=0,"--",VLOOKUP(B19,'Zebrik W'!$B$7:$L$992,11,0))) -> 
A20: 14 | B20: Jan Zapletal | C20: 1997 | D20: M | E20: Břeclav | F20: CZ/M | G20: 28447 | H20: 3 | L20: RV 2023 | M20: =IF(ISERROR(VLOOKUP(B20,'Zebrik W'!$B$7:$L$992,11,0)),"",IF(VLOOKUP(B20,'Zebrik W'!$B$7:$L$992,11,0)=0,"--",VLOOKUP(B20,'Zebrik W'!$B$7:$L$992,11,0))) -> 
A21: 15 | B21: Karel Novak | C21: 1993 | D21: M | E21: Mladá Boleslav | F21: CZ/C1 | G21: 28417 | H21: 3 | L21: RV 2023 | M21: =IF(ISERROR(VLOOKUP(B21,'Zebrik W'!$B$7:$L$992,11,0)),"",IF(VLOOKUP(B21,'Zebrik W'!$B$7:$L$992,11,0)=0,"--",VLOOKUP(B21,'Zebrik W'!$B$7:$L$992,11,0))) -> 
A22: 16 | B22: Ondrej Bordovsky | C22: 1983 | D22: M | E22: Krnov | F22: CZ/M | G22: 28369 | H22: 3 | L22: RV 2023 | M22: =IF(ISERROR(VLOOKUP(B22,'Zebrik W'!$B$7:$L$992,11,0)),"",IF(VLOOKUP(B22,'Zebrik W'!$B$7:$L$992,11,0)=0,"--",VLOOKUP(B22,'Zebrik W'!$B$7:$L$992,11,0))) -> 
A23: 17 | B23: Petr Koutny | C23: 1971 | D23: M | E23: Křižanov | F23: CZ/M | G23: 28281 | H23: 3 | L23: RV 2023 | M23: =IF(ISERROR(VLOOKUP(B23,'Zebrik W'!$B$7:$L$992,11,0)),"",IF(VLOOKUP(B23,'Zebrik W'!$B$7:$L$992,11,0)=0,"--",VLOOKUP(B23,'Zebrik W'!$B$7:$L$992,11,0))) -> 
A24: 18 | B24: Jaromir Macoun | C24: 1999 | D24: M | E24: Jičín | F24: CZ/C2 | G24: 28257 | H24: 3 | I24: Junior v roce 2023 | J24: Junior v roce 2024 | L24: RV 2023 | M24: =IF(ISERROR(VLOOKUP(B24,'Zebrik W'!$B$7:$L$992,11,0)),"",IF(VLOOKUP(B24,'Zebrik W'!$B$7:$L$992,11,0)=0,"--",VLOOKUP(B24,'Zebrik W'!$B$7:$L$992,11,0))) -> 
A25: 19 | B25: Jaroslav Tomana | C25: 1975 | D25: M | E25: Zbraslavice | F25: CZ/C1 | G25: 28164 | H25: 3 | L25: RV 2023 | M25: =IF(ISERROR(VLOOKUP(B25,'Zebrik W'!$B$7:$L$992,11,0)),"",IF(VLOOKUP(B25,'Zebrik W'!$B$7:$L$992,11,0)=0,"--",VLOOKUP(B25,'Zebrik W'!$B$7:$L$992,11,0))) -> 
A26: 20 | B26: Pavel Trybenekr | C26: 1990 | D26: M | E26: Hořice | F26: CZ/C2 | G26: 28085 | H26: 3 | I26: =IF(C26="(prázdné)","",IF(($I$4-C26)>25,"","Junior v roce "&$I$4)) ->  | L26: RV 2023 | M26: =IF(ISERROR(VLOOKUP(B26,'Zebrik W'!$B$7:$L$992,11,0)),"",IF(VLOOKUP(B26,'Zebrik W'!$B$7:$L$992,11,0)=0,"--",VLOOKUP(B26,'Zebrik W'!$B$7:$L$992,11,0))) -> 
A27: 21 | B27: Petr Tichy | C27: 1973 | D27: M | E27: Zbraslavice | F27: CZ/C1 | G27: 27822 | H27: 3 | M27: =IF(ISERROR(VLOOKUP(B27,'Zebrik W'!$B$7:$L$992,11,0)),"",IF(VLOOKUP(B27,'Zebrik W'!$B$7:$L$992,11,0)=0,"--",VLOOKUP(B27,'Zebrik W'!$B$7:$L$992,11,0))) -> 
A28: 22 | B28: Jan Kotan | C28: 1982 | D28: M | E28: Letňany | F28: CZ/C1 | G28: 27609 | H28: 3 | M28: =IF(ISERROR(VLOOKUP(B28,'Zebrik W'!$B$7:$L$992,11,0)),"",IF(VLOOKUP(B28,'Zebrik W'!$B$7:$L$992,11,0)=0,"--",VLOOKUP(B28,'Zebrik W'!$B$7:$L$992,11,0))) -> 
A29: 23 | B29: Zdenek Boruvka 86 | C29: 1986 | D29: M | E29: Jičín | F29: CZ/C2 | G29: 27453 | H29: 3 | M29: =IF(ISERROR(VLOOKUP(B29,'Zebrik W'!$B$7:$L$992,11,0)),"",IF(VLOOKUP(B29,'Zebrik W'!$B$7:$L$992,11,0)=0,"--",VLOOKUP(B29,'Zebrik W'!$B$7:$L$992,11,0))) -> 
A30: 24 | B30: Jiri Kusbach | C30: 1959 | D30: M | E30: Luhačovice | F30: CZ/M | G30: 27451 | H30: 3 | M30: =IF(ISERROR(VLOOKUP(B30,'Zebrik W'!$B$7:$L$992,11,0)),"",IF(VLOOKUP(B30,'Zebrik W'!$B$7:$L$992,11,0)=0,"--",VLOOKUP(B30,'Zebrik W'!$B$7:$L$992,11,0))) -> 
A31: 25 | B31: Alena Netusilova | C31: 1970 | D31: F | E31: Zbraslavice | F31: CZ/C1 | G31: 27429 | H31: 3 | L31: RV 2023 | M31: =IF(ISERROR(VLOOKUP(B31,'Zebrik W'!$B$7:$L$992,11,0)),"",IF(VLOOKUP(B31,'Zebrik W'!$B$7:$L$992,11,0)=0,"--",VLOOKUP(B31,'Zebrik W'!$B$7:$L$992,11,0))) -> WRV 2023
A32: 26 | B32: Pavel Jiranek | C32: 1993 | D32: M | E32: Toužim | F32: CZ/C1 | G32: 27228 | H32: 3 | M32: =IF(ISERROR(VLOOKUP(B32,'Zebrik W'!$B$7:$L$992,11,0)),"",IF(VLOOKUP(B32,'Zebrik W'!$B$7:$L$992,11,0)=0,"--",VLOOKUP(B32,'Zebrik W'!$B$7:$L$992,11,0))) -> 
A33: 27 | B33: Petr Hotovy | C33: 1958 | D33: M | E33: Česká Lípa | F33: CZ/C2 | G33: 26995 | H33: 3 | M33: =IF(ISERROR(VLOOKUP(B33,'Zebrik W'!$B$7:$L$992,11,0)),"",IF(VLOOKUP(B33,'Zebrik W'!$B$7:$L$992,11,0)=0,"--",VLOOKUP(B33,'Zebrik W'!$B$7:$L$992,11,0))) -> 
A34: 28 | B34: Jan Boruvka | C34: 1984 | D34: M | E34: Jičín | F34: CZ/C2 | G34: 26966 | H34: 3 | M34: =IF(ISERROR(VLOOKUP(B34,'Zebrik W'!$B$7:$L$992,11,0)),"",IF(VLOOKUP(B34,'Zebrik W'!$B$7:$L$992,11,0)=0,"--",VLOOKUP(B34,'Zebrik W'!$B$7:$L$992,11,0))) -> 
A35: 29 | B35: Josef Novotny | C35: 1983 | D35: M | E35: Přibyslav | F35: CZ/C2 | G35: 26841 | H35: 3 | M35: =IF(ISERROR(VLOOKUP(B35,'Zebrik W'!$B$7:$L$992,11,0)),"",IF(VLOOKUP(B35,'Zebrik W'!$B$7:$L$992,11,0)=0,"--",VLOOKUP(B35,'Zebrik W'!$B$7:$L$992,11,0))) -> 
A36: 30 | B36: Vit Morkovsky | C36: 2000 | D36: M | E36: Polička | F36: CZ/C2 | G36: 26425 | H36: 3 | I36: Junior v roce 2023 | J36: Junior v roce 2024 | L36: RV 2023 | M36: =IF(ISERROR(VLOOKUP(B36,'Zebrik W'!$B$7:$L$992,11,0)),"",IF(VLOOKUP(B36,'Zebrik W'!$B$7:$L$992,11,0)=0,"--",VLOOKUP(B36,'Zebrik W'!$B$7:$L$992,11,0))) -> 
A37: 31 | B37: Dana Novakova | C37: 1965 | D37: F | E37: Mladá Boleslav | F37: CZ/C1 | G37: 26395 | H37: 3 | L37: RV 2023 | M37: =IF(ISERROR(VLOOKUP(B37,'Zebrik W'!$B$7:$L$992,11,0)),"",IF(VLOOKUP(B37,'Zebrik W'!$B$7:$L$992,11,0)=0,"--",VLOOKUP(B37,'Zebrik W'!$B$7:$L$992,11,0))) -> WRV 2023
A38: 32 | B38: Barbora Moravcova | C38: 1994 | D38: F | E38: Zbraslavice | F38: CZ/C1 | G38: 26372 | H38: 3 | L38: RV 2023 | M38: =IF(ISERROR(VLOOKUP(B38,'Zebrik W'!$B$7:$L$992,11,0)),"",IF(VLOOKUP(B38,'Zebrik W'!$B$7:$L$992,11,0)=0,"--",VLOOKUP(B38,'Zebrik W'!$B$7:$L$992,11,0))) -> WRV 2023
A39: 33 | B39: Frantisek Vancura | C39: 1966 | D39: M | E39: Hranice | F39: CZ/M | G39: 26029 | H39: 3 | M39: =IF(ISERROR(VLOOKUP(B39,'Zebrik W'!$B$7:$L$992,11,0)),"",IF(VLOOKUP(B39,'Zebrik W'!$B$7:$L$992,11,0)=0,"--",VLOOKUP(B39,'Zebrik W'!$B$7:$L$992,11,0))) -> 
A40: 34 | B40: Martin Ficnar | C40: 1971 | D40: M | E40: Šumperk | F40: CZ/M | G40: 25821 | H40: 3 | M40: =IF(ISERROR(VLOOKUP(B40,'Zebrik W'!$B$7:$L$992,11,0)),"",IF(VLOOKUP(B40,'Zebrik W'!$B$7:$L$992,11,0)=0,"--",VLOOKUP(B40,'Zebrik W'!$B$7:$L$992,11,0))) -> 
A41: 35 | B41: Petr Krejcirik | C41: 1960 | D41: M | E41: Hranice | F41: CZ/M | G41: 25805 | H41: 3 | M41: =IF(ISERROR(VLOOKUP(B41,'Zebrik W'!$B$7:$L$992,11,0)),"",IF(VLOOKUP(B41,'Zebrik W'!$B$7:$L$992,11,0)=0,"--",VLOOKUP(B41,'Zebrik W'!$B$7:$L$992,11,0))) -> 
A42: 36 | B42: Marek Blatak | C42: 1969 | D42: M | E42: Šumperk | F42: CZ/M | G42: 25737 | H42: 3 | M42: =IF(ISERROR(VLOOKUP(B42,'Zebrik W'!$B$7:$L$992,11,0)),"",IF(VLOOKUP(B42,'Zebrik W'!$B$7:$L$992,11,0)=0,"--",VLOOKUP(B42,'Zebrik W'!$B$7:$L$992,11,0))) -> 
A43: 37 | B43: Tereza Koubkova | C43: 1999 | D43: F | E43: Vysoké Mýto | F43: CZ/C2 | G43: 25693 | H43: 3 | I43: Junior v roce 2023 | J43: Junior v roce 2024 | L43: RV 2023 | M43: =IF(ISERROR(VLOOKUP(B43,'Zebrik W'!$B$7:$L$992,11,0)),"",IF(VLOOKUP(B43,'Zebrik W'!$B$7:$L$992,11,0)=0,"--",VLOOKUP(B43,'Zebrik W'!$B$7:$L$992,11,0))) -> WRV 2023
A44: 38 | B44: Jindrich Svorc | C44: 1978 | D44: M | E44: Letňany | F44: CZ/C1 | G44: 25681 | H44: 3 | I44: =IF(C44="(prázdné)","",IF(($I$4-C44)>25,"","Junior v roce "&$I$4)) ->  | J44: =IF(C44="(prázdné)","",IF(($J$4-C44)>25,"","Junior v roce "&$J$4)) ->  | M44: =IF(ISERROR(VLOOKUP(B44,'Zebrik W'!$B$7:$L$992,11,0)),"",IF(VLOOKUP(B44,'Zebrik W'!$B$7:$L$992,11,0)=0,"--",VLOOKUP(B44,'Zebrik W'!$B$7:$L$992,11,0))) -> 
A45: 39 | B45: Jan Louda | C45: 1986 | D45: M | E45: Mladá Boleslav | F45: CZ/C1 | G45: 25657 | H45: 3 | M45: =IF(ISERROR(VLOOKUP(B45,'Zebrik W'!$B$7:$L$992,11,0)),"",IF(VLOOKUP(B45,'Zebrik W'!$B$7:$L$992,11,0)=0,"--",VLOOKUP(B45,'Zebrik W'!$B$7:$L$992,11,0))) -> 
A46: 40 | B46: Michaela Rendlova | C46: 2004 | D46: F | E46: Toužim | F46: CZ/C1 | G46: 25365 | H46: 3 | I46: Junior v roce 2023 | J46: Junior v roce 2024 | L46: RV 2023 | M46: =IF(ISERROR(VLOOKUP(B46,'Zebrik W'!$B$7:$L$992,11,0)),"",IF(VLOOKUP(B46,'Zebrik W'!$B$7:$L$992,11,0)=0,"--",VLOOKUP(B46,'Zebrik W'!$B$7:$L$992,11,0))) -> WRV 2023
A47: 41 | B47: Hana Treslova | C47: 1991 | D47: F | E47: Raná | F47: CZ/C2 | G47: 25304 | H47: 3 | L47: RV 2023 | M47: =IF(ISERROR(VLOOKUP(B47,'Zebrik W'!$B$7:$L$992,11,0)),"",IF(VLOOKUP(B47,'Zebrik W'!$B$7:$L$992,11,0)=0,"--",VLOOKUP(B47,'Zebrik W'!$B$7:$L$992,11,0))) -> WRV 2023
A48: 42 | B48: Martin Hrivna | C48: 1978 | D48: M | E48: Zbraslavice | F48: CZ/C1 | G48: 25235 | H48: 3 | M48: =IF(ISERROR(VLOOKUP(B48,'Zebrik W'!$B$7:$L$992,11,0)),"",IF(VLOOKUP(B48,'Zebrik W'!$B$7:$L$992,11,0)=0,"--",VLOOKUP(B48,'Zebrik W'!$B$7:$L$992,11,0))) -> 
A49: 43 | B49: Jan Stastny | C49: 2003 | D49: M | E49: Medlánky | F49: CZ/M | G49: 24915 | H49: 3 | I49: Junior v roce 2023 | J49: Junior v roce 2024 | L49: RV 2023 | M49: =IF(ISERROR(VLOOKUP(B49,'Zebrik W'!$B$7:$L$992,11,0)),"",IF(VLOOKUP(B49,'Zebrik W'!$B$7:$L$992,11,0)=0,"--",VLOOKUP(B49,'Zebrik W'!$B$7:$L$992,11,0))) -> 
A50: 44 | B50: Radek Zima 78 | C50: 1978 | D50: M | E50: Hodkovice | F50: CZ/C2 | G50: 24882 | H50: 3 | M50: =IF(ISERROR(VLOOKUP(B50,'Zebrik W'!$B$7:$L$992,11,0)),"",IF(VLOOKUP(B50,'Zebrik W'!$B$7:$L$992,11,0)=0,"--",VLOOKUP(B50,'Zebrik W'!$B$7:$L$992,11,0))) -> 
A51: 45 | B51: David Sachl | C51: 1978 | D51: M | E51: Kralupy | F51: CZ/C1 | G51: 24820 | H51: 3 | M51: =IF(ISERROR(VLOOKUP(B51,'Zebrik W'!$B$7:$L$992,11,0)),"",IF(VLOOKUP(B51,'Zebrik W'!$B$7:$L$992,11,0)=0,"--",VLOOKUP(B51,'Zebrik W'!$B$7:$L$992,11,0))) -> 
A52: 46 | B52: Ivan Tvrdik | C52: 1997 | D52: M | E52: Letňany | F52: CZ/C1 | G52: 24706 | H52: 3 | M52: =IF(ISERROR(VLOOKUP(B52,'Zebrik W'!$B$7:$L$992,11,0)),"",IF(VLOOKUP(B52,'Zebrik W'!$B$7:$L$992,11,0)=0,"--",VLOOKUP(B52,'Zebrik W'!$B$7:$L$992,11,0))) -> 
A53: 47 | B53: Ondrej Dupal | C53: 1966 | D53: M | E53: GAC Benešov | F53: CZ/C1 | G53: 24626 | H53: 3 | M53: =IF(ISERROR(VLOOKUP(B53,'Zebrik W'!$B$7:$L$992,11,0)),"",IF(VLOOKUP(B53,'Zebrik W'!$B$7:$L$992,11,0)=0,"--",VLOOKUP(B53,'Zebrik W'!$B$7:$L$992,11,0))) -> 
A54: 48 | B54: Michal Cechmanek | C54: 1978 | D54: M | E54: Luhačovice | F54: CZ/M | G54: 24420 | H54: 3 | M54: =IF(ISERROR(VLOOKUP(B54,'Zebrik W'!$B$7:$L$992,11,0)),"",IF(VLOOKUP(B54,'Zebrik W'!$B$7:$L$992,11,0)=0,"--",VLOOKUP(B54,'Zebrik W'!$B$7:$L$992,11,0))) -> 
A55: 49 | B55: Jan Dersak 69 | C55: 1969 | D55: M | E55: Kralupy | F55: CZ/C1 | G55: 24288 | H55: 3 | M55: =IF(ISERROR(VLOOKUP(B55,'Zebrik W'!$B$7:$L$992,11,0)),"",IF(VLOOKUP(B55,'Zebrik W'!$B$7:$L$992,11,0)=0,"--",VLOOKUP(B55,'Zebrik W'!$B$7:$L$992,11,0))) -> 
A56: 50 | B56: Martin Urner | C56: 1974 | D56: M | E56: Letňany | F56: CZ/C1 | G56: 24269 | H56: 3 | M56: =IF(ISERROR(VLOOKUP(B56,'Zebrik W'!$B$7:$L$992,11,0)),"",IF(VLOOKUP(B56,'Zebrik W'!$B$7:$L$992,11,0)=0,"--",VLOOKUP(B56,'Zebrik W'!$B$7:$L$992,11,0))) -> 
A57: 51 | B57: Jan Horak | C57: 1971 | D57: M | E57: Zbraslavice | F57: CZ/C1 | G57: 24091 | H57: 3 | M57: =IF(ISERROR(VLOOKUP(B57,'Zebrik W'!$B$7:$L$992,11,0)),"",IF(VLOOKUP(B57,'Zebrik W'!$B$7:$L$992,11,0)=0,"--",VLOOKUP(B57,'Zebrik W'!$B$7:$L$992,11,0))) -> 
A58: 52 | B58: Michaela Krizova | C58: 2001 | D58: F | E58: Přibyslav | F58: CZ/C2 | G58: 23794 | H58: 3 | I58: Junior v roce 2023 | J58: Junior v roce 2024 | L58: RV 2023 | M58: =IF(ISERROR(VLOOKUP(B58,'Zebrik W'!$B$7:$L$992,11,0)),"",IF(VLOOKUP(B58,'Zebrik W'!$B$7:$L$992,11,0)=0,"--",VLOOKUP(B58,'Zebrik W'!$B$7:$L$992,11,0))) -> WRV 2023
A59: 53 | B59: Vratislav Sram | C59: 1966 | D59: M | E59: Broumov | F59: CZ/C2 | G59: 23769 | H59: 3 | M59: =IF(ISERROR(VLOOKUP(B59,'Zebrik W'!$B$7:$L$992,11,0)),"",IF(VLOOKUP(B59,'Zebrik W'!$B$7:$L$992,11,0)=0,"--",VLOOKUP(B59,'Zebrik W'!$B$7:$L$992,11,0))) -> 
A60: 54 | B60: Josef Novak | C60: 1981 | D60: M | E60: Kunovice | F60: CZ/M | G60: 23661 | H60: 3 | M60: =IF(ISERROR(VLOOKUP(B60,'Zebrik W'!$B$7:$L$992,11,0)),"",IF(VLOOKUP(B60,'Zebrik W'!$B$7:$L$992,11,0)=0,"--",VLOOKUP(B60,'Zebrik W'!$B$7:$L$992,11,0))) -> 
A61: 55 | B61: Jana Veprekova | C61: 1961 | D61: F | E61: Dvůr Králové | F61: CZ/C2 | G61: 23564 | H61: 3 | L61: RV 2023 | M61: =IF(ISERROR(VLOOKUP(B61,'Zebrik W'!$B$7:$L$992,11,0)),"",IF(VLOOKUP(B61,'Zebrik W'!$B$7:$L$992,11,0)=0,"--",VLOOKUP(B61,'Zebrik W'!$B$7:$L$992,11,0))) -> WRV 2023
A62: 56 | B62: Vladimir Hammer | C62: 2000 | D62: M | E62: Letkov | F62: CZ/C1 | G62: 23512 | H62: 3 | I62: Junior v roce 2023 | J62: Junior v roce 2024 | M62: =IF(ISERROR(VLOOKUP(B62,'Zebrik W'!$B$7:$L$992,11,0)),"",IF(VLOOKUP(B62,'Zebrik W'!$B$7:$L$992,11,0)=0,"--",VLOOKUP(B62,'Zebrik W'!$B$7:$L$992,11,0))) -> 
A63: 57 | B63: Eduard Niko | C63: 1988 | D63: M | E63: Zbraslavice | F63: CZ/C1 | G63: 23380 | H63: 3 | M63: =IF(ISERROR(VLOOKUP(B63,'Zebrik W'!$B$7:$L$992,11,0)),"",IF(VLOOKUP(B63,'Zebrik W'!$B$7:$L$992,11,0)=0,"--",VLOOKUP(B63,'Zebrik W'!$B$7:$L$992,11,0))) -> 
A64: 58 | B64: Lubomir Motl | C64: 1959 | D64: M | E64: Kyjov | F64: CZ/M | G64: 23337 | H64: 3 | M64: =IF(ISERROR(VLOOKUP(B64,'Zebrik W'!$B$7:$L$992,11,0)),"",IF(VLOOKUP(B64,'Zebrik W'!$B$7:$L$992,11,0)=0,"--",VLOOKUP(B64,'Zebrik W'!$B$7:$L$992,11,0))) -> 
A65: 59 | B65: Tomas Hynek | C65: 2002 | D65: M | E65: Dvůr Králové | F65: CZ/C2 | G65: 23172 | H65: 3 | I65: Junior v roce 2023 | J65: Junior v roce 2024 | M65: =IF(ISERROR(VLOOKUP(B65,'Zebrik W'!$B$7:$L$992,11,0)),"",IF(VLOOKUP(B65,'Zebrik W'!$B$7:$L$992,11,0)=0,"--",VLOOKUP(B65,'Zebrik W'!$B$7:$L$992,11,0))) -> 
A66: 60 | B66: Karel Benisek 76 | C66: 1976 | D66: M | E66: Toužim | F66: CZ/C1 | G66: 23166 | H66: 3 | M66: =IF(ISERROR(VLOOKUP(B66,'Zebrik W'!$B$7:$L$992,11,0)),"",IF(VLOOKUP(B66,'Zebrik W'!$B$7:$L$992,11,0)=0,"--",VLOOKUP(B66,'Zebrik W'!$B$7:$L$992,11,0))) -> 
A67: 61 | B67: Jiri Steiger | C67: 1969 | D67: M | E67: Olomouc | F67: CZ/M | G67: 23003 | H67: 3 | M67: =IF(ISERROR(VLOOKUP(B67,'Zebrik W'!$B$7:$L$992,11,0)),"",IF(VLOOKUP(B67,'Zebrik W'!$B$7:$L$992,11,0)=0,"--",VLOOKUP(B67,'Zebrik W'!$B$7:$L$992,11,0))) -> 
A68: 62 | B68: Rene Hudak | C68: 1972 | D68: M | E68: Kunovice | F68: CZ/M | G68: 22612 | H68: 3 | M68: =IF(ISERROR(VLOOKUP(B68,'Zebrik W'!$B$7:$L$992,11,0)),"",IF(VLOOKUP(B68,'Zebrik W'!$B$7:$L$992,11,0)=0,"--",VLOOKUP(B68,'Zebrik W'!$B$7:$L$992,11,0))) -> 
A69: 63 | B69: Jiri Stepanek | C69: 1956 | D69: M | E69: Moravská Třebová | F69: CZ/M | G69: 22438 | H69: 3 | M69: =IF(ISERROR(VLOOKUP(B69,'Zebrik W'!$B$7:$L$992,11,0)),"",IF(VLOOKUP(B69,'Zebrik W'!$B$7:$L$992,11,0)=0,"--",VLOOKUP(B69,'Zebrik W'!$B$7:$L$992,11,0))) -> 
A70: 64 | B70: Miroslav Koci | C70: 1961 | D70: M | E70: Žamberk | F70: CZ/C2 | G70: 22290 | H70: 3 | M70: =IF(ISERROR(VLOOKUP(B70,'Zebrik W'!$B$7:$L$992,11,0)),"",IF(VLOOKUP(B70,'Zebrik W'!$B$7:$L$992,11,0)=0,"--",VLOOKUP(B70,'Zebrik W'!$B$7:$L$992,11,0))) -> 
A71: =RANK(G71,G:G) -> 65 | B71: Vojtech Novotny | C71: 1992 | D71: M | E71: Kralupy | F71: CZ/C1 | G71: 22249 | H71: 3 | M71: =IF(ISERROR(VLOOKUP(B71,'Zebrik W'!$B$7:$L$992,11,0)),"",IF(VLOOKUP(B71,'Zebrik W'!$B$7:$L$992,11,0)=0,"--",VLOOKUP(B71,'Zebrik W'!$B$7:$L$992,11,0))) -> 
A72: 66 | B72: Oldrich Slavicek | C72: 1959 | D72: M | E72: Hronov | F72: CZ/C2 | G72: 22164 | H72: 3 | M72: =IF(ISERROR(VLOOKUP(B72,'Zebrik W'!$B$7:$L$992,11,0)),"",IF(VLOOKUP(B72,'Zebrik W'!$B$7:$L$992,11,0)=0,"--",VLOOKUP(B72,'Zebrik W'!$B$7:$L$992,11,0))) -> 
A73: 67 | B73: Jaroslav Buryan | C73: 1953 | D73: M | E73: Zábřeh | F73: CZ/M | G73: 22054 | H73: 3 | M73: =IF(ISERROR(VLOOKUP(B73,'Zebrik W'!$B$7:$L$992,11,0)),"",IF(VLOOKUP(B73,'Zebrik W'!$B$7:$L$992,11,0)=0,"--",VLOOKUP(B73,'Zebrik W'!$B$7:$L$992,11,0))) -> 
A74: 68 | B74: Jana Treslova | C74: 1963 | D74: F | E74: Raná | F74: CZ/C2 | G74: 22042 | H74: 3 | M74: =IF(ISERROR(VLOOKUP(B74,'Zebrik W'!$B$7:$L$992,11,0)),"",IF(VLOOKUP(B74,'Zebrik W'!$B$7:$L$992,11,0)=0,"--",VLOOKUP(B74,'Zebrik W'!$B$7:$L$992,11,0))) -> --
A75: 69 | B75: Zdenek Balcarek | C75: 1967 | D75: M | E75: Kroměříž | F75: CZ/M | G75: 21998 | H75: 3 | M75: =IF(ISERROR(VLOOKUP(B75,'Zebrik W'!$B$7:$L$992,11,0)),"",IF(VLOOKUP(B75,'Zebrik W'!$B$7:$L$992,11,0)=0,"--",VLOOKUP(B75,'Zebrik W'!$B$7:$L$992,11,0))) -> 
A76: 70 | B76: Petr Kolomaznik | C76: 1981 | D76: M | E76: Šumperk | F76: CZ/M | G76: 21972 | H76: 3 | M76: =IF(ISERROR(VLOOKUP(B76,'Zebrik W'!$B$7:$L$992,11,0)),"",IF(VLOOKUP(B76,'Zebrik W'!$B$7:$L$992,11,0)=0,"--",VLOOKUP(B76,'Zebrik W'!$B$7:$L$992,11,0))) -> 
A77: 71 | B77: David Vrchota | C77: 1976 | D77: M | E77: Jaroměř | F77: CZ/C2 | G77: 21735 | H77: 3 | M77: =IF(ISERROR(VLOOKUP(B77,'Zebrik W'!$B$7:$L$992,11,0)),"",IF(VLOOKUP(B77,'Zebrik W'!$B$7:$L$992,11,0)=0,"--",VLOOKUP(B77,'Zebrik W'!$B$7:$L$992,11,0))) -> 
A78: 72 | B78: Martin Stepanek | C78: 1987 | D78: M | E78: Moravská Třebová | F78: CZ/M | G78: 21703 | H78: 3 | M78: =IF(ISERROR(VLOOKUP(B78,'Zebrik W'!$B$7:$L$992,11,0)),"",IF(VLOOKUP(B78,'Zebrik W'!$B$7:$L$992,11,0)=0,"--",VLOOKUP(B78,'Zebrik W'!$B$7:$L$992,11,0))) -> 
A79: 73 | B79: Petra Piskata | C79: 1989 | D79: F | E79: Luhačovice | F79: CZ/M | G79: 21611 | H79: 3 | L79: RV 2023 | M79: =IF(ISERROR(VLOOKUP(B79,'Zebrik W'!$B$7:$L$992,11,0)),"",IF(VLOOKUP(B79,'Zebrik W'!$B$7:$L$992,11,0)=0,"--",VLOOKUP(B79,'Zebrik W'!$B$7:$L$992,11,0))) -> WRV 2023
A80: 74 | B80: Ivan Harasta 65 | C80: 1965 | D80: M | E80: Toužim | F80: CZ/C1 | G80: 21559 | H80: 3 | M80: =IF(ISERROR(VLOOKUP(B80,'Zebrik W'!$B$7:$L$992,11,0)),"",IF(VLOOKUP(B80,'Zebrik W'!$B$7:$L$992,11,0)=0,"--",VLOOKUP(B80,'Zebrik W'!$B$7:$L$992,11,0))) -> 
A81: 75 | B81: Petr Havelka | C81: 1997 | D81: M | E81: Zbraslavice | F81: CZ/C1 | G81: 21557 | H81: 3 | M81: =IF(ISERROR(VLOOKUP(B81,'Zebrik W'!$B$7:$L$992,11,0)),"",IF(VLOOKUP(B81,'Zebrik W'!$B$7:$L$992,11,0)=0,"--",VLOOKUP(B81,'Zebrik W'!$B$7:$L$992,11,0))) -> 
A82: 76 | B82: Lukas Volek | C82: 2004 | D82: M | E82: Hodkovice | F82: CZ/C2 | G82: 21464 | H82: 3 | I82: Junior v roce 2023 | J82: Junior v roce 2024 | M82: =IF(ISERROR(VLOOKUP(B82,'Zebrik W'!$B$7:$L$992,11,0)),"",IF(VLOOKUP(B82,'Zebrik W'!$B$7:$L$992,11,0)=0,"--",VLOOKUP(B82,'Zebrik W'!$B$7:$L$992,11,0))) -> 
A83: 77 | B83: Jan Smaha | C83: 1958 | D83: M | E83: Česká Lípa | F83: CZ/C2 | G83: 21343 | H83: 3 | M83: =IF(ISERROR(VLOOKUP(B83,'Zebrik W'!$B$7:$L$992,11,0)),"",IF(VLOOKUP(B83,'Zebrik W'!$B$7:$L$992,11,0)=0,"--",VLOOKUP(B83,'Zebrik W'!$B$7:$L$992,11,0))) -> 
A84: 78 | B84: Milan Svoboda 80 | C84: 1980 | D84: M | E84: Havlíčkův Brod | F84: CZ/C2 | G84: 21337 | H84: 3 | M84: =IF(ISERROR(VLOOKUP(B84,'Zebrik W'!$B$7:$L$992,11,0)),"",IF(VLOOKUP(B84,'Zebrik W'!$B$7:$L$992,11,0)=0,"--",VLOOKUP(B84,'Zebrik W'!$B$7:$L$992,11,0))) -> 
A85: 79 | B85: Zdenek Boruvka 54 | C85: 1954 | D85: M | E85: Jičín | F85: CZ/C2 | G85: 21238 | H85: 3 | M85: =IF(ISERROR(VLOOKUP(B85,'Zebrik W'!$B$7:$L$992,11,0)),"",IF(VLOOKUP(B85,'Zebrik W'!$B$7:$L$992,11,0)=0,"--",VLOOKUP(B85,'Zebrik W'!$B$7:$L$992,11,0))) -> 
A86: 80 | B86: Milan Dvorak | C86: 1965 | D86: M | E86: Liberec | F86: CZ/C2 | G86: 21081 | H86: 3 | M86: =IF(ISERROR(VLOOKUP(B86,'Zebrik W'!$B$7:$L$992,11,0)),"",IF(VLOOKUP(B86,'Zebrik W'!$B$7:$L$992,11,0)=0,"--",VLOOKUP(B86,'Zebrik W'!$B$7:$L$992,11,0))) -> 
A87: 81 | B87: Marek Pechanec | C87: 1970 | D87: M | E87: Luhačovice | F87: CZ/M | G87: 21006 | H87: 3 | M87: =IF(ISERROR(VLOOKUP(B87,'Zebrik W'!$B$7:$L$992,11,0)),"",IF(VLOOKUP(B87,'Zebrik W'!$B$7:$L$992,11,0)=0,"--",VLOOKUP(B87,'Zebrik W'!$B$7:$L$992,11,0))) -> 
A88: 82 | B88: Vojtech Hajek | C88: 1987 | D88: M | E88: Mladá Boleslav | F88: CZ/C1 | G88: 20866 | H88: 3 | M88: =IF(ISERROR(VLOOKUP(B88,'Zebrik W'!$B$7:$L$992,11,0)),"",IF(VLOOKUP(B88,'Zebrik W'!$B$7:$L$992,11,0)=0,"--",VLOOKUP(B88,'Zebrik W'!$B$7:$L$992,11,0))) -> 
A89: 83 | B89: Tomas Kulhavy | C89: 2001 | D89: M | E89: Liberec | F89: CZ/C2 | G89: 20854 | H89: 3 | I89: Junior v roce 2023 | J89: Junior v roce 2024 | M89: =IF(ISERROR(VLOOKUP(B89,'Zebrik W'!$B$7:$L$992,11,0)),"",IF(VLOOKUP(B89,'Zebrik W'!$B$7:$L$992,11,0)=0,"--",VLOOKUP(B89,'Zebrik W'!$B$7:$L$992,11,0))) -> 
A90: 84 | B90: Lukas Maly | C90: 1998 | D90: M | E90: Vysoké Mýto | F90: CZ/C2 | G90: 20784 | H90: 3 | I90: Junior v roce 2023 | M90: =IF(ISERROR(VLOOKUP(B90,'Zebrik W'!$B$7:$L$992,11,0)),"",IF(VLOOKUP(B90,'Zebrik W'!$B$7:$L$992,11,0)=0,"--",VLOOKUP(B90,'Zebrik W'!$B$7:$L$992,11,0))) -> 
A91: 85 | B91: Jiri Vondracek | C91: 1989 | D91: M | E91: Kladno | F91: CZ/C1 | G91: 20495 | H91: 3 | M91: =IF(ISERROR(VLOOKUP(B91,'Zebrik W'!$B$7:$L$992,11,0)),"",IF(VLOOKUP(B91,'Zebrik W'!$B$7:$L$992,11,0)=0,"--",VLOOKUP(B91,'Zebrik W'!$B$7:$L$992,11,0))) -> 
A92: 86 | B92: Lumir Motyka | C92: 1955 | D92: M | E92: Frýdlant | F92: CZ/M | G92: 20442 | H92: 3 | M92: =IF(ISERROR(VLOOKUP(B92,'Zebrik W'!$B$7:$L$992,11,0)),"",IF(VLOOKUP(B92,'Zebrik W'!$B$7:$L$992,11,0)=0,"--",VLOOKUP(B92,'Zebrik W'!$B$7:$L$992,11,0))) -> 
A93: 87 | B93: Jan Simon | C93: 1970 | D93: M | E93: Kralupy | F93: CZ/C1 | G93: 20386 | H93: 3 | M93: =IF(ISERROR(VLOOKUP(B93,'Zebrik W'!$B$7:$L$992,11,0)),"",IF(VLOOKUP(B93,'Zebrik W'!$B$7:$L$992,11,0)=0,"--",VLOOKUP(B93,'Zebrik W'!$B$7:$L$992,11,0))) -> 
A94: 88 | B94: Ondrej Teichman | C94: 1984 | D94: M | E94: Dvůr Králové | F94: CZ/C2 | G94: 20385 | H94: 3 | M94: =IF(ISERROR(VLOOKUP(B94,'Zebrik W'!$B$7:$L$992,11,0)),"",IF(VLOOKUP(B94,'Zebrik W'!$B$7:$L$992,11,0)=0,"--",VLOOKUP(B94,'Zebrik W'!$B$7:$L$992,11,0))) -> 
A95: 89 | B95: Zdenek Schenk | C95: 1972 | D95: M | E95: Hranice | F95: CZ/M | G95: 20381 | H95: 3 | M95: =IF(ISERROR(VLOOKUP(B95,'Zebrik W'!$B$7:$L$992,11,0)),"",IF(VLOOKUP(B95,'Zebrik W'!$B$7:$L$992,11,0)=0,"--",VLOOKUP(B95,'Zebrik W'!$B$7:$L$992,11,0))) -> 
A96: 90 | B96: Marek Kornec | C96: 1957 | D96: M | E96: Dvůr Králové | F96: CZ/C2 | G96: 20311 | H96: 3 | M96: =IF(ISERROR(VLOOKUP(B96,'Zebrik W'!$B$7:$L$992,11,0)),"",IF(VLOOKUP(B96,'Zebrik W'!$B$7:$L$992,11,0)=0,"--",VLOOKUP(B96,'Zebrik W'!$B$7:$L$992,11,0))) -> 
A97: 91 | B97: Lukas Hynek | C97: 1979 | D97: M | E97: Dvůr Králové | F97: CZ/C2 | G97: 20291 | H97: 3 | M97: =IF(ISERROR(VLOOKUP(B97,'Zebrik W'!$B$7:$L$992,11,0)),"",IF(VLOOKUP(B97,'Zebrik W'!$B$7:$L$992,11,0)=0,"--",VLOOKUP(B97,'Zebrik W'!$B$7:$L$992,11,0))) -> 
A98: 92 | B98: Tomas Hulmak | C98: 1999 | D98: M | E98: Hosín | F98: CZ/C1 | G98: 20286 | H98: 3 | I98: Junior v roce 2023 | J98: Junior v roce 2024 | M98: =IF(ISERROR(VLOOKUP(B98,'Zebrik W'!$B$7:$L$992,11,0)),"",IF(VLOOKUP(B98,'Zebrik W'!$B$7:$L$992,11,0)=0,"--",VLOOKUP(B98,'Zebrik W'!$B$7:$L$992,11,0))) -> 
A99: 93 | B99: Vladimir Abraham | C99: 1962 | D99: M | E99: Raná | F99: CZ/C2 | G99: 20231 | H99: 3 | M99: =IF(ISERROR(VLOOKUP(B99,'Zebrik W'!$B$7:$L$992,11,0)),"",IF(VLOOKUP(B99,'Zebrik W'!$B$7:$L$992,11,0)=0,"--",VLOOKUP(B99,'Zebrik W'!$B$7:$L$992,11,0))) -> 
A100: 94 | B100: David Tejnora | C100: 1982 | D100: M | E100: Jaroměř | F100: CZ/C2 | G100: 20212 | H100: 3 | M100: =IF(ISERROR(VLOOKUP(B100,'Zebrik W'!$B$7:$L$992,11,0)),"",IF(VLOOKUP(B100,'Zebrik W'!$B$7:$L$992,11,0)=0,"--",VLOOKUP(B100,'Zebrik W'!$B$7:$L$992,11,0))) -> 
A101: 95 | B101: Pavlina Horackova | C101: 1965 | D101: F | E101: Šumperk | F101: CZ/M | G101: 19839 | H101: 3 | M101: =IF(ISERROR(VLOOKUP(B101,'Zebrik W'!$B$7:$L$992,11,0)),"",IF(VLOOKUP(B101,'Zebrik W'!$B$7:$L$992,11,0)=0,"--",VLOOKUP(B101,'Zebrik W'!$B$7:$L$992,11,0))) -> --
A102: 96 | B102: Jiri Koudela | C102: 1974 | D102: M | E102: Vyškov | F102: CZ/M | G102: 19754 | H102: 3 | M102: =IF(ISERROR(VLOOKUP(B102,'Zebrik W'!$B$7:$L$992,11,0)),"",IF(VLOOKUP(B102,'Zebrik W'!$B$7:$L$992,11,0)=0,"--",VLOOKUP(B102,'Zebrik W'!$B$7:$L$992,11,0))) -> 
A103: 97 | B103: Petr Lonsky | C103: 1965 | D103: M | E103: Toužim | F103: CZ/C1 | G103: 19618 | H103: 3 | M103: =IF(ISERROR(VLOOKUP(B103,'Zebrik W'!$B$7:$L$992,11,0)),"",IF(VLOOKUP(B103,'Zebrik W'!$B$7:$L$992,11,0)=0,"--",VLOOKUP(B103,'Zebrik W'!$B$7:$L$992,11,0))) -> 
A104: 98 | B104: Martin Svarc | C104: 1981 | D104: M | E104: Olomouc | F104: CZ/M | G104: 19202 | H104: 3 | M104: =IF(ISERROR(VLOOKUP(B104,'Zebrik W'!$B$7:$L$992,11,0)),"",IF(VLOOKUP(B104,'Zebrik W'!$B$7:$L$992,11,0)=0,"--",VLOOKUP(B104,'Zebrik W'!$B$7:$L$992,11,0))) -> 
A105: 99 | B105: Jan Pazour | C105: 1979 | D105: M | E105: Dvůr Králové | F105: CZ/C2 | G105: 19086 | H105: 3 | M105: =IF(ISERROR(VLOOKUP(B105,'Zebrik W'!$B$7:$L$992,11,0)),"",IF(VLOOKUP(B105,'Zebrik W'!$B$7:$L$992,11,0)=0,"--",VLOOKUP(B105,'Zebrik W'!$B$7:$L$992,11,0))) -> 
A106: 100 | B106: Jiri Prochazka | C106: 1971 | D106: M | E106: Toužim | F106: CZ/C1 | G106: 19082 | H106: 3 | M106: =IF(ISERROR(VLOOKUP(B106,'Zebrik W'!$B$7:$L$992,11,0)),"",IF(VLOOKUP(B106,'Zebrik W'!$B$7:$L$992,11,0)=0,"--",VLOOKUP(B106,'Zebrik W'!$B$7:$L$992,11,0))) -> 
A107: 101 | B107: Ladislav Jozsa | C107: 1981 | D107: M | E107: Medlánky | F107: CZ/M | G107: 19062 | H107: 3 | M107: =IF(ISERROR(VLOOKUP(B107,'Zebrik W'!$B$7:$L$992,11,0)),"",IF(VLOOKUP(B107,'Zebrik W'!$B$7:$L$992,11,0)=0,"--",VLOOKUP(B107,'Zebrik W'!$B$7:$L$992,11,0))) -> 
A108: 102 | B108: Stepan Obrovsky | C108: 1990 | D108: M | E108: Frýdlant | F108: CZ/M | G108: 19026 | H108: 3 | I108: =IF(C108="(prázdné)","",IF(($I$4-C108)>25,"","Junior v roce "&$I$4)) ->  | J108: =IF(C108="(prázdné)","",IF(($J$4-C108)>25,"","Junior v roce "&$J$4)) ->  | M108: =IF(ISERROR(VLOOKUP(B108,'Zebrik W'!$B$7:$L$992,11,0)),"",IF(VLOOKUP(B108,'Zebrik W'!$B$7:$L$992,11,0)=0,"--",VLOOKUP(B108,'Zebrik W'!$B$7:$L$992,11,0))) -> 
A109: 103 | B109: Miroslav Stepan | C109: 1955 | D109: M | E109: Žamberk | F109: CZ/C2 | G109: 18985 | H109: 3 | M109: =IF(ISERROR(VLOOKUP(B109,'Zebrik W'!$B$7:$L$992,11,0)),"",IF(VLOOKUP(B109,'Zebrik W'!$B$7:$L$992,11,0)=0,"--",VLOOKUP(B109,'Zebrik W'!$B$7:$L$992,11,0))) -> 
A110: 104 | B110: Jan Zahradka | C110: 1981 | D110: M | E110: Hodkovice | F110: CZ/C2 | G110: 18945 | H110: 3 | M110: =IF(ISERROR(VLOOKUP(B110,'Zebrik W'!$B$7:$L$992,11,0)),"",IF(VLOOKUP(B110,'Zebrik W'!$B$7:$L$992,11,0)=0,"--",VLOOKUP(B110,'Zebrik W'!$B$7:$L$992,11,0))) -> 
A111: 105 | B111: Martin Soucek | C111: 1975 | D111: M | E111: Mladá Boleslav | F111: CZ/C1 | G111: 18838 | H111: 3 | M111: =IF(ISERROR(VLOOKUP(B111,'Zebrik W'!$B$7:$L$992,11,0)),"",IF(VLOOKUP(B111,'Zebrik W'!$B$7:$L$992,11,0)=0,"--",VLOOKUP(B111,'Zebrik W'!$B$7:$L$992,11,0))) -> 
A112: 106 | B112: Tomas Prikryl | C112: 1973 | D112: M | E112: Vyškov | F112: CZ/M | G112: 18834 | H112: 3 | M112: =IF(ISERROR(VLOOKUP(B112,'Zebrik W'!$B$7:$L$992,11,0)),"",IF(VLOOKUP(B112,'Zebrik W'!$B$7:$L$992,11,0)=0,"--",VLOOKUP(B112,'Zebrik W'!$B$7:$L$992,11,0))) -> 
A113: 107 | B113: Jakub Malik | C113: 1999 | D113: M | E113: Letňany | F113: CZ/C1 | G113: 18739 | H113: 3 | I113: Junior v roce 2023 | J113: Junior v roce 2024 | M113: =IF(ISERROR(VLOOKUP(B113,'Zebrik W'!$B$7:$L$992,11,0)),"",IF(VLOOKUP(B113,'Zebrik W'!$B$7:$L$992,11,0)=0,"--",VLOOKUP(B113,'Zebrik W'!$B$7:$L$992,11,0))) -> 
A114: 108 | B114: Daniel Ryba | C114: 1994 | D114: M | E114: Dvůr Králové | F114: CZ/C2 | G114: 18662 | H114: 3 | M114: =IF(ISERROR(VLOOKUP(B114,'Zebrik W'!$B$7:$L$992,11,0)),"",IF(VLOOKUP(B114,'Zebrik W'!$B$7:$L$992,11,0)=0,"--",VLOOKUP(B114,'Zebrik W'!$B$7:$L$992,11,0))) -> 
A115: 109 | B115: Jiri Maier 99 | C115: 1999 | D115: M | E115: Raná | F115: CZ/C2 | G115: 18519 | H115: 3 | I115: Junior v roce 2023 | J115: Junior v roce 2024 | M115: =IF(ISERROR(VLOOKUP(B115,'Zebrik W'!$B$7:$L$992,11,0)),"",IF(VLOOKUP(B115,'Zebrik W'!$B$7:$L$992,11,0)=0,"--",VLOOKUP(B115,'Zebrik W'!$B$7:$L$992,11,0))) -> 
A116: 110 | B116: Jan Kohout | C116: 1970 | D116: M | E116: Žamberk | F116: CZ/C2 | G116: 18489 | H116: 3 | M116: =IF(ISERROR(VLOOKUP(B116,'Zebrik W'!$B$7:$L$992,11,0)),"",IF(VLOOKUP(B116,'Zebrik W'!$B$7:$L$992,11,0)=0,"--",VLOOKUP(B116,'Zebrik W'!$B$7:$L$992,11,0))) -> 
A117: 111 | B117: Wolfgang Sluka | C117: 1942 | D117: M | E117: Liberec | F117: CZ/C2 | G117: 18479 | H117: 3 | M117: =IF(ISERROR(VLOOKUP(B117,'Zebrik W'!$B$7:$L$992,11,0)),"",IF(VLOOKUP(B117,'Zebrik W'!$B$7:$L$992,11,0)=0,"--",VLOOKUP(B117,'Zebrik W'!$B$7:$L$992,11,0))) -> 
A118: 112 | B118: Petr Havrlant | C118: 1965 | D118: M | E118: Šumperk | F118: CZ/M | G118: 18448 | H118: 3 | M118: =IF(ISERROR(VLOOKUP(B118,'Zebrik W'!$B$7:$L$992,11,0)),"",IF(VLOOKUP(B118,'Zebrik W'!$B$7:$L$992,11,0)=0,"--",VLOOKUP(B118,'Zebrik W'!$B$7:$L$992,11,0))) -> 
A119: 113 | B119: Milan Meisner | C119: 1961 | D119: M | E119: Dvůr Králové | F119: CZ/C2 | G119: 18437 | H119: 3 | M119: =IF(ISERROR(VLOOKUP(B119,'Zebrik W'!$B$7:$L$992,11,0)),"",IF(VLOOKUP(B119,'Zebrik W'!$B$7:$L$992,11,0)=0,"--",VLOOKUP(B119,'Zebrik W'!$B$7:$L$992,11,0))) -> 
A120: 114 | B120: Petr Babak | C120: 1973 | D120: M | E120: Hořice | F120: CZ/C2 | G120: 18346 | H120: 3 | M120: =IF(ISERROR(VLOOKUP(B120,'Zebrik W'!$B$7:$L$992,11,0)),"",IF(VLOOKUP(B120,'Zebrik W'!$B$7:$L$992,11,0)=0,"--",VLOOKUP(B120,'Zebrik W'!$B$7:$L$992,11,0))) -> 
A121: 115 | B121: Martin Kriz | C121: 1968 | D121: M | E121: Přibyslav | F121: CZ/C2 | G121: 18286 | H121: 3 | M121: =IF(ISERROR(VLOOKUP(B121,'Zebrik W'!$B$7:$L$992,11,0)),"",IF(VLOOKUP(B121,'Zebrik W'!$B$7:$L$992,11,0)=0,"--",VLOOKUP(B121,'Zebrik W'!$B$7:$L$992,11,0))) -> 
A122: 116 | B122: Martin Urban | C122: 1971 | D122: M | E122: Frýdlant | F122: CZ/M | G122: 18271 | H122: 3 | M122: =IF(ISERROR(VLOOKUP(B122,'Zebrik W'!$B$7:$L$992,11,0)),"",IF(VLOOKUP(B122,'Zebrik W'!$B$7:$L$992,11,0)=0,"--",VLOOKUP(B122,'Zebrik W'!$B$7:$L$992,11,0))) -> 
A123: 117 | B123: Jiri Maier 66 | C123: 1966 | D123: M | E123: Raná | F123: CZ/C2 | G123: 18194 | H123: 3 | M123: =IF(ISERROR(VLOOKUP(B123,'Zebrik W'!$B$7:$L$992,11,0)),"",IF(VLOOKUP(B123,'Zebrik W'!$B$7:$L$992,11,0)=0,"--",VLOOKUP(B123,'Zebrik W'!$B$7:$L$992,11,0))) -> 
A124: 118 | B124: Tomas Talanda | C124: 1988 | D124: M | E124: Křižanov | F124: CZ/M | G124: 18178 | H124: 3 | M124: =IF(ISERROR(VLOOKUP(B124,'Zebrik W'!$B$7:$L$992,11,0)),"",IF(VLOOKUP(B124,'Zebrik W'!$B$7:$L$992,11,0)=0,"--",VLOOKUP(B124,'Zebrik W'!$B$7:$L$992,11,0))) -> 
A125: 119 | B125: Radek Hybl | C125: 1980 | D125: M | E125: Šumperk | F125: CZ/M | G125: 18150 | H125: 2 | M125: =IF(ISERROR(VLOOKUP(B125,'Zebrik W'!$B$7:$L$992,11,0)),"",IF(VLOOKUP(B125,'Zebrik W'!$B$7:$L$992,11,0)=0,"--",VLOOKUP(B125,'Zebrik W'!$B$7:$L$992,11,0))) -> 
A126: 120 | B126: Ondrej Dvorak 98 | C126: 1998 | D126: M | E126: Mladá Boleslav | F126: CZ/C1 | G126: 17991 | H126: 3 | I126: Junior v roce 2023 | M126: =IF(ISERROR(VLOOKUP(B126,'Zebrik W'!$B$7:$L$992,11,0)),"",IF(VLOOKUP(B126,'Zebrik W'!$B$7:$L$992,11,0)=0,"--",VLOOKUP(B126,'Zebrik W'!$B$7:$L$992,11,0))) -> 
A127: 121 | B127: Jakub Hlavacek | C127: 1991 | D127: M | E127: Letkov | F127: CZ/C1 | G127: 17849 | H127: 2 | M127: =IF(ISERROR(VLOOKUP(B127,'Zebrik W'!$B$7:$L$992,11,0)),"",IF(VLOOKUP(B127,'Zebrik W'!$B$7:$L$992,11,0)=0,"--",VLOOKUP(B127,'Zebrik W'!$B$7:$L$992,11,0))) -> 
A128: 122 | B128: Michal Maly | C128: 1982 | D128: M | E128: Broumov | F128: CZ/C2 | G128: 17848 | H128: 3 | M128: =IF(ISERROR(VLOOKUP(B128,'Zebrik W'!$B$7:$L$992,11,0)),"",IF(VLOOKUP(B128,'Zebrik W'!$B$7:$L$992,11,0)=0,"--",VLOOKUP(B128,'Zebrik W'!$B$7:$L$992,11,0))) -> 
A129: 123 | B129: Ladislav Prokes | C129: 1954 | D129: M | E129: Vrchlabí | F129: CZ/C2 | G129: 17838 | H129: 3 | M129: =IF(ISERROR(VLOOKUP(B129,'Zebrik W'!$B$7:$L$992,11,0)),"",IF(VLOOKUP(B129,'Zebrik W'!$B$7:$L$992,11,0)=0,"--",VLOOKUP(B129,'Zebrik W'!$B$7:$L$992,11,0))) -> 
A130: 124 | B130: Tomas Profeld | C130: 1964 | D130: M | E130: Jičín | F130: CZ/C2 | G130: 17777 | H130: 3 | M130: =IF(ISERROR(VLOOKUP(B130,'Zebrik W'!$B$7:$L$992,11,0)),"",IF(VLOOKUP(B130,'Zebrik W'!$B$7:$L$992,11,0)=0,"--",VLOOKUP(B130,'Zebrik W'!$B$7:$L$992,11,0))) -> 
A131: 125 | B131: Jan Beran | C131: 1999 | D131: M | E131: Kladno | F131: CZ/C1 | G131: 17756 | H131: 3 | I131: Junior v roce 2023 | J131: Junior v roce 2024 | M131: =IF(ISERROR(VLOOKUP(B131,'Zebrik W'!$B$7:$L$992,11,0)),"",IF(VLOOKUP(B131,'Zebrik W'!$B$7:$L$992,11,0)=0,"--",VLOOKUP(B131,'Zebrik W'!$B$7:$L$992,11,0))) -> 
A132: 126 | B132: Jan Viskot | C132: 1995 | D132: M | E132: Břeclav | F132: CZ/M | G132: 17749 | H132: 2 | M132: =IF(ISERROR(VLOOKUP(B132,'Zebrik W'!$B$7:$L$992,11,0)),"",IF(VLOOKUP(B132,'Zebrik W'!$B$7:$L$992,11,0)=0,"--",VLOOKUP(B132,'Zebrik W'!$B$7:$L$992,11,0))) -> 
A133: 127 | B133: Petr Fisar | C133: 1974 | D133: M | E133: Ústí nad Orlicí | F133: CZ/C2 | G133: 17633 | H133: 3 | M133: =IF(ISERROR(VLOOKUP(B133,'Zebrik W'!$B$7:$L$992,11,0)),"",IF(VLOOKUP(B133,'Zebrik W'!$B$7:$L$992,11,0)=0,"--",VLOOKUP(B133,'Zebrik W'!$B$7:$L$992,11,0))) -> 
A134: 128 | B134: Michal Kratochvil | C134: 1984 | D134: M | E134: Slaný | F134: CZ/C1 | G134: 17510 | H134: 2 | M134: =IF(ISERROR(VLOOKUP(B134,'Zebrik W'!$B$7:$L$992,11,0)),"",IF(VLOOKUP(B134,'Zebrik W'!$B$7:$L$992,11,0)=0,"--",VLOOKUP(B134,'Zebrik W'!$B$7:$L$992,11,0))) -> 
A135: =RANK(G135,G:G) -> 129 | B135: Jan Florian | C135: 1992 | D135: M | E135: Zbraslavice | F135: CZ/C1 | G135: 17421 | H135: 3 | M135: =IF(ISERROR(VLOOKUP(B135,'Zebrik W'!$B$7:$L$992,11,0)),"",IF(VLOOKUP(B135,'Zebrik W'!$B$7:$L$992,11,0)=0,"--",VLOOKUP(B135,'Zebrik W'!$B$7:$L$992,11,0))) -> 
A136: 130 | B136: Vaclav Kult | C136: 1973 | D136: M | E136: Broumov | F136: CZ/C2 | G136: 17403 | H136: 3 | M136: =IF(ISERROR(VLOOKUP(B136,'Zebrik W'!$B$7:$L$992,11,0)),"",IF(VLOOKUP(B136,'Zebrik W'!$B$7:$L$992,11,0)=0,"--",VLOOKUP(B136,'Zebrik W'!$B$7:$L$992,11,0))) -> 
A137: 131 | B137: Martin Cicvarek | C137: 1966 | D137: M | E137: Liberec | F137: CZ/C2 | G137: 17149 | H137: 3 | M137: =IF(ISERROR(VLOOKUP(B137,'Zebrik W'!$B$7:$L$992,11,0)),"",IF(VLOOKUP(B137,'Zebrik W'!$B$7:$L$992,11,0)=0,"--",VLOOKUP(B137,'Zebrik W'!$B$7:$L$992,11,0))) -> 
A138: 132 | B138: Jan Cerveny | C138: 1984 | D138: M | E138: Jaroměř | F138: CZ/C2 | G138: 17014 | H138: 3 | M138: =IF(ISERROR(VLOOKUP(B138,'Zebrik W'!$B$7:$L$992,11,0)),"",IF(VLOOKUP(B138,'Zebrik W'!$B$7:$L$992,11,0)=0,"--",VLOOKUP(B138,'Zebrik W'!$B$7:$L$992,11,0))) -> 
A139: 133 | B139: Jan Hybner | C139: 1977 | D139: M | E139: Liberec | F139: CZ/C2 | G139: 17011 | H139: 3 | M139: =IF(ISERROR(VLOOKUP(B139,'Zebrik W'!$B$7:$L$992,11,0)),"",IF(VLOOKUP(B139,'Zebrik W'!$B$7:$L$992,11,0)=0,"--",VLOOKUP(B139,'Zebrik W'!$B$7:$L$992,11,0))) -> 
A140: 134 | B140: Petr Malcek | C140: 1965 | D140: M | E140: Letňany | F140: CZ/C1 | G140: 16998 | H140: 3 | M140: =IF(ISERROR(VLOOKUP(B140,'Zebrik W'!$B$7:$L$992,11,0)),"",IF(VLOOKUP(B140,'Zebrik W'!$B$7:$L$992,11,0)=0,"--",VLOOKUP(B140,'Zebrik W'!$B$7:$L$992,11,0))) -> 
A141: 135 | B141: Tomas Ditrt | C141: 1969 | D141: M | E141: Podhořany | F141: CZ/C2 | G141: 16974 | H141: 3 | M141: =IF(ISERROR(VLOOKUP(B141,'Zebrik W'!$B$7:$L$992,11,0)),"",IF(VLOOKUP(B141,'Zebrik W'!$B$7:$L$992,11,0)=0,"--",VLOOKUP(B141,'Zebrik W'!$B$7:$L$992,11,0))) -> 
A142: 136 | B142: Pavel Derda | C142: 1952 | D142: M | E142: Dvůr Králové | F142: CZ/C2 | G142: 16680 | H142: 3 | M142: =IF(ISERROR(VLOOKUP(B142,'Zebrik W'!$B$7:$L$992,11,0)),"",IF(VLOOKUP(B142,'Zebrik W'!$B$7:$L$992,11,0)=0,"--",VLOOKUP(B142,'Zebrik W'!$B$7:$L$992,11,0))) -> 
A143: 137 | B143: Jan Smekal | C143: 1976 | D143: M | E143: Zbraslavice | F143: CZ/C1 | G143: 16503 | H143: 3 | M143: =IF(ISERROR(VLOOKUP(B143,'Zebrik W'!$B$7:$L$992,11,0)),"",IF(VLOOKUP(B143,'Zebrik W'!$B$7:$L$992,11,0)=0,"--",VLOOKUP(B143,'Zebrik W'!$B$7:$L$992,11,0))) -> 
A144: 138 | B144: Slavomir Valecko | C144: 1960 | D144: M | E144: Hranice | F144: CZ/M | G144: 16483 | H144: 3 | M144: =IF(ISERROR(VLOOKUP(B144,'Zebrik W'!$B$7:$L$992,11,0)),"",IF(VLOOKUP(B144,'Zebrik W'!$B$7:$L$992,11,0)=0,"--",VLOOKUP(B144,'Zebrik W'!$B$7:$L$992,11,0))) -> 
A145: 139 | B145: Tomas Mezera | C145: 1973 | D145: M | E145: Raná | F145: CZ/C2 | G145: 16434 | H145: 3 | M145: =IF(ISERROR(VLOOKUP(B145,'Zebrik W'!$B$7:$L$992,11,0)),"",IF(VLOOKUP(B145,'Zebrik W'!$B$7:$L$992,11,0)=0,"--",VLOOKUP(B145,'Zebrik W'!$B$7:$L$992,11,0))) -> 
A146: 140 | B146: Michal Janda | C146: 1972 | D146: M | E146: Broumov | F146: CZ/C2 | G146: 16421 | H146: 3 | M146: =IF(ISERROR(VLOOKUP(B146,'Zebrik W'!$B$7:$L$992,11,0)),"",IF(VLOOKUP(B146,'Zebrik W'!$B$7:$L$992,11,0)=0,"--",VLOOKUP(B146,'Zebrik W'!$B$7:$L$992,11,0))) -> 
A147: 141 | B147: Pavel Rericha | C147: 1967 | D147: M | E147: Moravská Třebová | F147: CZ/M | G147: 16344 | H147: 2 | M147: =IF(ISERROR(VLOOKUP(B147,'Zebrik W'!$B$7:$L$992,11,0)),"",IF(VLOOKUP(B147,'Zebrik W'!$B$7:$L$992,11,0)=0,"--",VLOOKUP(B147,'Zebrik W'!$B$7:$L$992,11,0))) -> 
A148: 142 | B148: Roman Schotli | C148: 1970 | D148: M | E148: Hranice | F148: CZ/M | G148: 16329 | H148: 3 | M148: =IF(ISERROR(VLOOKUP(B148,'Zebrik W'!$B$7:$L$992,11,0)),"",IF(VLOOKUP(B148,'Zebrik W'!$B$7:$L$992,11,0)=0,"--",VLOOKUP(B148,'Zebrik W'!$B$7:$L$992,11,0))) -> 
A149: 143 | B149: Martin Zahalka | C149: 1987 | D149: M | E149: Staňkov | F149: CZ/C1 | G149: 16309 | H149: 2 | M149: =IF(ISERROR(VLOOKUP(B149,'Zebrik W'!$B$7:$L$992,11,0)),"",IF(VLOOKUP(B149,'Zebrik W'!$B$7:$L$992,11,0)=0,"--",VLOOKUP(B149,'Zebrik W'!$B$7:$L$992,11,0))) -> 
A150: 144 | B150: Tomas Novak | C150: 1974 | D150: M | E150: Česká Lípa | F150: CZ/C2 | G150: 16297 | H150: 3 | M150: =IF(ISERROR(VLOOKUP(B150,'Zebrik W'!$B$7:$L$992,11,0)),"",IF(VLOOKUP(B150,'Zebrik W'!$B$7:$L$992,11,0)=0,"--",VLOOKUP(B150,'Zebrik W'!$B$7:$L$992,11,0))) -> 
A151: 145 | B151: Jan Mareth | C151: 1979 | D151: M | E151: Frýdlant | F151: CZ/M | G151: 16163 | H151: 2 | M151: =IF(ISERROR(VLOOKUP(B151,'Zebrik W'!$B$7:$L$992,11,0)),"",IF(VLOOKUP(B151,'Zebrik W'!$B$7:$L$992,11,0)=0,"--",VLOOKUP(B151,'Zebrik W'!$B$7:$L$992,11,0))) -> 
A152: 146 | B152: Tibor Hezina | C152: 2002 | D152: M | E152: Křižanov | F152: CZ/M | G152: 16091 | H152: 3 | I152: Junior v roce 2023 | J152: Junior v roce 2024 | M152: =IF(ISERROR(VLOOKUP(B152,'Zebrik W'!$B$7:$L$992,11,0)),"",IF(VLOOKUP(B152,'Zebrik W'!$B$7:$L$992,11,0)=0,"--",VLOOKUP(B152,'Zebrik W'!$B$7:$L$992,11,0))) -> 
A153: 147 | B153: Matej Krestes | C153: 1986 | D153: M | E153: Slaný | F153: CZ/C1 | G153: 16012 | H153: 3 | M153: =IF(ISERROR(VLOOKUP(B153,'Zebrik W'!$B$7:$L$992,11,0)),"",IF(VLOOKUP(B153,'Zebrik W'!$B$7:$L$992,11,0)=0,"--",VLOOKUP(B153,'Zebrik W'!$B$7:$L$992,11,0))) -> 
A154: 148 | B154: Karel Horalek | C154: 1976 | D154: M | E154: Olomouc | F154: CZ/M | G154: 15864 | H154: 3 | M154: =IF(ISERROR(VLOOKUP(B154,'Zebrik W'!$B$7:$L$992,11,0)),"",IF(VLOOKUP(B154,'Zebrik W'!$B$7:$L$992,11,0)=0,"--",VLOOKUP(B154,'Zebrik W'!$B$7:$L$992,11,0))) -> 
A155: 149 | B155: Radim Hahn | C155: 1972 | D155: M | E155: Zábřeh | F155: CZ/M | G155: 15795 | H155: 3 | M155: =IF(ISERROR(VLOOKUP(B155,'Zebrik W'!$B$7:$L$992,11,0)),"",IF(VLOOKUP(B155,'Zebrik W'!$B$7:$L$992,11,0)=0,"--",VLOOKUP(B155,'Zebrik W'!$B$7:$L$992,11,0))) -> 
A156: 150 | B156: Lenka Kuthanova | C156: 1960 | D156: F | E156: Tábor | F156: CZ/C1 | G156: 15788 | H156: 2 | M156: =IF(ISERROR(VLOOKUP(B156,'Zebrik W'!$B$7:$L$992,11,0)),"",IF(VLOOKUP(B156,'Zebrik W'!$B$7:$L$992,11,0)=0,"--",VLOOKUP(B156,'Zebrik W'!$B$7:$L$992,11,0))) -> --
A157: 151 | B157: Josef Busek | C157: 1967 | D157: M | E157: Hosín | F157: CZ/C1 | G157: 15779 | H157: 2 | M157: =IF(ISERROR(VLOOKUP(B157,'Zebrik W'!$B$7:$L$992,11,0)),"",IF(VLOOKUP(B157,'Zebrik W'!$B$7:$L$992,11,0)=0,"--",VLOOKUP(B157,'Zebrik W'!$B$7:$L$992,11,0))) -> 
A158: 152 | B158: Pavel Koudelka | C158: 1973 | D158: M | E158: Křižanov | F158: CZ/M | G158: 15705 | H158: 3 | M158: =IF(ISERROR(VLOOKUP(B158,'Zebrik W'!$B$7:$L$992,11,0)),"",IF(VLOOKUP(B158,'Zebrik W'!$B$7:$L$992,11,0)=0,"--",VLOOKUP(B158,'Zebrik W'!$B$7:$L$992,11,0))) -> 
A159: 153 | B159: Miroslav Sklenar | C159: 1964 | D159: M | E159: Žamberk | F159: CZ/C2 | G159: 15654 | H159: 3 | M159: =IF(ISERROR(VLOOKUP(B159,'Zebrik W'!$B$7:$L$992,11,0)),"",IF(VLOOKUP(B159,'Zebrik W'!$B$7:$L$992,11,0)=0,"--",VLOOKUP(B159,'Zebrik W'!$B$7:$L$992,11,0))) -> 
A160: 154 | B160: Jan Vavrin | C160: 1987 | D160: M | E160: Vysoké Mýto | F160: CZ/C2 | G160: 15612 | H160: 2 | M160: =IF(ISERROR(VLOOKUP(B160,'Zebrik W'!$B$7:$L$992,11,0)),"",IF(VLOOKUP(B160,'Zebrik W'!$B$7:$L$992,11,0)=0,"--",VLOOKUP(B160,'Zebrik W'!$B$7:$L$992,11,0))) -> 
A161: 155 | B161: Antonin Kutalek | C161: 1943 | D161: M | E161: Zábřeh | F161: CZ/M | G161: 15382 | H161: 3 | M161: =IF(ISERROR(VLOOKUP(B161,'Zebrik W'!$B$7:$L$992,11,0)),"",IF(VLOOKUP(B161,'Zebrik W'!$B$7:$L$992,11,0)=0,"--",VLOOKUP(B161,'Zebrik W'!$B$7:$L$992,11,0))) -> 
A162: 156 | B162: Roman Jokl | C162: 1979 | D162: M | E162: Letkov | F162: CZ/C1 | G162: 15313 | H162: 2 | M162: =IF(ISERROR(VLOOKUP(B162,'Zebrik W'!$B$7:$L$992,11,0)),"",IF(VLOOKUP(B162,'Zebrik W'!$B$7:$L$992,11,0)=0,"--",VLOOKUP(B162,'Zebrik W'!$B$7:$L$992,11,0))) -> 
A163: 157 | B163: Petr Jiranek 63 | C163: 1962 | D163: M | E163: Toužim | F163: CZ/C1 | G163: 15283 | H163: 3 | M163: =IF(ISERROR(VLOOKUP(B163,'Zebrik W'!$B$7:$L$992,11,0)),"",IF(VLOOKUP(B163,'Zebrik W'!$B$7:$L$992,11,0)=0,"--",VLOOKUP(B163,'Zebrik W'!$B$7:$L$992,11,0))) -> 
A164: 158 | B164: Jaromir Vlk | C164: 1959 | D164: M | E164: Šumperk | F164: CZ/M | G164: 15217 | H164: 3 | M164: =IF(ISERROR(VLOOKUP(B164,'Zebrik W'!$B$7:$L$992,11,0)),"",IF(VLOOKUP(B164,'Zebrik W'!$B$7:$L$992,11,0)=0,"--",VLOOKUP(B164,'Zebrik W'!$B$7:$L$992,11,0))) -> 
A165: 159 | B165: Jan Cibulka | C165: 2002 | D165: M | E165: Letňany | F165: CZ/C1 | G165: 15208 | H165: 3 | I165: Junior v roce 2023 | J165: Junior v roce 2024 | M165: =IF(ISERROR(VLOOKUP(B165,'Zebrik W'!$B$7:$L$992,11,0)),"",IF(VLOOKUP(B165,'Zebrik W'!$B$7:$L$992,11,0)=0,"--",VLOOKUP(B165,'Zebrik W'!$B$7:$L$992,11,0))) -> 
A166: 160 | B166: Antonin Bordovsky | C166: 1951 | D166: M | E166: Krnov | F166: CZ/M | G166: 15200 | H166: 3 | M166: =IF(ISERROR(VLOOKUP(B166,'Zebrik W'!$B$7:$L$992,11,0)),"",IF(VLOOKUP(B166,'Zebrik W'!$B$7:$L$992,11,0)=0,"--",VLOOKUP(B166,'Zebrik W'!$B$7:$L$992,11,0))) -> 
A167: 161 | B167: Jan Vozeh | C167: 1995 | D167: M | E167: Rakovník | F167: CZ/C1 | G167: 15139 | H167: 3 | M167: =IF(ISERROR(VLOOKUP(B167,'Zebrik W'!$B$7:$L$992,11,0)),"",IF(VLOOKUP(B167,'Zebrik W'!$B$7:$L$992,11,0)=0,"--",VLOOKUP(B167,'Zebrik W'!$B$7:$L$992,11,0))) -> 
A168: 162 | B168: Peter Kaspar | C168: 1980 | D168: M | E168: Vyškov | F168: CZ/M | G168: 15124 | H168: 3 | M168: =IF(ISERROR(VLOOKUP(B168,'Zebrik W'!$B$7:$L$992,11,0)),"",IF(VLOOKUP(B168,'Zebrik W'!$B$7:$L$992,11,0)=0,"--",VLOOKUP(B168,'Zebrik W'!$B$7:$L$992,11,0))) -> 
A169: 163 | B169: David Popovsky | C169: 1976 | D169: M | E169: Rakovník | F169: CZ/C1 | G169: 15123 | H169: 2 | M169: =IF(ISERROR(VLOOKUP(B169,'Zebrik W'!$B$7:$L$992,11,0)),"",IF(VLOOKUP(B169,'Zebrik W'!$B$7:$L$992,11,0)=0,"--",VLOOKUP(B169,'Zebrik W'!$B$7:$L$992,11,0))) -> 
A170: 164 | B170: Oldrich Bartonik | C170: 1961 | D170: M | E170: Luhačovice | F170: CZ/M | G170: 14943 | H170: 3 | M170: =IF(ISERROR(VLOOKUP(B170,'Zebrik W'!$B$7:$L$992,11,0)),"",IF(VLOOKUP(B170,'Zebrik W'!$B$7:$L$992,11,0)=0,"--",VLOOKUP(B170,'Zebrik W'!$B$7:$L$992,11,0))) -> 
A171: 165 | B171: Vaclav Marel | C171: 1974 | D171: M | E171: Jaroměř | F171: CZ/C2 | G171: 14904 | H171: 2 | M171: =IF(ISERROR(VLOOKUP(B171,'Zebrik W'!$B$7:$L$992,11,0)),"",IF(VLOOKUP(B171,'Zebrik W'!$B$7:$L$992,11,0)=0,"--",VLOOKUP(B171,'Zebrik W'!$B$7:$L$992,11,0))) -> 
A172: 166 | B172: Matej Jelinek | C172: 1999 | D172: M | E172: Hronov | F172: CZ/C2 | G172: 14704 | H172: 3 | I172: =IF(C172="(prázdné)","",IF(($I$4-C172)>25,"","Junior v roce "&$I$4)) -> Junior v roce 2023 | J172: =IF(C172="(prázdné)","",IF(($J$4-C172)>25,"","Junior v roce "&$J$4)) -> Junior v roce 2024 | M172: =IF(ISERROR(VLOOKUP(B172,'Zebrik W'!$B$7:$L$992,11,0)),"",IF(VLOOKUP(B172,'Zebrik W'!$B$7:$L$992,11,0)=0,"--",VLOOKUP(B172,'Zebrik W'!$B$7:$L$992,11,0))) -> 
A173: 167 | B173: Petr Panek | C173: 1975 | D173: M | E173: Dvůr Králové | F173: CZ/C2 | G173: 14681 | H173: 3 | M173: =IF(ISERROR(VLOOKUP(B173,'Zebrik W'!$B$7:$L$992,11,0)),"",IF(VLOOKUP(B173,'Zebrik W'!$B$7:$L$992,11,0)=0,"--",VLOOKUP(B173,'Zebrik W'!$B$7:$L$992,11,0))) -> 
A174: 168 | B174: Lukas Capek | C174: 1992 | D174: M | E174: Letňany | F174: CZ/C1 | G174: 14660 | H174: 2 | M174: =IF(ISERROR(VLOOKUP(B174,'Zebrik W'!$B$7:$L$992,11,0)),"",IF(VLOOKUP(B174,'Zebrik W'!$B$7:$L$992,11,0)=0,"--",VLOOKUP(B174,'Zebrik W'!$B$7:$L$992,11,0))) -> 
A175: 169 | B175: Danes Grula | C175: 1961 | D175: M | E175: Medlánky | F175: CZ/M | G175: 14647 | H175: 2 | M175: =IF(ISERROR(VLOOKUP(B175,'Zebrik W'!$B$7:$L$992,11,0)),"",IF(VLOOKUP(B175,'Zebrik W'!$B$7:$L$992,11,0)=0,"--",VLOOKUP(B175,'Zebrik W'!$B$7:$L$992,11,0))) -> 
A176: 170 | B176: Petr Valenta 94 | C176: 1994 | D176: M | E176: Kunovice | F176: CZ/M | G176: 14415 | H176: 2 | M176: =IF(ISERROR(VLOOKUP(B176,'Zebrik W'!$B$7:$L$992,11,0)),"",IF(VLOOKUP(B176,'Zebrik W'!$B$7:$L$992,11,0)=0,"--",VLOOKUP(B176,'Zebrik W'!$B$7:$L$992,11,0))) -> 
A177: 171 | B177: Jakub Kmosek | C177: 1978 | D177: M | E177: Zbraslavice | F177: CZ/C1 | G177: 14409 | H177: 2 | M177: =IF(ISERROR(VLOOKUP(B177,'Zebrik W'!$B$7:$L$992,11,0)),"",IF(VLOOKUP(B177,'Zebrik W'!$B$7:$L$992,11,0)=0,"--",VLOOKUP(B177,'Zebrik W'!$B$7:$L$992,11,0))) -> 
A178: 172 | B178: Michal Coufal | C178: 1999 | D178: M | E178: Jičín | F178: CZ/C2 | G178: 14305 | H178: 3 | I178: Junior v roce 2023 | J178: Junior v roce 2024 | M178: =IF(ISERROR(VLOOKUP(B178,'Zebrik W'!$B$7:$L$992,11,0)),"",IF(VLOOKUP(B178,'Zebrik W'!$B$7:$L$992,11,0)=0,"--",VLOOKUP(B178,'Zebrik W'!$B$7:$L$992,11,0))) -> 
A179: 173 | B179: Albrecht Beat | C179: 1953 | D179: M | E179: Šumperk | F179: CZ/M | G179: 14162 | H179: 3 | M179: =IF(ISERROR(VLOOKUP(B179,'Zebrik W'!$B$7:$L$992,11,0)),"",IF(VLOOKUP(B179,'Zebrik W'!$B$7:$L$992,11,0)=0,"--",VLOOKUP(B179,'Zebrik W'!$B$7:$L$992,11,0))) -> 
A180: 174 | B180: Petr Stepanek | C180: 1989 | D180: M | E180: Moravská Třebová | F180: CZ/M | G180: 14134 | H180: 2 | M180: =IF(ISERROR(VLOOKUP(B180,'Zebrik W'!$B$7:$L$992,11,0)),"",IF(VLOOKUP(B180,'Zebrik W'!$B$7:$L$992,11,0)=0,"--",VLOOKUP(B180,'Zebrik W'!$B$7:$L$992,11,0))) -> 
A181: 175 | B181: David Zapletal | C181: 1970 | D181: M | E181: Mladá Boleslav | F181: CZ/C1 | G181: 14040 | H181: 3 | M181: =IF(ISERROR(VLOOKUP(B181,'Zebrik W'!$B$7:$L$992,11,0)),"",IF(VLOOKUP(B181,'Zebrik W'!$B$7:$L$992,11,0)=0,"--",VLOOKUP(B181,'Zebrik W'!$B$7:$L$992,11,0))) -> 
A182: 176 | B182: Petr Seibrt | C182: 1974 | D182: M | E182: Náchod | F182: CZ/C2 | G182: 13996 | H182: 3 | M182: =IF(ISERROR(VLOOKUP(B182,'Zebrik W'!$B$7:$L$992,11,0)),"",IF(VLOOKUP(B182,'Zebrik W'!$B$7:$L$992,11,0)=0,"--",VLOOKUP(B182,'Zebrik W'!$B$7:$L$992,11,0))) -> 
A183: 177 | B183: Jan Zezula | C183: 1979 | D183: M | E183: Letňany | F183: CZ/C1 | G183: 13993 | H183: 3 | M183: =IF(ISERROR(VLOOKUP(B183,'Zebrik W'!$B$7:$L$992,11,0)),"",IF(VLOOKUP(B183,'Zebrik W'!$B$7:$L$992,11,0)=0,"--",VLOOKUP(B183,'Zebrik W'!$B$7:$L$992,11,0))) -> 
A184: 178 | B184: Daniel Dvorak | C184: 1980 | D184: M | E184: Letkov | F184: CZ/C1 | G184: 13987 | H184: 2 | M184: =IF(ISERROR(VLOOKUP(B184,'Zebrik W'!$B$7:$L$992,11,0)),"",IF(VLOOKUP(B184,'Zebrik W'!$B$7:$L$992,11,0)=0,"--",VLOOKUP(B184,'Zebrik W'!$B$7:$L$992,11,0))) -> 
A185: 179 | B185: Jaroslav Sima | C185: 1972 | D185: M | E185: Chomutov | F185: CZ/C2 | G185: 13729 | H185: 3 | M185: =IF(ISERROR(VLOOKUP(B185,'Zebrik W'!$B$7:$L$992,11,0)),"",IF(VLOOKUP(B185,'Zebrik W'!$B$7:$L$992,11,0)=0,"--",VLOOKUP(B185,'Zebrik W'!$B$7:$L$992,11,0))) -> 
A186: 180 | B186: Klara Teichmannova | C186: 1993 | D186: F | E186: Hronov | F186: CZ/C2 | G186: 13675 | H186: 2 | M186: =IF(ISERROR(VLOOKUP(B186,'Zebrik W'!$B$7:$L$992,11,0)),"",IF(VLOOKUP(B186,'Zebrik W'!$B$7:$L$992,11,0)=0,"--",VLOOKUP(B186,'Zebrik W'!$B$7:$L$992,11,0))) -> --
A187: 181 | B187: Martin Koci | C187: 1975 | D187: M | E187: Ústí nad Orlicí | F187: CZ/C2 | G187: 13585 | H187: 3 | M187: =IF(ISERROR(VLOOKUP(B187,'Zebrik W'!$B$7:$L$992,11,0)),"",IF(VLOOKUP(B187,'Zebrik W'!$B$7:$L$992,11,0)=0,"--",VLOOKUP(B187,'Zebrik W'!$B$7:$L$992,11,0))) -> 
A188: 182 | B188: Pavel Haluza | C188: 1966 | D188: M | E188: Prostějov | F188: CZ/M | G188: 13577 | H188: 3 | M188: =IF(ISERROR(VLOOKUP(B188,'Zebrik W'!$B$7:$L$992,11,0)),"",IF(VLOOKUP(B188,'Zebrik W'!$B$7:$L$992,11,0)=0,"--",VLOOKUP(B188,'Zebrik W'!$B$7:$L$992,11,0))) -> 
A189: 183 | B189: Vit Grossmann | C189: 1977 | D189: M | E189: Hranice | F189: CZ/M | G189: 13546 | H189: 3 | M189: =IF(ISERROR(VLOOKUP(B189,'Zebrik W'!$B$7:$L$992,11,0)),"",IF(VLOOKUP(B189,'Zebrik W'!$B$7:$L$992,11,0)=0,"--",VLOOKUP(B189,'Zebrik W'!$B$7:$L$992,11,0))) -> 
A190: 184 | B190: Linda Vasatova | C190: 1990 | D190: F | E190: Mladá Boleslav | F190: CZ/C1 | G190: 13532 | H190: 3 | M190: =IF(ISERROR(VLOOKUP(B190,'Zebrik W'!$B$7:$L$992,11,0)),"",IF(VLOOKUP(B190,'Zebrik W'!$B$7:$L$992,11,0)=0,"--",VLOOKUP(B190,'Zebrik W'!$B$7:$L$992,11,0))) -> --
A191: 185 | B191: Frantisek Myska | C191: 1968 | D191: M | E191: Most | F191: CZ/C2 | G191: 13460 | H191: 2 | M191: =IF(ISERROR(VLOOKUP(B191,'Zebrik W'!$B$7:$L$992,11,0)),"",IF(VLOOKUP(B191,'Zebrik W'!$B$7:$L$992,11,0)=0,"--",VLOOKUP(B191,'Zebrik W'!$B$7:$L$992,11,0))) -> 
A192: 186 | B192: Roman Cerny | C192: 1971 | D192: M | E192: Hranice | F192: CZ/M | G192: 13266 | H192: 3 | M192: =IF(ISERROR(VLOOKUP(B192,'Zebrik W'!$B$7:$L$992,11,0)),"",IF(VLOOKUP(B192,'Zebrik W'!$B$7:$L$992,11,0)=0,"--",VLOOKUP(B192,'Zebrik W'!$B$7:$L$992,11,0))) -> 
A193: 187 | B193: Martin Fric | C193: 1967 | D193: M | E193: Raná | F193: CZ/C2 | G193: 13249 | H193: 3 | M193: =IF(ISERROR(VLOOKUP(B193,'Zebrik W'!$B$7:$L$992,11,0)),"",IF(VLOOKUP(B193,'Zebrik W'!$B$7:$L$992,11,0)=0,"--",VLOOKUP(B193,'Zebrik W'!$B$7:$L$992,11,0))) -> 
A194: 188 | B194: Miloslav Hulmak | C194: 1963 | D194: M | E194: Hosín | F194: CZ/C1 | G194: 13231 | H194: 2 | M194: =IF(ISERROR(VLOOKUP(B194,'Zebrik W'!$B$7:$L$992,11,0)),"",IF(VLOOKUP(B194,'Zebrik W'!$B$7:$L$992,11,0)=0,"--",VLOOKUP(B194,'Zebrik W'!$B$7:$L$992,11,0))) -> 
A195: 189 | B195: Michal Drab | C195: 1969 | D195: M | E195: Letkov | F195: CZ/C1 | G195: 12950 | H195: 2 | M195: =IF(ISERROR(VLOOKUP(B195,'Zebrik W'!$B$7:$L$992,11,0)),"",IF(VLOOKUP(B195,'Zebrik W'!$B$7:$L$992,11,0)=0,"--",VLOOKUP(B195,'Zebrik W'!$B$7:$L$992,11,0))) -> 
A196: 190 | B196: Jan Hruska | C196: 1988 | D196: M | E196: Tábor | F196: CZ/C1 | G196: 12909 | H196: 2 | M196: =IF(ISERROR(VLOOKUP(B196,'Zebrik W'!$B$7:$L$992,11,0)),"",IF(VLOOKUP(B196,'Zebrik W'!$B$7:$L$992,11,0)=0,"--",VLOOKUP(B196,'Zebrik W'!$B$7:$L$992,11,0))) -> 
A197: 191 | B197: Ivan Kuzelka | C197: 1945 | D197: M | E197: Havlíčkův Brod | F197: CZ/C2 | G197: 12880 | H197: 3 | M197: =IF(ISERROR(VLOOKUP(B197,'Zebrik W'!$B$7:$L$992,11,0)),"",IF(VLOOKUP(B197,'Zebrik W'!$B$7:$L$992,11,0)=0,"--",VLOOKUP(B197,'Zebrik W'!$B$7:$L$992,11,0))) -> 
A198: 192 | B198: Jaromir Hendrych | C198: 1954 | D198: M | E198: Raná | F198: CZ/C2 | G198: 12821 | H198: 3 | M198: =IF(ISERROR(VLOOKUP(B198,'Zebrik W'!$B$7:$L$992,11,0)),"",IF(VLOOKUP(B198,'Zebrik W'!$B$7:$L$992,11,0)=0,"--",VLOOKUP(B198,'Zebrik W'!$B$7:$L$992,11,0))) -> 
A199: =RANK(G199,G:G) -> 193 | B199: Kamil Sohr | C199: 1973 | D199: M | E199: Šumperk | F199: CZ/M | G199: 12780 | H199: 2 | M199: =IF(ISERROR(VLOOKUP(B199,'Zebrik W'!$B$7:$L$992,11,0)),"",IF(VLOOKUP(B199,'Zebrik W'!$B$7:$L$992,11,0)=0,"--",VLOOKUP(B199,'Zebrik W'!$B$7:$L$992,11,0))) -> 
A200: 194 | B200: Rostislav Stryk | C200: 1972 | D200: M | E200: Frýdlant | F200: CZ/M | G200: 12600 | H200: 2 | M200: =IF(ISERROR(VLOOKUP(B200,'Zebrik W'!$B$7:$L$992,11,0)),"",IF(VLOOKUP(B200,'Zebrik W'!$B$7:$L$992,11,0)=0,"--",VLOOKUP(B200,'Zebrik W'!$B$7:$L$992,11,0))) -> 
A201: 195 | B201: Martin Zvonicek | C201: 1972 | D201: M | E201: Raná | F201: CZ/C2 | G201: 12559 | H201: 2 | M201: =IF(ISERROR(VLOOKUP(B201,'Zebrik W'!$B$7:$L$992,11,0)),"",IF(VLOOKUP(B201,'Zebrik W'!$B$7:$L$992,11,0)=0,"--",VLOOKUP(B201,'Zebrik W'!$B$7:$L$992,11,0))) -> 
... 246 more rows

Sheet Zebrik W
B1: ="Ženský Žebřík pilotek plachtařek PK AeČR "&A6 -> Ženský Žebřík pilotek plachtařek PK AeČR 2022 | I1: ='Zebrik G'!I1 -> 2023-01-08 | J1: Rev. | K1: ='Zebrik G'!K1 -> 01 | L1: ='Zebrik G'!L1 -> Aktualizovány koeficienty soutěží dle rozhodnutí PK AeČR
B3: W | C3: x | I3: Juniorka v roce: | J3: Juniorka v roce: | K3: ="W Repre družstvo "&I4 -> W Repre družstvo 2023 | L3: ="W Repre výběr "&I4 -> W Repre výběr 2023 | M3: Poznámka
I4: =A6+1 -> 2023 | J4: =A6+2 -> 2024 | K4: (WRD) | L4: (WRV)
A5: Pořadí | G5: Data | I5: =COUNTIF(I7:I489,"Juniorka v roce "&$I$4) -> 5 | J5: =COUNTIF(J7:J489,"Juniorka v roce "&$J$4) -> 5 | K5: =COUNTIF(K7:K489,"WRD "&$I$4) -> 0 | L5: =COUNTIF(L7:L489,"WRV "&$I$4) -> 9 | M5: =COUNTIF(M7:M489,"<>") -> 0
A6: ='Zebrik G'!A6 -> 2022 | B6: Jméno | C6: Rok narození | D6: M/F | E6: Aeroklub | F6: Region | G6: Součet z Bi×Kinp | H6: Počet W
A7: =RANK(G7,G:G) -> 1 | B7: Alena Netusilova | C7: 1970 | D7: F | E7: Zbraslavice | F7: CZ/C1 | G7: 28793 | H7: 3 | I7: =IF(C7="(prázdné)","",IF(($I$4-C7)>25,"","Juniorka v roce "&$I$4)) ->  | J7: =IF(C7="(prázdné)","",IF(($J$4-C7)>25,"","Juniorka v roce "&$J$4)) ->  | L7: WRV 2023
A8: 2 | B8: Barbora Moravcova | C8: 1994 | D8: F | E8: Zbraslavice | F8: CZ/C1 | G8: 27620 | H8: 3 | I8: =IF(C8="(prázdné)","",IF(($I$4-C8)>25,"","Juniorka v roce "&$I$4)) ->  | J8: =IF(C8="(prázdné)","",IF(($J$4-C8)>25,"","Juniorka v roce "&$J$4)) ->  | L8: WRV 2023
A9: 3 | B9: Jana Veprekova | C9: 1961 | D9: F | E9: Dvůr Králové | F9: CZ/C2 | G9: 27035 | H9: 3 | L9: WRV 2023
A10: 4 | B10: Dana Novakova | C10: 1965 | D10: F | E10: Mladá Boleslav | F10: CZ/C1 | G10: 27014 | H10: 3 | L10: WRV 2023
A11: 5 | B11: Petra Piskata | C11: 1989 | D11: F | E11: Luhačovice | F11: CZ/M | G11: 26659 | H11: 3 | L11: WRV 2023
A12: 6 | B12: Hana Treslova | C12: 1991 | D12: F | E12: Raná | F12: CZ/C2 | G12: 26334 | H12: 3 | L12: WRV 2023
A13: 7 | B13: Tereza Koubkova | C13: 1999 | D13: F | E13: Vysoké Mýto | F13: CZ/C2 | G13: 25693 | H13: 3 | I13: Juniorka v roce 2023 | J13: Juniorka v roce 2024 | L13: WRV 2023
A14: 8 | B14: Michaela Rendlova | C14: 2004 | D14: F | E14: Toužim | F14: CZ/C1 | G14: 25365 | H14: 3 | I14: Juniorka v roce 2023 | J14: Juniorka v roce 2024 | L14: WRV 2023
A15: 9 | B15: Michaela Krizova | C15: 2001 | D15: F | E15: Přibyslav | F15: CZ/C2 | G15: 23794 | H15: 3 | I15: Juniorka v roce 2023 | J15: Juniorka v roce 2024 | L15: WRV 2023
A16: 10 | B16: Jana Treslova | C16: 1963 | D16: F | E16: Raná | F16: CZ/C2 | G16: 23227 | H16: 3
A17: 11 | B17: Klara Teichmannova | C17: 1993 | D17: F | E17: Hronov | F17: CZ/C2 | G17: 21564 | H17: 3
A18: 12 | B18: Pavlina Horackova | C18: 1965 | D18: F | E18: Šumperk | F18: CZ/M | G18: 19839 | H18: 3
A19: 13 | B19: Lenka Kuthanova | C19: 1960 | D19: F | E19: Tábor | F19: CZ/C1 | G19: 15788 | H19: 2
A20: 14 | B20: Linda Vasatova | C20: 1990 | D20: F | E20: Mladá Boleslav | F20: CZ/C1 | G20: 13532 | H20: 3
A21: 15 | B21: Katerina Vancurova | C21: 2002 | D21: F | E21: Hranice | F21: CZ/M | G21: 12086 | H21: 3 | I21: Juniorka v roce 2023 | J21: Juniorka v roce 2024
A22: 16 | B22: Olga Mokosova | C22: 1970 | D22: F | E22: Jihlava | F22: CZ/M | G22: 11907 | H22: 3
A23: 17 | B23: Sarka Lochova | C23: 1966 | D23: F | E23: Šumperk | F23: CZ/M | G23: 11641 | H23: 3
A24: 18 | B24: Katerina Vojtova | C24: 1983 | D24: F | E24: Slaný | F24: CZ/C1 | G24: 11433 | H24: 3
A25: 19 | B25: Jana Mezerova | C25: 1975 | D25: F | E25: Raná | F25: CZ/C2 | G25: 11092 | H25: 3
A26: 20 | B26: Yvona Vyhnankova | C26: 1963 | D26: F | E26: Olomouc | F26: CZ/M | G26: 8708 | H26: 3
A27: 21 | B27: Anna Bordovska | C27: 1989 | D27: F | E27: Mladá Boleslav | F27: CZ/C1 | G27: 7324 | H27: 1
A28: 22 | B28: Eva Cerna | C28: 1964 | D28: F | E28: Příbram | F28: CZ/C1 | G28: 6037 | H28: 1
A29: 23 | B29: Zuzana Markesova | C29: 2001 | D29: F | E29: Medlánky | F29: CZ/M | G29: 3044 | H29: 1 | I29: Juniorka v roce 2023 | J29: Juniorka v roce 2024
A30: 24 | B30: Tereza Novakova | C30: 1993 | D30: F | E30: Chrudim | F30: CZ/C2 | G30: 2807 | H30: 1
A31: 25 | B31: Tereza Krcilova Spalenkova | C31: 1981 | D31: F | E31: Raná | F31: CZ/C2 | G31: 2588 | H31: 1
A32: 26 | B32: Kristina Santruckova | C32: 1996 | D32: F | E32: Podhořany | F32: CZ/C2 | G32: 2493 | H32: 1
A33: 27 | B33: Zuzana Kutilkova | C33: 1993 | D33: F | E33: Křižanov | F33: CZ/M | G33: 925 | H33: 1
A34: 28 | B34: Gabriela Cervena | C34: 1966 | D34: F | E34: Jaroměř | F34: CZ/C2 | G34: 599 | H34: 1

Sheet KB PMRg 2020
A1: PMRg 2020 - Hosín - Korigované body
A2: Pořadí v KB | B2: Jméno | C2: Rok narození | D2: M/F | E2: Aeroklub | F2: Region | G2: Soutěž | H2: Pořadí ve třídě | I2: Body ve třídě | J2: Bi | K2: Typ | L2: CN | M2: Junior
A3: =RANK(J3,J:J) -> 1 | B3: Michal Lesinger | C3: 1966 | D3: M | E3: Moravská Třebová | F3: CZ/M | G3: PMRg 2020 - Klub | H3: 1 | I3: 4243 | J3: 10000 | K3: ASW 19B | L3: LL | M3: =IF(ISERROR(VLOOKUP(B3,Pilot,6,0)),"Není v databázi",VLOOKUP(B3,Pilot,6,0)) -> 
A4: 1 | B4: Danes Grula | C4: 1961 | D4: M | E4: Medlánky | F4: CZ/M | G4: PMRg 2020 - Kombi | H4: 1 | I4: 4243 | J4: 10000 | K4: ASG29E | L4: DX
A5: 3 | B5: Zdenek Boruvka 86 | C5: 1986 | D5: M | E5: Jičín | F5: CZ/C2 | G5: PMRg 2020 - Klub | H5: 2 | I5: 4134 | J5: 9690 | K5: STD. CIRRUS | L5: BJ
A6: 4 | B6: Petr Hotovy | C6: 1958 | D6: M | E6: Česká Lípa | F6: CZ/C2 | G6: PMRg 2020 - Kombi | H6: 2 | I6: 4106 | J6: 9501 | K6: JS1B 18m | L6: IGC
A7: 5 | B7: Josef Busek | C7: 1967 | D7: M | E7: Hosín | F7: CZ/C1 | G7: PMRg 2020 - Kombi | H7: 3 | I7: 3900 | J7: 8889 | K7: Duodiscus X 750kg | L7: BB
A8: 6 | B8: Jan Zahradka | C8: 1981 | D8: M | E8: Hodkovice | F8: CZ/C2 | G8: PMRg 2020 - Klub | H8: 3 | I8: 3619 | J8: 8710 | K8: Std. Cirrus | L8: AR
A9: 7 | B9: Marek Svancara | C9: 1976 | D9: M | E9: GAC Benešov | F9: CZ/C1 | G9: PMRg 2020 - Klub | H9: 4 | I9: 3499 | J9: 8381 | K9: Std. Cirrus | L9: GT
A10: 8 | B10: Michael Fik | C10: 1972 | D10: M | E10: Strakonice | F10: CZ/C1 | G10: PMRg 2020 - Kombi | H10: 4 | I10: 3722 | J10: 8322 | K10: Ventus C 17,6 | L10: GE
A11: 9 | B11: Jan Stastny | C11: 2003 | D11: M | E11: Medlánky | F11: CZ/M | G11: PMRg 2020 - Klub | H11: 5 | I11: 3276 | J11: 7883 | K11: ASW-15B | L11: TW | M11: Junior v roce 2023
A12: 10 | B12: Jindrich Hruska | C12: 1986 | D12: M | E12: Soběslav | F12: CZ/C1 | G12: PMRg 2020 - Klub | H12: 6 | I12: 3243 | J12: 7698 | K12: Mosquito | L12: UFO
A13: 11 | B13: Hana Treslova | C13: 1991 | D13: F | E13: Raná | F13: CZ/C2 | G13: PMRg 2020 - Kombi | H13: 5 | I13: 3460 | J13: 7617 | K13: Ventus 2ax | L13: AX
A14: 12 | B14: Jiri Vondracek | C14: 1989 | D14: M | E14: Kladno | F14: CZ/C1 | G14: PMRg 2020 - Klub | H14: 7 | I14: 3122 | J14: 7368 | K14: ASW-15B | L14: 2P
A15: 13 | B15: Jaromir Macoun | C15: 1999 | D15: M | E15: Jičín | F15: CZ/C2 | G15: PMRg 2020 - Kombi | H15: 6 | I15: 3413 | J15: 7267 | K15: LS 8 | L15: EU | M15: Junior v roce 2023
A16: 14 | B16: Vladimir Hammer | C16: 2000 | D16: M | E16: Letkov | F16: CZ/C1 | G16: PMRg 2020 - Klub | H16: 8 | I16: 3106 | J16: 7211 | K16: Std. Cirrus | L16: XII | M16: Junior v roce 2023
A17: 15 | B17: Miloslav Hulmak | C17: 1963 | D17: M | E17: Hosín | F17: CZ/C1 | G17: PMRg 2020 - Klub | H17: 9 | I17: 3030 | J17: 6955 | K17: ASW15B | L17: HH
A18: 16 | B18: Jaromir Pauer | C18: 1974 | D18: M | E18: Hosín | F18: CZ/C1 | G18: PMRg 2020 - Kombi | H18: 7 | I18: 3293 | J18: 6796 | K18: Ventus C 17,6m | L18: XE
A19: 17 | B19: Pavlina Horackova | C19: 1965 | D19: F | E19: Šumperk | F19: CZ/M | G19: PMRg 2020 - Klub | H19: 10 | I19: 2891 | J19: 6596 | K19: SZD 48 Jantar Std. 2 | L19: SU
A20: 18 | B20: Karel Novak | C20: 1993 | D20: M | E20: Mladá Boleslav | F20: CZ/C1 | G20: PMRg 2020 - Kombi | H20: 8 | I20: 3255 | J20: 6461 | K20: JS-3 | L20: XM
A21: 19 | B21: Jan Florian | C21: 1992 | D21: M | E21: Zbraslavice | F21: CZ/C1 | G21: PMRg 2020 - Klub | H21: 11 | I21: 2831 | J21: 6366 | K21: Std. Cirrus | L21: C1
A22: 20 | B22: Tomas Hulmak | C22: 1999 | D22: M | E22: Hosín | F22: CZ/C1 | G22: PMRg 2020 - Klub | H22: 12 | I22: 2823 | J22: 6223 | K22: ASW-15B | L22: XI | M22: Junior v roce 2023
A23: 21 | B23: Jiri Holcman | C23: 1976 | D23: M | E23: Hosín | F23: CZ/C1 | G23: PMRg 2020 - Klub | H23: 13 | I23: 2717 | J23: 5917 | K23: ASW-19 | L23: BO
A24: 22 | B24: Petr Rozhon | C24: 1972 | D24: M | E24: Hosín | F24: CZ/C1 | G24: PMRg 2020 - Klub | H24: 14 | I24: 2611 | J24: 5612 | K24: vso-10 | L24: 9
A25: 23 | B25: Pavel Koudelka | C25: 1973 | D25: M | E25: Křižanov | F25: CZ/M | G25: PMRg 2020 - Klub | H25: 15 | I25: 2442 | J25: 5203 | K25: Std.Cirrus | L25: ICQ
A26: 24 | B26: Michal Vranek | C26: 1993 | D26: M | E26: Hosín | F26: CZ/C1 | G26: PMRg 2020 - Klub | H26: 16 | I26: 2440 | J26: 5069 | K26: DG-100 | L26: 8W
A27: 25 | B27: Jan Beran | C27: 1999 | D27: M | E27: Kladno | F27: CZ/C1 | G27: PMRg 2020 - Klub | H27: 17 | I27: 2275 | J27: 4666 | K27: ASW 19 | L27: HB | M27: Junior v roce 2023
A28: 26 | B28: Jaroslav Potmesil | C28: 1964 | D28: M | E28: Zbraslavice | F28: CZ/C1 | G28: PMRg 2020 - Kombi | H28: 9 | I28: 2273 | J28: 4568 | K28: 304TS TwinShark | L28: DL
A29: 27 | B29: Martin Tison | C29: 2000 | D29: M | E29: Hosín | F29: CZ/C1 | G29: PMRg 2020 - Klub | H29: 18 | I29: 2175 | J29: 4371 | K29: ASW-15B | L29: EZ | M29: Junior v roce 2023
A30: 28 | B30: Petr Velek | C30: 1975 | D30: M | E30: GAC Benešov | F30: CZ/C1 | G30: PMRg 2020 - Klub | H30: 19 | I30: 2138 | J30: 4179 | K30: DG400 | L30: HX
A31: 29 | B31: Lukas Plocek | C31: 1990 | D31: M | E31: Mladá Boleslav | F31: CZ/C1 | G31: PMRg 2020 - Klub | H31: 20 | I31: 1896 | J31: 3650 | K31: ASW-19B | L31: AH
A32: 30 | B32: Radek Zima 78 | C32: 1978 | D32: M | E32: Hodkovice | F32: CZ/C2 | G32: PMRg 2020 - Kombi | H32: 10 | I32: 1751 | J32: 3434 | K32: Ventus b 16,6m 430kg WL | L32: 7F
A33: 31 | B33: Vaclav Zak | C33: 1962 | D33: M | E33: GAC Benešov | F33: CZ/C1 | G33: PMRg 2020 - Klub | H33: 21 | I33: 1721 | J33: 3231 | K33: Std. Cirrus | L33: TS
A34: 32 | B34: Jiri Krofta | C34: 1988 | D34: M | E34: Hosín | F34: CZ/C1 | G34: PMRg 2020 - Klub | H34: 22 | I34: 1563 | J34: 2839 | K34: Std. Cirrus | L34: 2U
A35: 33 | B35: Frantisek Suna | C35: 1983 | D35: M | E35: Hosín | F35: CZ/C1 | G35: PMRg 2020 - Klub | H35: 23 | I35: 1461 | J35: 2541 | K35: DG-100 | L35: 78
A36: 34 | B36: Jan Kohout | C36: 1970 | D36: M | E36: Žamberk | F36: CZ/C2 | G36: PMRg 2020 - Kombi | H36: 11 | I36: 1320 | J36: 2450 | K36: LS8a | L36: SK
A37: 35 | B37: Petr Sochor | C37: 1986 | D37: M | E37: Hosín | F37: CZ/C1 | G37: PMRg 2020 - Klub | H37: 24 | I37: 1308 | J37: 2158 | K37: ASW15B | L37: 6Y
A38: 36 | B38: Radoslav Pur | C38: 1973 | D38: M | E38: Hosín | F38: CZ/C1 | G38: PMRg 2020 - Kombi | H38: 12 | I38: 1147 | J38: 1892 | K38: DG-200 | L38: EK

Sheet KB PMRg 2021
A1: PMRg 2021 - Moravská Třebová - Korigované body
A2: Pořadí v KB | B2: Jméno | C2: Rok narození | D2: M/F | E2: Aeroklub | F2: Region | G2: Soutěž | H2: Pořadí ve třídě | I2: Body ve třídě | J2: Bi | K2: Typ | L2: CN | M2: Junior
A3: =RANK(J3,J:J) -> 1 | B3: Jan Louda | C3: =VLOOKUP(B3,Pilot,2,0) -> 1986 | D3: =VLOOKUP(B3,Pilot,5,0) -> M | E3: =VLOOKUP(B3,Pilot,3,0) -> Mladá Boleslav | F3: =VLOOKUP(B3,Pilot,4,0) -> CZ/C1 | G3: PMRg 2021 - Klub | H3: 1 | I3: 5782 | J3: 10000 | K3: ASW-19B | L3: XS | M3: =IF(ISERROR(VLOOKUP(B3,Pilot,6,0)),"Není v databázi",VLOOKUP(B3,Pilot,6,0)) -> 
A4: 1 | B4: Tomas Rendla | C4: =VLOOKUP(B4,Pilot,2,0) -> 1973 | D4: =VLOOKUP(B4,Pilot,5,0) -> M | E4: =VLOOKUP(B4,Pilot,3,0) -> Zbraslavice | F4: =VLOOKUP(B4,Pilot,4,0) -> CZ/C1 | G4: PMRg 2021 - Kombi | H4: 1 | I4: 5477 | J4: 10000 | K4: EB-29R | L4: EX
A5: 3 | B5: Pavel Jiranek | C5: 1993 | D5: M | E5: Toužim | F5: CZ/C1 | G5: PMRg 2021 - Klub | H5: 2 | I5: 5754 | J5: 9846 | K5: Std. Cirrus | L5: IYD
A6: 4 | B6: Radek Kucirek | C6: 1973 | D6: M | E6: Havlíčkův Brod | F6: CZ/C2 | G6: PMRg 2021 - Kombi | H6: 2 | I6: 5461 | J6: 9730 | K6: EB-28 edition | L6: NA
A7: 5 | B7: Pavel Trybenekr | C7: 1990 | D7: M | E7: Hořice | F7: CZ/C2 | G7: PMRg 2021 - Klub | H7: 3 | I7: 5741 | J7: 9710 | K7: LS-4 | L7: PF
A8: 6 | B8: Hana Treslova | C8: 1991 | D8: F | E8: Raná | F8: CZ/C2 | G8: PMRg 2021 - Klub | H8: 4 | I8: 5404 | J8: 9182 | K8: Std. Cirrus | L8: CI
A9: 7 | B9: Jan Boruvka | C9: 1984 | D9: M | E9: Jičín | F9: CZ/C2 | G9: PMRg 2021 - Kombi | H9: 3 | I9: 5225 | J9: 9178 | K9: Ventus C 17.6m | L9: EG
A10: 8 | B10: Jiri Stepanek | C10: 1956 | D10: M | E10: Moravská Třebová | F10: CZ/M | G10: PMRg 2021 - Klub | H10: 5 | I10: 5331 | J10: 8974 | K10: VSO-10 | L10: H9
A11: 9 | B11: Martin Stepanek | C11: 1987 | D11: M | E11: Moravská Třebová | F11: CZ/M | G11: PMRg 2021 - Klub | H11: 6 | I11: 5267 | J11: 8777 | K11: ASW-15B | L11: LE
A12: 10 | B12: Petr Stepanek | C12: 1989 | D12: M | E12: Moravská Třebová | F12: CZ/M | G12: PMRg 2021 - Klub | H12: 7 | I12: 5104 | J12: 8459 | K12: ASW-15B | L12: ZP
A13: 11 | B13: Michaela Rendlova | C13: 2004 | D13: F | E13: Toužim | F13: CZ/C1 | G13: PMRg 2021 - Kombi | H13: 4 | I13: 4833 | J13: 8427 | K13: ASG 29/18m | L13: NX | M13: Junior v roce 2023
A14: 12 | B14: Radek Zima 78 | C14: 1978 | D14: M | E14: Hodkovice | F14: CZ/C2 | G14: PMRg 2021 - Kombi | H14: 5 | I14: 4825 | J14: 8167 | K14: ASG 29/18m | L14: XZ
A15: 13 | B15: Zdenek Balcarek | C15: 1967 | D15: M | E15: Kroměříž | F15: CZ/M | G15: PMRg 2021 - Klub | H15: 8 | I15: 4662 | J15: 7804 | K15: Discus b | L15: OS
A16: 14 | B16: Zdenek Boruvka 86 | C16: 1986 | D16: M | E16: Jičín | F16: CZ/C2 | G16: PMRg 2021 - Klub | H16: 9 | I16: 4641 | J16: 7659 | K16: Std. Cirrus | L16: BJ
A17: 15 | B17: Jiri Steiger | C17: 1969 | D17: M | E17: Olomouc | F17: CZ/M | G17: PMRg 2021 - Kombi | H17: 6 | I17: 4284 | J17: 7225 | K17: Ventus 3M 18m | L17: JSI
A18: 16 | B18: Petr Valenta 94 | C18: 1994 | D18: M | E18: Kunovice | F18: CZ/M | G18: PMRg 2021 - Klub | H18: 10 | I18: 4371 | J18: 7212 | K18: Std. Cirrus | L18: OK
A19: 17 | B19: Pavlina Horackova | C19: 1965 | D19: F | E19: Šumperk | F19: CZ/M | G19: PMRg 2021 - Klub | H19: 11 | I19: 4345 | J19: 7060 | K19: SZD-48 Jantar std. 2 (3) | L19: SU
A20: 18 | B20: Jiri Vondracek | C20: 1989 | D20: M | E20: Kladno | F20: CZ/C1 | G20: PMRg 2021 - Klub | H20: 12 | I20: 4337 | J20: 6931 | K20: ASW-15B | L20: 2P
A21: 19 | B21: Jiri Maier 66 | C21: 1966 | D21: M | E21: Raná | F21: CZ/C2 | G21: PMRg 2021 - Klub | H21: 13 | I21: 4311 | J21: 6779 | K21: ASW-24E | L21: JM
A22: 20 | B22: Jaromir Macoun | C22: 1999 | D22: M | E22: Jičín | F22: CZ/C2 | G22: PMRg 2021 - Kombi | H22: 7 | I22: 4128 | J22: 6776 | K22: LS-8 15m | L22: AU | M22: Junior v roce 2023
A23: 21 | B23: Martin Kriz | C23: 1968 | D23: M | E23: Přibyslav | F23: CZ/C2 | G23: PMRg 2021 - Klub | H23: 14 | I23: 4245 | J23: 6579 | K23: ASW-20 (A)+F /15m WL | L23: 67
A24: 22 | B24: Miroslav Koci | C24: 1961 | D24: M | E24: Žamberk | F24: CZ/C2 | G24: PMRg 2021 - Kombi | H24: 8 | I24: 3695 | J24: 5972 | K24: Ventus 2cxm | L24: E8
A25: 23 | B25: Jan Florian | C25: 1992 | D25: M | E25: Zbraslavice | F25: CZ/C1 | G25: PMRg 2021 - Klub | H25: 15 | I25: 3748 | J25: 5858 | K25: Std. Cirrus | L25: C1
A26: 23 | B26: Pavel Liska | C26: 1965 | D26: M | E26: Roudnice | F26: CZ/C2 | G26: PMRg 2021 - Klub | H26: 15 | I26: 3748 | J26: 5858 | K26: ASW-19B | L26: RCE
A27: 25 | B27: Vit Morkovsky | C27: 2000 | D27: M | E27: Polička | F27: CZ/C2 | G27: PMRg 2021 - Kombi | H27: 9 | I27: 3438 | J27: 5394 | K27: Discus 2a | L27: GX | M27: Junior v roce 2023
A28: 26 | B28: Michal Lesinger | C28: 1966 | D28: M | E28: Moravská Třebová | F28: CZ/M | G28: PMRg 2021 - Klub | H28: 17 | I28: 3527 | J28: 5350 | K28: ASW-19B | L28: LL
A29: 27 | B29: Pavel Koudelka | C29: 1973 | D29: M | E29: Křižanov | F29: CZ/M | G29: PMRg 2021 - Klub | H29: 18 | I29: 3320 | J29: 4979 | K29: Std. Cirrus | L29: ZL
A30: 28 | B30: Petr Prichystal | C30: 1973 | D30: M | E30: Moravská Třebová | F30: CZ/M | G30: PMRg 2021 - Klub | H30: 19 | I30: 3256 | J30: 4782 | K30: ASW-19B | L30: AE
A31: 29 | B31: Ivan Tvrdik | C31: 1997 | D31: M | E31: Letňany | F31: CZ/C1 | G31: PMRg 2021 - Kombi | H31: 10 | I31: 2951 | J31: 4522 | K31: LS-8 15m | L31: EU
A32: 30 | B32: Jan Vozeh | C32: 1995 | D32: M | E32: Rakovník | F32: CZ/C1 | G32: PMRg 2021 - Klub | H32: 20 | I32: 3074 | J32: 4442 | K32: Std. Cirrus | L32: OG
A33: 31 | B33: Jakub Kohn | C33: 1992 | D33: M | E33: Prostějov | F33: CZ/M | G33: PMRg 2021 - Klub | H33: 21 | I33: 2944 | J33: 4164 | K33: ASW-15B | L33: FK
A34: 32 | B34: Jan Zapletal | C34: 1997 | D34: M | E34: Břeclav | F34: CZ/M | G34: PMRg 2021 - Kombi | H34: 11 | I34: 2697 | J34: 3947 | K34: LS-8 15m | L34: JS
A35: 33 | B35: Josef Hlusek | C35: 1993 | D35: M | E35: Kunovice | F35: CZ/M | G35: PMRg 2021 - Klub | H35: 22 | I35: 2433 | J35: 3426 | K35: Std. Cirrus | L35: WO
A36: 34 | B36: Petr Kubik 75 | C36: 1975 | D36: M | E36: Moravská Třebová | F36: CZ/M | G36: PMRg 2021 - Klub | H36: 23 | I36: 2399 | J36: 3264 | K36: ASW-19B | L36: NO
A37: 35 | B37: Antonin Kutalek | C37: 1943 | D37: M | E37: Zábřeh | F37: CZ/M | G37: PMRg 2021 - Kombi | H37: 12 | I37: 1816 | J37: 2571 | K37: LAK-17AT 18m | L37: GL
A38: 36 | B38: Marek Pechar | C38: 1995 | D38: M | E38: Chrudim | F38: CZ/C2 | G38: PMRg 2021 - Klub | H38: 24 | I38: 1755 | J38: 2365 | K38: Std. Cirrus | L38: JE
A39: 37 | B39: Jiri Krofta | C39: 1988 | D39: M | E39: Hosín | F39: CZ/C1 | G39: PMRg 2021 - Klub | H39: 25 | I39: 1748 | J39: 2236 | K39: Std. Cirrus | L39: YU
A40: 38 | B40: Zuzana Kutilkova | C40: 1993 | D40: F | E40: Křižanov | F40: CZ/M | G40: PMRg 2021 - Klub | H40: 26 | I40: 813 | J40: 984 | K40: LS-1f | L40: DP
A41: 39 | B41: Petr Panek | C41: 1975 | D41: M | E41: Dvůr Králové | F41: CZ/C2 | G41: PMRg 2021 - Kombi | H41: 13 | I41: 495 | J41: 633 | K41: JS1B EVO 18m | L41: IGC

Sheet KB PMRg 2022
A1: PMRg 2022 - Hodkovice - Korigované body
A2: Pořadí v KB | B2: Jméno | C2: Rok narození | D2: M/F | E2: Aeroklub | F2: Region | G2: Soutěž | H2: Pořadí ve třídě | I2: Body ve třídě | J2: Bi | K2: Typ | L2: CN | M2: Junior
A3: =RANK(J3,J:J) -> 1 | B3: Michal Lesinger | C3: =VLOOKUP(B3,Pilot,2,0) -> 1966 | D3: =VLOOKUP(B3,Pilot,5,0) -> M | E3: =VLOOKUP(B3,Pilot,3,0) -> Moravská Třebová | F3: =VLOOKUP(B3,Pilot,4,0) -> CZ/M | G3: PMRg 2022 - Klub | H3: 1 | I3: 3948 | J3: 10000 | K3: ASW 20 | L3: LL | M3: =IF(ISERROR(VLOOKUP(B3,Pilot,6,0)),"Není v databázi",VLOOKUP(B3,Pilot,6,0)) -> 
A4: 1 | B4: Lukas Capek | C4: 1992 | D4: M | E4: Letňany | F4: CZ/C1 | G4: PMRg 2022 - Kombi | H4: 1 | I4: 3354 | J4: 10000 | K4: Mosquito | L4: LC
A5: 3 | B5: Jiri Kusbach | C5: 1959 | D5: M | E5: Luhačovice | F5: CZ/M | G5: PMRg 2022 - Klub | H5: 2 | I5: 3831 | J5: 9543 | K5: KKB-15E FES | L5: B
A6: 4 | B6: Jaroslav Potmesil | C6: 1964 | D6: M | E6: Zbraslavice | F6: CZ/C1 | G6: PMRg 2022 - Kombi | H6: 2 | I6: 2942 | J6: 8807 | K6: HpH 304 TS Twin Shark | L6: TS
A7: 5 | B7: Jan Smaha | C7: 1958 | D7: M | E7: Česká Lípa | F7: CZ/C2 | G7: PMRg 2022 - Klub | H7: 3 | I7: 3458 | J7: 8631 | K7: ASW 15 B | L7: CW
A8: 6 | B8: Lukas Maly | C8: 1998 | D8: M | E8: Vysoké Mýto | F8: CZ/C2 | G8: PMRg 2022 - Klub | H8: 4 | I8: 3447 | J8: 8362 | K8: Discus b | L8: 65 | M8: Junior v roce 2023
A9: 7 | B9: Jiri Stepanek | C9: 1956 | D9: M | E9: Moravská Třebová | F9: CZ/M | G9: PMRg 2022 - Klub | H9: 5 | I9: 3387 | J9: 8005 | K9: ASW 15 B | L9: LE
A10: 8 | B10: Martin Stepanek | C10: 1987 | D10: M | E10: Moravská Třebová | F10: CZ/M | G10: PMRg 2022 - Klub | H10: 6 | I10: 3361 | J10: 7709 | K10: ASW 19 B | L10: AE
A11: 9 | B11: Petr Hora | C11: 1948 | D11: M | E11: Hodkovice | F11: CZ/C2 | G11: PMRg 2022 - Kombi | H11: 3 | I11: 2515 | J11: 7582 | K11: HpH 304 MS Shark | L11: B1
A12: 10 | B12: Tomas Kulhavy | C12: 2001 | D12: M | E12: Liberec | F12: CZ/C2 | G12: PMRg 2022 - Kombi | H12: 4 | I12: 2500 | J12: 7218 | K12: HpH 304 CZ 17.4m | L12: IH | M12: Junior v roce 2023
A13: 11 | B13: Tomas Hynek | C13: 2002 | D13: M | E13: Dvůr Králové | F13: CZ/C2 | G13: PMRg 2022 - Klub | H13: 7 | I13: 3190 | J13: 7156 | K13: DG 200 | L13: HL | M13: Junior v roce 2023
A14: 12 | B14: Pavel Koudelka | C14: 1973 | D14: M | E14: Křižanov | F14: CZ/M | G14: PMRg 2022 - Klub | H14: 8 | I14: 3156 | J14: 6846 | K14: Std. Cirrus | L14: ZL
A15: 13 | B15: Antonin Kutalek | C15: 1943 | D15: M | E15: Zábřeh | F15: CZ/M | G15: PMRg 2022 - Kombi | H15: 5 | I15: 2340 | J15: 6550 | K15: LAK-17A T 18m | L15: GL
A16: 14 | B16: Michaela Krizova | C16: 2001 | D16: F | E16: Přibyslav | F16: CZ/C2 | G16: PMRg 2022 - Klub | H16: 9 | I16: 2951 | J16: 6232 | K16: ASW 15 B | L16: BE | M16: Junior v roce 2023
A17: 15 | B17: Pavlina Horackova | C17: 1965 | D17: F | E17: Šumperk | F17: CZ/M | G17: PMRg 2022 - Klub | H17: 10 | I17: 2618 | J17: 5392 | K17: SZD-48 Jantar Std. 2 | L17: SU
A18: 16 | B18: Katerina Vancurova | C18: 2002 | D18: F | E18: Hranice | F18: CZ/M | G18: PMRg 2022 - Klub | H18: 11 | I18: 2331 | J18: 4633 | K18: Discus b | L18: HD | M18: Junior v roce 2023
A19: 17 | B19: Radek Zima 78 | C19: 1978 | D19: M | E19: Hodkovice | F19: CZ/C2 | G19: PMRg 2022 - Kombi | H19: 6 | I19: 1372 | J19: 4197 | K19: ASG 29 E 18m | L19: XZ
A20: 18 | B20: Jan Florian | C20: 1992 | D20: M | E20: Zbraslavice | F20: CZ/C1 | G20: PMRg 2022 - Klub | H20: 12 | I20: 2188 | J20: 4129 | K20: Std. Cirrus | L20: C1
A21: 19 | B21: Jiri Krofta | C21: 1988 | D21: M | E21: Hosín | F21: CZ/C1 | G21: PMRg 2022 - Klub | H21: 13 | I21: 1904 | J21: 3376 | K21: Std. Cirrus | L21: YU
A22: 20 | B22: Jaromir Macoun | C22: 1999 | D22: M | E22: Jičín | F22: CZ/C2 | G22: PMRg 2022 - Kombi | H22: 7 | I22: 225 | J22: 1470 | K22: LS 8 | L22: EU | M22: Junior v roce 2023
A23: 21 | B23: Ivan Tvrdik | C23: 1997 | D23: M | E23: Letňany | F23: CZ/C1 | G23: PMRg 2022 - Kombi | H23: 8 | I23: 221 | J23: 1128 | K23: ASW 20 16.6m | L23: NW
A24: 22 | B24: Jan Drbohlav | C24: 1999 | D24: M | E24: Hodkovice | F24: CZ/C2 | G24: PMRg 2022 - Kombi | H24: 9 | I24: 1 | J24: 335 | K24: G 103 Twin Astir | L24: BL | M24: Junior v roce 2023
A25: 23 | B25: Vojtech Hajek | C25: 1987 | D25: M | E25: Mladá Boleslav | F25: CZ/C1 | G25: PMRg 2022 - Kombi | H25: 10 | I25: 0 | J25: 0 | K25: Duo Discus | L25: 777
A26: 23 | B26: Karel Novak | C26: 1993 | D26: M | E26: Mladá Boleslav | F26: CZ/C1 | G26: PMRg 2022 - Kombi | H26: 10 | I26: 0 | J26: 0 | K26: LS 8 | L26: ID

Sheet N PMČR 2023
B1: Nominace na PMČR 2023 | H1: Kontrola: | I1: Počet | J1: Nominace | K1: Počet | L1: Nominace | M1: Počet | N1: Nominace | O1: M: | P1: F: | Q1: M+F:
A2: No | B2: Jméno | C2: Aeroklub | D2: Rok narození | E2: M/F | F2: Junior | G2: No | I2: PMČR | J2: PMČR | K2: PMRg | L2: PMRg | M2: PMČRj | N2: PMČRj | O2: =COUNTIF(E:E,"M") -> 83 | P2: =COUNTIF(E:E,"F") -> 12 | Q2: =O2+P2 -> 95 | R2: S náhradníky
A3: 6.6.5. | B3: Nominace na PMČR - všeobecně (dle SŘ ZM10) | N3: Celkem řádně nominováno: | O3: =O2-COUNTIF(E59:E63,"M")-COUNTIF(E113:E121,"M") -> 70 | P3: =P2-COUNTIF(E59:E63,"F")-COUNTIF(E113:E121,"F") -> 11 | Q3: =O3+P3 -> 81 | R3: Bez náhradníků
B4: Na PMČR nominuje PK minimálně 80 pilotů/pilotek a příslušný počet náhradníků pro stanovená nominační kritéria.
B5: PMČR se mohou zúčastnit pouze soutěžící nominovaní dle jednotlivých bodů odstavců 6.6.6., 6.6.7. a 6.6.8.
B6: Pořadatel soutěže nemůže doplnit soutěžící na základě jiných kritérií.
A7: 6.6.6. | B7: Řádná nominace - Na PMČR jsou nominováni
A8: 6.6.6.1. | B8: všichni členové reprezentačního výběru (RV) ČR stanoveného pro daný soutěžní ročník (bez náhradníků)
A9: 1 | B9: Tomas Suchanek | C9: =VLOOKUP(B9,Pilot!A:C,3,0) -> GAC Benešov | D9: =VLOOKUP(B9,Pilot!A:B,2,0) -> 1964 | E9: =VLOOKUP(B9,Pilot!A:E,5,0) -> M | F9: =VLOOKUP(B9,Pilot!A:F,6,0) ->  | G9: =A9 -> 1 | I9: =COUNTIF(B:B,B9) -> 1 | J9: =IF(ISERROR(VLOOKUP(B9,B:G,6,0)),"-",VLOOKUP(B9,B:G,6,0)) -> 1 | K9: =IF(COUNTIF('N PMRg 2023'!B:B,B9)=0,"-",COUNTIF('N PMRg 2023'!B:B,B9)) -> - | L9: =IF(ISERROR(VLOOKUP(B9,'N PMRg 2023'!B:G,6,0)),"-",VLOOKUP(B9,'N PMRg 2023'!B:G,6,0)) -> - | M9: =IF(COUNTIF('N PMČRj 2023'!B:B,B9)=0,"-",COUNTIF('N PMČRj 2023'!B:B,B9)) -> - | N9: =IF(ISERROR(VLOOKUP(B9,'N PMČRj 2023'!B:G,6,0)),"-",VLOOKUP(B9,'N PMČRj 2023'!B:G,6,0)) -> -
A10: =A9+1 -> 2 | B10: Radek Krejcirik | C10: =VLOOKUP(B10,Pilot!A:C,3,0) -> Hranice | D10: =VLOOKUP(B10,Pilot!A:B,2,0) -> 1991 | E10: =VLOOKUP(B10,Pilot!A:E,5,0) -> M | F10: =VLOOKUP(B10,Pilot!A:F,6,0) ->  | G10: =A10 -> 2 | I10: 1 | J10: 2 | K10: =IF(COUNTIF('N PMRg 2023'!B:B,B10)=0,"-",COUNTIF('N PMRg 2023'!B:B,B10)) -> - | L10: =IF(ISERROR(VLOOKUP(B10,'N PMRg 2023'!B:G,6,0)),"-",VLOOKUP(B10,'N PMRg 2023'!B:G,6,0)) -> - | M10: =IF(COUNTIF('N PMČRj 2023'!B:B,B10)=0,"-",COUNTIF('N PMČRj 2023'!B:B,B10)) -> - | N10: =IF(ISERROR(VLOOKUP(B10,'N PMČRj 2023'!B:G,6,0)),"-",VLOOKUP(B10,'N PMČRj 2023'!B:G,6,0)) -> -
A11: =A10+1 -> 3 | B11: Miloslav Cink | C11: =VLOOKUP(B11,Pilot!A:C,3,0) -> Letkov | D11: =VLOOKUP(B11,Pilot!A:B,2,0) -> 1987 | E11: =VLOOKUP(B11,Pilot!A:E,5,0) -> M | F11: =VLOOKUP(B11,Pilot!A:F,6,0) ->  | G11: 3 | I11: 1 | J11: 3 | K11: =IF(COUNTIF('N PMRg 2023'!B:B,B11)=0,"-",COUNTIF('N PMRg 2023'!B:B,B11)) -> - | L11: =IF(ISERROR(VLOOKUP(B11,'N PMRg 2023'!B:G,6,0)),"-",VLOOKUP(B11,'N PMRg 2023'!B:G,6,0)) -> - | M11: =IF(COUNTIF('N PMČRj 2023'!B:B,B11)=0,"-",COUNTIF('N PMČRj 2023'!B:B,B11)) -> - | N11: =IF(ISERROR(VLOOKUP(B11,'N PMČRj 2023'!B:G,6,0)),"-",VLOOKUP(B11,'N PMČRj 2023'!B:G,6,0)) -> -
A12: 4 | B12: Jan Pavlik | C12: =VLOOKUP(B12,Pilot!A:C,3,0) -> Křižanov | D12: =VLOOKUP(B12,Pilot!A:B,2,0) -> 1987 | E12: =VLOOKUP(B12,Pilot!A:E,5,0) -> M | F12: =VLOOKUP(B12,Pilot!A:F,6,0) ->  | G12: 4 | I12: 1 | J12: 4 | K12: =IF(COUNTIF('N PMRg 2023'!B:B,B12)=0,"-",COUNTIF('N PMRg 2023'!B:B,B12)) -> - | L12: =IF(ISERROR(VLOOKUP(B12,'N PMRg 2023'!B:G,6,0)),"-",VLOOKUP(B12,'N PMRg 2023'!B:G,6,0)) -> - | M12: =IF(COUNTIF('N PMČRj 2023'!B:B,B12)=0,"-",COUNTIF('N PMČRj 2023'!B:B,B12)) -> - | N12: =IF(ISERROR(VLOOKUP(B12,'N PMČRj 2023'!B:G,6,0)),"-",VLOOKUP(B12,'N PMČRj 2023'!B:G,6,0)) -> -
A13: 5 | B13: Roman Mracek | C13: =VLOOKUP(B13,Pilot!A:C,3,0) -> Letkov | D13: =VLOOKUP(B13,Pilot!A:B,2,0) -> 1980 | E13: =VLOOKUP(B13,Pilot!A:E,5,0) -> M | F13: =VLOOKUP(B13,Pilot!A:F,6,0) ->  | G13: 5 | I13: 1 | J13: 5 | K13: =IF(COUNTIF('N PMRg 2023'!B:B,B13)=0,"-",COUNTIF('N PMRg 2023'!B:B,B13)) -> - | L13: =IF(ISERROR(VLOOKUP(B13,'N PMRg 2023'!B:G,6,0)),"-",VLOOKUP(B13,'N PMRg 2023'!B:G,6,0)) -> - | M13: =IF(COUNTIF('N PMČRj 2023'!B:B,B13)=0,"-",COUNTIF('N PMČRj 2023'!B:B,B13)) -> - | N13: =IF(ISERROR(VLOOKUP(B13,'N PMČRj 2023'!B:G,6,0)),"-",VLOOKUP(B13,'N PMČRj 2023'!B:G,6,0)) -> -
A14: 6 | B14: Ivan Novak | C14: =VLOOKUP(B14,Pilot!A:C,3,0) -> Mladá Boleslav | D14: =VLOOKUP(B14,Pilot!A:B,2,0) -> 1962 | E14: =VLOOKUP(B14,Pilot!A:E,5,0) -> M | F14: =VLOOKUP(B14,Pilot!A:F,6,0) ->  | G14: 6 | I14: 1 | J14: 6 | K14: =IF(COUNTIF('N PMRg 2023'!B:B,B14)=0,"-",COUNTIF('N PMRg 2023'!B:B,B14)) -> - | L14: =IF(ISERROR(VLOOKUP(B14,'N PMRg 2023'!B:G,6,0)),"-",VLOOKUP(B14,'N PMRg 2023'!B:G,6,0)) -> - | M14: =IF(COUNTIF('N PMČRj 2023'!B:B,B14)=0,"-",COUNTIF('N PMČRj 2023'!B:B,B14)) -> - | N14: =IF(ISERROR(VLOOKUP(B14,'N PMČRj 2023'!B:G,6,0)),"-",VLOOKUP(B14,'N PMČRj 2023'!B:G,6,0)) -> -
A15: 7 | B15: Michal Lesinger | C15: =VLOOKUP(B15,Pilot!A:C,3,0) -> Moravská Třebová | D15: =VLOOKUP(B15,Pilot!A:B,2,0) -> 1966 | E15: =VLOOKUP(B15,Pilot!A:E,5,0) -> M | F15: =VLOOKUP(B15,Pilot!A:F,6,0) ->  | G15: 7 | I15: 1 | J15: 7 | K15: =IF(COUNTIF('N PMRg 2023'!B:B,B15)=0,"-",COUNTIF('N PMRg 2023'!B:B,B15)) -> - | L15: =IF(ISERROR(VLOOKUP(B15,'N PMRg 2023'!B:G,6,0)),"-",VLOOKUP(B15,'N PMRg 2023'!B:G,6,0)) -> - | M15: =IF(COUNTIF('N PMČRj 2023'!B:B,B15)=0,"-",COUNTIF('N PMČRj 2023'!B:B,B15)) -> - | N15: =IF(ISERROR(VLOOKUP(B15,'N PMČRj 2023'!B:G,6,0)),"-",VLOOKUP(B15,'N PMČRj 2023'!B:G,6,0)) -> -
A16: 8 | B16: Pavel Louzecky | C16: =VLOOKUP(B16,Pilot!A:C,3,0) -> Přibyslav | D16: =VLOOKUP(B16,Pilot!A:B,2,0) -> 1957 | E16: =VLOOKUP(B16,Pilot!A:E,5,0) -> M | F16: =VLOOKUP(B16,Pilot!A:F,6,0) ->  | G16: 8 | I16: 1 | J16: 8 | K16: =IF(COUNTIF('N PMRg 2023'!B:B,B16)=0,"-",COUNTIF('N PMRg 2023'!B:B,B16)) -> - | L16: =IF(ISERROR(VLOOKUP(B16,'N PMRg 2023'!B:G,6,0)),"-",VLOOKUP(B16,'N PMRg 2023'!B:G,6,0)) -> - | M16: =IF(COUNTIF('N PMČRj 2023'!B:B,B16)=0,"-",COUNTIF('N PMČRj 2023'!B:B,B16)) -> - | N16: =IF(ISERROR(VLOOKUP(B16,'N PMČRj 2023'!B:G,6,0)),"-",VLOOKUP(B16,'N PMČRj 2023'!B:G,6,0)) -> -
A17: 9 | B17: Radek Kucirek | C17: =VLOOKUP(B17,Pilot!A:C,3,0) -> Havlíčkův Brod | D17: =VLOOKUP(B17,Pilot!A:B,2,0) -> 1973 | E17: =VLOOKUP(B17,Pilot!A:E,5,0) -> M | F17: =VLOOKUP(B17,Pilot!A:F,6,0) ->  | G17: 9 | I17: 1 | J17: 9 | K17: =IF(COUNTIF('N PMRg 2023'!B:B,B17)=0,"-",COUNTIF('N PMRg 2023'!B:B,B17)) -> - | L17: =IF(ISERROR(VLOOKUP(B17,'N PMRg 2023'!B:G,6,0)),"-",VLOOKUP(B17,'N PMRg 2023'!B:G,6,0)) -> - | M17: =IF(COUNTIF('N PMČRj 2023'!B:B,B17)=0,"-",COUNTIF('N PMČRj 2023'!B:B,B17)) -> - | N17: =IF(ISERROR(VLOOKUP(B17,'N PMČRj 2023'!B:G,6,0)),"-",VLOOKUP(B17,'N PMČRj 2023'!B:G,6,0)) -> -
A18: 10 | B18: David Mach | C18: =VLOOKUP(B18,Pilot!A:C,3,0) -> Hronov | D18: =VLOOKUP(B18,Pilot!A:B,2,0) -> 1994 | E18: =VLOOKUP(B18,Pilot!A:E,5,0) -> M | F18: =VLOOKUP(B18,Pilot!A:F,6,0) ->  | G18: =A18 -> 10 | I18: 1 | J18: 10 | K18: =IF(COUNTIF('N PMRg 2023'!B:B,B18)=0,"-",COUNTIF('N PMRg 2023'!B:B,B18)) -> - | L18: =IF(ISERROR(VLOOKUP(B18,'N PMRg 2023'!B:G,6,0)),"-",VLOOKUP(B18,'N PMRg 2023'!B:G,6,0)) -> - | M18: =IF(COUNTIF('N PMČRj 2023'!B:B,B18)=0,"-",COUNTIF('N PMČRj 2023'!B:B,B18)) -> - | N18: =IF(ISERROR(VLOOKUP(B18,'N PMČRj 2023'!B:G,6,0)),"-",VLOOKUP(B18,'N PMČRj 2023'!B:G,6,0)) -> -
A19: 11 | B19: Tomas Rendla | C19: =VLOOKUP(B19,Pilot!A:C,3,0) -> Zbraslavice | D19: =VLOOKUP(B19,Pilot!A:B,2,0) -> 1973 | E19: =VLOOKUP(B19,Pilot!A:E,5,0) -> M | F19: =VLOOKUP(B19,Pilot!A:F,6,0) ->  | G19: 11 | I19: 1 | J19: 11 | K19: =IF(COUNTIF('N PMRg 2023'!B:B,B19)=0,"-",COUNTIF('N PMRg 2023'!B:B,B19)) -> - | L19: =IF(ISERROR(VLOOKUP(B19,'N PMRg 2023'!B:G,6,0)),"-",VLOOKUP(B19,'N PMRg 2023'!B:G,6,0)) -> - | M19: =IF(COUNTIF('N PMČRj 2023'!B:B,B19)=0,"-",COUNTIF('N PMČRj 2023'!B:B,B19)) -> - | N19: =IF(ISERROR(VLOOKUP(B19,'N PMČRj 2023'!B:G,6,0)),"-",VLOOKUP(B19,'N PMČRj 2023'!B:G,6,0)) -> -
A20: 12 | B20: Jan Ratz | C20: =VLOOKUP(B20,Pilot!A:C,3,0) -> Zbraslavice | D20: =VLOOKUP(B20,Pilot!A:B,2,0) -> 1987 | E20: =VLOOKUP(B20,Pilot!A:E,5,0) -> M | F20: =VLOOKUP(B20,Pilot!A:F,6,0) ->  | G20: 12 | I20: 1 | J20: 12 | K20: =IF(COUNTIF('N PMRg 2023'!B:B,B20)=0,"-",COUNTIF('N PMRg 2023'!B:B,B20)) -> - | L20: =IF(ISERROR(VLOOKUP(B20,'N PMRg 2023'!B:G,6,0)),"-",VLOOKUP(B20,'N PMRg 2023'!B:G,6,0)) -> - | M20: =IF(COUNTIF('N PMČRj 2023'!B:B,B20)=0,"-",COUNTIF('N PMČRj 2023'!B:B,B20)) -> - | N20: =IF(ISERROR(VLOOKUP(B20,'N PMČRj 2023'!B:G,6,0)),"-",VLOOKUP(B20,'N PMČRj 2023'!B:G,6,0)) -> -
A21: 13 | B21: Lukas Kriz | C21: =VLOOKUP(B21,Pilot!A:C,3,0) -> Křižanov | D21: =VLOOKUP(B21,Pilot!A:B,2,0) -> 2003 | E21: =VLOOKUP(B21,Pilot!A:E,5,0) -> M | F21: =VLOOKUP(B21,Pilot!A:F,6,0) -> Junior v roce 2023 | G21: =A21 -> 13 | I21: 1 | J21: 13 | K21: =IF(COUNTIF('N PMRg 2023'!B:B,B21)=0,"-",COUNTIF('N PMRg 2023'!B:B,B21)) -> - | L21: =IF(ISERROR(VLOOKUP(B21,'N PMRg 2023'!B:G,6,0)),"-",VLOOKUP(B21,'N PMRg 2023'!B:G,6,0)) -> - | M21: =IF(COUNTIF('N PMČRj 2023'!B:B,B21)=0,"-",COUNTIF('N PMČRj 2023'!B:B,B21)) -> 1 | N21: =IF(ISERROR(VLOOKUP(B21,'N PMČRj 2023'!B:G,6,0)),"-",VLOOKUP(B21,'N PMČRj 2023'!B:G,6,0)) -> 1
A22: 14 | B22: Jan Zapletal | C22: =VLOOKUP(B22,Pilot!A:C,3,0) -> Břeclav | D22: =VLOOKUP(B22,Pilot!A:B,2,0) -> 1997 | E22: =VLOOKUP(B22,Pilot!A:E,5,0) -> M | F22: =VLOOKUP(B22,Pilot!A:F,6,0) ->  | G22: 14 | I22: 1 | J22: 14 | K22: =IF(COUNTIF('N PMRg 2023'!B:B,B22)=0,"-",COUNTIF('N PMRg 2023'!B:B,B22)) -> - | L22: =IF(ISERROR(VLOOKUP(B22,'N PMRg 2023'!B:G,6,0)),"-",VLOOKUP(B22,'N PMRg 2023'!B:G,6,0)) -> - | M22: =IF(COUNTIF('N PMČRj 2023'!B:B,B22)=0,"-",COUNTIF('N PMČRj 2023'!B:B,B22)) -> - | N22: =IF(ISERROR(VLOOKUP(B22,'N PMČRj 2023'!B:G,6,0)),"-",VLOOKUP(B22,'N PMČRj 2023'!B:G,6,0)) -> -
A23: 15 | B23: Karel Novak | C23: =VLOOKUP(B23,Pilot!A:C,3,0) -> Mladá Boleslav | D23: =VLOOKUP(B23,Pilot!A:B,2,0) -> 1993 | E23: =VLOOKUP(B23,Pilot!A:E,5,0) -> M | F23: =VLOOKUP(B23,Pilot!A:F,6,0) ->  | G23: 15 | I23: 1 | J23: 15 | K23: =IF(COUNTIF('N PMRg 2023'!B:B,B23)=0,"-",COUNTIF('N PMRg 2023'!B:B,B23)) -> - | L23: =IF(ISERROR(VLOOKUP(B23,'N PMRg 2023'!B:G,6,0)),"-",VLOOKUP(B23,'N PMRg 2023'!B:G,6,0)) -> - | M23: =IF(COUNTIF('N PMČRj 2023'!B:B,B23)=0,"-",COUNTIF('N PMČRj 2023'!B:B,B23)) -> - | N23: =IF(ISERROR(VLOOKUP(B23,'N PMČRj 2023'!B:G,6,0)),"-",VLOOKUP(B23,'N PMČRj 2023'!B:G,6,0)) -> -
A24: 16 | B24: Ondrej Bordovsky | C24: =VLOOKUP(B24,Pilot!A:C,3,0) -> Krnov | D24: =VLOOKUP(B24,Pilot!A:B,2,0) -> 1983 | E24: =VLOOKUP(B24,Pilot!A:E,5,0) -> M | F24: =VLOOKUP(B24,Pilot!A:F,6,0) ->  | G24: 16 | I24: 1 | J24: 16 | K24: =IF(COUNTIF('N PMRg 2023'!B:B,B24)=0,"-",COUNTIF('N PMRg 2023'!B:B,B24)) -> - | L24: =IF(ISERROR(VLOOKUP(B24,'N PMRg 2023'!B:G,6,0)),"-",VLOOKUP(B24,'N PMRg 2023'!B:G,6,0)) -> - | M24: =IF(COUNTIF('N PMČRj 2023'!B:B,B24)=0,"-",COUNTIF('N PMČRj 2023'!B:B,B24)) -> - | N24: =IF(ISERROR(VLOOKUP(B24,'N PMČRj 2023'!B:G,6,0)),"-",VLOOKUP(B24,'N PMČRj 2023'!B:G,6,0)) -> -
A25: 17 | B25: Petr Koutny | C25: =VLOOKUP(B25,Pilot!A:C,3,0) -> Křižanov | D25: =VLOOKUP(B25,Pilot!A:B,2,0) -> 1971 | E25: =VLOOKUP(B25,Pilot!A:E,5,0) -> M | F25: =VLOOKUP(B25,Pilot!A:F,6,0) ->  | G25: 17 | I25: 1 | J25: 17 | K25: =IF(COUNTIF('N PMRg 2023'!B:B,B25)=0,"-",COUNTIF('N PMRg 2023'!B:B,B25)) -> - | L25: =IF(ISERROR(VLOOKUP(B25,'N PMRg 2023'!B:G,6,0)),"-",VLOOKUP(B25,'N PMRg 2023'!B:G,6,0)) -> - | M25: =IF(COUNTIF('N PMČRj 2023'!B:B,B25)=0,"-",COUNTIF('N PMČRj 2023'!B:B,B25)) -> - | N25: =IF(ISERROR(VLOOKUP(B25,'N PMČRj 2023'!B:G,6,0)),"-",VLOOKUP(B25,'N PMČRj 2023'!B:G,6,0)) -> -
A26: 18 | B26: Jaromir Macoun | C26: =VLOOKUP(B26,Pilot!A:C,3,0) -> Jičín | D26: =VLOOKUP(B26,Pilot!A:B,2,0) -> 1999 | E26: =VLOOKUP(B26,Pilot!A:E,5,0) -> M | F26: =VLOOKUP(B26,Pilot!A:F,6,0) -> Junior v roce 2023 | G26: 18 | I26: 1 | J26: 18 | K26: =IF(COUNTIF('N PMRg 2023'!B:B,B26)=0,"-",COUNTIF('N PMRg 2023'!B:B,B26)) -> - | L26: =IF(ISERROR(VLOOKUP(B26,'N PMRg 2023'!B:G,6,0)),"-",VLOOKUP(B26,'N PMRg 2023'!B:G,6,0)) -> - | M26: =IF(COUNTIF('N PMČRj 2023'!B:B,B26)=0,"-",COUNTIF('N PMČRj 2023'!B:B,B26)) -> 1 | N26: =IF(ISERROR(VLOOKUP(B26,'N PMČRj 2023'!B:G,6,0)),"-",VLOOKUP(B26,'N PMČRj 2023'!B:G,6,0)) -> 2
A27: 19 | B27: Jaroslav Tomana | C27: =VLOOKUP(B27,Pilot!A:C,3,0) -> Zbraslavice | D27: =VLOOKUP(B27,Pilot!A:B,2,0) -> 1975 | E27: =VLOOKUP(B27,Pilot!A:E,5,0) -> M | F27: =VLOOKUP(B27,Pilot!A:F,6,0) ->  | G27: 19 | I27: 1 | J27: 19 | K27: =IF(COUNTIF('N PMRg 2023'!B:B,B27)=0,"-",COUNTIF('N PMRg 2023'!B:B,B27)) -> - | L27: =IF(ISERROR(VLOOKUP(B27,'N PMRg 2023'!B:G,6,0)),"-",VLOOKUP(B27,'N PMRg 2023'!B:G,6,0)) -> - | M27: =IF(COUNTIF('N PMČRj 2023'!B:B,B27)=0,"-",COUNTIF('N PMČRj 2023'!B:B,B27)) -> - | N27: =IF(ISERROR(VLOOKUP(B27,'N PMČRj 2023'!B:G,6,0)),"-",VLOOKUP(B27,'N PMČRj 2023'!B:G,6,0)) -> -
A28: 20 | B28: Pavel Trybenekr | C28: =VLOOKUP(B28,Pilot!A:C,3,0) -> Hořice | D28: =VLOOKUP(B28,Pilot!A:B,2,0) -> 1990 | E28: =VLOOKUP(B28,Pilot!A:E,5,0) -> M | F28: =VLOOKUP(B28,Pilot!A:F,6,0) ->  | G28: 20 | I28: 1 | J28: 20 | K28: =IF(COUNTIF('N PMRg 2023'!B:B,B28)=0,"-",COUNTIF('N PMRg 2023'!B:B,B28)) -> - | L28: =IF(ISERROR(VLOOKUP(B28,'N PMRg 2023'!B:G,6,0)),"-",VLOOKUP(B28,'N PMRg 2023'!B:G,6,0)) -> - | M28: =IF(COUNTIF('N PMČRj 2023'!B:B,B28)=0,"-",COUNTIF('N PMČRj 2023'!B:B,B28)) -> - | N28: =IF(ISERROR(VLOOKUP(B28,'N PMČRj 2023'!B:G,6,0)),"-",VLOOKUP(B28,'N PMČRj 2023'!B:G,6,0)) -> -
A29: 21 | B29: Alena Netusilova | C29: =VLOOKUP(B29,Pilot!A:C,3,0) -> Zbraslavice | D29: =VLOOKUP(B29,Pilot!A:B,2,0) -> 1970 | E29: =VLOOKUP(B29,Pilot!A:E,5,0) -> F | F29: =VLOOKUP(B29,Pilot!A:F,6,0) ->  | G29: 21 | I29: 1 | J29: 21 | K29: =IF(COUNTIF('N PMRg 2023'!B:B,B29)=0,"-",COUNTIF('N PMRg 2023'!B:B,B29)) -> - | L29: =IF(ISERROR(VLOOKUP(B29,'N PMRg 2023'!B:G,6,0)),"-",VLOOKUP(B29,'N PMRg 2023'!B:G,6,0)) -> - | M29: =IF(COUNTIF('N PMČRj 2023'!B:B,B29)=0,"-",COUNTIF('N PMČRj 2023'!B:B,B29)) -> - | N29: =IF(ISERROR(VLOOKUP(B29,'N PMČRj 2023'!B:G,6,0)),"-",VLOOKUP(B29,'N PMČRj 2023'!B:G,6,0)) -> -
A30: 22 | B30: Vit Morkovsky | C30: =VLOOKUP(B30,Pilot!A:C,3,0) -> Polička | D30: =VLOOKUP(B30,Pilot!A:B,2,0) -> 2000 | E30: =VLOOKUP(B30,Pilot!A:E,5,0) -> M | F30: =VLOOKUP(B30,Pilot!A:F,6,0) -> Junior v roce 2023 | G30: 22 | I30: 1 | J30: 22 | K30: =IF(COUNTIF('N PMRg 2023'!B:B,B30)=0,"-",COUNTIF('N PMRg 2023'!B:B,B30)) -> - | L30: =IF(ISERROR(VLOOKUP(B30,'N PMRg 2023'!B:G,6,0)),"-",VLOOKUP(B30,'N PMRg 2023'!B:G,6,0)) -> - | M30: =IF(COUNTIF('N PMČRj 2023'!B:B,B30)=0,"-",COUNTIF('N PMČRj 2023'!B:B,B30)) -> 1 | N30: =IF(ISERROR(VLOOKUP(B30,'N PMČRj 2023'!B:G,6,0)),"-",VLOOKUP(B30,'N PMČRj 2023'!B:G,6,0)) -> 3
A31: 23 | B31: Dana Novakova | C31: =VLOOKUP(B31,Pilot!A:C,3,0) -> Mladá Boleslav | D31: =VLOOKUP(B31,Pilot!A:B,2,0) -> 1965 | E31: =VLOOKUP(B31,Pilot!A:E,5,0) -> F | F31: =VLOOKUP(B31,Pilot!A:F,6,0) ->  | G31: 23 | I31: 1 | J31: 23 | K31: =IF(COUNTIF('N PMRg 2023'!B:B,B31)=0,"-",COUNTIF('N PMRg 2023'!B:B,B31)) -> - | L31: =IF(ISERROR(VLOOKUP(B31,'N PMRg 2023'!B:G,6,0)),"-",VLOOKUP(B31,'N PMRg 2023'!B:G,6,0)) -> - | M31: =IF(COUNTIF('N PMČRj 2023'!B:B,B31)=0,"-",COUNTIF('N PMČRj 2023'!B:B,B31)) -> - | N31: =IF(ISERROR(VLOOKUP(B31,'N PMČRj 2023'!B:G,6,0)),"-",VLOOKUP(B31,'N PMČRj 2023'!B:G,6,0)) -> -
A32: 24 | B32: Barbora Moravcova | C32: =VLOOKUP(B32,Pilot!A:C,3,0) -> Zbraslavice | D32: =VLOOKUP(B32,Pilot!A:B,2,0) -> 1994 | E32: =VLOOKUP(B32,Pilot!A:E,5,0) -> F | F32: =VLOOKUP(B32,Pilot!A:F,6,0) ->  | G32: 24 | I32: 1 | J32: 24 | K32: =IF(COUNTIF('N PMRg 2023'!B:B,B32)=0,"-",COUNTIF('N PMRg 2023'!B:B,B32)) -> - | L32: =IF(ISERROR(VLOOKUP(B32,'N PMRg 2023'!B:G,6,0)),"-",VLOOKUP(B32,'N PMRg 2023'!B:G,6,0)) -> - | M32: =IF(COUNTIF('N PMČRj 2023'!B:B,B32)=0,"-",COUNTIF('N PMČRj 2023'!B:B,B32)) -> - | N32: =IF(ISERROR(VLOOKUP(B32,'N PMČRj 2023'!B:G,6,0)),"-",VLOOKUP(B32,'N PMČRj 2023'!B:G,6,0)) -> -
A33: 25 | B33: Tereza Koubkova | C33: =VLOOKUP(B33,Pilot!A:C,3,0) -> Vysoké Mýto | D33: =VLOOKUP(B33,Pilot!A:B,2,0) -> 1999 | E33: =VLOOKUP(B33,Pilot!A:E,5,0) -> F | F33: =VLOOKUP(B33,Pilot!A:F,6,0) -> Junior v roce 2023 | G33: 25 | I33: 1 | J33: 25 | K33: =IF(COUNTIF('N PMRg 2023'!B:B,B33)=0,"-",COUNTIF('N PMRg 2023'!B:B,B33)) -> - | L33: =IF(ISERROR(VLOOKUP(B33,'N PMRg 2023'!B:G,6,0)),"-",VLOOKUP(B33,'N PMRg 2023'!B:G,6,0)) -> - | M33: =IF(COUNTIF('N PMČRj 2023'!B:B,B33)=0,"-",COUNTIF('N PMČRj 2023'!B:B,B33)) -> 1 | N33: =IF(ISERROR(VLOOKUP(B33,'N PMČRj 2023'!B:G,6,0)),"-",VLOOKUP(B33,'N PMČRj 2023'!B:G,6,0)) -> 4
A34: 26 | B34: Michaela Rendlova | C34: =VLOOKUP(B34,Pilot!A:C,3,0) -> Toužim | D34: =VLOOKUP(B34,Pilot!A:B,2,0) -> 2004 | E34: =VLOOKUP(B34,Pilot!A:E,5,0) -> F | F34: =VLOOKUP(B34,Pilot!A:F,6,0) -> Junior v roce 2023 | G34: =A34 -> 26 | I34: 1 | J34: 26 | K34: =IF(COUNTIF('N PMRg 2023'!B:B,B34)=0,"-",COUNTIF('N PMRg 2023'!B:B,B34)) -> - | L34: =IF(ISERROR(VLOOKUP(B34,'N PMRg 2023'!B:G,6,0)),"-",VLOOKUP(B34,'N PMRg 2023'!B:G,6,0)) -> - | M34: =IF(COUNTIF('N PMČRj 2023'!B:B,B34)=0,"-",COUNTIF('N PMČRj 2023'!B:B,B34)) -> 1 | N34: =IF(ISERROR(VLOOKUP(B34,'N PMČRj 2023'!B:G,6,0)),"-",VLOOKUP(B34,'N PMČRj 2023'!B:G,6,0)) -> 5
A35: 27 | B35: Hana Treslova | C35: =VLOOKUP(B35,Pilot!A:C,3,0) -> Raná | D35: =VLOOKUP(B35,Pilot!A:B,2,0) -> 1991 | E35: =VLOOKUP(B35,Pilot!A:E,5,0) -> F | F35: =VLOOKUP(B35,Pilot!A:F,6,0) ->  | G35: 27 | I35: 1 | J35: 27 | K35: =IF(COUNTIF('N PMRg 2023'!B:B,B35)=0,"-",COUNTIF('N PMRg 2023'!B:B,B35)) -> - | L35: =IF(ISERROR(VLOOKUP(B35,'N PMRg 2023'!B:G,6,0)),"-",VLOOKUP(B35,'N PMRg 2023'!B:G,6,0)) -> - | M35: =IF(COUNTIF('N PMČRj 2023'!B:B,B35)=0,"-",COUNTIF('N PMČRj 2023'!B:B,B35)) -> - | N35: =IF(ISERROR(VLOOKUP(B35,'N PMČRj 2023'!B:G,6,0)),"-",VLOOKUP(B35,'N PMČRj 2023'!B:G,6,0)) -> -
A36: 28 | B36: Jan Stastny | C36: =VLOOKUP(B36,Pilot!A:C,3,0) -> Medlánky | D36: =VLOOKUP(B36,Pilot!A:B,2,0) -> 2003 | E36: =VLOOKUP(B36,Pilot!A:E,5,0) -> M | F36: =VLOOKUP(B36,Pilot!A:F,6,0) -> Junior v roce 2023 | G36: 28 | I36: 1 | J36: 28 | K36: =IF(COUNTIF('N PMRg 2023'!B:B,B36)=0,"-",COUNTIF('N PMRg 2023'!B:B,B36)) -> - | L36: =IF(ISERROR(VLOOKUP(B36,'N PMRg 2023'!B:G,6,0)),"-",VLOOKUP(B36,'N PMRg 2023'!B:G,6,0)) -> - | M36: =IF(COUNTIF('N PMČRj 2023'!B:B,B36)=0,"-",COUNTIF('N PMČRj 2023'!B:B,B36)) -> 1 | N36: =IF(ISERROR(VLOOKUP(B36,'N PMČRj 2023'!B:G,6,0)),"-",VLOOKUP(B36,'N PMČRj 2023'!B:G,6,0)) -> 6
A37: 29 | B37: Michaela Krizova | C37: =VLOOKUP(B37,Pilot!A:C,3,0) -> Přibyslav | D37: =VLOOKUP(B37,Pilot!A:B,2,0) -> 2001 | E37: =VLOOKUP(B37,Pilot!A:E,5,0) -> F | F37: =VLOOKUP(B37,Pilot!A:F,6,0) -> Junior v roce 2023 | G37: 29 | I37: 1 | J37: 29 | K37: =IF(COUNTIF('N PMRg 2023'!B:B,B37)=0,"-",COUNTIF('N PMRg 2023'!B:B,B37)) -> - | L37: =IF(ISERROR(VLOOKUP(B37,'N PMRg 2023'!B:G,6,0)),"-",VLOOKUP(B37,'N PMRg 2023'!B:G,6,0)) -> - | M37: =IF(COUNTIF('N PMČRj 2023'!B:B,B37)=0,"-",COUNTIF('N PMČRj 2023'!B:B,B37)) -> 1 | N37: =IF(ISERROR(VLOOKUP(B37,'N PMČRj 2023'!B:G,6,0)),"-",VLOOKUP(B37,'N PMČRj 2023'!B:G,6,0)) -> 7
A38: 30 | B38: Jana Veprekova | C38: =VLOOKUP(B38,Pilot!A:C,3,0) -> Dvůr Králové | D38: =VLOOKUP(B38,Pilot!A:B,2,0) -> 1961 | E38: =VLOOKUP(B38,Pilot!A:E,5,0) -> F | F38: =VLOOKUP(B38,Pilot!A:F,6,0) ->  | G38: 30 | I38: 1 | J38: 30 | K38: =IF(COUNTIF('N PMRg 2023'!B:B,B38)=0,"-",COUNTIF('N PMRg 2023'!B:B,B38)) -> - | L38: =IF(ISERROR(VLOOKUP(B38,'N PMRg 2023'!B:G,6,0)),"-",VLOOKUP(B38,'N PMRg 2023'!B:G,6,0)) -> - | M38: =IF(COUNTIF('N PMČRj 2023'!B:B,B38)=0,"-",COUNTIF('N PMČRj 2023'!B:B,B38)) -> - | N38: =IF(ISERROR(VLOOKUP(B38,'N PMČRj 2023'!B:G,6,0)),"-",VLOOKUP(B38,'N PMČRj 2023'!B:G,6,0)) -> -
A39: 31 | B39: Petra Piskata | C39: =VLOOKUP(B39,Pilot!A:C,3,0) -> Luhačovice | D39: =VLOOKUP(B39,Pilot!A:B,2,0) -> 1989 | E39: =VLOOKUP(B39,Pilot!A:E,5,0) -> F | F39: =VLOOKUP(B39,Pilot!A:F,6,0) ->  | G39: =A39 -> 31 | I39: 1 | J39: 31 | K39: =IF(COUNTIF('N PMRg 2023'!B:B,B39)=0,"-",COUNTIF('N PMRg 2023'!B:B,B39)) -> - | L39: =IF(ISERROR(VLOOKUP(B39,'N PMRg 2023'!B:G,6,0)),"-",VLOOKUP(B39,'N PMRg 2023'!B:G,6,0)) -> - | M39: =IF(COUNTIF('N PMČRj 2023'!B:B,B39)=0,"-",COUNTIF('N PMČRj 2023'!B:B,B39)) -> - | N39: =IF(ISERROR(VLOOKUP(B39,'N PMČRj 2023'!B:G,6,0)),"-",VLOOKUP(B39,'N PMČRj 2023'!B:G,6,0)) -> -
A40: 6.6.6.2. | B40: další soutěžící, kteří se umístili v konečném pořadí na posledním platném PMČR ve své třídě nejhůře v první polovině celkového pořadí (bez náhradníků)
B41: PMČR 2022 - Zbraslavice - Klub
A42: =MAX(A9:A40)+1 -> 32 | B42: Jiri Kusbach | C42: =VLOOKUP(B42,Pilot!A:C,3,0) -> Luhačovice | D42: =VLOOKUP(B42,Pilot!A:B,2,0) -> 1959 | E42: =VLOOKUP(B42,Pilot!A:E,5,0) -> M | F42: =VLOOKUP(B42,Pilot!A:F,6,0) ->  | G42: =A42 -> 32 | I42: =COUNTIF(B:B,B42) -> 1 | J42: =IF(ISERROR(VLOOKUP(B42,B:G,6,0)),"-",VLOOKUP(B42,B:G,6,0)) -> 32 | K42: =IF(COUNTIF('N PMRg 2023'!B:B,B42)=0,"-",COUNTIF('N PMRg 2023'!B:B,B42)) -> - | L42: =IF(ISERROR(VLOOKUP(B42,'N PMRg 2023'!B:G,6,0)),"-",VLOOKUP(B42,'N PMRg 2023'!B:G,6,0)) -> - | M42: =IF(COUNTIF('N PMČRj 2023'!B:B,B42)=0,"-",COUNTIF('N PMČRj 2023'!B:B,B42)) -> - | N42: =IF(ISERROR(VLOOKUP(B42,'N PMČRj 2023'!B:G,6,0)),"-",VLOOKUP(B42,'N PMČRj 2023'!B:G,6,0)) -> -
A43: =A42+1 -> 33 | B43: David Darnady | C43: =VLOOKUP(B43,Pilot!A:C,3,0) -> Zbraslavice | D43: =VLOOKUP(B43,Pilot!A:B,2,0) -> 1987 | E43: =VLOOKUP(B43,Pilot!A:E,5,0) -> M | F43: =VLOOKUP(B43,Pilot!A:F,6,0) ->  | G43: =A43 -> 33 | I43: =COUNTIF(B:B,B43) -> 1 | J43: =IF(ISERROR(VLOOKUP(B43,B:G,6,0)),"-",VLOOKUP(B43,B:G,6,0)) -> 33 | K43: =IF(COUNTIF('N PMRg 2023'!B:B,B43)=0,"-",COUNTIF('N PMRg 2023'!B:B,B43)) -> - | L43: =IF(ISERROR(VLOOKUP(B43,'N PMRg 2023'!B:G,6,0)),"-",VLOOKUP(B43,'N PMRg 2023'!B:G,6,0)) -> - | M43: =IF(COUNTIF('N PMČRj 2023'!B:B,B43)=0,"-",COUNTIF('N PMČRj 2023'!B:B,B43)) -> - | N43: =IF(ISERROR(VLOOKUP(B43,'N PMČRj 2023'!B:G,6,0)),"-",VLOOKUP(B43,'N PMČRj 2023'!B:G,6,0)) -> -
A44: =A43+1 -> 34 | B44: Jan Louda | C44: =VLOOKUP(B44,Pilot!A:C,3,0) -> Mladá Boleslav | D44: =VLOOKUP(B44,Pilot!A:B,2,0) -> 1986 | E44: =VLOOKUP(B44,Pilot!A:E,5,0) -> M | F44: =VLOOKUP(B44,Pilot!A:F,6,0) ->  | G44: =A44 -> 34 | I44: =COUNTIF(B:B,B44) -> 1 | J44: =IF(ISERROR(VLOOKUP(B44,B:G,6,0)),"-",VLOOKUP(B44,B:G,6,0)) -> 34 | K44: =IF(COUNTIF('N PMRg 2023'!B:B,B44)=0,"-",COUNTIF('N PMRg 2023'!B:B,B44)) -> - | L44: =IF(ISERROR(VLOOKUP(B44,'N PMRg 2023'!B:G,6,0)),"-",VLOOKUP(B44,'N PMRg 2023'!B:G,6,0)) -> - | M44: =IF(COUNTIF('N PMČRj 2023'!B:B,B44)=0,"-",COUNTIF('N PMČRj 2023'!B:B,B44)) -> - | N44: =IF(ISERROR(VLOOKUP(B44,'N PMČRj 2023'!B:G,6,0)),"-",VLOOKUP(B44,'N PMČRj 2023'!B:G,6,0)) -> -
A45: =A44+1 -> 35 | B45: Jan Vavrin | C45: =VLOOKUP(B45,Pilot!A:C,3,0) -> Vysoké Mýto | D45: =VLOOKUP(B45,Pilot!A:B,2,0) -> 1987 | E45: =VLOOKUP(B45,Pilot!A:E,5,0) -> M | F45: =VLOOKUP(B45,Pilot!A:F,6,0) ->  | G45: =A45 -> 35 | I45: =COUNTIF(B:B,B45) -> 1 | J45: =IF(ISERROR(VLOOKUP(B45,B:G,6,0)),"-",VLOOKUP(B45,B:G,6,0)) -> 35 | K45: =IF(COUNTIF('N PMRg 2023'!B:B,B45)=0,"-",COUNTIF('N PMRg 2023'!B:B,B45)) -> - | L45: =IF(ISERROR(VLOOKUP(B45,'N PMRg 2023'!B:G,6,0)),"-",VLOOKUP(B45,'N PMRg 2023'!B:G,6,0)) -> - | M45: =IF(COUNTIF('N PMČRj 2023'!B:B,B45)=0,"-",COUNTIF('N PMČRj 2023'!B:B,B45)) -> - | N45: =IF(ISERROR(VLOOKUP(B45,'N PMČRj 2023'!B:G,6,0)),"-",VLOOKUP(B45,'N PMČRj 2023'!B:G,6,0)) -> -
B46: PMČR 2022 - Zbraslavice - Kombi 15m
A47: - | B47: - | C47: =VLOOKUP(B47,Pilot!A:C,3,0) ->  | D47: =VLOOKUP(B47,Pilot!A:B,2,0) ->  | E47: =VLOOKUP(B47,Pilot!A:E,5,0) ->  | F47: =VLOOKUP(B47,Pilot!A:F,6,0) ->  | G47: =A47 -> - | I47: =COUNTIF(B:B,B47) -> 6 | J47: =IF(ISERROR(VLOOKUP(B47,B:G,6,0)),"-",VLOOKUP(B47,B:G,6,0)) -> - | K47: =IF(COUNTIF('N PMRg 2023'!B:B,B47)=0,"-",COUNTIF('N PMRg 2023'!B:B,B47)) -> 70 | L47: =IF(ISERROR(VLOOKUP(B47,'N PMRg 2023'!B:G,6,0)),"-",VLOOKUP(B47,'N PMRg 2023'!B:G,6,0)) -> - | M47: =IF(COUNTIF('N PMČRj 2023'!B:B,B47)=0,"-",COUNTIF('N PMČRj 2023'!B:B,B47)) -> 43 | N47: =IF(ISERROR(VLOOKUP(B47,'N PMČRj 2023'!B:G,6,0)),"-",VLOOKUP(B47,'N PMČRj 2023'!B:G,6,0)) -> -
B48: PMČR 2022 - Zbraslavice - Kombi Open
A49: =MAX(A42:A48)+1 -> 36 | B49: Petr Hotovy | C49: =VLOOKUP(B49,Pilot!A:C,3,0) -> Česká Lípa | D49: =VLOOKUP(B49,Pilot!A:B,2,0) -> 1958 | E49: =VLOOKUP(B49,Pilot!A:E,5,0) -> M | F49: =VLOOKUP(B49,Pilot!A:F,6,0) ->  | G49: =A49 -> 36 | I49: =COUNTIF(B:B,B49) -> 1 | J49: =IF(ISERROR(VLOOKUP(B49,B:G,6,0)),"-",VLOOKUP(B49,B:G,6,0)) -> 36 | K49: =IF(COUNTIF('N PMRg 2023'!B:B,B49)=0,"-",COUNTIF('N PMRg 2023'!B:B,B49)) -> - | L49: =IF(ISERROR(VLOOKUP(B49,'N PMRg 2023'!B:G,6,0)),"-",VLOOKUP(B49,'N PMRg 2023'!B:G,6,0)) -> - | M49: =IF(COUNTIF('N PMČRj 2023'!B:B,B49)=0,"-",COUNTIF('N PMČRj 2023'!B:B,B49)) -> - | N49: =IF(ISERROR(VLOOKUP(B49,'N PMČRj 2023'!B:G,6,0)),"-",VLOOKUP(B49,'N PMČRj 2023'!B:G,6,0)) -> -
A50: =A49+1 -> 37 | B50: Petr Tichy | C50: =VLOOKUP(B50,Pilot!A:C,3,0) -> Zbraslavice | D50: =VLOOKUP(B50,Pilot!A:B,2,0) -> 1973 | E50: =VLOOKUP(B50,Pilot!A:E,5,0) -> M | F50: =VLOOKUP(B50,Pilot!A:F,6,0) ->  | G50: 37 | I50: =COUNTIF(B:B,B50) -> 1 | J50: =IF(ISERROR(VLOOKUP(B50,B:G,6,0)),"-",VLOOKUP(B50,B:G,6,0)) -> 37 | K50: =IF(COUNTIF('N PMRg 2023'!B:B,B50)=0,"-",COUNTIF('N PMRg 2023'!B:B,B50)) -> - | L50: =IF(ISERROR(VLOOKUP(B50,'N PMRg 2023'!B:G,6,0)),"-",VLOOKUP(B50,'N PMRg 2023'!B:G,6,0)) -> - | M50: =IF(COUNTIF('N PMČRj 2023'!B:B,B50)=0,"-",COUNTIF('N PMČRj 2023'!B:B,B50)) -> - | N50: =IF(ISERROR(VLOOKUP(B50,'N PMČRj 2023'!B:G,6,0)),"-",VLOOKUP(B50,'N PMČRj 2023'!B:G,6,0)) -> -
A51: =A50+1 -> 38 | B51: Pavel Jiranek | C51: =VLOOKUP(B51,Pilot!A:C,3,0) -> Toužim | D51: =VLOOKUP(B51,Pilot!A:B,2,0) -> 1993 | E51: =VLOOKUP(B51,Pilot!A:E,5,0) -> M | F51: =VLOOKUP(B51,Pilot!A:F,6,0) ->  | G51: 38 | I51: =COUNTIF(B:B,B51) -> 1 | J51: =IF(ISERROR(VLOOKUP(B51,B:G,6,0)),"-",VLOOKUP(B51,B:G,6,0)) -> 38 | K51: =IF(COUNTIF('N PMRg 2023'!B:B,B51)=0,"-",COUNTIF('N PMRg 2023'!B:B,B51)) -> - | L51: =IF(ISERROR(VLOOKUP(B51,'N PMRg 2023'!B:G,6,0)),"-",VLOOKUP(B51,'N PMRg 2023'!B:G,6,0)) -> - | M51: =IF(COUNTIF('N PMČRj 2023'!B:B,B51)=0,"-",COUNTIF('N PMČRj 2023'!B:B,B51)) -> - | N51: =IF(ISERROR(VLOOKUP(B51,'N PMČRj 2023'!B:G,6,0)),"-",VLOOKUP(B51,'N PMČRj 2023'!B:G,6,0)) -> -
A52: 6.6.6.3. | B52: prvních 5 soutěžících z posledního platného PMČRj mimo RV (+ 5 náhradníků)
B53: PMČRj 2022 - Hodkovice - Klub
A54: =MAX(A41:A52)+1 -> 39 | B54: Vladimir Hammer | C54: =VLOOKUP(B54,Pilot!A:C,3,0) -> Letkov | D54: =VLOOKUP(B54,Pilot!A:B,2,0) -> 2000 | E54: =VLOOKUP(B54,Pilot!A:E,5,0) -> M | F54: =VLOOKUP(B54,Pilot!A:F,6,0) -> Junior v roce 2023 | G54: =A54 -> 39 | I54: =COUNTIF(B:B,B54) -> 1 | J54: =IF(ISERROR(VLOOKUP(B54,B:G,6,0)),"-",VLOOKUP(B54,B:G,6,0)) -> 39 | K54: =IF(COUNTIF('N PMRg 2023'!B:B,B54)=0,"-",COUNTIF('N PMRg 2023'!B:B,B54)) -> - | L54: =IF(ISERROR(VLOOKUP(B54,'N PMRg 2023'!B:G,6,0)),"-",VLOOKUP(B54,'N PMRg 2023'!B:G,6,0)) -> - | M54: =IF(COUNTIF('N PMČRj 2023'!B:B,B54)=0,"-",COUNTIF('N PMČRj 2023'!B:B,B54)) -> 1 | N54: =IF(ISERROR(VLOOKUP(B54,'N PMČRj 2023'!B:G,6,0)),"-",VLOOKUP(B54,'N PMČRj 2023'!B:G,6,0)) -> 8
A55: =A54+1 -> 40 | B55: Lukas Volek | C55: =VLOOKUP(B55,Pilot!A:C,3,0) -> Hodkovice | D55: =VLOOKUP(B55,Pilot!A:B,2,0) -> 2004 | E55: =VLOOKUP(B55,Pilot!A:E,5,0) -> M | F55: =VLOOKUP(B55,Pilot!A:F,6,0) -> Junior v roce 2023 | G55: 40 | I55: 1 | J55: 40 | K55: =IF(COUNTIF('N PMRg 2023'!B:B,B55)=0,"-",COUNTIF('N PMRg 2023'!B:B,B55)) -> - | L55: =IF(ISERROR(VLOOKUP(B55,'N PMRg 2023'!B:G,6,0)),"-",VLOOKUP(B55,'N PMRg 2023'!B:G,6,0)) -> - | M55: =IF(COUNTIF('N PMČRj 2023'!B:B,B55)=0,"-",COUNTIF('N PMČRj 2023'!B:B,B55)) -> 1 | N55: =IF(ISERROR(VLOOKUP(B55,'N PMČRj 2023'!B:G,6,0)),"-",VLOOKUP(B55,'N PMČRj 2023'!B:G,6,0)) -> 9
A56: =A55+1 -> 41 | B56: Tomas Hynek | C56: =VLOOKUP(B56,Pilot!A:C,3,0) -> Dvůr Králové | D56: =VLOOKUP(B56,Pilot!A:B,2,0) -> 2002 | E56: =VLOOKUP(B56,Pilot!A:E,5,0) -> M | F56: =VLOOKUP(B56,Pilot!A:F,6,0) -> Junior v roce 2023 | G56: 41 | I56: 1 | J56: 41 | K56: =IF(COUNTIF('N PMRg 2023'!B:B,B56)=0,"-",COUNTIF('N PMRg 2023'!B:B,B56)) -> - | L56: =IF(ISERROR(VLOOKUP(B56,'N PMRg 2023'!B:G,6,0)),"-",VLOOKUP(B56,'N PMRg 2023'!B:G,6,0)) -> - | M56: =IF(COUNTIF('N PMČRj 2023'!B:B,B56)=0,"-",COUNTIF('N PMČRj 2023'!B:B,B56)) -> 1 | N56: =IF(ISERROR(VLOOKUP(B56,'N PMČRj 2023'!B:G,6,0)),"-",VLOOKUP(B56,'N PMČRj 2023'!B:G,6,0)) -> 10
A57: =A56+1 -> 42 | B57: Ivan Tvrdik | C57: =VLOOKUP(B57,Pilot!A:C,3,0) -> Letňany | D57: =VLOOKUP(B57,Pilot!A:B,2,0) -> 1997 | E57: =VLOOKUP(B57,Pilot!A:E,5,0) -> M | F57: =VLOOKUP(B57,Pilot!A:F,6,0) ->  | G57: 42 | I57: 1 | J57: 42 | K57: =IF(COUNTIF('N PMRg 2023'!B:B,B57)=0,"-",COUNTIF('N PMRg 2023'!B:B,B57)) -> - | L57: =IF(ISERROR(VLOOKUP(B57,'N PMRg 2023'!B:G,6,0)),"-",VLOOKUP(B57,'N PMRg 2023'!B:G,6,0)) -> - | M57: =IF(COUNTIF('N PMČRj 2023'!B:B,B57)=0,"-",COUNTIF('N PMČRj 2023'!B:B,B57)) -> - | N57: =IF(ISERROR(VLOOKUP(B57,'N PMČRj 2023'!B:G,6,0)),"-",VLOOKUP(B57,'N PMČRj 2023'!B:G,6,0)) -> -
A58: =A57+1 -> 43 | B58: Jan Beran | C58: =VLOOKUP(B58,Pilot!A:C,3,0) -> Kladno | D58: =VLOOKUP(B58,Pilot!A:B,2,0) -> 1999 | E58: =VLOOKUP(B58,Pilot!A:E,5,0) -> M | F58: =VLOOKUP(B58,Pilot!A:F,6,0) -> Junior v roce 2023 | G58: 43 | I58: 1 | J58: 43 | K58: =IF(COUNTIF('N PMRg 2023'!B:B,B58)=0,"-",COUNTIF('N PMRg 2023'!B:B,B58)) -> - | L58: =IF(ISERROR(VLOOKUP(B58,'N PMRg 2023'!B:G,6,0)),"-",VLOOKUP(B58,'N PMRg 2023'!B:G,6,0)) -> - | M58: =IF(COUNTIF('N PMČRj 2023'!B:B,B58)=0,"-",COUNTIF('N PMČRj 2023'!B:B,B58)) -> 1 | N58: =IF(ISERROR(VLOOKUP(B58,'N PMČRj 2023'!B:G,6,0)),"-",VLOOKUP(B58,'N PMČRj 2023'!B:G,6,0)) -> 11
A59: N1 | B59: Petr Havelka | C59: =VLOOKUP(B59,Pilot!A:C,3,0) -> Zbraslavice | D59: =VLOOKUP(B59,Pilot!A:B,2,0) -> 1997 | E59: =VLOOKUP(B59,Pilot!A:E,5,0) -> M | F59: =VLOOKUP(B59,Pilot!A:F,6,0) ->  | G59: N1 | I59: 1 | J59: N1 | K59: =IF(COUNTIF('N PMRg 2023'!B:B,B59)=0,"-",COUNTIF('N PMRg 2023'!B:B,B59)) -> - | L59: =IF(ISERROR(VLOOKUP(B59,'N PMRg 2023'!B:G,6,0)),"-",VLOOKUP(B59,'N PMRg 2023'!B:G,6,0)) -> - | M59: =IF(COUNTIF('N PMČRj 2023'!B:B,B59)=0,"-",COUNTIF('N PMČRj 2023'!B:B,B59)) -> - | N59: =IF(ISERROR(VLOOKUP(B59,'N PMČRj 2023'!B:G,6,0)),"-",VLOOKUP(B59,'N PMČRj 2023'!B:G,6,0)) -> -
A60: N2 | B60: Stepan Filakovsky | C60: =VLOOKUP(B60,Pilot!A:C,3,0) -> Medlánky | D60: =VLOOKUP(B60,Pilot!A:B,2,0) -> 2005 | E60: =VLOOKUP(B60,Pilot!A:E,5,0) -> M | F60: =VLOOKUP(B60,Pilot!A:F,6,0) -> Junior v roce 2023 | G60: N2 | I60: 1 | J60: N2 | K60: =IF(COUNTIF('N PMRg 2023'!B:B,B60)=0,"-",COUNTIF('N PMRg 2023'!B:B,B60)) -> - | L60: =IF(ISERROR(VLOOKUP(B60,'N PMRg 2023'!B:G,6,0)),"-",VLOOKUP(B60,'N PMRg 2023'!B:G,6,0)) -> - | M60: =IF(COUNTIF('N PMČRj 2023'!B:B,B60)=0,"-",COUNTIF('N PMČRj 2023'!B:B,B60)) -> 1 | N60: =IF(ISERROR(VLOOKUP(B60,'N PMČRj 2023'!B:G,6,0)),"-",VLOOKUP(B60,'N PMČRj 2023'!B:G,6,0)) -> 13
A61: N3 | B61: Jakub Malik | C61: =VLOOKUP(B61,Pilot!A:C,3,0) -> Letňany | D61: =VLOOKUP(B61,Pilot!A:B,2,0) -> 1999 | E61: =VLOOKUP(B61,Pilot!A:E,5,0) -> M | F61: =VLOOKUP(B61,Pilot!A:F,6,0) -> Junior v roce 2023 | G61: N3 | I61: 1 | J61: N3 | K61: =IF(COUNTIF('N PMRg 2023'!B:B,B61)=0,"-",COUNTIF('N PMRg 2023'!B:B,B61)) -> - | L61: =IF(ISERROR(VLOOKUP(B61,'N PMRg 2023'!B:G,6,0)),"-",VLOOKUP(B61,'N PMRg 2023'!B:G,6,0)) -> - | M61: =IF(COUNTIF('N PMČRj 2023'!B:B,B61)=0,"-",COUNTIF('N PMČRj 2023'!B:B,B61)) -> - | N61: =IF(ISERROR(VLOOKUP(B61,'N PMČRj 2023'!B:G,6,0)),"-",VLOOKUP(B61,'N PMČRj 2023'!B:G,6,0)) -> -
A62: N4 | B62: Jiri Maier 99 | C62: =VLOOKUP(B62,Pilot!A:C,3,0) -> Raná | D62: =VLOOKUP(B62,Pilot!A:B,2,0) -> 1999 | E62: =VLOOKUP(B62,Pilot!A:E,5,0) -> M | F62: =VLOOKUP(B62,Pilot!A:F,6,0) -> Junior v roce 2023 | G62: N4 | I62: 1 | J62: N4 | K62: =IF(COUNTIF('N PMRg 2023'!B:B,B62)=0,"-",COUNTIF('N PMRg 2023'!B:B,B62)) -> - | L62: =IF(ISERROR(VLOOKUP(B62,'N PMRg 2023'!B:G,6,0)),"-",VLOOKUP(B62,'N PMRg 2023'!B:G,6,0)) -> - | M62: =IF(COUNTIF('N PMČRj 2023'!B:B,B62)=0,"-",COUNTIF('N PMČRj 2023'!B:B,B62)) -> - | N62: =IF(ISERROR(VLOOKUP(B62,'N PMČRj 2023'!B:G,6,0)),"-",VLOOKUP(B62,'N PMČRj 2023'!B:G,6,0)) -> -
A63: N5 | B63: Adam Hepal | C63: =VLOOKUP(B63,Pilot!A:C,3,0) -> Kolín | D63: =VLOOKUP(B63,Pilot!A:B,2,0) -> 2004 | E63: =VLOOKUP(B63,Pilot!A:E,5,0) -> M | F63: =VLOOKUP(B63,Pilot!A:F,6,0) -> Junior v roce 2023 | G63: N5 | I63: 1 | J63: N5 | K63: =IF(COUNTIF('N PMRg 2023'!B:B,B63)=0,"-",COUNTIF('N PMRg 2023'!B:B,B63)) -> - | L63: =IF(ISERROR(VLOOKUP(B63,'N PMRg 2023'!B:G,6,0)),"-",VLOOKUP(B63,'N PMRg 2023'!B:G,6,0)) -> - | M63: =IF(COUNTIF('N PMČRj 2023'!B:B,B63)=0,"-",COUNTIF('N PMČRj 2023'!B:B,B63)) -> - | N63: =IF(ISERROR(VLOOKUP(B63,'N PMČRj 2023'!B:G,6,0)),"-",VLOOKUP(B63,'N PMČRj 2023'!B:G,6,0)) -> -
A64: 6.6.6.4. | B64: 5 soutěžících může navrhnout PK podle jiných kritérií dle odstavce 9. (bez náhradníků)
A65: 81. | B65: - | C65: =VLOOKUP(B65,Pilot!A:C,3,0) ->  | D65: =VLOOKUP(B65,Pilot!A:B,2,0) ->  | E65: =VLOOKUP(B65,Pilot!A:E,5,0) ->  | F65: =VLOOKUP(B65,Pilot!A:F,6,0) ->  | G65: =A65 -> 81. | I65: =COUNTIF(B:B,B65) -> 6 | J65: =IF(ISERROR(VLOOKUP(B65,B:G,6,0)),"-",VLOOKUP(B65,B:G,6,0)) -> - | K65: =IF(COUNTIF('N PMRg 2023'!B:B,B65)=0,"-",COUNTIF('N PMRg 2023'!B:B,B65)) -> 70 | L65: =IF(ISERROR(VLOOKUP(B65,'N PMRg 2023'!B:G,6,0)),"-",VLOOKUP(B65,'N PMRg 2023'!B:G,6,0)) -> - | M65: =IF(COUNTIF('N PMČRj 2023'!B:B,B65)=0,"-",COUNTIF('N PMČRj 2023'!B:B,B65)) -> 43 | N65: =IF(ISERROR(VLOOKUP(B65,'N PMČRj 2023'!B:G,6,0)),"-",VLOOKUP(B65,'N PMČRj 2023'!B:G,6,0)) -> -
A66: 82. | B66: - | C66: =VLOOKUP(B66,Pilot!A:C,3,0) ->  | D66: =VLOOKUP(B66,Pilot!A:B,2,0) ->  | E66: =VLOOKUP(B66,Pilot!A:E,5,0) ->  | F66: =VLOOKUP(B66,Pilot!A:F,6,0) ->  | G66: =A66 -> 82. | I66: =COUNTIF(B:B,B66) -> 6 | J66: =IF(ISERROR(VLOOKUP(B66,B:G,6,0)),"-",VLOOKUP(B66,B:G,6,0)) -> - | K66: =IF(COUNTIF('N PMRg 2023'!B:B,B66)=0,"-",COUNTIF('N PMRg 2023'!B:B,B66)) -> 70 | L66: =IF(ISERROR(VLOOKUP(B66,'N PMRg 2023'!B:G,6,0)),"-",VLOOKUP(B66,'N PMRg 2023'!B:G,6,0)) -> - | M66: =IF(COUNTIF('N PMČRj 2023'!B:B,B66)=0,"-",COUNTIF('N PMČRj 2023'!B:B,B66)) -> 43 | N66: =IF(ISERROR(VLOOKUP(B66,'N PMČRj 2023'!B:G,6,0)),"-",VLOOKUP(B66,'N PMČRj 2023'!B:G,6,0)) -> -
A67: 83. | B67: - | C67: =VLOOKUP(B67,Pilot!A:C,3,0) ->  | D67: =VLOOKUP(B67,Pilot!A:B,2,0) ->  | E67: =VLOOKUP(B67,Pilot!A:E,5,0) ->  | F67: =VLOOKUP(B67,Pilot!A:F,6,0) ->  | G67: =A67 -> 83. | I67: =COUNTIF(B:B,B67) -> 6 | J67: =IF(ISERROR(VLOOKUP(B67,B:G,6,0)),"-",VLOOKUP(B67,B:G,6,0)) -> - | K67: =IF(COUNTIF('N PMRg 2023'!B:B,B67)=0,"-",COUNTIF('N PMRg 2023'!B:B,B67)) -> 70 | L67: =IF(ISERROR(VLOOKUP(B67,'N PMRg 2023'!B:G,6,0)),"-",VLOOKUP(B67,'N PMRg 2023'!B:G,6,0)) -> - | M67: =IF(COUNTIF('N PMČRj 2023'!B:B,B67)=0,"-",COUNTIF('N PMČRj 2023'!B:B,B67)) -> 43 | N67: =IF(ISERROR(VLOOKUP(B67,'N PMČRj 2023'!B:G,6,0)),"-",VLOOKUP(B67,'N PMČRj 2023'!B:G,6,0)) -> -
A68: 84. | B68: - | C68: =VLOOKUP(B68,Pilot!A:C,3,0) ->  | D68: =VLOOKUP(B68,Pilot!A:B,2,0) ->  | E68: =VLOOKUP(B68,Pilot!A:E,5,0) ->  | F68: =VLOOKUP(B68,Pilot!A:F,6,0) ->  | G68: =A68 -> 84. | I68: =COUNTIF(B:B,B68) -> 6 | J68: =IF(ISERROR(VLOOKUP(B68,B:G,6,0)),"-",VLOOKUP(B68,B:G,6,0)) -> - | K68: =IF(COUNTIF('N PMRg 2023'!B:B,B68)=0,"-",COUNTIF('N PMRg 2023'!B:B,B68)) -> 70 | L68: =IF(ISERROR(VLOOKUP(B68,'N PMRg 2023'!B:G,6,0)),"-",VLOOKUP(B68,'N PMRg 2023'!B:G,6,0)) -> - | M68: =IF(COUNTIF('N PMČRj 2023'!B:B,B68)=0,"-",COUNTIF('N PMČRj 2023'!B:B,B68)) -> 43 | N68: =IF(ISERROR(VLOOKUP(B68,'N PMČRj 2023'!B:G,6,0)),"-",VLOOKUP(B68,'N PMČRj 2023'!B:G,6,0)) -> -
A69: 85. | B69: - | C69: =VLOOKUP(B69,Pilot!A:C,3,0) ->  | D69: =VLOOKUP(B69,Pilot!A:B,2,0) ->  | E69: =VLOOKUP(B69,Pilot!A:E,5,0) ->  | F69: =VLOOKUP(B69,Pilot!A:F,6,0) ->  | G69: =A69 -> 85. | I69: =COUNTIF(B:B,B69) -> 6 | J69: =IF(ISERROR(VLOOKUP(B69,B:G,6,0)),"-",VLOOKUP(B69,B:G,6,0)) -> - | K69: =IF(COUNTIF('N PMRg 2023'!B:B,B69)=0,"-",COUNTIF('N PMRg 2023'!B:B,B69)) -> 70 | L69: =IF(ISERROR(VLOOKUP(B69,'N PMRg 2023'!B:G,6,0)),"-",VLOOKUP(B69,'N PMRg 2023'!B:G,6,0)) -> - | M69: =IF(COUNTIF('N PMČRj 2023'!B:B,B69)=0,"-",COUNTIF('N PMČRj 2023'!B:B,B69)) -> 43 | N69: =IF(ISERROR(VLOOKUP(B69,'N PMČRj 2023'!B:G,6,0)),"-",VLOOKUP(B69,'N PMČRj 2023'!B:G,6,0)) -> -
A70: 6.6.6.5. | B70: ostatní soutěžící z posledního platného PMRg v pořadí podle umístění, do naplnění celkového počtu nominovaných 80 dle 6.6.5. (+ 10 náhradníků)
A71: 6.6.6.6. | B71: Je-li PMRg pořádáno ve více třídách, a/nebo ve více regionech, pak jsou na PMČR nominováni soutěžící podle korigovaných bodů z jednotlivých tříd/regionů do naplnění celkového počtu nominovaných dle 6.6.5.
A72: 6.6.6.7. | B72: V případě neplatnosti některé ze soutěžních tříd posledního PMRg budou pro výpočet korigovaných bodů použity výsledky z posledního platného PMRg v dané třídě.
B73: PMRg 2022 - Hodkovice - Korigované body
A74: =MAX(A54:A70)+1 -> 44 | B74: Lukas Capek | C74: =VLOOKUP(B74,Pilot!A:C,3,0) -> Letňany | D74: =VLOOKUP(B74,Pilot!A:B,2,0) -> 1992 | E74: =VLOOKUP(B74,Pilot!A:E,5,0) -> M | F74: =VLOOKUP(B74,Pilot!A:F,6,0) ->  | G74: =A74 -> 44 | I74: =COUNTIF(B:B,B74) -> 1 | J74: =IF(ISERROR(VLOOKUP(B74,B:G,6,0)),"-",VLOOKUP(B74,B:G,6,0)) -> 44 | K74: =IF(COUNTIF('N PMRg 2023'!B:B,B74)=0,"-",COUNTIF('N PMRg 2023'!B:B,B74)) -> - | L74: =IF(ISERROR(VLOOKUP(B74,'N PMRg 2023'!B:G,6,0)),"-",VLOOKUP(B74,'N PMRg 2023'!B:G,6,0)) -> - | M74: =IF(COUNTIF('N PMČRj 2023'!B:B,B74)=0,"-",COUNTIF('N PMČRj 2023'!B:B,B74)) -> - | N74: =IF(ISERROR(VLOOKUP(B74,'N PMČRj 2023'!B:G,6,0)),"-",VLOOKUP(B74,'N PMČRj 2023'!B:G,6,0)) -> -
A75: =A74+1 -> 45 | B75: Jaroslav Potmesil | C75: =VLOOKUP(B75,Pilot!A:C,3,0) -> Zbraslavice | D75: =VLOOKUP(B75,Pilot!A:B,2,0) -> 1964 | E75: =VLOOKUP(B75,Pilot!A:E,5,0) -> M | F75: =VLOOKUP(B75,Pilot!A:F,6,0) ->  | G75: 45 | I75: 1 | J75: 45 | K75: =IF(COUNTIF('N PMRg 2023'!B:B,B75)=0,"-",COUNTIF('N PMRg 2023'!B:B,B75)) -> - | L75: =IF(ISERROR(VLOOKUP(B75,'N PMRg 2023'!B:G,6,0)),"-",VLOOKUP(B75,'N PMRg 2023'!B:G,6,0)) -> - | M75: =IF(COUNTIF('N PMČRj 2023'!B:B,B75)=0,"-",COUNTIF('N PMČRj 2023'!B:B,B75)) -> - | N75: =IF(ISERROR(VLOOKUP(B75,'N PMČRj 2023'!B:G,6,0)),"-",VLOOKUP(B75,'N PMČRj 2023'!B:G,6,0)) -> -
A76: =A75+1 -> 46 | B76: Jan Smaha | C76: =VLOOKUP(B76,Pilot!A:C,3,0) -> Česká Lípa | D76: =VLOOKUP(B76,Pilot!A:B,2,0) -> 1958 | E76: =VLOOKUP(B76,Pilot!A:E,5,0) -> M | F76: =VLOOKUP(B76,Pilot!A:F,6,0) ->  | G76: 46 | I76: 1 | J76: 46 | K76: =IF(COUNTIF('N PMRg 2023'!B:B,B76)=0,"-",COUNTIF('N PMRg 2023'!B:B,B76)) -> - | L76: =IF(ISERROR(VLOOKUP(B76,'N PMRg 2023'!B:G,6,0)),"-",VLOOKUP(B76,'N PMRg 2023'!B:G,6,0)) -> - | M76: =IF(COUNTIF('N PMČRj 2023'!B:B,B76)=0,"-",COUNTIF('N PMČRj 2023'!B:B,B76)) -> - | N76: =IF(ISERROR(VLOOKUP(B76,'N PMČRj 2023'!B:G,6,0)),"-",VLOOKUP(B76,'N PMČRj 2023'!B:G,6,0)) -> -
A77: 47 | B77: Lukas Maly | C77: =VLOOKUP(B77,Pilot!A:C,3,0) -> Vysoké Mýto | D77: =VLOOKUP(B77,Pilot!A:B,2,0) -> 1998 | E77: =VLOOKUP(B77,Pilot!A:E,5,0) -> M | F77: =VLOOKUP(B77,Pilot!A:F,6,0) -> Junior v roce 2023 | G77: 47 | I77: 1 | J77: 47 | K77: =IF(COUNTIF('N PMRg 2023'!B:B,B77)=0,"-",COUNTIF('N PMRg 2023'!B:B,B77)) -> - | L77: =IF(ISERROR(VLOOKUP(B77,'N PMRg 2023'!B:G,6,0)),"-",VLOOKUP(B77,'N PMRg 2023'!B:G,6,0)) -> - | M77: =IF(COUNTIF('N PMČRj 2023'!B:B,B77)=0,"-",COUNTIF('N PMČRj 2023'!B:B,B77)) -> - | N77: =IF(ISERROR(VLOOKUP(B77,'N PMČRj 2023'!B:G,6,0)),"-",VLOOKUP(B77,'N PMČRj 2023'!B:G,6,0)) -> -
A78: 48 | B78: Jiri Stepanek | C78: =VLOOKUP(B78,Pilot!A:C,3,0) -> Moravská Třebová | D78: =VLOOKUP(B78,Pilot!A:B,2,0) -> 1956 | E78: =VLOOKUP(B78,Pilot!A:E,5,0) -> M | F78: =VLOOKUP(B78,Pilot!A:F,6,0) ->  | G78: 48 | I78: 1 | J78: 48 | K78: =IF(COUNTIF('N PMRg 2023'!B:B,B78)=0,"-",COUNTIF('N PMRg 2023'!B:B,B78)) -> - | L78: =IF(ISERROR(VLOOKUP(B78,'N PMRg 2023'!B:G,6,0)),"-",VLOOKUP(B78,'N PMRg 2023'!B:G,6,0)) -> - | M78: =IF(COUNTIF('N PMČRj 2023'!B:B,B78)=0,"-",COUNTIF('N PMČRj 2023'!B:B,B78)) -> - | N78: =IF(ISERROR(VLOOKUP(B78,'N PMČRj 2023'!B:G,6,0)),"-",VLOOKUP(B78,'N PMČRj 2023'!B:G,6,0)) -> -
A79: 49 | B79: Martin Stepanek | C79: =VLOOKUP(B79,Pilot!A:C,3,0) -> Moravská Třebová | D79: =VLOOKUP(B79,Pilot!A:B,2,0) -> 1987 | E79: =VLOOKUP(B79,Pilot!A:E,5,0) -> M | F79: =VLOOKUP(B79,Pilot!A:F,6,0) ->  | G79: 49 | I79: 1 | J79: 49 | K79: =IF(COUNTIF('N PMRg 2023'!B:B,B79)=0,"-",COUNTIF('N PMRg 2023'!B:B,B79)) -> - | L79: =IF(ISERROR(VLOOKUP(B79,'N PMRg 2023'!B:G,6,0)),"-",VLOOKUP(B79,'N PMRg 2023'!B:G,6,0)) -> - | M79: =IF(COUNTIF('N PMČRj 2023'!B:B,B79)=0,"-",COUNTIF('N PMČRj 2023'!B:B,B79)) -> - | N79: =IF(ISERROR(VLOOKUP(B79,'N PMČRj 2023'!B:G,6,0)),"-",VLOOKUP(B79,'N PMČRj 2023'!B:G,6,0)) -> -
A80: 50 | B80: Petr Hora | C80: =VLOOKUP(B80,Pilot!A:C,3,0) -> Hodkovice | D80: =VLOOKUP(B80,Pilot!A:B,2,0) -> 1948 | E80: =VLOOKUP(B80,Pilot!A:E,5,0) -> M | F80: =VLOOKUP(B80,Pilot!A:F,6,0) ->  | G80: 50 | I80: 1 | J80: 50 | K80: =IF(COUNTIF('N PMRg 2023'!B:B,B80)=0,"-",COUNTIF('N PMRg 2023'!B:B,B80)) -> - | L80: =IF(ISERROR(VLOOKUP(B80,'N PMRg 2023'!B:G,6,0)),"-",VLOOKUP(B80,'N PMRg 2023'!B:G,6,0)) -> - | M80: =IF(COUNTIF('N PMČRj 2023'!B:B,B80)=0,"-",COUNTIF('N PMČRj 2023'!B:B,B80)) -> - | N80: =IF(ISERROR(VLOOKUP(B80,'N PMČRj 2023'!B:G,6,0)),"-",VLOOKUP(B80,'N PMČRj 2023'!B:G,6,0)) -> -
A81: 51 | B81: Tomas Kulhavy | C81: =VLOOKUP(B81,Pilot!A:C,3,0) -> Liberec | D81: =VLOOKUP(B81,Pilot!A:B,2,0) -> 2001 | E81: =VLOOKUP(B81,Pilot!A:E,5,0) -> M | F81: =VLOOKUP(B81,Pilot!A:F,6,0) -> Junior v roce 2023 | G81: 51 | I81: 1 | J81: 51 | K81: =IF(COUNTIF('N PMRg 2023'!B:B,B81)=0,"-",COUNTIF('N PMRg 2023'!B:B,B81)) -> - | L81: =IF(ISERROR(VLOOKUP(B81,'N PMRg 2023'!B:G,6,0)),"-",VLOOKUP(B81,'N PMRg 2023'!B:G,6,0)) -> - | M81: =IF(COUNTIF('N PMČRj 2023'!B:B,B81)=0,"-",COUNTIF('N PMČRj 2023'!B:B,B81)) -> 1 | N81: =IF(ISERROR(VLOOKUP(B81,'N PMČRj 2023'!B:G,6,0)),"-",VLOOKUP(B81,'N PMČRj 2023'!B:G,6,0)) -> 12
A82: 52 | B82: Pavel Koudelka | C82: =VLOOKUP(B82,Pilot!A:C,3,0) -> Křižanov | D82: =VLOOKUP(B82,Pilot!A:B,2,0) -> 1973 | E82: =VLOOKUP(B82,Pilot!A:E,5,0) -> M | F82: =VLOOKUP(B82,Pilot!A:F,6,0) ->  | G82: 52 | I82: 1 | J82: 52 | K82: =IF(COUNTIF('N PMRg 2023'!B:B,B82)=0,"-",COUNTIF('N PMRg 2023'!B:B,B82)) -> - | L82: =IF(ISERROR(VLOOKUP(B82,'N PMRg 2023'!B:G,6,0)),"-",VLOOKUP(B82,'N PMRg 2023'!B:G,6,0)) -> - | M82: =IF(COUNTIF('N PMČRj 2023'!B:B,B82)=0,"-",COUNTIF('N PMČRj 2023'!B:B,B82)) -> - | N82: =IF(ISERROR(VLOOKUP(B82,'N PMČRj 2023'!B:G,6,0)),"-",VLOOKUP(B82,'N PMČRj 2023'!B:G,6,0)) -> -
A83: 53 | B83: Antonin Kutalek | C83: =VLOOKUP(B83,Pilot!A:C,3,0) -> Zábřeh | D83: =VLOOKUP(B83,Pilot!A:B,2,0) -> 1943 | E83: =VLOOKUP(B83,Pilot!A:E,5,0) -> M | F83: =VLOOKUP(B83,Pilot!A:F,6,0) ->  | G83: 53 | I83: 1 | J83: 53 | K83: =IF(COUNTIF('N PMRg 2023'!B:B,B83)=0,"-",COUNTIF('N PMRg 2023'!B:B,B83)) -> - | L83: =IF(ISERROR(VLOOKUP(B83,'N PMRg 2023'!B:G,6,0)),"-",VLOOKUP(B83,'N PMRg 2023'!B:G,6,0)) -> - | M83: =IF(COUNTIF('N PMČRj 2023'!B:B,B83)=0,"-",COUNTIF('N PMČRj 2023'!B:B,B83)) -> - | N83: =IF(ISERROR(VLOOKUP(B83,'N PMČRj 2023'!B:G,6,0)),"-",VLOOKUP(B83,'N PMČRj 2023'!B:G,6,0)) -> -
A84: 54 | B84: Pavlina Horackova | C84: =VLOOKUP(B84,Pilot!A:C,3,0) -> Šumperk | D84: =VLOOKUP(B84,Pilot!A:B,2,0) -> 1965 | E84: =VLOOKUP(B84,Pilot!A:E,5,0) -> F | F84: =VLOOKUP(B84,Pilot!A:F,6,0) ->  | G84: 54 | I84: 1 | J84: 54 | K84: =IF(COUNTIF('N PMRg 2023'!B:B,B84)=0,"-",COUNTIF('N PMRg 2023'!B:B,B84)) -> - | L84: =IF(ISERROR(VLOOKUP(B84,'N PMRg 2023'!B:G,6,0)),"-",VLOOKUP(B84,'N PMRg 2023'!B:G,6,0)) -> - | M84: =IF(COUNTIF('N PMČRj 2023'!B:B,B84)=0,"-",COUNTIF('N PMČRj 2023'!B:B,B84)) -> - | N84: =IF(ISERROR(VLOOKUP(B84,'N PMČRj 2023'!B:G,6,0)),"-",VLOOKUP(B84,'N PMČRj 2023'!B:G,6,0)) -> -
A85: 55 | B85: Katerina Vancurova | C85: =VLOOKUP(B85,Pilot!A:C,3,0) -> Hranice | D85: =VLOOKUP(B85,Pilot!A:B,2,0) -> 2002 | E85: =VLOOKUP(B85,Pilot!A:E,5,0) -> F | F85: =VLOOKUP(B85,Pilot!A:F,6,0) -> Junior v roce 2023 | G85: 55 | I85: 1 | J85: 55 | K85: =IF(COUNTIF('N PMRg 2023'!B:B,B85)=0,"-",COUNTIF('N PMRg 2023'!B:B,B85)) -> - | L85: =IF(ISERROR(VLOOKUP(B85,'N PMRg 2023'!B:G,6,0)),"-",VLOOKUP(B85,'N PMRg 2023'!B:G,6,0)) -> - | M85: =IF(COUNTIF('N PMČRj 2023'!B:B,B85)=0,"-",COUNTIF('N PMČRj 2023'!B:B,B85)) -> - | N85: =IF(ISERROR(VLOOKUP(B85,'N PMČRj 2023'!B:G,6,0)),"-",VLOOKUP(B85,'N PMČRj 2023'!B:G,6,0)) -> -
A86: 56 | B86: Radek Zima 78 | C86: =VLOOKUP(B86,Pilot!A:C,3,0) -> Hodkovice | D86: =VLOOKUP(B86,Pilot!A:B,2,0) -> 1978 | E86: =VLOOKUP(B86,Pilot!A:E,5,0) -> M | F86: =VLOOKUP(B86,Pilot!A:F,6,0) ->  | G86: 56 | I86: 1 | J86: 56 | K86: =IF(COUNTIF('N PMRg 2023'!B:B,B86)=0,"-",COUNTIF('N PMRg 2023'!B:B,B86)) -> - | L86: =IF(ISERROR(VLOOKUP(B86,'N PMRg 2023'!B:G,6,0)),"-",VLOOKUP(B86,'N PMRg 2023'!B:G,6,0)) -> - | M86: =IF(COUNTIF('N PMČRj 2023'!B:B,B86)=0,"-",COUNTIF('N PMČRj 2023'!B:B,B86)) -> - | N86: =IF(ISERROR(VLOOKUP(B86,'N PMČRj 2023'!B:G,6,0)),"-",VLOOKUP(B86,'N PMČRj 2023'!B:G,6,0)) -> -
A87: 57 | B87: Jan Florian | C87: =VLOOKUP(B87,Pilot!A:C,3,0) -> Zbraslavice | D87: =VLOOKUP(B87,Pilot!A:B,2,0) -> 1992 | E87: =VLOOKUP(B87,Pilot!A:E,5,0) -> M | F87: =VLOOKUP(B87,Pilot!A:F,6,0) ->  | G87: 57 | I87: 1 | J87: 57 | K87: =IF(COUNTIF('N PMRg 2023'!B:B,B87)=0,"-",COUNTIF('N PMRg 2023'!B:B,B87)) -> - | L87: =IF(ISERROR(VLOOKUP(B87,'N PMRg 2023'!B:G,6,0)),"-",VLOOKUP(B87,'N PMRg 2023'!B:G,6,0)) -> - | M87: =IF(COUNTIF('N PMČRj 2023'!B:B,B87)=0,"-",COUNTIF('N PMČRj 2023'!B:B,B87)) -> - | N87: =IF(ISERROR(VLOOKUP(B87,'N PMČRj 2023'!B:G,6,0)),"-",VLOOKUP(B87,'N PMČRj 2023'!B:G,6,0)) -> -
A88: 58 | B88: Jiri Krofta | C88: =VLOOKUP(B88,Pilot!A:C,3,0) -> Hosín | D88: =VLOOKUP(B88,Pilot!A:B,2,0) -> 1988 | E88: =VLOOKUP(B88,Pilot!A:E,5,0) -> M | F88: =VLOOKUP(B88,Pilot!A:F,6,0) ->  | G88: =A88 -> 58 | I88: 1 | J88: 58 | K88: =IF(COUNTIF('N PMRg 2023'!B:B,B88)=0,"-",COUNTIF('N PMRg 2023'!B:B,B88)) -> - | L88: =IF(ISERROR(VLOOKUP(B88,'N PMRg 2023'!B:G,6,0)),"-",VLOOKUP(B88,'N PMRg 2023'!B:G,6,0)) -> - | M88: =IF(COUNTIF('N PMČRj 2023'!B:B,B88)=0,"-",COUNTIF('N PMČRj 2023'!B:B,B88)) -> - | N88: =IF(ISERROR(VLOOKUP(B88,'N PMČRj 2023'!B:G,6,0)),"-",VLOOKUP(B88,'N PMČRj 2023'!B:G,6,0)) -> -
A89: 59 | B89: Jan Drbohlav | C89: =VLOOKUP(B89,Pilot!A:C,3,0) -> Hodkovice | D89: =VLOOKUP(B89,Pilot!A:B,2,0) -> 1999 | E89: =VLOOKUP(B89,Pilot!A:E,5,0) -> M | F89: =VLOOKUP(B89,Pilot!A:F,6,0) -> Junior v roce 2023 | G89: 59 | I89: 1 | J89: 59 | K89: =IF(COUNTIF('N PMRg 2023'!B:B,B89)=0,"-",COUNTIF('N PMRg 2023'!B:B,B89)) -> - | L89: =IF(ISERROR(VLOOKUP(B89,'N PMRg 2023'!B:G,6,0)),"-",VLOOKUP(B89,'N PMRg 2023'!B:G,6,0)) -> - | M89: =IF(COUNTIF('N PMČRj 2023'!B:B,B89)=0,"-",COUNTIF('N PMČRj 2023'!B:B,B89)) -> - | N89: =IF(ISERROR(VLOOKUP(B89,'N PMČRj 2023'!B:G,6,0)),"-",VLOOKUP(B89,'N PMČRj 2023'!B:G,6,0)) -> -
A90: 60 | B90: Vojtech Hajek | C90: =VLOOKUP(B90,Pilot!A:C,3,0) -> Mladá Boleslav | D90: =VLOOKUP(B90,Pilot!A:B,2,0) -> 1987 | E90: =VLOOKUP(B90,Pilot!A:E,5,0) -> M | F90: =VLOOKUP(B90,Pilot!A:F,6,0) ->  | G90: 60 | I90: 1 | J90: 60 | K90: =IF(COUNTIF('N PMRg 2023'!B:B,B90)=0,"-",COUNTIF('N PMRg 2023'!B:B,B90)) -> - | L90: =IF(ISERROR(VLOOKUP(B90,'N PMRg 2023'!B:G,6,0)),"-",VLOOKUP(B90,'N PMRg 2023'!B:G,6,0)) -> - | M90: =IF(COUNTIF('N PMČRj 2023'!B:B,B90)=0,"-",COUNTIF('N PMČRj 2023'!B:B,B90)) -> - | N90: =IF(ISERROR(VLOOKUP(B90,'N PMČRj 2023'!B:G,6,0)),"-",VLOOKUP(B90,'N PMČRj 2023'!B:G,6,0)) -> -
A91: 6.6.6.8. | B91: ostatní soutěžící z posledního platného Všeobecného žebříku v pořadí podle umístění, do naplnění celkového počtu nominovaných dle 6.6.5. (+ 10 náhradníků).
A92: =MAX(A74:A91)+1 -> 61 | B92: Jan Kotan | C92: =VLOOKUP(B92,Pilot!A:C,3,0) -> Letňany | D92: =VLOOKUP(B92,Pilot!A:B,2,0) -> 1982 | E92: =VLOOKUP(B92,Pilot!A:E,5,0) -> M | F92: =VLOOKUP(B92,Pilot!A:F,6,0) ->  | G92: 61 | I92: =COUNTIF(B:B,B92) -> 1 | J92: =IF(ISERROR(VLOOKUP(B92,B:G,6,0)),"-",VLOOKUP(B92,B:G,6,0)) -> 61 | K92: =IF(COUNTIF('N PMRg 2023'!B:B,B92)=0,"-",COUNTIF('N PMRg 2023'!B:B,B92)) -> - | L92: =IF(ISERROR(VLOOKUP(B92,'N PMRg 2023'!B:G,6,0)),"-",VLOOKUP(B92,'N PMRg 2023'!B:G,6,0)) -> - | M92: =IF(COUNTIF('N PMČRj 2023'!B:B,B92)=0,"-",COUNTIF('N PMČRj 2023'!B:B,B92)) -> - | N92: =IF(ISERROR(VLOOKUP(B92,'N PMČRj 2023'!B:G,6,0)),"-",VLOOKUP(B92,'N PMČRj 2023'!B:G,6,0)) -> -
A93: =A92+1 -> 62 | B93: Zdenek Boruvka 86 | C93: =VLOOKUP(B93,Pilot!A:C,3,0) -> Jičín | D93: =VLOOKUP(B93,Pilot!A:B,2,0) -> 1986 | E93: =VLOOKUP(B93,Pilot!A:E,5,0) -> M | F93: =VLOOKUP(B93,Pilot!A:F,6,0) ->  | G93: =A93 -> 62 | I93: 1 | J93: 62 | K93: =IF(COUNTIF('N PMRg 2023'!B:B,B93)=0,"-",COUNTIF('N PMRg 2023'!B:B,B93)) -> - | L93: =IF(ISERROR(VLOOKUP(B93,'N PMRg 2023'!B:G,6,0)),"-",VLOOKUP(B93,'N PMRg 2023'!B:G,6,0)) -> - | M93: =IF(COUNTIF('N PMČRj 2023'!B:B,B93)=0,"-",COUNTIF('N PMČRj 2023'!B:B,B93)) -> - | N93: =IF(ISERROR(VLOOKUP(B93,'N PMČRj 2023'!B:G,6,0)),"-",VLOOKUP(B93,'N PMČRj 2023'!B:G,6,0)) -> -
A94: 63 | B94: Jan Boruvka | C94: =VLOOKUP(B94,Pilot!A:C,3,0) -> Jičín | D94: =VLOOKUP(B94,Pilot!A:B,2,0) -> 1984 | E94: =VLOOKUP(B94,Pilot!A:E,5,0) -> M | F94: =VLOOKUP(B94,Pilot!A:F,6,0) ->  | G94: 63 | I94: 1 | J94: 63 | K94: =IF(COUNTIF('N PMRg 2023'!B:B,B94)=0,"-",COUNTIF('N PMRg 2023'!B:B,B94)) -> - | L94: =IF(ISERROR(VLOOKUP(B94,'N PMRg 2023'!B:G,6,0)),"-",VLOOKUP(B94,'N PMRg 2023'!B:G,6,0)) -> - | M94: =IF(COUNTIF('N PMČRj 2023'!B:B,B94)=0,"-",COUNTIF('N PMČRj 2023'!B:B,B94)) -> - | N94: =IF(ISERROR(VLOOKUP(B94,'N PMČRj 2023'!B:G,6,0)),"-",VLOOKUP(B94,'N PMČRj 2023'!B:G,6,0)) -> -
A95: 64 | B95: Josef Novotny | C95: =VLOOKUP(B95,Pilot!A:C,3,0) -> Přibyslav | D95: =VLOOKUP(B95,Pilot!A:B,2,0) -> 1983 | E95: =VLOOKUP(B95,Pilot!A:E,5,0) -> M | F95: =VLOOKUP(B95,Pilot!A:F,6,0) ->  | G95: 64 | I95: 1 | J95: 64 | K95: =IF(COUNTIF('N PMRg 2023'!B:B,B95)=0,"-",COUNTIF('N PMRg 2023'!B:B,B95)) -> - | L95: =IF(ISERROR(VLOOKUP(B95,'N PMRg 2023'!B:G,6,0)),"-",VLOOKUP(B95,'N PMRg 2023'!B:G,6,0)) -> - | M95: =IF(COUNTIF('N PMČRj 2023'!B:B,B95)=0,"-",COUNTIF('N PMČRj 2023'!B:B,B95)) -> - | N95: =IF(ISERROR(VLOOKUP(B95,'N PMČRj 2023'!B:G,6,0)),"-",VLOOKUP(B95,'N PMČRj 2023'!B:G,6,0)) -> -
A96: 65 | B96: Frantisek Vancura | C96: =VLOOKUP(B96,Pilot!A:C,3,0) -> Hranice | D96: =VLOOKUP(B96,Pilot!A:B,2,0) -> 1966 | E96: =VLOOKUP(B96,Pilot!A:E,5,0) -> M | F96: =VLOOKUP(B96,Pilot!A:F,6,0) ->  | G96: =A96 -> 65 | I96: 1 | J96: 65 | K96: =IF(COUNTIF('N PMRg 2023'!B:B,B96)=0,"-",COUNTIF('N PMRg 2023'!B:B,B96)) -> - | L96: =IF(ISERROR(VLOOKUP(B96,'N PMRg 2023'!B:G,6,0)),"-",VLOOKUP(B96,'N PMRg 2023'!B:G,6,0)) -> - | M96: =IF(COUNTIF('N PMČRj 2023'!B:B,B96)=0,"-",COUNTIF('N PMČRj 2023'!B:B,B96)) -> - | N96: =IF(ISERROR(VLOOKUP(B96,'N PMČRj 2023'!B:G,6,0)),"-",VLOOKUP(B96,'N PMČRj 2023'!B:G,6,0)) -> -
A97: 66 | B97: Martin Ficnar | C97: =VLOOKUP(B97,Pilot!A:C,3,0) -> Šumperk | D97: =VLOOKUP(B97,Pilot!A:B,2,0) -> 1971 | E97: =VLOOKUP(B97,Pilot!A:E,5,0) -> M | F97: =VLOOKUP(B97,Pilot!A:F,6,0) ->  | G97: =A97 -> 66 | I97: 1 | J97: 66 | K97: =IF(COUNTIF('N PMRg 2023'!B:B,B97)=0,"-",COUNTIF('N PMRg 2023'!B:B,B97)) -> - | L97: =IF(ISERROR(VLOOKUP(B97,'N PMRg 2023'!B:G,6,0)),"-",VLOOKUP(B97,'N PMRg 2023'!B:G,6,0)) -> - | M97: =IF(COUNTIF('N PMČRj 2023'!B:B,B97)=0,"-",COUNTIF('N PMČRj 2023'!B:B,B97)) -> - | N97: =IF(ISERROR(VLOOKUP(B97,'N PMČRj 2023'!B:G,6,0)),"-",VLOOKUP(B97,'N PMČRj 2023'!B:G,6,0)) -> -
A98: 67 | B98: Petr Krejcirik | C98: =VLOOKUP(B98,Pilot!A:C,3,0) -> Hranice | D98: =VLOOKUP(B98,Pilot!A:B,2,0) -> 1960 | E98: =VLOOKUP(B98,Pilot!A:E,5,0) -> M | F98: =VLOOKUP(B98,Pilot!A:F,6,0) ->  | G98: =A98 -> 67 | I98: =COUNTIF(B:B,B98) -> 1 | J98: =IF(ISERROR(VLOOKUP(B98,B:G,6,0)),"-",VLOOKUP(B98,B:G,6,0)) -> 67 | K98: =IF(COUNTIF('N PMRg 2023'!B:B,B98)=0,"-",COUNTIF('N PMRg 2023'!B:B,B98)) -> - | L98: =IF(ISERROR(VLOOKUP(B98,'N PMRg 2023'!B:G,6,0)),"-",VLOOKUP(B98,'N PMRg 2023'!B:G,6,0)) -> - | M98: =IF(COUNTIF('N PMČRj 2023'!B:B,B98)=0,"-",COUNTIF('N PMČRj 2023'!B:B,B98)) -> - | N98: =IF(ISERROR(VLOOKUP(B98,'N PMČRj 2023'!B:G,6,0)),"-",VLOOKUP(B98,'N PMČRj 2023'!B:G,6,0)) -> -
A99: 68 | B99: Marek Blatak | C99: =VLOOKUP(B99,Pilot!A:C,3,0) -> Šumperk | D99: =VLOOKUP(B99,Pilot!A:B,2,0) -> 1969 | E99: =VLOOKUP(B99,Pilot!A:E,5,0) -> M | F99: =VLOOKUP(B99,Pilot!A:F,6,0) ->  | G99: 68 | I99: 1 | J99: 68 | K99: =IF(COUNTIF('N PMRg 2023'!B:B,B99)=0,"-",COUNTIF('N PMRg 2023'!B:B,B99)) -> - | L99: =IF(ISERROR(VLOOKUP(B99,'N PMRg 2023'!B:G,6,0)),"-",VLOOKUP(B99,'N PMRg 2023'!B:G,6,0)) -> - | M99: =IF(COUNTIF('N PMČRj 2023'!B:B,B99)=0,"-",COUNTIF('N PMČRj 2023'!B:B,B99)) -> - | N99: =IF(ISERROR(VLOOKUP(B99,'N PMČRj 2023'!B:G,6,0)),"-",VLOOKUP(B99,'N PMČRj 2023'!B:G,6,0)) -> -
A100: 69 | B100: Jindrich Svorc | C100: =VLOOKUP(B100,Pilot!A:C,3,0) -> Letňany | D100: =VLOOKUP(B100,Pilot!A:B,2,0) -> 1978 | E100: =VLOOKUP(B100,Pilot!A:E,5,0) -> M | F100: =VLOOKUP(B100,Pilot!A:F,6,0) ->  | G100: 69 | I100: 1 | J100: 69 | K100: =IF(COUNTIF('N PMRg 2023'!B:B,B100)=0,"-",COUNTIF('N PMRg 2023'!B:B,B100)) -> - | L100: =IF(ISERROR(VLOOKUP(B100,'N PMRg 2023'!B:G,6,0)),"-",VLOOKUP(B100,'N PMRg 2023'!B:G,6,0)) -> - | M100: =IF(COUNTIF('N PMČRj 2023'!B:B,B100)=0,"-",COUNTIF('N PMČRj 2023'!B:B,B100)) -> - | N100: =IF(ISERROR(VLOOKUP(B100,'N PMČRj 2023'!B:G,6,0)),"-",VLOOKUP(B100,'N PMČRj 2023'!B:G,6,0)) -> -
A101: 70 | B101: Martin Hrivna | C101: =VLOOKUP(B101,Pilot!A:C,3,0) -> Zbraslavice | D101: =VLOOKUP(B101,Pilot!A:B,2,0) -> 1978 | E101: =VLOOKUP(B101,Pilot!A:E,5,0) -> M | F101: =VLOOKUP(B101,Pilot!A:F,6,0) ->  | G101: 70 | I101: 1 | J101: 70 | K101: =IF(COUNTIF('N PMRg 2023'!B:B,B101)=0,"-",COUNTIF('N PMRg 2023'!B:B,B101)) -> - | L101: =IF(ISERROR(VLOOKUP(B101,'N PMRg 2023'!B:G,6,0)),"-",VLOOKUP(B101,'N PMRg 2023'!B:G,6,0)) -> - | M101: =IF(COUNTIF('N PMČRj 2023'!B:B,B101)=0,"-",COUNTIF('N PMČRj 2023'!B:B,B101)) -> - | N101: =IF(ISERROR(VLOOKUP(B101,'N PMČRj 2023'!B:G,6,0)),"-",VLOOKUP(B101,'N PMČRj 2023'!B:G,6,0)) -> -
A102: 71 | B102: David Sachl | C102: =VLOOKUP(B102,Pilot!A:C,3,0) -> Kralupy | D102: =VLOOKUP(B102,Pilot!A:B,2,0) -> 1978 | E102: =VLOOKUP(B102,Pilot!A:E,5,0) -> M | F102: =VLOOKUP(B102,Pilot!A:F,6,0) ->  | G102: 71 | I102: 1 | J102: 71 | K102: =IF(COUNTIF('N PMRg 2023'!B:B,B102)=0,"-",COUNTIF('N PMRg 2023'!B:B,B102)) -> - | L102: =IF(ISERROR(VLOOKUP(B102,'N PMRg 2023'!B:G,6,0)),"-",VLOOKUP(B102,'N PMRg 2023'!B:G,6,0)) -> - | M102: =IF(COUNTIF('N PMČRj 2023'!B:B,B102)=0,"-",COUNTIF('N PMČRj 2023'!B:B,B102)) -> - | N102: =IF(ISERROR(VLOOKUP(B102,'N PMČRj 2023'!B:G,6,0)),"-",VLOOKUP(B102,'N PMČRj 2023'!B:G,6,0)) -> -
A103: 72 | B103: Ondrej Dupal | C103: =VLOOKUP(B103,Pilot!A:C,3,0) -> GAC Benešov | D103: =VLOOKUP(B103,Pilot!A:B,2,0) -> 1966 | E103: =VLOOKUP(B103,Pilot!A:E,5,0) -> M | F103: =VLOOKUP(B103,Pilot!A:F,6,0) ->  | G103: 72 | I103: 1 | J103: 72 | K103: =IF(COUNTIF('N PMRg 2023'!B:B,B103)=0,"-",COUNTIF('N PMRg 2023'!B:B,B103)) -> - | L103: =IF(ISERROR(VLOOKUP(B103,'N PMRg 2023'!B:G,6,0)),"-",VLOOKUP(B103,'N PMRg 2023'!B:G,6,0)) -> - | M103: =IF(COUNTIF('N PMČRj 2023'!B:B,B103)=0,"-",COUNTIF('N PMČRj 2023'!B:B,B103)) -> - | N103: =IF(ISERROR(VLOOKUP(B103,'N PMČRj 2023'!B:G,6,0)),"-",VLOOKUP(B103,'N PMČRj 2023'!B:G,6,0)) -> -
A104: 73 | B104: Michal Cechmanek | C104: =VLOOKUP(B104,Pilot!A:C,3,0) -> Luhačovice | D104: =VLOOKUP(B104,Pilot!A:B,2,0) -> 1978 | E104: =VLOOKUP(B104,Pilot!A:E,5,0) -> M | F104: =VLOOKUP(B104,Pilot!A:F,6,0) ->  | G104: 73 | I104: 1 | J104: 73 | K104: =IF(COUNTIF('N PMRg 2023'!B:B,B104)=0,"-",COUNTIF('N PMRg 2023'!B:B,B104)) -> - | L104: =IF(ISERROR(VLOOKUP(B104,'N PMRg 2023'!B:G,6,0)),"-",VLOOKUP(B104,'N PMRg 2023'!B:G,6,0)) -> - | M104: =IF(COUNTIF('N PMČRj 2023'!B:B,B104)=0,"-",COUNTIF('N PMČRj 2023'!B:B,B104)) -> - | N104: =IF(ISERROR(VLOOKUP(B104,'N PMČRj 2023'!B:G,6,0)),"-",VLOOKUP(B104,'N PMČRj 2023'!B:G,6,0)) -> -
A105: 74 | B105: Jan Dersak 69 | C105: =VLOOKUP(B105,Pilot!A:C,3,0) -> Kralupy | D105: =VLOOKUP(B105,Pilot!A:B,2,0) -> 1969 | E105: =VLOOKUP(B105,Pilot!A:E,5,0) -> M | F105: =VLOOKUP(B105,Pilot!A:F,6,0) ->  | G105: 74 | I105: 1 | J105: 74 | K105: =IF(COUNTIF('N PMRg 2023'!B:B,B105)=0,"-",COUNTIF('N PMRg 2023'!B:B,B105)) -> - | L105: =IF(ISERROR(VLOOKUP(B105,'N PMRg 2023'!B:G,6,0)),"-",VLOOKUP(B105,'N PMRg 2023'!B:G,6,0)) -> - | M105: =IF(COUNTIF('N PMČRj 2023'!B:B,B105)=0,"-",COUNTIF('N PMČRj 2023'!B:B,B105)) -> - | N105: =IF(ISERROR(VLOOKUP(B105,'N PMČRj 2023'!B:G,6,0)),"-",VLOOKUP(B105,'N PMČRj 2023'!B:G,6,0)) -> -
A106: 75 | B106: Martin Urner | C106: =VLOOKUP(B106,Pilot!A:C,3,0) -> Letňany | D106: =VLOOKUP(B106,Pilot!A:B,2,0) -> 1974 | E106: =VLOOKUP(B106,Pilot!A:E,5,0) -> M | F106: =VLOOKUP(B106,Pilot!A:F,6,0) ->  | G106: 75 | I106: 1 | J106: 75 | K106: =IF(COUNTIF('N PMRg 2023'!B:B,B106)=0,"-",COUNTIF('N PMRg 2023'!B:B,B106)) -> - | L106: =IF(ISERROR(VLOOKUP(B106,'N PMRg 2023'!B:G,6,0)),"-",VLOOKUP(B106,'N PMRg 2023'!B:G,6,0)) -> - | M106: =IF(COUNTIF('N PMČRj 2023'!B:B,B106)=0,"-",COUNTIF('N PMČRj 2023'!B:B,B106)) -> - | N106: =IF(ISERROR(VLOOKUP(B106,'N PMČRj 2023'!B:G,6,0)),"-",VLOOKUP(B106,'N PMČRj 2023'!B:G,6,0)) -> -
A107: 76 | B107: Jan Horak | C107: =VLOOKUP(B107,Pilot!A:C,3,0) -> Zbraslavice | D107: =VLOOKUP(B107,Pilot!A:B,2,0) -> 1971 | E107: =VLOOKUP(B107,Pilot!A:E,5,0) -> M | F107: =VLOOKUP(B107,Pilot!A:F,6,0) ->  | G107: 76 | I107: 1 | J107: 76 | K107: =IF(COUNTIF('N PMRg 2023'!B:B,B107)=0,"-",COUNTIF('N PMRg 2023'!B:B,B107)) -> - | L107: =IF(ISERROR(VLOOKUP(B107,'N PMRg 2023'!B:G,6,0)),"-",VLOOKUP(B107,'N PMRg 2023'!B:G,6,0)) -> - | M107: =IF(COUNTIF('N PMČRj 2023'!B:B,B107)=0,"-",COUNTIF('N PMČRj 2023'!B:B,B107)) -> - | N107: =IF(ISERROR(VLOOKUP(B107,'N PMČRj 2023'!B:G,6,0)),"-",VLOOKUP(B107,'N PMČRj 2023'!B:G,6,0)) -> -
A108: 77 | B108: Vratislav Sram | C108: =VLOOKUP(B108,Pilot!A:C,3,0) -> Broumov | D108: =VLOOKUP(B108,Pilot!A:B,2,0) -> 1966 | E108: =VLOOKUP(B108,Pilot!A:E,5,0) -> M | F108: =VLOOKUP(B108,Pilot!A:F,6,0) ->  | G108: 77 | I108: 1 | J108: 77 | K108: =IF(COUNTIF('N PMRg 2023'!B:B,B108)=0,"-",COUNTIF('N PMRg 2023'!B:B,B108)) -> - | L108: =IF(ISERROR(VLOOKUP(B108,'N PMRg 2023'!B:G,6,0)),"-",VLOOKUP(B108,'N PMRg 2023'!B:G,6,0)) -> - | M108: =IF(COUNTIF('N PMČRj 2023'!B:B,B108)=0,"-",COUNTIF('N PMČRj 2023'!B:B,B108)) -> - | N108: =IF(ISERROR(VLOOKUP(B108,'N PMČRj 2023'!B:G,6,0)),"-",VLOOKUP(B108,'N PMČRj 2023'!B:G,6,0)) -> -
A109: 78 | B109: Josef Novak | C109: =VLOOKUP(B109,Pilot!A:C,3,0) -> Kunovice | D109: =VLOOKUP(B109,Pilot!A:B,2,0) -> 1981 | E109: =VLOOKUP(B109,Pilot!A:E,5,0) -> M | F109: =VLOOKUP(B109,Pilot!A:F,6,0) ->  | G109: 78 | I109: 1 | J109: 78 | K109: =IF(COUNTIF('N PMRg 2023'!B:B,B109)=0,"-",COUNTIF('N PMRg 2023'!B:B,B109)) -> - | L109: =IF(ISERROR(VLOOKUP(B109,'N PMRg 2023'!B:G,6,0)),"-",VLOOKUP(B109,'N PMRg 2023'!B:G,6,0)) -> - | M109: =IF(COUNTIF('N PMČRj 2023'!B:B,B109)=0,"-",COUNTIF('N PMČRj 2023'!B:B,B109)) -> - | N109: =IF(ISERROR(VLOOKUP(B109,'N PMČRj 2023'!B:G,6,0)),"-",VLOOKUP(B109,'N PMČRj 2023'!B:G,6,0)) -> -
A110: 79 | B110: Eduard Niko | C110: =VLOOKUP(B110,Pilot!A:C,3,0) -> Zbraslavice | D110: =VLOOKUP(B110,Pilot!A:B,2,0) -> 1988 | E110: =VLOOKUP(B110,Pilot!A:E,5,0) -> M | F110: =VLOOKUP(B110,Pilot!A:F,6,0) ->  | G110: 79 | I110: 1 | J110: 79 | K110: =IF(COUNTIF('N PMRg 2023'!B:B,B110)=0,"-",COUNTIF('N PMRg 2023'!B:B,B110)) -> - | L110: =IF(ISERROR(VLOOKUP(B110,'N PMRg 2023'!B:G,6,0)),"-",VLOOKUP(B110,'N PMRg 2023'!B:G,6,0)) -> - | M110: =IF(COUNTIF('N PMČRj 2023'!B:B,B110)=0,"-",COUNTIF('N PMČRj 2023'!B:B,B110)) -> - | N110: =IF(ISERROR(VLOOKUP(B110,'N PMČRj 2023'!B:G,6,0)),"-",VLOOKUP(B110,'N PMČRj 2023'!B:G,6,0)) -> -
A111: 80 | B111: Lubomir Motl | C111: =VLOOKUP(B111,Pilot!A:C,3,0) -> Kyjov | D111: =VLOOKUP(B111,Pilot!A:B,2,0) -> 1959 | E111: =VLOOKUP(B111,Pilot!A:E,5,0) -> M | F111: =VLOOKUP(B111,Pilot!A:F,6,0) ->  | G111: 80 | I111: 1 | J111: 80 | K111: =IF(COUNTIF('N PMRg 2023'!B:B,B111)=0,"-",COUNTIF('N PMRg 2023'!B:B,B111)) -> - | L111: =IF(ISERROR(VLOOKUP(B111,'N PMRg 2023'!B:G,6,0)),"-",VLOOKUP(B111,'N PMRg 2023'!B:G,6,0)) -> - | M111: =IF(COUNTIF('N PMČRj 2023'!B:B,B111)=0,"-",COUNTIF('N PMČRj 2023'!B:B,B111)) -> - | N111: =IF(ISERROR(VLOOKUP(B111,'N PMČRj 2023'!B:G,6,0)),"-",VLOOKUP(B111,'N PMČRj 2023'!B:G,6,0)) -> -
A112: N1 | B112: Karel Benisek 76 | C112: =VLOOKUP(B112,Pilot!A:C,3,0) -> Toužim | D112: =VLOOKUP(B112,Pilot!A:B,2,0) -> 1976 | E112: =VLOOKUP(B112,Pilot!A:E,5,0) -> M | F112: =VLOOKUP(B112,Pilot!A:F,6,0) ->  | G112: =A112 -> N1 | I112: =COUNTIF(B:B,B112) -> 1 | J112: =IF(ISERROR(VLOOKUP(B112,B:G,6,0)),"-",VLOOKUP(B112,B:G,6,0)) -> N1 | K112: =IF(COUNTIF('N PMRg 2023'!B:B,B112)=0,"-",COUNTIF('N PMRg 2023'!B:B,B112)) -> - | L112: =IF(ISERROR(VLOOKUP(B112,'N PMRg 2023'!B:G,6,0)),"-",VLOOKUP(B112,'N PMRg 2023'!B:G,6,0)) -> - | M112: =IF(COUNTIF('N PMČRj 2023'!B:B,B112)=0,"-",COUNTIF('N PMČRj 2023'!B:B,B112)) -> - | N112: =IF(ISERROR(VLOOKUP(B112,'N PMČRj 2023'!B:G,6,0)),"-",VLOOKUP(B112,'N PMČRj 2023'!B:G,6,0)) -> -
A113: N2 | B113: Jiri Steiger | C113: =VLOOKUP(B113,Pilot!A:C,3,0) -> Olomouc | D113: =VLOOKUP(B113,Pilot!A:B,2,0) -> 1969 | E113: =VLOOKUP(B113,Pilot!A:E,5,0) -> M | F113: =VLOOKUP(B113,Pilot!A:F,6,0) ->  | G113: N2 | I113: 1 | J113: N2 | K113: =IF(COUNTIF('N PMRg 2023'!B:B,B113)=0,"-",COUNTIF('N PMRg 2023'!B:B,B113)) -> - | L113: =IF(ISERROR(VLOOKUP(B113,'N PMRg 2023'!B:G,6,0)),"-",VLOOKUP(B113,'N PMRg 2023'!B:G,6,0)) -> - | M113: =IF(COUNTIF('N PMČRj 2023'!B:B,B113)=0,"-",COUNTIF('N PMČRj 2023'!B:B,B113)) -> - | N113: =IF(ISERROR(VLOOKUP(B113,'N PMČRj 2023'!B:G,6,0)),"-",VLOOKUP(B113,'N PMČRj 2023'!B:G,6,0)) -> -
A114: N3 | B114: Rene Hudak | C114: =VLOOKUP(B114,Pilot!A:C,3,0) -> Kunovice | D114: =VLOOKUP(B114,Pilot!A:B,2,0) -> 1972 | E114: =VLOOKUP(B114,Pilot!A:E,5,0) -> M | F114: =VLOOKUP(B114,Pilot!A:F,6,0) ->  | G114: N3 | I114: 1 | J114: N3 | K114: =IF(COUNTIF('N PMRg 2023'!B:B,B114)=0,"-",COUNTIF('N PMRg 2023'!B:B,B114)) -> - | L114: =IF(ISERROR(VLOOKUP(B114,'N PMRg 2023'!B:G,6,0)),"-",VLOOKUP(B114,'N PMRg 2023'!B:G,6,0)) -> - | M114: =IF(COUNTIF('N PMČRj 2023'!B:B,B114)=0,"-",COUNTIF('N PMČRj 2023'!B:B,B114)) -> - | N114: =IF(ISERROR(VLOOKUP(B114,'N PMČRj 2023'!B:G,6,0)),"-",VLOOKUP(B114,'N PMČRj 2023'!B:G,6,0)) -> -
A115: N4 | B115: Miroslav Koci | C115: =VLOOKUP(B115,Pilot!A:C,3,0) -> Žamberk | D115: =VLOOKUP(B115,Pilot!A:B,2,0) -> 1961 | E115: =VLOOKUP(B115,Pilot!A:E,5,0) -> M | F115: =VLOOKUP(B115,Pilot!A:F,6,0) ->  | G115: N4 | I115: 1 | J115: N4 | K115: =IF(COUNTIF('N PMRg 2023'!B:B,B115)=0,"-",COUNTIF('N PMRg 2023'!B:B,B115)) -> - | L115: =IF(ISERROR(VLOOKUP(B115,'N PMRg 2023'!B:G,6,0)),"-",VLOOKUP(B115,'N PMRg 2023'!B:G,6,0)) -> - | M115: =IF(COUNTIF('N PMČRj 2023'!B:B,B115)=0,"-",COUNTIF('N PMČRj 2023'!B:B,B115)) -> - | N115: =IF(ISERROR(VLOOKUP(B115,'N PMČRj 2023'!B:G,6,0)),"-",VLOOKUP(B115,'N PMČRj 2023'!B:G,6,0)) -> -
